Workbook

Sheet Accessorial Conversion File (hidden)
A1: 2016 | D1: 2016 Accessorial Matrix - Applies to Daily Rate
A2: Domestic Accessorials | D2: Domestic | E2: Current | F2: 2016 Pub | G2: RFP-Adjustment
A3: Accessorials | B3: Incentives | D3: Additional Handling | E3: =B12 -> 8.854241 | F3: 10.5
D4: Address Corrections- Ground | E4: =B6 -> 11.737728 | F4: 13
A5: Export - Certificate of Origin | B5: 10 | D5: Address Corrections- Air | E5: =B6 -> 11.737728 | F5: 13
A6: Address Corrections (Grd & Air) | B6: 11.737728 | D6: Address Corrections (Maximum per Shipment) | E6: List | F6: 91
A7: Domestic - Custom Delivery Confirmation - No Signature Response | B7: 2 | D7: Carbon Neutral Surcharge - Ground | E7: List | F7: 0.05
A8: Domestic - Custom Delivery Confirmation - Signature Response | B8: 3.729174 | D8: Carbon Neutral Surcharge - Air | E8: List | F8: 0.2
A9: Domestic - Custom Delivery Confirmation Signature Response - Non Compliant | B9: 3.729174 | D9: Chargeback for Consignee Billing Shipments | E9: =B40 -> 11.737728 | F9: 13
A10: Domestic - Custom Delivery Confirmation - Adult Signature Required | B10: 4.799019 | D10: C.O.D.s | E10: =B13 -> 11.452436 | F10: 12.5
A11: Domestic - Custom Delivery Confirmation - Adult Signature Required - Non Compliant | B11: 4.799019 | D11: Delivery Area Surcharge - Air Commercial | F11: 2.45
A12: Domestic - Additional Handling Charge | B12: 8.854241 | D12: Delivery Area Surcharge - Ground Commercial | F12: 2.3
A13: C. O. D.s | B13: 11.452436 | D13: Delivery Area Surcharge - Air Extended Commercial | F13: 2.45
A14: Residential Surcharge - Domestic Delivery of Air Services* and 3 Day Select | B14: 1.59 | D14: Delivery Area Surcharge - Ground Extended Commercial | F14: 2.3
A15: Residential Surcharge - Domestic Delivery of Ground Service | B15: 1.34 | D15: Delivery Area Surcharge - Ground Residential | F15: 3.15
A16: Domestic - Print Label Charge | B16: 0.5 | D16: Delivery Area Surcharge - Air Residential | F16: 3.7
A17: Domestic - Print and Mail Label Charge | B17: 2.25 | D17: Delivery Area Surcharge - Air Extended Residential | F17: 4
A18: Domestic - Electronic Label Charge | B18: 1 | D18: Delivery Area Surcharge - Ground Extended Residential | F18: 4
A19: Fax Proof of Delivery | B19: 3 | D19: Delivery Area Surcharge - Hundredweight | E19: List | F19: $12.30 per shipment
A20: Domestic - Dry Ice | B20: 5 | D20: Delivery Change Request - Phone | F20: 6
A21: Reroute (Phone Request) | B21: 16.006919 | D21: Delivery Change Request - Web | F21: 5
A22: Reroute (Web Request) | B22: 11.737728 | D22: Delivery Confirmation Response | E22: List | F22: 2
A23: Reschedule Delivery (Phone Request) | B23: 16.006919 | D23: Delivery Confirmation Response - Signature Required | E23: =B8 -> 3.729174 | F23: 4.25
A24: Reschedule Delivery (Web Request) | B24: 11.737728 | D24: Delivery Confirmation Response - Adult Signature Required | E24: =B10 -> 4.799019 | F24: 5.25
A25: Return to Sender (Phone Request) | B25: 16.006919 | D25: Delivery Intercept - Phone Request (Redirect, Return, or Future Del) | F25: 18.7
A26: Return to Sender (Web Request) | B26: 11.737728 | D26: Delivery Intercept - Web Request (Redirect, Return, or Future Del) | F26: 12.9
A27: Domestic - Large Package Surcharge | B27: 57.272369 | D27: My Choice - upgrade fee | F27: 3.5
A28: Domestic - Lookup Surcharge | B28: 11.452436 | D28: Dimensional Weight Factor | E28: List | F28: 166
A29: Domestic - Saturday Delivery | B29: 5.328847 | D29: Direct Delivery Only | E29: 100% off | F29: 2
A30: Saturday Pickup Charge | B30: 5.328847 | D30: Dry Ice | E30: List | F30: 5
A31: Domestic - HazMat Class 1-8 Air C Fee | B31: 39.054437 | D31: Early AM Out of Territory | E31: List | F31: 10
A32: Domestic - HazMat Class 1-8 Ground Fee | B32: 28.641279 | D32: Early AM Premium | E32: List | F32: 30
A33: Domestic - HazMat Class 1-8 Air Fee | B33: 39.054437 | D33: Excessive Tracking, Tracing, & Refund Requests | F33: 3
A34: Domestic - HazMat Class 9 Cargo Quantity Fee | B34: 39.054437 | D34: Hazardous Materials Surcharge, Air | E34: =B33 -> 39.054437 | F34: 42.5
A35: Domestic - HazMat Class 9 Ground Fee | B35: 28.641279 | D35: Hazardous Materials Surcharge, Ground | E35: =B35 -> 28.641279 | F35: 30
A36: Domestic - HazMat Class 9 Air Fee | B36: 39.054437 | D36: Declared Value | E36: $0.82 per $100 ($2.46 Min.) | F36: $0.90 per $100 ($2.70 Min.)
A37: Domestic - HazMat Class 9 Air Lithium C Fee | B37: 39.054437 | D37: Large Package Surcharge | E37: =B27 -> 57.272369 | F37: 67.5
A38: Domestic - HazMat Class 9 Ground Lithium Fee | B38: 28.641279 | D38: Missing/Invalid Account # Charge | E38: =B28 -> 11.452436 | F38: 13
A39: Domestic - HazMat Class 9 Air Lithium | B39: 39.054437 | D39: On Call Pickup -- Same Day | E39: 1 | F39: 6.7
A40: Chargeback For Consignee Billing Shipments | B40: 11.737728 | D40: On Call Pickup -- Future Day | E40: 1 | F40: 5.65
A41: Domestic - Three Pickup Attempts Label Charge | B41: 7.468537 | D41: On-Call Pickup Residential Surcharge | E41: 1 | F41: 3.25
A42: Domestic - One Pickup Attempt Label Charge | B42: 5.328847 | D42: On-Call Pickup Area Surcharge - Residential | E42: 1 | F42: 3.15
A43: Weekly Late Payment Charge | B43: 83.40% Off Effective Rates | D43: On-Call Pickup Area Surcharge - Extended Residential | F43: 4
A44: Monthly Late Payment Charge | B44: 83.40% Off Effective Rates | D44: On-Call Pickup Remote Surcharge - Alaska | F44: 22.5
A45: Domestic - Consignee Initiated Delivery Change | B45: 6.245857 | D45: On-Call Pickup Remote Surcharge - Hawaii | F45: 6.75
A46: Request Deliver to UPS Access PointTM - Phone | D46: Over Maximum Limits | F46: 110
A47: Domestic - Consignee Initiated Delivery Change Request Deliver to UPS Access PointTM - Web | B47: 5.206579 | D47: Proof of Delivery- (Fax or Mail) | E47: List | F47: 3
A48: Domestic - Consignee Initiated Delivery Change Request Deliver Package to Original Residential Address - Phone | B48: 6.245857 | D48: Quantum View Notify | E48: List | F48: 0
A49: Domestic - Consignee Initiated Delivery Change Request Deliver Package to Original Residential Address - Web | B49: 5.206579 | D49: Remote Area Surcharge - Alaska | F49: 22.5
A50: Domestic - Consignee Initiated Delivery Change Request Reroute - Phone Request | B50: 6.245857 | D50: Remote Area Surcharge -Hawaii | F50: 6.75
A51: Domestic - Consignee Initiated Delivery Change Request Reroute - Web Request | B51: 5.206579 | D51: Residential Surcharge - Ground | E51: =B15 -> 1.34 | F51: 3.25
A52: Domestic - Consignee Initiated Delivery Change Request Reschedule Delivery - Web Request | B52: 5.206579 | D52: Residential Surcharge - Air | E52: =B14 -> 1.59 | F52: 3.65
A53: Domestic - Consignee Initiated Delivery Change Request Reschedule Delivery - Phone Request | B53: 6.245857 | D53: Residential Differential - Hundredweight | E53: List | F53: $31.60 per shipment
A54: International Accessorials | D54: Residential Surcharge - WWEF | E54: List | F54: $125.00 per shipment
A55: Export - Transborder & Worldwide Three Pickup Attempts Label Charge | B55: 7.468537 | D55: Saturday Pickup | E55: =B30 -> 5.328847 | F55: 16
A56: Export - Duty and Tax Forwarding Surcharge | B56: 15 | D56: Saturday Delivery | E56: =B29 -> 5.328847 | F56: 16
A57: Export - Transborder & Worldwide One Pickup Attempt Label Charge | B57: 5.328847 | D57: Ship Notification (fax) | E57: List | F57: 0
A58: Export - Residential SurchargeEF | B58: 3.199346 | D58: Third Party Billing Service | E58: List | F58: 0.025
A59: Export - HazMat Class 1-8 Air C FeeEF Shipment Minimum - $7.15 Rate | B59: 60.920031 | D59: UPS Returns: Print Return Label | E59: List | F59: 0.5
A60: Export - HazMat Class 1-8 Ground Fee - Shipment Minimum - $4.00 Rate | B60: 35.6615 | D60: UPS Returns: Electronic Return Label | E60: List | F60: 1
A61: Export - HazMat Class 1-8 Air FeeEF Shipment Minimum - $7.15 Rate | B61: 60.920031 | D61: UPS Returns: Print & Mail Return Label | E61: List | F61: 2.25
A62: Export - HazMat Class 9 Cargo Quantity FeeEF Shipment Minimum - $7.15 Rate | B62: 60.920031 | D62: UPS Returns Plus: 1 UPS Pickup Attempt | E62: =B42 -> 5.328847 | F62: 5.65
A63: Export - HazMat Class 9 Ground Fee - Shipment Minimum - $4.00 Rate | B63: 35.6615 | D63: UPS Returns Plus: 3 UPS Pickup Attempts | E63: =B41 -> 7.468537 | F63: 7.7
A64: Export - HazMat Class 9 Air FeeEF Shipment Minimum - $7.15 Rate | B64: 60.920031 | D64: UPS Returns Plus: Call Tag | E64: List | F64: 8
A65: Export - HazMat Class 9 Air Lithium C FeeEF Shipment Minimum - $7.15 Rate | B65: 60.920031 | D65: Verbal Confirmation of Delivery | E65: List | F65: 3
A66: Export - HazMat Class 9 Ground Lithium Fee - Shipment Minimum - $4.00 Rate | B66: 35.6615 | D66: Weekly Service Charges:
A67: Export - HazMat Class 9 Air LithiumEF Shipment Minimum - $7.15 Rate | B67: 60.920031 | D67: Daily Pickup ($0.00-$74.99 Billed) | F67: 25
A68: UPS Worldwide Express FreightSM-Export- Oversize Pallet Handling Surcharge: Bill Shipper & Bill Third Party - Rate per pallet | B68: 52.626185 | D68: Daily Pickup ( $75+ Billed) | F68: 12.5
A69: Export - Large Package Surcharge | B69: 57.272369 | D69: Daily On Route ($0.00-$74.99 Billed) | F69: 23
A70: Import - Duty and Tax Forwarding Surcharge | B70: 15 | D70: Daily On Route ( $75+ Billed) | F70: 11.5
A71: Import - Residential SurchargeEF | B71: 3.199346 | D71: UPS Smart Pickup | F71: 11.5
A72: Import - Saturday DeliveryEF | B72: 15.619737 | D72: Day-Specific Pickup- 4 Days ($0.00-$74.99 Billed) | F72: 23
A73: Import - HazMat Class 1-8 Air C FeeEF - Shipment Minimum - $7.15 Rate | B73: 60.920031 | D73: Day-Specific Pickup- 4 Days ( $75+ Billed) | F73: 11.5
A74: Import - HazMat Class 1-8 Ground Fee - Shipment Minimum - $4.00 Rate | B74: 35.6615 | D74: Day-Specific Pickup- 3 Days ($0.00-$74.99 Billed) | F74: 16.65
A75: Import - HazMat Class 1-8 Air FeeEF Shipment Minimum - $7.15 Rate | B75: 60.920031 | D75: Day-Specific Pickup- 3 Days ( $75+ Billed) | F75: 11.5
A76: Import - HazMat Class 9 Cargo Quantity FeeEF Shipment Minimum - $7.15 Rate | B76: 60.920031 | D76: Day-Specific Pickup- 1 or 2 Days | F76: 11.5
A77: Import - HazMat Class 9 Ground Fee - Shipment Minimum - $4.00 Rate | B77: 35.6615 | D77: Printer Lease Fee | F77: 3
A78: Import - HazMat Class 9 Air FeeEF Shipment Minimum - $7.15 Rate | B78: 60.920031 | D78: International | F78: 2016
A79: Import - HazMat Class 9 Air Lithium C FeeEF Shipment Minimum - $7.15 Rate | B79: 60.920031 | D79: Bill Duty/Tax & Shipping Charges to Shipper (Import & Export) | E79: List | F79: 15
A80: Import - HazMat Class 9 Ground Lithium Fee - Shipment Minimum - $4.00 Rate | B80: 35.6615 | D80: Carbon Neutral Surcharge - International Express | E80: List | F80: 0.75
A81: Import - HazMat Class 9 Air LithiumEF Shipment Minimum - $7.15 Rate | B81: 60.920031 | D81: Carbon Neutral Surcharge - International Standard | E81: List | F81: 0.1
A82: Import - Export VAT | B82: 15 | D82: Certificate of Origin | E82: List | F82: 10
A83: UPS Worldwide Express FreightSM-Import- Oversize Pallet Handling Surcharge: Bill Receiver & Bill Third Party - Rate per pallet | B83: 52.626185 | D83: Currency Conversion Rate | E83: List | F83: 0.0075
A84: Import - Commercial Invoice Removal Fee | B84: 20 | D84: Delivery Area Surcharge (Import services) | F84: 2
A85: Import - Large Package Surcharge | B85: 57.272369 | D85: Delivery Area Surcharge - Extended (Import services) | F85: 2
A86: Import - Late Payment Fee | B86: 83.40% Off Effective Rates | D86: Remote Area Surcharge (Import services / Hawaii) | F86: 6.75
A87: Pickup Accessorials | D87: Remote Area Surcharge - Extended (Import services / Alaska) | F87: 22.5
A88: Daily Pickup | B88: 1 | D88: Delivered Duty Paid, V.A.T. Unpaid | E88: List | F88: 15
A89: UPS Smart Pickup ® | B89: 1 | D89: Dimensional Weight Factor | F89: 139
A90: Day-Specific Pickup 1 Day | B90: 1 | D90: Extended Area Surcharge (Export services) | F90: Greater of $30 or $0.30 per pound
A91: Day-Specific Pickup 2 Days | B91: 1 | D91: Remote Area Surcharge (Export Services) | F91: Greater of $30 or $0.30 per pound
A92: Day-Specific Pickup 3 Days | B92: 1 | D92: Freight Collect Refusal - International | F92: 13
A93: Day-Specific Pickup 4 Days | B93: 1 | D93: International Dangerous Goods - Standard to/from CA | E93: =B74 -> 35.6615 | F93: $37.00 per shipment or $4.25 per pkg
A94: Daily On-Route Pickup | B94: 1 | D94: International Dangerous Goods - Small Package | E94: =B73 -> 60.920031 | F94: $66.25 per shipment or $7.95 per pkg
A95: UPS On-Call Pickup ® - Same Day - Phone | B95: 1 | D95: International Dangerous Goods - WWEF | F95: $66.25 per shipment or $0.36 per pound
A96: UPS On-Call Pickup ® - Same Day - Web | B96: 1 | D96: Large Package Surcharge (Import & Export) | E96: =B85 -> 57.272369 | F96: 67.5
A97: UPS On-Call Pickup® - Future Day - Phone | B97: 1 | D97: Saturday Delivery | E97: =B72 -> 15.619737 | F97: 16
A98: UPS On-Call Pickup® - Future Day - Web | B98: 1 | D98: Residential Surcharge - Standard to / from Canada and Standard from Mexico | F98: 3.25
A99: UPS On-Call Pickup®- Ground Returns - Same Day - Phone | B99: 1 | D99: Residential Surcharge - From all other origins | F99: 3.65
A100: UPS On-Call Pickup® - Ground Returns - Same Day-Web | B100: 1 | D100: Worldwide Express Plus Surcharge | F100: 40
A101: UPS On-Call Pickup® - Ground Returns - Future Day - Phone | B101: 1 | D101: Import Control CI Removal Charge | E101: List | F101: 20
A102: UPS On-Call Pickup® - Ground Returns - Future Day - Web | B102: 1 | D102: Residential Surcharge (Shipment) | E102: List | F102: 125
A103: UPS On-Call Pickup® - Air Returns - Same Day - Phone | B103: 1 | D103: Carbon Neutral (Pallet) | E103: List | F103: 20
A104: UPS On-Call Pickup® - Air Returns - Same Day - Web | B104: 1 | D104: Oversized Pallet Handling Surcharge | E104: =B83 -> 52.626185 | F104: 110
A105: UPS On-Call Pickup® - Air Returns - Future Day - Phone | B105: 1 | D105: Entry Preparation Charge - UPS Standard from Canada
A106: UPS On-Call Pickup® - Air Returns - Future Day - Web | B106: 1 | D106: Value for Duty ($0.00 to $200.00) | F106: 0
A107: UPS On-Call Pickup® - Alternate Address - Same Day - Phone | B107: 1 | D107: Value for Duty ($200.01 to $1,250.00) | F107: 27.5
A108: UPS On-Call Pickup® - Alternate Address - Same Day-Web | B108: 1 | D108: Value for Duty ($1,250.01 to $2,500.00) | F108: 39
A109: UPS On-Call Pickup® - Alternate Address - Future Day - Phone | B109: 1 | D109: Value for Duty (Each additional $1,000.00 or part thereof) | F109: 1.9
A110: UPS On-Call Pickup® - Alternate Address - Future Day - Web | B110: 1 | D110: Disbursement Fee minimum | F110: 9
A111: Residential Pickup Surcharge | B111: 1.334759 | D111: Other Government Agency (OGA) Clearance | F111: 22
A112: Pickup Area Surcharge - Residential | B112: 2.863109 | D112: Complex Entries | F112: 22
A113: Pickup Area Surcharge - Extended Residential | B113: 3.46426
A114: Pickup Remote Area Surcharge - Alaska Residential | B114: 15.619737
A115: Pickup Remote Area Surcharge - Hawaii Residential | B115: 6.1134

Sheet Domestic Accessorials (hidden)
A1: 2016
A2: Domestic Accessorials
A3: Accessorials | B3: Incentives | C3: Current Incentives | D3: 2015 1.89% Rate increase | E3: 0.0189
A4: Export - Certificate of Origin | B4: 10 | C4: 10 | D4: 10
A5: Address Corrections (Grd & Air) | B5: 11.737728 | C5: 11.52 | D5: =C5+(C5*$E$3) -> 11.737728
A6: Domestic - Custom Delivery Confirmation - No Signature Response | B6: 2 | C6: 2.04 | D6: 2
A7: Domestic - Custom Delivery Confirmation - Signature Response | B7: 3.729174 | C7: 3.66 | D7: =C7+(C7*$E$3) -> 3.729174
A8: Domestic - Custom Delivery Confirmation Signature Response - Non Compliant | B8: 3.729174 | C8: 3.66 | D8: =C8+(C8*$E$3) -> 3.729174
A9: Domestic - Custom Delivery Confirmation - Adult Signature Required | B9: 4.799019 | C9: 4.71 | D9: 4.799019
A10: Domestic - Custom Delivery Confirmation - Adult Signature Required - Non Compliant | B10: 4.799019 | C10: 4.71 | D10: 4.799019
A11: Domestic - Additional Handling Charge | B11: 8.854241 | C11: 8.69 | D11: 8.854241
A12: C. O. D.s | B12: 11.452436 | C12: 11.24 | D12: 11.452436
A13: Residential Surcharge - Domestic Delivery of Air Services* and 3 Day Select | B13: 1.59 | C13: 1.56 | D13: 1.589484
A14: Residential Surcharge - Domestic Delivery of Ground Service | B14: 1.34 | C14: 1.31 | D14: 1.334759
A15: Domestic - Print Label Charge | B15: 0.5 | C15: 0.5 | D15: 0.5
A16: Domestic - Print and Mail Label Charge | B16: 2.25 | C16: 2.25 | D16: 2.25
A17: Domestic - Electronic Label Charge | B17: 1 | C17: 1 | D17: 1
A18: Fax Proof of Delivery | B18: 3 | C18: 3 | D18: 3
A19: Domestic - Dry Ice | B19: 5 | C19: 5 | D19: 5
A20: Reroute (Phone Request) | B20: 16.006919 | C20: 15.71 | D20: =C20+(C20*$E$3) -> 16.006919
A21: Reroute (Web Request) | B21: 11.737728 | C21: 11.52 | D21: =C21+(C21*$E$3) -> 11.737728
A22: Reschedule Delivery (Phone Request) | B22: 16.006919 | C22: 15.71 | D22: 16.006919
A23: Reschedule Delivery (Web Request) | B23: 11.737728 | C23: 11.52 | D23: 11.737728
A24: Return to Sender (Phone Request) | B24: 16.006919 | C24: 15.71 | D24: 16.006919
A25: Return to Sender (Web Request) | B25: 11.737728 | C25: 11.52 | D25: 11.737728
A26: Domestic - Large Package Surcharge | B26: 57.272369 | C26: 56.21 | D26: 57.272369
A27: Domestic - Lookup Surcharge | B27: 11.452436 | C27: 11.24 | D27: 11.452436
A28: Domestic - Saturday Delivery | B28: 5.328847 | C28: 5.23 | D28: 5.328847
A29: Saturday Pickup Charge | B29: 5.328847 | C29: 5.23 | D29: 5.328847
A30: Domestic - HazMat Class 1-8 Air C Fee | B30: 39.054437 | C30: 38.33 | D30: 39.054437
A31: Domestic - HazMat Class 1-8 Ground Fee | B31: 28.641279 | C31: 28.11 | D31: 28.641279
A32: Domestic - HazMat Class 1-8 Air Fee | B32: 39.054437 | C32: 38.33 | D32: 39.054437
A33: Domestic - HazMat Class 9 Cargo Quantity Fee | B33: 39.054437 | C33: 38.33 | D33: 39.054437
A34: Domestic - HazMat Class 9 Ground Fee | B34: 28.641279 | C34: 28.11 | D34: 28.641279
A35: Domestic - HazMat Class 9 Air Fee | B35: 39.054437 | C35: 38.33 | D35: 39.054437
A36: Domestic - HazMat Class 9 Air Lithium C Fee | B36: 39.054437 | C36: 38.33 | D36: 39.054437
A37: Domestic - HazMat Class 9 Ground Lithium Fee | B37: 28.641279 | C37: 28.11 | D37: 28.641279
A38: Domestic - HazMat Class 9 Air Lithium | B38: 39.054437 | C38: 38.33 | D38: 39.054437
A39: Chargeback For Consignee Billing Shipments | B39: 11.737728 | C39: 11.52 | D39: 11.737728
A40: Domestic - Three Pickup Attempts Label Charge | B40: 7.468537 | C40: 7.33 | D40: 7.468537
A41: Domestic - One Pickup Attempt Label Charge | B41: 5.328847 | C41: 5.23 | D41: 5.328847
A42: Weekly Late Payment Charge | B42: 83.40% Off Effective Rates | D42: 83.40% Off Effective Rates
A43: Monthly Late Payment Charge | B43: 83.40% Off Effective Rates | D43: 83.40% Off Effective Rates
A44: Domestic - Consignee Initiated Delivery Change | B44: 6.245857 | C44: 6.13 | D44: =C44+(C44*$E$3) -> 6.245857
A45: Request Deliver to UPS Access PointTM - Phone
A46: Domestic - Consignee Initiated Delivery Change Request Deliver to UPS Access PointTM - Web | B46: 5.206579 | C46: 5.11 | D46: =C46+(C46*$E$3) -> 5.206579
A47: Domestic - Consignee Initiated Delivery Change Request Deliver Package to Original Residential Address - Phone | B47: 6.245857 | C47: 6.13 | D47: =C47+(C47*$E$3) -> 6.245857
A48: Domestic - Consignee Initiated Delivery Change Request Deliver Package to Original Residential Address - Web | B48: 5.206579 | C48: 5.11 | D48: 5.206579
A49: Domestic - Consignee Initiated Delivery Change Request Reroute - Phone Request | B49: 6.245857 | C49: 6.13 | D49: 6.245857
A50: Domestic - Consignee Initiated Delivery Change Request Reroute - Web Request | B50: 5.206579 | C50: 5.11 | D50: 5.206579
A51: Domestic - Consignee Initiated Delivery Change Request Reschedule Delivery - Web Request | B51: 5.206579 | C51: 5.11 | D51: 5.206579
A52: Domestic - Consignee Initiated Delivery Change Request Reschedule Delivery - Phone Request | B52: 6.245857 | C52: 6.13 | D52: 6.245857

Sheet International Accessorials (hidden)
A1: 2016
A2: International Accessorials | C2: curr incen | D2: 2015 1.89% Increase
A3: Export - Transborder & Worldwide Three Pickup Attempts Label Charge | B3: 7.468537 | C3: 7.33 | D3: =C3+(C3*1.89%) -> 7.468537
A4: Export - Duty and Tax Forwarding Surcharge | B4: 15 | C4: 15 | D4: 15
A5: Export - Transborder & Worldwide One Pickup Attempt Label Charge | B5: 5.328847 | C5: 5.23 | D5: =C5+(C5*1.89%) -> 5.328847
A6: Export - Residential SurchargeEF | B6: 3.199346 | C6: 3.14 | D6: 3.199346
A7: Export - HazMat Class 1-8 Air C FeeEF Shipment Minimum - $7.15 Rate | B7: 60.920031 | C7: 59.79 | D7: 60.920031
A8: Export - HazMat Class 1-8 Ground Fee - Shipment Minimum - $4.00 Rate | B8: 35.6615 | C8: 35 | D8: 35.6615
A9: Export - HazMat Class 1-8 Air FeeEF Shipment Minimum - $7.15 Rate | B9: 60.920031 | C9: 59.79 | D9: 60.920031
A10: Export - HazMat Class 9 Cargo Quantity FeeEF Shipment Minimum - $7.15 Rate | B10: 60.920031 | C10: 59.79 | D10: 60.920031
A11: Export - HazMat Class 9 Ground Fee - Shipment Minimum - $4.00 Rate | B11: 35.6615 | C11: 35 | D11: 35.6615
A12: Export - HazMat Class 9 Air FeeEF Shipment Minimum - $7.15 Rate | B12: 60.920031 | C12: 59.79 | D12: 60.920031
A13: Export - HazMat Class 9 Air Lithium C FeeEF Shipment Minimum - $7.15 Rate | B13: 60.920031 | C13: 59.79 | D13: 60.920031
A14: Export - HazMat Class 9 Ground Lithium Fee - Shipment Minimum - $4.00 Rate | B14: 35.6615 | C14: 35 | D14: 35.6615
A15: Export - HazMat Class 9 Air LithiumEF Shipment Minimum - $7.15 Rate | B15: 60.920031 | C15: 59.79 | D15: 60.920031
A16: UPS Worldwide Express FreightSM-Export- Oversize Pallet Handling Surcharge: Bill Shipper & Bill Third Party - Rate per pallet | B16: 52.626185 | C16: 51.65 | D16: 52.626185
A17: Export - Large Package Surcharge | B17: 57.272369 | C17: 56.21 | D17: 57.272369
A18: Import - Duty and Tax Forwarding Surcharge | B18: 15 | C18: 15 | D18: 15
A19: Import - Residential SurchargeEF | B19: 3.199346 | C19: 3.14 | D19: 3.199346
A20: Import - Saturday DeliveryEF | B20: 15.619737 | C20: 15.33 | D20: 15.619737
A21: Import - HazMat Class 1-8 Air C FeeEF - Shipment Minimum - $7.15 Rate | B21: 60.920031 | C21: 59.79 | D21: =C21+(C21*1.89%) -> 60.920031
A22: Import - HazMat Class 1-8 Ground Fee - Shipment Minimum - $4.00 Rate | B22: 35.6615 | C22: 35 | D22: 35.6615
A23: Import - HazMat Class 1-8 Air FeeEF Shipment Minimum - $7.15 Rate | B23: 60.920031 | C23: 59.79 | D23: 60.920031
A24: Import - HazMat Class 9 Cargo Quantity FeeEF Shipment Minimum - $7.15 Rate | B24: 60.920031 | C24: 59.79 | D24: 60.920031
A25: Import - HazMat Class 9 Ground Fee - Shipment Minimum - $4.00 Rate | B25: 35.6615 | C25: 35 | D25: 35.6615
A26: Import - HazMat Class 9 Air FeeEF Shipment Minimum - $7.15 Rate | B26: 60.920031 | C26: 59.79 | D26: 60.920031
A27: Import - HazMat Class 9 Air Lithium C FeeEF Shipment Minimum - $7.15 Rate | B27: 60.920031 | C27: 59.79 | D27: 60.920031
A28: Import - HazMat Class 9 Ground Lithium Fee - Shipment Minimum - $4.00 Rate | B28: 35.6615 | C28: 35 | D28: 35.6615
A29: Import - HazMat Class 9 Air LithiumEF Shipment Minimum - $7.15 Rate | B29: 60.920031 | C29: 59.79 | D29: 60.920031
A30: Import - Export VAT | B30: 15 | C30: 15 | D30: 15
A31: UPS Worldwide Express FreightSM-Import- Oversize Pallet Handling Surcharge: Bill Receiver & Bill Third Party - Rate per pallet | B31: 52.626185 | C31: 51.65 | D31: 52.626185
A32: Import - Commercial Invoice Removal Fee | B32: 20 | C32: 20 | D32: 20
A33: Import - Large Package Surcharge | B33: 57.272369 | C33: 56.21 | D33: 57.272369
A34: Import - Late Payment Fee | B34: 83.40% Off Effective Rates | D34: 83.40% Off Effective s
A36: Accessorials | B36: Incentives | C36: Incentives | D36: Incentives
A37: National - Direct Delivery Only | B37: 100.00% Off Effective Rates | D37: 100.00% Off Effective Rates
A38: Export - Direct Delivery Only | B38: 100.00% Off Effective Rates | D38: 100.00% Off Effective Rates
A39: Import - Direct Delivery Only | B39: 100.00% Off Effective Rates | D39: 100.00% Off Effective Rates

Sheet Pick Up Accessorials (hidden)
A1: 2016
A2: Pickup Accessorials
A3: Daily Pickup | B3: 1
A4: UPS Smart Pickup ® | B4: 1
A5: Day-Specific Pickup 1 Day | B5: 1
A6: Day-Specific Pickup 2 Days | B6: 1
A7: Day-Specific Pickup 3 Days | B7: 1
A8: Day-Specific Pickup 4 Days | B8: 1
A9: Daily On-Route Pickup | B9: 1
A10: UPS On-Call Pickup ® - Same Day - Phone | B10: 1
A11: UPS On-Call Pickup ® - Same Day - Web | B11: 1
A12: UPS On-Call Pickup® - Future Day - Phone | B12: 1
A13: UPS On-Call Pickup® - Future Day - Web | B13: 1
A14: UPS On-Call Pickup®- Ground Returns - Same Day - Phone | B14: 1
A15: UPS On-Call Pickup® - Ground Returns - Same Day-Web | B15: 1
A16: UPS On-Call Pickup® - Ground Returns - Future Day - Phone | B16: 1
A17: UPS On-Call Pickup® - Ground Returns - Future Day - Web | B17: 1
A18: UPS On-Call Pickup® - Air Returns - Same Day - Phone | B18: 1
A19: UPS On-Call Pickup® - Air Returns - Same Day - Web | B19: 1
A20: UPS On-Call Pickup® - Air Returns - Future Day - Phone | B20: 1
A21: UPS On-Call Pickup® - Air Returns - Future Day - Web | B21: 1
A22: UPS On-Call Pickup® - Alternate Address - Same Day - Phone | B22: 1
A23: UPS On-Call Pickup® - Alternate Address - Same Day-Web | B23: 1
A24: UPS On-Call Pickup® - Alternate Address - Future Day - Phone | B24: 1
A25: UPS On-Call Pickup® - Alternate Address - Future Day - Web | B25: 1
A26: Residential Pickup Surcharge | B26: 1.334759
A27: Pickup Area Surcharge - Residential | B27: 2.863109
A28: Pickup Area Surcharge - Extended Residential | B28: 3.46426
A29: Pickup Remote Area Surcharge - Alaska Residential | B29: 15.619737
A30: Pickup Remote Area Surcharge - Hawaii Residential | B30: 6.1134

Sheet Cover

Sheet Tab Descriptions
C3: Multi Shippers - Money Back Guarantee
C4: Full Service Name | D4: Name on Tab
C5: Next Day 10:30 AM Commercial and Residential | D5: NDA Exclusive
C6: Next Day Saver Commercial and Residential | D6: ND SVR Exclusive
C7: Two Day AM Commercial | D7: 2DA AM Exclusive
C8: Two Day Commercial and Residential | D8: 2DA Exclusive
C9: Three Day Commercial and Residential | D9: 3DS Exclusive
C10: Ground Commercial and Residential | D10: Ground Exclusive
C11: Next Day, Two Day, Three Day and Ground Hundredweight | D11: CWT
C12: Alaska Origin Air and Ground Services - Intra and to the 48 states and Puerto Rico | D12: AK Origin
C13: HI Origin Air and Ground Services - Intra and to the 48 states and Puerto Rico | D13: HI Origin
C14: Zones for Air and Ground Services from Puerto Rico to all of US | D14: DOM PR NDA Zones
C15: Next Day Air rates Intra Puerto Rico | D15: DOM PR NDA
C16: Domestic Standard Service for Intra Puerto Rico | D16: Domestic Standard PR
C17: UPS Export Express from Origin CONUS 48 states | D17: E-XPR Ltr Pak Doc Pkg
C18: UPS Export Express from Alaska and Hawaii | D18: E-XPR Ltr AK HI
C19: UPS Export Express Saver from Origin CONUS 48 states | D19: E-XSV Ltr Pak Doc Pkg
C20: UPS Export Express Saver from Alaska and Hawaii | D20: E-XSV AK HI
C21: UPS Export Expedited from Origin CONUS 48 states | D21: E-XPD Doc Pkg
C22: UPS Export Expedited from Alaska and Hawaii | D22: E-XPD AK HI
C23: Export Standard to Canada from Alaska and Origin CONUS 48 states | D23: E-Standard
C24: Export Standard to Canada from Origin CONUS 48 states | D24: E-Standard AK HI
C25: UPS Import Express from into US CONUS 48 states | D25: I-XPR-Ltr Doc Pkg & LN
C26: UPS Import Express into Alaska and Hawaii | D26: I-XPR-AK HI
C27: UPS Import Express Saver into US CONUS 48 states | D27: I-XSV Ltr Doc Pkg
C28: UPS Import Express Saver into Alaska and Hawaii | D28: I-XSV AK HI
C29: UPS Import Expedited into US CONUS 48 states | D29: I-XPD Doc Pkg
C30: UPS Import Expedited into Alaska and Hawaii | D30: I-XPD AK HI
C31: Import Standard from Canada to CONUS 48 states | D31: I Standard
C32: Import Standard from Canada to Alaska and Hawaii | D32: I Standard AK HI
C33: Puerto Rico Export | D33: Country Grouping PR
C34: Puerto Rico Export Express | D34: Express PR
C35: Puerto Rico Export Express Saver | D35: Express Saver PR
C36: Puerto Rico Export Expedited | D36: Expedited PR
C37: Accessorials chart for CONUS 48 States | D37: 2016 Accessorial Matrix
C38: Accessorials chart for AK HI | D38: Accessorials AK HI
C39: Ground Fuel Surcharge Custom Index | D39: Grnd FSC & Language
C40: Air Fuel Surcharge Custom Index | D40: Air FSC Language
C41: Fuel Surcharge Cap Language | D41: FSC Cap Language

Sheet Schedule
A1: SCHEDULE OF RATES AND CHARGES
A3: Zone based pricing
A4: Zone based pricing for services must include, but not be limited to, the following:
A6: Intrastate
A7: □Ground (other than guaranteed next day)
A8: □Pouch Service – Specify state, if offered. See Attachment A.
A9: □Next Day Ground AM
A10: □Next Day Ground PM
A11: □Next Day Air AM
A12: □Next Day Air PM
A13: □Multiweight/Hundredweight service
A15: Please see the UPS Service Guide for service availability by specific state. The service guide is available at www.ups.com. Please note that UPS Ground is a day-definite, not a time-definite, service.
A19: Interstate
A20: □Ground (Guaranteed day definite delivery)
A21: □Next Day Air AM
A22: □Next Day Air PM
A23: □Second Day Air AM
A24: □Second Day Air PM
A25: □Three day service
A26: □Multiweight/Hundredweight service
A28: Please see the UPS Service Guide for service availability by specific state. The service guide is available at www.ups.com. Please note that UPS Ground is a day-definite, not a time-definite, service.
A33: International
A34: □Inbound to US points and places
A35: □Outbound from US points and places
A38: Please see the UPS Service Guide for service availability by specific state. The service guide is available at www.ups.com. Please note that UPS Ground is a day-definite, not a time-definite, service.

Sheet Domestic Zones
B3: Zone Definitions and Descriptions
B5: The zone names referenced on this worksheet must match the zone names provided in the zone definition delimited text file as described in the Instructions for Response document.
B7: Express Delivery Services
B8: Zone Name | G8: Zone Description
B9: Express Next Day First AM | C9: Express Next Day Mid-Morning | D9: Express Next Day Afternoon | E9: Express Second Day | F9: Express Third Day
B10: 102 | C10: 102 | D10: 132 | E10: 202 | F10: 302 | G10: 48 Contiguous states.
B11: 103 | C11: 103 | D11: 133 | E11: 203 | F11: 303 | G11: 48 Contiguous states.
B12: 104 | C12: 104 | D12: 134 | E12: 204 | F12: 304 | G12: 48 Contiguous states
B13: 105 | C13: 105 | D13: 135 | E13: 205 | F13: 305 | G13: 48 Contiguous states
B14: 106 | C14: 106 | D14: 136 | E14: 206 | F14: 306 | G14: 48 Contiguous states
B15: 107 | C15: 107 | D15: 137 | E15: 207 | F15: 307 | G15: 48 Contiguous states
B16: 108 | C16: 108 | D16: 138 | E16: 208 | F16: 308 | G16: 48 Contiguous states
B17: 124 | C17: 124 | E17: 224 | G17: Metro Alaska and Hawaii
B18: 125 | C18: 125 | E18: 225 | G18: Puerto Rico
B19: 126 | C19: 126 | E19: 226 | G19: Remote Alaska and Hawaii
B24: Ground Delivery Services
B25: Zone Name | C25: Zone Description
B26: 2 | C26: 48 Contiguous states
B27: 3 | C27: 48 Contiguous states
B28: 4 | C28: 48 Contiguous states
B29: 5 | C29: 48 Contiguous states
B30: 6 | C30: 48 Contiguous states
B31: 7 | C31: 48 Contiguous states
B32: 8 | C32: 48 Contiguous states
B33: 44 | C33: Metro Alaska and Hawaii
B34: 45 | C34: Puerto Rico
B35: 46 | C35: Remote Alaska and Hawaii

Sheet NDA Multi
A1: UPS Next Day Air Service | M1: UPS Next Day Air Service
A2: - Commercial | M2: -Residential
A3: (Per Package Rates from 48 State Origin) | M3: (Per Package Rates from 48 State Origin)
A4: Rates below do not include Residential Surcharge | M4: Rates Include Residential Surcharge
A5: Lbs. | B5: Zone 102 | C5: Zone 103 | D5: Zone 104 | E5: Zone 105 | F5: Zone 106 | G5: Zone 107 | H5: Zone 108 | I5: Zone 124 | J5: Zone 125 | K5: Zone 126 | M5: Lbs. | N5: Zone 102 | O5: Zone 103 | P5: Zone 104 | Q5: Zone 105 | R5: Zone 106 | S5: Zone 107 | T5: Zone 108 | U5: Zone 124 | V5: Zone 125 | W5: Zone 126
A6: Letter | B6: 6.11 | C6: 6.11 | D6: 7.03 | E6: 7.56 | F6: 7.62 | G6: 8.39 | H6: 8.53 | I6: 9.09 | J6: 9.09 | K6: 9.54 | M6: Letter | N6: 7.75 | O6: 7.75 | P6: 8.67 | Q6: 9.2 | R6: 9.26 | S6: 10.04 | T6: 10.17 | U6: 10.73 | V6: 10.73 | W6: 11.19
A7: 1 | B7: 6.12 | C7: 8.2 | D7: 10.47 | E7: 11.63 | F7: 12.63 | G7: 13.49 | H7: 13.86 | I7: 14.27 | J7: 14.27 | K7: 14.29 | M7: 1 | N7: 7.76 | O7: 9.84 | P7: 12.12 | Q7: 13.28 | R7: 14.27 | S7: 15.13 | T7: 15.5 | U7: 15.92 | V7: 15.92 | W7: 15.94
A8: 2 | B8: 6.24 | C8: 8.85 | D8: 11.8 | E8: 12.87 | F8: 14.27 | G8: 14.87 | H8: 15.47 | I8: 15.59 | J8: 15.59 | K8: 15.6 | M8: 2 | N8: 7.89 | O8: 10.49 | P8: 13.44 | Q8: 14.51 | R8: 15.92 | S8: 16.52 | T8: 17.12 | U8: 17.23 | V8: 17.23 | W8: 17.24
A9: 3 | B9: 7.03 | C9: 9.48 | D9: 13.07 | E9: 14.26 | F9: 15.8 | G9: 16.34 | H9: 16.92 | I9: 17.39 | J9: 17.39 | K9: 19.52 | M9: 3 | N9: 8.67 | O9: 11.13 | P9: 14.72 | Q9: 15.91 | R9: 17.45 | S9: 17.99 | T9: 18.57 | U9: 19.03 | V9: 19.03 | W9: 21.17
A10: 4 | B10: 7.58 | C10: 9.94 | D10: 14.17 | E10: 15.6 | F10: 17.26 | G10: 17.8 | H10: 18.5 | I10: 18.99 | J10: 18.99 | K10: 21.28 | M10: 4 | N10: 9.22 | O10: 11.58 | P10: 15.81 | Q10: 17.24 | R10: 18.91 | S10: 19.45 | T10: 20.14 | U10: 20.64 | V10: 20.64 | W10: 22.93
A11: 5 | B11: 7.65 | C11: 10.36 | D11: 15.48 | E11: 17.07 | F11: 18.71 | G11: 19.27 | H11: 19.97 | I11: 20.56 | J11: 20.56 | K11: 22.91 | M11: 5 | N11: 9.29 | O11: 12.01 | P11: 17.13 | Q11: 18.71 | R11: 20.36 | S11: 20.92 | T11: 21.61 | U11: 22.2 | V11: 22.2 | W11: 24.56
A12: 6 | B12: 8.48 | C12: 10.94 | D12: 16.76 | E12: 18.38 | F12: 20.28 | G12: 20.63 | H12: 21.51 | I12: 22.01 | J12: 22.01 | K12: 24.67 | M12: 6 | N12: 10.12 | O12: 12.59 | P12: 18.4 | Q12: 20.03 | R12: 21.92 | S12: 22.27 | T12: 23.15 | U12: 23.66 | V12: 23.66 | W12: 26.32
A13: 7 | B13: 8.87 | C13: 11.48 | D13: 17.92 | E13: 19.76 | F13: 21.72 | G13: 22.22 | H13: 22.98 | I13: 23.48 | J13: 23.48 | K13: 26.41 | M13: 7 | N13: 10.52 | O13: 13.12 | P13: 19.56 | Q13: 21.4 | R13: 23.37 | S13: 23.87 | T13: 24.62 | U13: 25.13 | V13: 25.13 | W13: 28.06
A14: 8 | B14: 8.95 | C14: 12.05 | D14: 19.06 | E14: 21.02 | F14: 23.16 | G14: 23.77 | H14: 24.46 | I14: 24.91 | J14: 24.91 | K14: 27.72 | M14: 8 | N14: 10.6 | O14: 13.69 | P14: 20.71 | Q14: 22.67 | R14: 24.81 | S14: 25.42 | T14: 26.1 | U14: 26.56 | V14: 26.56 | W14: 29.36
A15: 9 | B15: 9.07 | C15: 12.49 | D15: 20.16 | E15: 22.39 | F15: 24.61 | G15: 25.33 | H15: 26.03 | I15: 26.5 | J15: 26.5 | K15: 29.53 | M15: 9 | N15: 10.71 | O15: 14.14 | P15: 21.81 | Q15: 24.03 | R15: 26.26 | S15: 26.97 | T15: 27.68 | U15: 28.14 | V15: 28.14 | W15: 31.17
A16: 10 | B16: 9.08 | C16: 12.5 | D16: 21.09 | E16: 23.56 | F16: 24.62 | G16: 25.35 | H16: 26.71 | I16: 28.06 | J16: 28.06 | K16: 29.55 | M16: 10 | N16: 10.72 | O16: 14.15 | P16: 22.74 | Q16: 25.2 | R16: 26.27 | S16: 26.99 | T16: 28.36 | U16: 29.7 | V16: 29.7 | W16: 31.19
A17: 11 | B17: 10.02 | C17: 13.71 | D17: 22.2 | E17: 24.82 | F17: 27.51 | G17: 28.39 | H17: 29.05 | I17: 29.62 | J17: 29.62 | K17: 32.66 | M17: 11 | N17: 11.66 | O17: 15.36 | P17: 23.85 | Q17: 26.46 | R17: 29.16 | S17: 30.04 | T17: 30.7 | U17: 31.27 | V17: 31.27 | W17: 34.31
A18: 12 | B18: 10.43 | C18: 14.27 | D18: 23.4 | E18: 25.99 | F18: 28.86 | G18: 29.93 | H18: 30.62 | I18: 31.07 | J18: 31.07 | K18: 33.42 | M18: 12 | N18: 12.08 | O18: 15.92 | P18: 25.05 | Q18: 27.63 | R18: 30.5 | S18: 31.58 | T18: 32.26 | U18: 32.72 | V18: 32.72 | W18: 35.07
A19: 13 | B19: 10.58 | C19: 14.8 | D19: 24.51 | E19: 27.17 | F19: 30.03 | G19: 31.53 | H19: 32.1 | I19: 32.63 | J19: 32.63 | K19: 34.38 | M19: 13 | N19: 12.22 | O19: 16.45 | P19: 26.15 | Q19: 28.81 | R19: 31.67 | S19: 33.17 | T19: 33.74 | U19: 34.28 | V19: 34.28 | W19: 36.03
A20: 14 | B20: 11.01 | C20: 15.37 | D20: 25.77 | E20: 28.32 | F20: 31.19 | G20: 32.89 | H20: 33.66 | I20: 34.08 | J20: 34.08 | K20: 35.36 | M20: 14 | N20: 12.66 | O20: 17.02 | P20: 27.42 | Q20: 29.96 | R20: 32.84 | S20: 34.54 | T20: 35.3 | U20: 35.73 | V20: 35.73 | W20: 37
A21: 15 | B21: 11.14 | C21: 15.77 | D21: 26.64 | E21: 29.46 | F21: 31.22 | G21: 33.96 | H21: 34.95 | I21: 35.14 | J21: 35.14 | K21: 36.26 | M21: 15 | N21: 12.78 | O21: 17.42 | P21: 28.29 | Q21: 31.1 | R21: 32.86 | S21: 35.6 | T21: 36.6 | U21: 36.78 | V21: 36.78 | W21: 37.9
A22: 16 | B22: 11.59 | C22: 16.47 | D22: 27.91 | E22: 30.56 | F22: 33.4 | G22: 34.84 | H22: 35.82 | I22: 36.53 | J22: 36.53 | K22: 37.88 | M22: 16 | N22: 13.24 | O22: 18.11 | P22: 29.56 | Q22: 32.21 | R22: 35.05 | S22: 36.48 | T22: 37.47 | U22: 38.17 | V22: 38.17 | W22: 39.53
A23: 17 | B23: 12.06 | C23: 17.02 | D23: 28.71 | E23: 31.53 | F23: 34.17 | G23: 35.61 | H23: 36.61 | I23: 37.34 | J23: 37.34 | K23: 38.96 | M23: 17 | N23: 13.7 | O23: 18.66 | P23: 30.36 | Q23: 33.17 | R23: 35.81 | S23: 37.26 | T23: 38.25 | U23: 38.99 | V23: 38.99 | W23: 40.6
A24: 18 | B24: 12.47 | C24: 17.56 | D24: 29.58 | E24: 32.19 | F24: 34.93 | G24: 36.41 | H24: 37.57 | I24: 38.26 | J24: 38.26 | K24: 40.54 | M24: 18 | N24: 14.12 | O24: 19.21 | P24: 31.23 | Q24: 33.83 | R24: 36.58 | S24: 38.06 | T24: 39.22 | U24: 39.91 | V24: 39.91 | W24: 42.19
A25: 19 | B25: 12.72 | C25: 18.03 | D25: 30.27 | E25: 32.87 | F25: 35.72 | G25: 37.22 | H25: 38.56 | I25: 39.54 | J25: 39.54 | K25: 41.64 | M25: 19 | N25: 14.37 | O25: 19.68 | P25: 31.92 | Q25: 34.52 | R25: 37.36 | S25: 38.86 | T25: 40.21 | U25: 41.18 | V25: 41.18 | W25: 43.28
A26: 20 | B26: 12.73 | C26: 18.27 | D26: 31.04 | E26: 33.66 | F26: 36.5 | G26: 38.09 | H26: 39.44 | I26: 40.32 | J26: 40.32 | K26: 44.4 | M26: 20 | N26: 14.38 | O26: 19.91 | P26: 32.69 | Q26: 35.3 | R26: 38.15 | S26: 39.73 | T26: 41.09 | U26: 41.97 | V26: 41.97 | W26: 46.05
A27: 21 | B27: 13.4 | C27: 18.98 | D27: 31.71 | E27: 34.53 | F27: 37.25 | G27: 38.84 | H27: 40.52 | I27: 41.24 | J27: 41.24 | K27: 45.63 | M27: 21 | N27: 15.05 | O27: 20.63 | P27: 33.36 | Q27: 36.17 | R27: 38.9 | S27: 40.49 | T27: 42.17 | U27: 42.89 | V27: 42.89 | W27: 47.28
A28: 22 | B28: 13.8 | C28: 19.41 | D28: 32.47 | E28: 35.29 | F28: 38.04 | G28: 39.75 | H28: 41.4 | I28: 42.16 | J28: 42.16 | K28: 46.69 | M28: 22 | N28: 15.44 | O28: 21.05 | P28: 34.11 | Q28: 36.94 | R28: 39.68 | S28: 41.4 | T28: 43.05 | U28: 43.8 | V28: 43.8 | W28: 48.33
A29: 23 | B29: 14.07 | C29: 19.81 | D29: 33.25 | E29: 36.17 | F29: 38.92 | G29: 40.59 | H29: 42.38 | I29: 43.3 | J29: 43.3 | K29: 47.44 | M29: 23 | N29: 15.71 | O29: 21.46 | P29: 34.9 | Q29: 37.82 | R29: 40.56 | S29: 42.24 | T29: 44.03 | U29: 44.95 | V29: 44.95 | W29: 49.09
A30: 24 | B30: 14.38 | C30: 20.16 | D30: 34.14 | E30: 37.08 | F30: 39.94 | G30: 41.48 | H30: 43.23 | I30: 44.13 | J30: 44.13 | K30: 48.38 | M30: 24 | N30: 16.02 | O30: 21.81 | P30: 35.79 | Q30: 38.73 | R30: 41.59 | S30: 43.13 | T30: 44.88 | U30: 45.78 | V30: 45.78 | W30: 50.02
A31: 25 | B31: 14.49 | C31: 20.27 | D31: 35 | E31: 37.85 | F31: 40.37 | G31: 42.5 | H31: 44.13 | I31: 45.5 | J31: 45.5 | K31: 48.67 | M31: 25 | N31: 16.14 | O31: 21.91 | P31: 36.65 | Q31: 39.5 | R31: 42.01 | S31: 44.14 | T31: 45.78 | U31: 47.14 | V31: 47.14 | W31: 50.31
A32: 26 | B32: 15.06 | C32: 21.04 | D32: 35.97 | E32: 38.77 | F32: 42.09 | G32: 43.58 | H32: 45.05 | I32: 46.2 | J32: 46.2 | K32: 50.23 | M32: 26 | N32: 16.7 | O32: 22.69 | P32: 37.61 | Q32: 40.42 | R32: 43.74 | S32: 45.23 | T32: 46.7 | U32: 47.85 | V32: 47.85 | W32: 51.87
A33: 27 | B33: 15.34 | C33: 21.43 | D33: 36.86 | E33: 39.88 | F33: 43.26 | G33: 44.52 | H33: 45.91 | I33: 47.15 | J33: 47.15 | K33: 51.09 | M33: 27 | N33: 16.98 | O33: 23.08 | P33: 38.5 | Q33: 41.52 | R33: 44.91 | S33: 46.16 | T33: 47.56 | U33: 48.8 | V33: 48.8 | W33: 52.73
A34: 28 | B34: 15.73 | C34: 21.91 | D34: 37.83 | E34: 41.03 | F34: 44.14 | G34: 45.41 | H34: 46.89 | I34: 48.02 | J34: 48.02 | K34: 52.16 | M34: 28 | N34: 17.38 | O34: 23.56 | P34: 39.47 | Q34: 42.67 | R34: 45.79 | S34: 47.05 | T34: 48.53 | U34: 49.67 | V34: 49.67 | W34: 53.81
A35: 29 | B35: 15.9 | C35: 22.27 | D35: 38.79 | E35: 41.9 | F35: 45.08 | G35: 46.4 | H35: 47.88 | I35: 48.81 | J35: 48.81 | K35: 53.35 | M35: 29 | N35: 17.54 | O35: 23.92 | P35: 40.44 | Q35: 43.54 | R35: 46.73 | S35: 48.04 | T35: 49.52 | U35: 50.46 | V35: 50.46 | W35: 55
A36: 30 | B36: 15.91 | C36: 22.29 | D36: 39.57 | E36: 42.85 | F36: 45.09 | G36: 47.28 | H36: 48.2 | I36: 49.69 | J36: 49.69 | K36: 53.55 | M36: 30 | N36: 17.55 | O36: 23.94 | P36: 41.21 | Q36: 44.49 | R36: 46.74 | S36: 48.92 | T36: 49.85 | U36: 51.34 | V36: 51.34 | W36: 55.2
A37: 31 | B37: 16.62 | C37: 23.11 | D37: 40.42 | E37: 43.83 | F37: 46.92 | G37: 48.25 | H37: 49.82 | I37: 50.59 | J37: 50.59 | K37: 55.3 | M37: 31 | N37: 18.27 | O37: 24.76 | P37: 42.06 | Q37: 45.48 | R37: 48.56 | S37: 49.9 | T37: 51.47 | U37: 52.24 | V37: 52.24 | W37: 56.95
A38: 32 | B38: 17.09 | C38: 23.64 | D38: 41.32 | E38: 44.82 | F38: 47.88 | G38: 49.21 | H38: 50.78 | I38: 51.53 | J38: 51.53 | K38: 56.49 | M38: 32 | N38: 18.73 | O38: 25.29 | P38: 42.96 | Q38: 46.46 | R38: 49.52 | S38: 50.86 | T38: 52.42 | U38: 53.18 | V38: 53.18 | W38: 58.14
A39: 33 | B39: 17.49 | C39: 24.24 | D39: 42.09 | E39: 45.77 | F39: 48.86 | G39: 50.31 | H39: 51.93 | I39: 52.7 | J39: 52.7 | K39: 57.71 | M39: 33 | N39: 19.14 | O39: 25.89 | P39: 43.74 | Q39: 47.41 | R39: 50.51 | S39: 51.96 | T39: 53.57 | U39: 54.35 | V39: 54.35 | W39: 59.36
A40: 34 | B40: 17.87 | C40: 24.61 | D40: 43.07 | E40: 46.74 | F40: 49.91 | G40: 51.39 | H40: 53.01 | I40: 53.78 | J40: 53.78 | K40: 58.81 | M40: 34 | N40: 19.52 | O40: 26.26 | P40: 44.71 | Q40: 48.39 | R40: 51.55 | S40: 53.03 | T40: 54.66 | U40: 55.42 | V40: 55.42 | W40: 60.45
A41: 35 | B41: 18.26 | C41: 25.08 | D41: 44.02 | E41: 47.72 | F41: 50.86 | G41: 52.48 | H41: 54.06 | I41: 54.88 | J41: 54.88 | K41: 59.99 | M41: 35 | N41: 19.9 | O41: 26.72 | P41: 45.66 | Q41: 49.37 | R41: 52.51 | S41: 54.13 | T41: 55.7 | U41: 56.52 | V41: 56.52 | W41: 61.63
A42: 36 | B42: 18.87 | C42: 25.46 | D42: 44.97 | E42: 48.68 | F42: 51.85 | G42: 53.63 | H42: 55.11 | I42: 55.92 | J42: 55.92 | K42: 61.3 | M42: 36 | N42: 20.51 | O42: 27.11 | P42: 46.62 | Q42: 50.32 | R42: 53.5 | S42: 55.28 | T42: 56.76 | U42: 57.57 | V42: 57.57 | W42: 62.95
A43: 37 | B43: 18.88 | C43: 26.19 | D43: 45.85 | E43: 49.67 | F43: 52.9 | G43: 54.82 | H43: 56.26 | I43: 57.11 | J43: 57.11 | K43: 62.3 | M43: 37 | N43: 20.52 | O43: 27.83 | P43: 47.5 | Q43: 51.32 | R43: 54.54 | S43: 56.47 | T43: 57.91 | U43: 58.76 | V43: 58.76 | W43: 63.94
A44: 38 | B44: 19.18 | C44: 26.61 | D44: 46.66 | E44: 50.55 | F44: 53.9 | G44: 56.11 | H44: 57.33 | I44: 58.18 | J44: 58.18 | K44: 63.52 | M44: 38 | N44: 20.82 | O44: 28.26 | P44: 48.3 | Q44: 52.2 | R44: 55.55 | S44: 57.75 | T44: 58.97 | U44: 59.82 | V44: 59.82 | W44: 65.16
A45: 39 | B45: 19.81 | C45: 27.07 | D45: 47.53 | E45: 51.49 | F45: 54.92 | G45: 57.26 | H45: 58.47 | I45: 59.33 | J45: 59.33 | K45: 63.54 | M45: 39 | N45: 21.46 | O45: 28.71 | P45: 49.17 | Q45: 53.14 | R45: 56.56 | S45: 58.9 | T45: 60.11 | U45: 60.97 | V45: 60.97 | W45: 65.18
A46: 40 | B46: 19.82 | C46: 27.52 | D46: 48.4 | E46: 52.46 | F46: 55.89 | G46: 58.36 | H46: 59.66 | I46: 60.52 | J46: 60.52 | K46: 63.55 | M46: 40 | N46: 21.47 | O46: 29.17 | P46: 50.04 | Q46: 54.11 | R46: 57.54 | S46: 60.01 | T46: 61.3 | U46: 62.16 | V46: 62.16 | W46: 65.19
A47: 41 | B47: 20.47 | C47: 28.09 | D47: 49.26 | E47: 53.46 | F47: 56.97 | G47: 59.32 | H47: 60.76 | I47: 61.69 | J47: 61.69 | K47: 67.51 | M47: 41 | N47: 22.12 | O47: 29.74 | P47: 50.9 | Q47: 55.1 | R47: 58.61 | S47: 60.96 | T47: 62.41 | U47: 63.33 | V47: 63.33 | W47: 69.16
A48: 42 | B48: 20.77 | C48: 28.66 | D48: 50.23 | E48: 54.42 | F48: 58.13 | G48: 60.69 | H48: 62.02 | I48: 62.96 | J48: 62.96 | K48: 68.58 | M48: 42 | N48: 22.42 | O48: 30.3 | P48: 51.87 | Q48: 56.07 | R48: 59.77 | S48: 62.34 | T48: 63.66 | U48: 64.6 | V48: 64.6 | W48: 70.22
A49: 43 | B49: 21.31 | C49: 29.19 | D49: 51.22 | E49: 55.38 | F49: 59.2 | G49: 61.68 | H49: 63.29 | I49: 64.22 | J49: 64.22 | K49: 69.7 | M49: 43 | N49: 22.96 | O49: 30.83 | P49: 52.87 | Q49: 57.03 | R49: 60.85 | S49: 63.32 | T49: 64.94 | U49: 65.87 | V49: 65.87 | W49: 71.34
A50: 44 | B50: 21.8 | C50: 29.77 | D50: 52.08 | E50: 56.36 | F50: 60.25 | G50: 62.75 | H50: 64.64 | I50: 65.61 | J50: 65.61 | K50: 71.01 | M50: 44 | N50: 23.44 | O50: 31.41 | P50: 53.73 | Q50: 58 | R50: 61.89 | S50: 64.4 | T50: 66.28 | U50: 67.25 | V50: 67.25 | W50: 72.66
A51: 45 | B51: 22.25 | C51: 30.39 | D51: 53.01 | E51: 57.32 | F51: 61.42 | G51: 63.85 | H51: 65.67 | I51: 66.64 | J51: 66.64 | K51: 72.35 | M51: 45 | N51: 23.9 | O51: 32.03 | P51: 54.66 | Q51: 58.96 | R51: 63.06 | S51: 65.49 | T51: 67.32 | U51: 68.29 | V51: 68.29 | W51: 73.99
A52: 46 | B52: 22.68 | C52: 31.04 | D52: 53.94 | E52: 58.29 | F52: 62.59 | G52: 64.95 | H52: 66.83 | I52: 67.82 | J52: 67.82 | K52: 73.28 | M52: 46 | N52: 24.32 | O52: 32.69 | P52: 55.59 | Q52: 59.94 | R52: 64.23 | S52: 66.59 | T52: 68.48 | U52: 69.47 | V52: 69.47 | W52: 74.92
A53: 47 | B53: 23.07 | C53: 31.7 | D53: 54.89 | E53: 59.17 | F53: 63.74 | G53: 65.88 | H53: 67.89 | I53: 68.91 | J53: 68.91 | K53: 73.3 | M53: 47 | N53: 24.72 | O53: 33.35 | P53: 56.53 | Q53: 60.82 | R53: 65.38 | S53: 67.52 | T53: 69.53 | U53: 70.56 | V53: 70.56 | W53: 74.94
A54: 48 | B54: 23.22 | C54: 32.32 | D54: 55.67 | E54: 60.14 | F54: 64.89 | G54: 67.08 | H54: 69.15 | I54: 70.18 | J54: 70.18 | K54: 74.91 | M54: 48 | N54: 24.86 | O54: 33.97 | P54: 57.32 | Q54: 61.79 | R54: 66.54 | S54: 68.72 | T54: 70.79 | U54: 71.83 | V54: 71.83 | W54: 76.56
A55: 49 | B55: 23.4 | C55: 33.07 | D55: 56.46 | E55: 60.32 | F55: 64.92 | G55: 68.14 | H55: 70.38 | I55: 71.43 | J55: 71.43 | K55: 74.93 | M55: 49 | N55: 25.05 | O55: 34.71 | P55: 58.1 | Q55: 61.97 | R55: 66.56 | S55: 69.79 | T55: 72.03 | U55: 73.07 | V55: 73.07 | W55: 76.58
A56: 50 | B56: 23.41 | C56: 33.11 | D56: 56.48 | E56: 60.34 | F56: 64.93 | G56: 68.15 | H56: 70.4 | I56: 71.44 | J56: 71.44 | K56: 74.94 | M56: 50 | N56: 25.06 | O56: 34.76 | P56: 58.13 | Q56: 61.99 | R56: 66.57 | S56: 69.8 | T56: 72.05 | U56: 73.08 | V56: 73.08 | W56: 76.59
A57: 51 | B57: 24.67 | C57: 34.46 | D57: 58.25 | E57: 63.04 | F57: 68.47 | G57: 70.5 | H57: 73.08 | I57: 74.15 | J57: 74.15 | K57: 77.44 | M57: 51 | N57: 26.32 | O57: 36.1 | P57: 59.9 | Q57: 64.69 | R57: 70.11 | S57: 72.15 | T57: 74.73 | U57: 75.79 | V57: 75.79 | W57: 79.08
A58: 52 | B58: 25.05 | C58: 35.18 | D58: 59.16 | E58: 64 | F58: 69.61 | G58: 71.66 | H58: 74.51 | I58: 75.63 | J58: 75.63 | K58: 80.02 | M58: 52 | N58: 26.69 | O58: 36.83 | P58: 60.81 | Q58: 65.65 | R58: 71.26 | S58: 73.31 | T58: 76.16 | U58: 77.27 | V58: 77.27 | W58: 81.66
A59: 53 | B59: 25.53 | C59: 35.76 | D59: 60.06 | E59: 65.07 | F59: 70.87 | G59: 72.83 | H59: 75.76 | I59: 76.91 | J59: 76.91 | K59: 80.04 | M59: 53 | N59: 27.18 | O59: 37.4 | P59: 61.71 | Q59: 66.72 | R59: 72.51 | S59: 74.48 | T59: 77.41 | U59: 78.56 | V59: 78.56 | W59: 81.68
A60: 54 | B60: 25.96 | C60: 36.47 | D60: 61.05 | E60: 66.03 | F60: 71.93 | G60: 74.24 | H60: 77.2 | I60: 78.34 | J60: 78.34 | K60: 82.23 | M60: 54 | N60: 27.6 | O60: 38.12 | P60: 62.7 | Q60: 67.68 | R60: 73.58 | S60: 75.89 | T60: 78.85 | U60: 79.98 | V60: 79.98 | W60: 83.88
A61: 55 | B61: 26.34 | C61: 37.14 | D61: 62.13 | E61: 66.93 | F61: 73.03 | G61: 75.47 | H61: 78.34 | I61: 79.53 | J61: 79.53 | K61: 84.89 | M61: 55 | N61: 27.99 | O61: 38.78 | P61: 63.78 | Q61: 68.58 | R61: 74.68 | S61: 77.12 | T61: 79.98 | U61: 81.18 | V61: 81.18 | W61: 86.54
A62: 56 | B62: 26.83 | C62: 37.85 | D62: 63.27 | E62: 67.71 | F62: 74.17 | G62: 76.88 | H62: 79.6 | I62: 80.8 | J62: 80.8 | K62: 84.91 | M62: 56 | N62: 28.47 | O62: 39.5 | P62: 64.92 | Q62: 69.36 | R62: 75.81 | S62: 78.53 | T62: 81.25 | U62: 82.45 | V62: 82.45 | W62: 86.56
A63: 57 | B63: 27.33 | C63: 38.5 | D63: 64.41 | E63: 68.92 | F63: 75.24 | G63: 78.13 | H63: 80.97 | I63: 82.16 | J63: 82.16 | K63: 87.39 | M63: 57 | N63: 28.98 | O63: 40.15 | P63: 66.05 | Q63: 70.57 | R63: 76.89 | S63: 79.78 | T63: 82.61 | U63: 83.8 | V63: 83.8 | W63: 89.03
A64: 58 | B64: 27.93 | C64: 39.14 | D64: 65.58 | E64: 69.86 | F64: 76.39 | G64: 79.53 | H64: 82.4 | I64: 83.62 | J64: 83.62 | K64: 87.41 | M64: 58 | N64: 29.58 | O64: 40.79 | P64: 67.22 | Q64: 71.51 | R64: 78.04 | S64: 81.18 | T64: 84.04 | U64: 85.26 | V64: 85.26 | W64: 89.05
A65: 59 | B65: 28.33 | C65: 39.8 | D65: 66.72 | E65: 70.72 | F65: 77.55 | G65: 80.77 | H65: 83.86 | I65: 85.1 | J65: 85.1 | K65: 88.71 | M65: 59 | N65: 29.97 | O65: 41.44 | P65: 68.36 | Q65: 72.37 | R65: 79.2 | S65: 82.42 | T65: 85.5 | U65: 86.74 | V65: 86.74 | W65: 90.36
A66: 60 | B66: 28.63 | C66: 40.08 | D66: 67.81 | E66: 71.92 | F66: 78.79 | G66: 82.16 | H66: 84.86 | I66: 86.11 | J66: 86.11 | K66: 89.84 | M66: 60 | N66: 30.27 | O66: 41.72 | P66: 69.46 | Q66: 73.57 | R66: 80.44 | S66: 83.8 | T66: 86.51 | U66: 87.76 | V66: 87.76 | W66: 91.48
A67: 61 | B67: 29.39 | C67: 41.17 | D67: 68.96 | E67: 72.83 | F67: 80.05 | G67: 83.42 | H67: 84.88 | I67: 88.02 | J67: 88.02 | K67: 93.35 | M67: 61 | N67: 31.04 | O67: 42.82 | P67: 70.61 | Q67: 74.48 | R67: 81.69 | S67: 85.07 | T67: 86.53 | U67: 89.66 | V67: 89.66 | W67: 94.99
A68: 62 | B68: 30.1 | C68: 41.92 | D68: 70.03 | E68: 74.22 | F68: 81.3 | G68: 84.79 | H68: 88.06 | I68: 89.36 | J68: 89.36 | K68: 94.44 | M68: 62 | N68: 31.74 | O68: 43.56 | P68: 71.67 | Q68: 75.87 | R68: 82.94 | S68: 86.43 | T68: 89.7 | U68: 91.01 | V68: 91.01 | W68: 96.09
A69: 63 | B69: 30.6 | C69: 42.74 | D69: 71.21 | E69: 75.3 | F69: 82.63 | G69: 86.26 | H69: 89.51 | I69: 90.84 | J69: 90.84 | K69: 95.61 | M69: 63 | N69: 32.25 | O69: 44.38 | P69: 72.85 | Q69: 76.94 | R69: 84.28 | S69: 87.9 | T69: 91.15 | U69: 92.49 | V69: 92.49 | W69: 97.26
A70: 64 | B70: 31.18 | C70: 43.58 | D70: 72.37 | E70: 76.56 | F70: 84.01 | G70: 87.75 | H70: 90.96 | I70: 92.29 | J70: 92.29 | K70: 97.79 | M70: 64 | N70: 32.83 | O70: 45.23 | P70: 74.01 | Q70: 78.2 | R70: 85.66 | S70: 89.39 | T70: 92.6 | U70: 93.94 | V70: 93.94 | W70: 99.43
A71: 65 | B71: 31.37 | C71: 44.41 | D71: 73.42 | E71: 77.79 | F71: 85.36 | G71: 89.31 | H71: 92.18 | I71: 92.31 | J71: 92.31 | K71: 97.81 | M71: 65 | N71: 33.02 | O71: 46.06 | P71: 75.07 | Q71: 79.44 | R71: 87 | S71: 90.96 | T71: 93.82 | U71: 93.96 | V71: 93.96 | W71: 99.45
A72: 66 | B72: 32.29 | C72: 45.22 | D72: 74.6 | E72: 79.05 | F72: 86.69 | G72: 90.77 | H72: 93.84 | I72: 95.23 | J72: 95.23 | K72: 99.67 | M72: 66 | N72: 33.94 | O72: 46.86 | P72: 76.25 | Q72: 80.7 | R72: 88.34 | S72: 92.42 | T72: 95.49 | U72: 96.88 | V72: 96.88 | W72: 101.32
A73: 67 | B73: 32.44 | C73: 46.08 | D73: 75.67 | E73: 80.43 | F73: 88.16 | G73: 92.33 | H73: 95.46 | I73: 96.89 | J73: 96.89 | K73: 101.33 | M73: 67 | N73: 34.08 | O73: 47.72 | P73: 77.31 | Q73: 82.08 | R73: 89.81 | S73: 93.98 | T73: 97.1 | U73: 98.53 | V73: 98.53 | W73: 102.97
A74: 68 | B74: 33.46 | C74: 46.89 | D74: 76.83 | E74: 81.78 | F74: 89.51 | G74: 92.35 | H74: 97 | I74: 98.44 | J74: 98.44 | K74: 103.46 | M74: 68 | N74: 35.11 | O74: 48.53 | P74: 78.47 | Q74: 83.42 | R74: 91.15 | S74: 94 | T74: 98.65 | U74: 100.08 | V74: 100.08 | W74: 105.1
A75: 69 | B75: 33.96 | C75: 47.72 | D75: 77.98 | E75: 83.13 | F75: 89.53 | G75: 92.81 | H75: 98.64 | I75: 100.11 | J75: 100.11 | K75: 105.14 | M75: 69 | N75: 35.6 | O75: 49.37 | P75: 79.62 | Q75: 84.78 | R75: 91.17 | S75: 94.45 | T75: 100.28 | U75: 101.75 | V75: 101.75 | W75: 106.78
A76: 70 | B76: 33.97 | C76: 48.09 | D76: 77.99 | E76: 84.4 | F76: 90.87 | G76: 93.97 | H76: 99.98 | I76: 101.46 | J76: 101.46 | K76: 106.67 | M76: 70 | N76: 35.61 | O76: 49.73 | P76: 79.63 | Q76: 86.05 | R76: 92.52 | S76: 95.61 | T76: 101.63 | U76: 103.11 | V76: 103.11 | W76: 108.31
A77: 71 | B77: 35.14 | C77: 49.45 | D77: 80.23 | E77: 85.76 | F77: 91.3 | G77: 95.26 | H77: 101.79 | I77: 103.29 | J77: 103.29 | K77: 108.25 | M77: 71 | N77: 36.78 | O77: 51.1 | P77: 81.88 | Q77: 87.41 | R77: 92.94 | S77: 96.91 | T77: 103.44 | U77: 104.94 | V77: 104.94 | W77: 109.9
A78: 72 | B78: 35.45 | C78: 49.86 | D78: 80.24 | E78: 87.13 | F78: 92.4 | G78: 96.5 | H78: 101.81 | I78: 103.31 | J78: 103.31 | K78: 110.31 | M78: 72 | N78: 37.09 | O78: 51.5 | P78: 81.89 | Q78: 88.77 | R78: 94.05 | S78: 98.15 | T78: 103.46 | U78: 104.96 | V78: 104.96 | W78: 111.96
A79: 73 | B79: 35.46 | C79: 51.22 | D79: 80.27 | E79: 87.14 | F79: 93.67 | G79: 98.02 | H79: 103.59 | I79: 105.09 | J79: 105.09 | K79: 113.36 | M79: 73 | N79: 37.1 | O79: 52.87 | P79: 81.92 | Q79: 88.78 | R79: 95.31 | S79: 99.67 | T79: 105.24 | U79: 106.74 | V79: 106.74 | W79: 115.01
A80: 74 | B80: 35.47 | C80: 52.05 | D80: 81.31 | E80: 89.82 | F80: 95.15 | G80: 102.02 | H80: 104.06 | I80: 105.11 | J80: 105.11 | K80: 113.37 | M80: 74 | N80: 37.12 | O80: 53.7 | P80: 82.96 | Q80: 91.46 | R80: 96.79 | S80: 103.67 | T80: 105.7 | U80: 106.76 | V80: 106.76 | W80: 115.02
A81: 75 | B81: 35.49 | C81: 52.5 | D81: 83.62 | E81: 89.84 | F81: 95.87 | G81: 103.42 | H81: 105.11 | I81: 105.12 | J81: 105.12 | K81: 113.39 | M81: 75 | N81: 37.14 | O81: 54.14 | P81: 85.26 | Q81: 91.48 | R81: 97.52 | S81: 105.06 | T81: 106.76 | U81: 106.77 | V81: 106.77 | W81: 115.04
A82: 76 | B82: 37.71 | C82: 53.79 | D82: 85.84 | E82: 92.44 | F82: 97.75 | G82: 103.42 | H82: 108.91 | I82: 109.51 | J82: 109.51 | K82: 118.39 | M82: 76 | N82: 39.35 | O82: 55.43 | P82: 87.49 | Q82: 94.08 | R82: 99.39 | S82: 105.06 | T82: 110.56 | U82: 111.16 | V82: 111.16 | W82: 120.04
A83: 77 | B83: 37.73 | C83: 54.13 | D83: 86.23 | E83: 92.46 | F83: 99.03 | G83: 104.06 | H83: 109.13 | I83: 112 | J83: 112 | K83: 118.4 | M83: 77 | N83: 39.37 | O83: 55.78 | P83: 87.87 | Q83: 94.1 | R83: 100.67 | S83: 105.7 | T83: 110.78 | U83: 113.64 | V83: 113.64 | W83: 120.05
A84: 78 | B84: 37.73 | C84: 54.44 | D84: 86.24 | E84: 92.94 | F84: 100.26 | G84: 105.43 | H84: 110.82 | I84: 113.46 | J84: 113.46 | K84: 119.42 | M84: 78 | N84: 39.37 | O84: 56.09 | P84: 87.88 | Q84: 94.59 | R84: 101.91 | S84: 107.07 | T84: 112.46 | U84: 115.1 | V84: 115.1 | W84: 121.06
A85: 79 | B85: 37.74 | C85: 55.69 | D85: 86.54 | E85: 95.59 | F85: 101.55 | G85: 106.87 | H85: 112.43 | I85: 114.92 | J85: 114.92 | K85: 121.68 | M85: 79 | N85: 39.38 | O85: 57.34 | P85: 88.18 | Q85: 97.24 | R85: 103.2 | S85: 108.52 | T85: 114.08 | U85: 116.56 | V85: 116.56 | W85: 123.33
A86: 80 | B86: 37.76 | C86: 55.7 | D86: 87.21 | E86: 95.69 | F86: 102.08 | G86: 108.48 | H86: 113.45 | I86: 116.39 | J86: 116.39 | K86: 122.8 | M86: 80 | N86: 39.4 | O86: 57.35 | P86: 88.85 | Q86: 97.33 | R86: 103.73 | S86: 110.12 | T86: 115.09 | U86: 118.03 | V86: 118.03 | W86: 124.45
A87: 81 | B87: 40.29 | C87: 56.8 | D87: 88.26 | E87: 96.86 | F87: 103.72 | G87: 109.9 | H87: 115.24 | I87: 116.41 | J87: 116.41 | K87: 123.13 | M87: 81 | N87: 41.94 | O87: 58.45 | P87: 89.91 | Q87: 98.5 | R87: 105.36 | S87: 111.54 | T87: 116.88 | U87: 118.05 | V87: 118.05 | W87: 124.78
A88: 82 | B88: 40.93 | C88: 58.62 | D88: 91.21 | E88: 99.84 | F88: 104.47 | G88: 111.47 | H88: 117.45 | I88: 119.19 | J88: 119.19 | K88: 127.05 | M88: 82 | N88: 42.58 | O88: 60.27 | P88: 92.86 | Q88: 101.48 | R88: 106.12 | S88: 113.12 | T88: 119.1 | U88: 120.84 | V88: 120.84 | W88: 128.69
A89: 83 | B89: 41.41 | C89: 59.33 | D89: 91.37 | E89: 99.84 | F89: 106.44 | G89: 113.05 | H89: 118.23 | I89: 119.53 | J89: 119.53 | K89: 127.08 | M89: 83 | N89: 43.06 | O89: 60.97 | P89: 93.02 | Q89: 101.48 | R89: 108.09 | S89: 114.7 | T89: 119.87 | U89: 121.18 | V89: 121.18 | W89: 128.72
A90: 84 | B90: 41.43 | C90: 59.42 | D90: 92.35 | E90: 100.51 | F90: 106.46 | G90: 114.69 | H90: 119.53 | I90: 119.57 | J90: 119.57 | K90: 127.09 | M90: 84 | N90: 43.08 | O90: 61.07 | P90: 94 | Q90: 102.15 | R90: 108.11 | S90: 116.33 | T90: 121.18 | U90: 121.22 | V90: 121.22 | W90: 128.73
A91: 85 | B91: 41.44 | C91: 60.15 | D91: 93.84 | E91: 103.41 | F91: 108.99 | G91: 116.18 | H91: 121 | I91: 121.11 | J91: 121.11 | K91: 129.95 | M91: 85 | N91: 43.09 | O91: 61.8 | P91: 95.49 | Q91: 105.05 | R91: 110.63 | S91: 117.82 | T91: 122.65 | U91: 122.75 | V91: 122.75 | W91: 131.6
A92: 86 | B92: 42.78 | C92: 60.91 | D92: 95.83 | E92: 103.42 | F92: 109.01 | G92: 117.62 | H92: 122.44 | I92: 123.69 | J92: 123.69 | K92: 129.98 | M92: 86 | N92: 44.42 | O92: 62.56 | P92: 97.48 | Q92: 105.06 | R92: 110.65 | S92: 119.26 | T92: 124.09 | U92: 125.34 | V92: 125.34 | W92: 131.62
A93: 87 | B93: 42.8 | C93: 62.2 | D93: 97.31 | E93: 104.41 | F93: 109.01 | G93: 119.26 | H93: 123.8 | I93: 125.07 | J93: 125.07 | K93: 134.15 | M93: 87 | N93: 44.44 | O93: 63.85 | P93: 98.96 | Q93: 106.06 | R93: 110.65 | S93: 120.91 | T93: 125.44 | U93: 126.72 | V93: 126.72 | W93: 135.79
A94: 88 | B94: 42.81 | C94: 62.35 | D94: 98.26 | E94: 105.54 | F94: 112.19 | G94: 120.59 | H94: 126.1 | I94: 126.82 | J94: 126.82 | K94: 134.17 | M94: 88 | N94: 44.45 | O94: 63.99 | P94: 99.91 | Q94: 107.18 | R94: 113.84 | S94: 122.23 | T94: 127.75 | U94: 128.46 | V94: 128.46 | W94: 135.81
A95: 89 | B95: 42.83 | C95: 62.36 | D95: 100.26 | E95: 106.66 | F95: 117.81 | G95: 121.94 | H95: 126.77 | I95: 129.07 | J95: 129.07 | K95: 138.15 | M95: 89 | N95: 44.47 | O95: 64 | P95: 101.91 | Q95: 108.3 | R95: 119.46 | S95: 123.59 | T95: 128.41 | U95: 130.72 | V95: 130.72 | W95: 139.8
A96: 90 | B96: 42.84 | C96: 62.37 | D96: 101.89 | E96: 107.83 | F96: 117.82 | G96: 123.27 | H96: 128.11 | I96: 129.11 | J96: 129.11 | K96: 139.96 | M96: 90 | N96: 44.48 | O96: 64.01 | P96: 103.53 | Q96: 109.47 | R96: 119.47 | S96: 124.91 | T96: 129.76 | U96: 130.75 | V96: 130.75 | W96: 141.61
A97: 91 | B97: 45.32 | C97: 65.06 | D97: 103.25 | E97: 109.18 | F97: 120.41 | G97: 124.69 | H97: 129.53 | I97: 132.39 | J97: 132.39 | K97: 142.59 | M97: 91 | N97: 46.97 | O97: 66.71 | P97: 104.9 | Q97: 110.83 | R97: 122.06 | S97: 126.33 | T97: 131.18 | U97: 134.03 | V97: 134.03 | W97: 144.24
A98: 92 | B98: 45.35 | C98: 65.07 | D98: 104.62 | E98: 110.68 | F98: 120.44 | G98: 126.82 | H98: 131.36 | I98: 133.84 | J98: 133.84 | K98: 143.88 | M98: 92 | N98: 47 | O98: 66.72 | P98: 106.26 | Q98: 112.33 | R98: 122.09 | S98: 128.46 | T98: 133.01 | U98: 135.48 | V98: 135.48 | W98: 145.52
A99: 93 | B99: 45.36 | C99: 65.29 | D99: 105.86 | E99: 112.03 | F99: 120.45 | G99: 128.2 | H99: 132.43 | I99: 135.27 | J99: 135.27 | K99: 143.9 | M99: 93 | N99: 47.01 | O99: 66.93 | P99: 107.51 | Q99: 113.67 | R99: 122.1 | S99: 129.84 | T99: 134.07 | U99: 136.92 | V99: 136.92 | W99: 145.54
A100: 94 | B100: 45.37 | C100: 65.94 | D100: 107.15 | E100: 113.3 | F100: 120.75 | G100: 128.84 | H100: 133.76 | I100: 136.65 | J100: 136.65 | K100: 147.55 | M100: 94 | N100: 47.02 | O100: 67.59 | P100: 108.8 | Q100: 114.95 | R100: 122.4 | S100: 130.48 | T100: 135.41 | U100: 138.3 | V100: 138.3 | W100: 149.2
A101: 95 | B101: 45.37 | C101: 65.95 | D101: 108.15 | E101: 114.55 | F101: 122.12 | G101: 130.08 | H101: 135.27 | I101: 136.66 | J101: 136.66 | K101: 147.56 | M101: 95 | N101: 47.02 | O101: 67.6 | P101: 109.79 | Q101: 116.2 | R101: 123.77 | S101: 131.72 | T101: 136.92 | U101: 138.31 | V101: 138.31 | W101: 149.21
A102: 96 | B102: 48.02 | C102: 68.55 | D102: 109.33 | E102: 115.81 | F102: 123.47 | G102: 131.51 | H102: 136.63 | I102: 136.68 | J102: 136.68 | K102: 147.58 | M102: 96 | N102: 49.67 | O102: 70.19 | P102: 110.97 | Q102: 117.45 | R102: 125.11 | S102: 133.15 | T102: 138.28 | U102: 138.33 | V102: 138.33 | W102: 149.23
A103: 97 | B103: 48.45 | C103: 68.64 | D103: 110.43 | E103: 117.2 | F103: 127.1 | G103: 133.75 | H103: 138.99 | I103: 139.75 | J103: 139.75 | K103: 147.59 | M103: 97 | N103: 50.09 | O103: 70.29 | P103: 112.08 | Q103: 118.85 | R103: 128.74 | S103: 135.4 | T103: 140.64 | U103: 141.39 | V103: 141.39 | W103: 149.24
A104: 98 | B104: 48.48 | C104: 69.39 | D104: 111.6 | E104: 117.21 | F104: 127.12 | G104: 134.26 | H104: 139.55 | I104: 139.89 | J104: 139.89 | K104: 153.67 | M104: 98 | N104: 50.13 | O104: 71.03 | P104: 113.25 | Q104: 118.86 | R104: 128.76 | S104: 135.91 | T104: 141.19 | U104: 141.54 | V104: 141.54 | W104: 155.31
A105: 99 | B105: 49.48 | C105: 69.46 | D105: 112.51 | E105: 119.71 | F105: 127.35 | G105: 135.7 | H105: 140.98 | I105: 141.41 | J105: 141.41 | K105: 156.73 | M105: 99 | N105: 51.13 | O105: 71.1 | P105: 114.16 | Q105: 121.35 | R105: 128.99 | S105: 137.34 | T105: 142.62 | U105: 143.06 | V105: 143.06 | W105: 158.38
A106: 100 | B106: 49.9 | C106: 70.81 | D106: 113.26 | E106: 120.98 | F106: 131.86 | G106: 137.31 | H106: 142.48 | I106: 144.77 | J106: 144.77 | K106: 156.74 | M106: 100 | N106: 51.54 | O106: 72.46 | P106: 114.91 | Q106: 122.63 | R106: 133.5 | S106: 138.96 | T106: 144.12 | U106: 146.41 | V106: 146.41 | W106: 158.39
A107: 101 | B107: 50.37 | C107: 71.51 | D107: 114.41 | E107: 122.17 | F107: 133.18 | G107: 138.69 | H107: 143.9 | I107: 146.21 | J107: 146.21 | K107: 158.33 | M107: 101 | N107: 52.02 | O107: 73.15 | P107: 116.05 | Q107: 123.82 | R107: 134.83 | S107: 140.34 | T107: 145.54 | U107: 147.86 | V107: 147.86 | W107: 159.98
A108: 102 | B108: 50.88 | C108: 72.22 | D108: 115.51 | E108: 123.39 | F108: 134.49 | G108: 140.06 | H108: 145.31 | I108: 147.65 | J108: 147.65 | K108: 159.92 | M108: 102 | N108: 52.53 | O108: 73.87 | P108: 117.15 | Q108: 125.04 | R108: 136.13 | S108: 141.7 | T108: 146.96 | U108: 149.3 | V108: 149.3 | W108: 161.56
A109: 103 | B109: 51.38 | C109: 72.93 | D109: 116.64 | E109: 124.6 | F109: 135.82 | G109: 141.42 | H109: 146.75 | I109: 149.11 | J109: 149.11 | K109: 161.5 | M109: 103 | N109: 53.02 | O109: 74.57 | P109: 118.29 | Q109: 126.25 | R109: 137.47 | S109: 143.07 | T109: 148.4 | U109: 150.76 | V109: 150.76 | W109: 163.15
A110: 104 | B110: 51.87 | C110: 73.65 | D110: 117.78 | E110: 125.79 | F110: 137.14 | G110: 142.81 | H110: 148.17 | I110: 150.55 | J110: 150.55 | K110: 163.08 | M110: 104 | N110: 53.52 | O110: 75.3 | P110: 119.43 | Q110: 127.44 | R110: 138.78 | S110: 144.45 | T110: 149.82 | U110: 152.2 | V110: 152.2 | W110: 164.73
A111: 105 | B111: 52.37 | C111: 74.34 | D111: 118.92 | E111: 127.02 | F111: 138.45 | G111: 144.18 | H111: 149.59 | I111: 152.01 | J111: 152.01 | K111: 164.68 | M111: 105 | N111: 54.02 | O111: 75.99 | P111: 120.57 | Q111: 128.66 | R111: 140.1 | S111: 145.82 | T111: 151.23 | U111: 153.66 | V111: 153.66 | W111: 166.32
A112: 106 | B112: 52.88 | C112: 75.06 | D112: 120.04 | E112: 128.24 | F112: 139.78 | G112: 145.55 | H112: 151.03 | I112: 153.45 | J112: 153.45 | K112: 166.26 | M112: 106 | N112: 54.52 | O112: 76.7 | P112: 121.68 | Q112: 129.88 | R112: 141.42 | S112: 147.2 | T112: 152.67 | U112: 155.09 | V112: 155.09 | W112: 167.91
A113: 107 | B113: 53.39 | C113: 75.76 | D113: 121.18 | E113: 129.45 | F113: 141.1 | G113: 146.92 | H113: 152.45 | I113: 154.91 | J113: 154.91 | K113: 167.84 | M113: 107 | N113: 55.03 | O113: 77.41 | P113: 122.82 | Q113: 131.09 | R113: 142.75 | S113: 148.56 | T113: 154.09 | U113: 156.55 | V113: 156.55 | W113: 169.48
A114: 108 | B114: 53.86 | C114: 76.47 | D114: 122.32 | E114: 130.66 | F114: 142.41 | G114: 148.28 | H114: 153.85 | I114: 156.35 | J114: 156.35 | K114: 169.43 | M114: 108 | N114: 55.51 | O114: 78.11 | P114: 123.96 | Q114: 132.3 | R114: 144.05 | S114: 149.93 | T114: 155.5 | U114: 157.99 | V114: 157.99 | W114: 171.08
A115: 109 | B115: 54.37 | C115: 77.18 | D115: 123.45 | E115: 131.86 | F115: 143.73 | G115: 149.67 | H115: 155.29 | I115: 157.8 | J115: 157.8 | K115: 171.01 | M115: 109 | N115: 56.01 | O115: 78.83 | P115: 125.1 | Q115: 133.5 | R115: 145.38 | S115: 151.32 | T115: 156.94 | U115: 159.44 | V115: 159.44 | W115: 172.66
A116: 110 | B116: 54.88 | C116: 77.88 | D116: 124.57 | E116: 133.07 | F116: 145.04 | G116: 151.04 | H116: 156.71 | I116: 159.25 | J116: 159.25 | K116: 172.61 | M116: 110 | N116: 56.52 | O116: 79.53 | P116: 126.22 | Q116: 134.72 | R116: 146.69 | S116: 152.68 | T116: 158.36 | U116: 160.89 | V116: 160.89 | W116: 174.25
A117: 111 | B117: 55.36 | C117: 78.6 | D117: 125.71 | E117: 134.28 | F117: 146.37 | G117: 152.4 | H117: 158.15 | I117: 160.69 | J117: 160.69 | K117: 174.19 | M117: 111 | N117: 57.01 | O117: 80.24 | P117: 127.36 | Q117: 135.93 | R117: 148.02 | S117: 154.05 | T117: 159.79 | U117: 162.34 | V117: 162.34 | W117: 175.84
A118: 112 | B118: 55.87 | C118: 79.3 | D118: 126.85 | E118: 135.48 | F118: 147.67 | G118: 153.78 | H118: 159.57 | I118: 162.14 | J118: 162.14 | K118: 175.77 | M118: 112 | N118: 57.51 | O118: 80.95 | P118: 128.5 | Q118: 137.13 | R118: 149.32 | S118: 155.43 | T118: 161.21 | U118: 163.79 | V118: 163.79 | W118: 177.42
A119: 113 | B119: 56.38 | C119: 80.02 | D119: 127.99 | E119: 136.69 | F119: 149.02 | G119: 155.15 | H119: 160.99 | I119: 163.59 | J119: 163.59 | K119: 177.36 | M119: 113 | N119: 58.02 | O119: 81.66 | P119: 129.63 | Q119: 138.34 | R119: 150.66 | S119: 156.79 | T119: 162.64 | U119: 165.24 | V119: 165.24 | W119: 179
A120: 114 | B120: 56.87 | C120: 80.72 | D120: 129.12 | E120: 137.91 | F120: 150.33 | G120: 156.53 | H120: 162.42 | I120: 165.04 | J120: 165.04 | K120: 178.94 | M120: 114 | N120: 58.52 | O120: 82.37 | P120: 130.76 | Q120: 139.56 | R120: 151.98 | S120: 158.18 | T120: 164.07 | U120: 166.69 | V120: 166.69 | W120: 180.59
A121: 115 | B121: 57.37 | C121: 81.42 | D121: 130.24 | E121: 139.11 | F121: 151.65 | G121: 157.9 | H121: 163.84 | I121: 166.49 | J121: 166.49 | K121: 180.52 | M121: 115 | N121: 59.02 | O121: 83.07 | P121: 131.89 | Q121: 140.76 | R121: 153.29 | S121: 159.55 | T121: 165.49 | U121: 168.14 | V121: 168.14 | W121: 182.17
A122: 116 | B122: 57.86 | C122: 82.15 | D122: 131.39 | E122: 140.33 | F122: 152.96 | G122: 159.27 | H122: 165.27 | I122: 167.91 | J122: 167.91 | K122: 182.12 | M122: 116 | N122: 59.5 | O122: 83.79 | P122: 133.04 | Q122: 141.97 | R122: 154.61 | S122: 160.91 | T122: 166.91 | U122: 169.55 | V122: 169.55 | W122: 183.76
A123: 117 | B123: 58.36 | C123: 82.84 | D123: 132.5 | E123: 141.55 | F123: 154.3 | G123: 160.64 | H123: 166.69 | I123: 169.37 | J123: 169.37 | K123: 183.7 | M123: 117 | N123: 60.01 | O123: 84.49 | P123: 134.15 | Q123: 143.19 | R123: 155.94 | S123: 162.29 | T123: 168.33 | U123: 171.01 | V123: 171.01 | W123: 185.35
A124: 118 | B124: 58.85 | C124: 83.56 | D124: 133.64 | E124: 142.75 | F124: 155.6 | G124: 162.03 | H124: 168.12 | I124: 170.81 | J124: 170.81 | K124: 185.3 | M124: 118 | N124: 60.5 | O124: 85.2 | P124: 135.28 | Q124: 144.39 | R124: 157.25 | S124: 163.67 | T124: 169.76 | U124: 172.45 | V124: 172.45 | W124: 186.94
A125: 119 | B125: 59.36 | C125: 84.25 | D125: 134.78 | E125: 143.95 | F125: 156.93 | G125: 163.42 | H125: 169.53 | I125: 172.27 | J125: 172.27 | K125: 186.87 | M125: 119 | N125: 61 | O125: 85.89 | P125: 136.42 | Q125: 145.59 | R125: 158.57 | S125: 165.06 | T125: 171.18 | U125: 173.91 | V125: 173.91 | W125: 188.51
A126: 120 | B126: 59.85 | C126: 84.96 | D126: 135.92 | E126: 145.17 | F126: 158.24 | G126: 164.78 | H126: 170.97 | I126: 173.7 | J126: 173.7 | K126: 188.45 | M126: 120 | N126: 61.5 | O126: 86.61 | P126: 137.56 | Q126: 146.81 | R126: 159.89 | S126: 166.43 | T126: 172.62 | U126: 175.35 | V126: 175.35 | W126: 190.1
A127: 121 | B127: 60.37 | C127: 85.69 | D127: 137.03 | E127: 146.37 | F127: 159.56 | G127: 166.15 | H127: 172.38 | I127: 175.16 | J127: 175.16 | K127: 190.05 | M127: 121 | N127: 62.02 | O127: 87.33 | P127: 138.68 | Q127: 148.02 | R127: 161.2 | S127: 167.79 | T127: 174.02 | U127: 176.81 | V127: 176.81 | W127: 191.69
A128: 122 | B128: 60.85 | C128: 86.39 | D128: 138.17 | E128: 147.58 | F128: 160.87 | G128: 167.53 | H128: 173.83 | I128: 176.6 | J128: 176.6 | K128: 191.63 | M128: 122 | N128: 62.49 | O128: 88.04 | P128: 139.82 | Q128: 149.23 | R128: 162.52 | S128: 169.17 | T128: 175.47 | U128: 178.25 | V128: 178.25 | W128: 193.28
A129: 123 | B129: 61.35 | C129: 87.1 | D129: 139.3 | E129: 148.8 | F129: 162.18 | G129: 168.89 | H129: 175.24 | I129: 178.06 | J129: 178.06 | K129: 193.21 | M129: 123 | N129: 63 | O129: 88.74 | P129: 140.95 | Q129: 150.45 | R129: 163.83 | S129: 170.54 | T129: 176.88 | U129: 179.71 | V129: 179.71 | W129: 194.86
A130: 124 | B130: 61.86 | C130: 87.79 | D130: 140.44 | E130: 150 | F130: 163.52 | G130: 170.27 | H130: 176.65 | I130: 179.51 | J130: 179.51 | K130: 194.8 | M130: 124 | N130: 63.51 | O130: 89.43 | P130: 142.08 | Q130: 151.65 | R130: 165.17 | S130: 171.91 | T130: 178.3 | U130: 181.16 | V130: 181.16 | W130: 196.44
A131: 125 | B131: 62.35 | C131: 88.51 | D131: 141.57 | E131: 151.2 | F131: 164.82 | G131: 171.64 | H131: 178.09 | I131: 180.95 | J131: 180.95 | K131: 196.39 | M131: 125 | N131: 63.99 | O131: 90.16 | P131: 143.21 | Q131: 152.85 | R131: 166.47 | S131: 173.29 | T131: 179.74 | U131: 182.59 | V131: 182.59 | W131: 198.04
A132: 126 | B132: 62.86 | C132: 89.21 | D132: 142.71 | E132: 152.43 | F132: 166.15 | G132: 173.01 | H132: 179.51 | I132: 182.41 | J132: 182.41 | K132: 197.99 | M132: 126 | N132: 64.5 | O132: 90.85 | P132: 144.35 | Q132: 154.08 | R132: 167.79 | S132: 174.66 | T132: 181.16 | U132: 184.05 | V132: 184.05 | W132: 199.63
A133: 127 | B133: 63.35 | C133: 89.93 | D133: 143.83 | E133: 153.64 | F133: 167.46 | G133: 174.39 | H133: 180.94 | I133: 183.85 | J133: 183.85 | K133: 199.55 | M133: 127 | N133: 65 | O133: 91.58 | P133: 145.48 | Q133: 155.28 | R133: 169.11 | S133: 176.03 | T133: 182.58 | U133: 185.49 | V133: 185.49 | W133: 201.19
A134: 128 | B134: 63.86 | C134: 90.63 | D134: 144.97 | E134: 154.84 | F134: 168.79 | G134: 175.76 | H134: 182.36 | I134: 185.31 | J134: 185.31 | K134: 201.14 | M134: 128 | N134: 65.51 | O134: 92.28 | P134: 146.62 | Q134: 156.48 | R134: 170.43 | S134: 177.41 | T134: 184 | U134: 186.95 | V134: 186.95 | W134: 202.79
A135: 129 | B135: 64.35 | C135: 91.35 | D135: 146.11 | E135: 156.06 | F135: 170.09 | G135: 177.13 | H135: 183.8 | I135: 186.75 | J135: 186.75 | K135: 202.73 | M135: 129 | N135: 65.99 | O135: 92.99 | P135: 147.76 | Q135: 157.7 | R135: 171.74 | S135: 178.78 | T135: 185.44 | U135: 188.39 | V135: 188.39 | W135: 204.37
A136: 130 | B136: 64.85 | C136: 92.05 | D136: 147.22 | E136: 157.27 | F136: 171.42 | G136: 178.51 | H136: 185.2 | I136: 188.2 | J136: 188.2 | K136: 204.32 | M136: 130 | N136: 66.5 | O136: 93.7 | P136: 148.86 | Q136: 158.91 | R136: 173.06 | S136: 180.15 | T136: 186.85 | U136: 189.85 | V136: 189.85 | W136: 205.97
A137: 131 | B137: 65.34 | C137: 92.77 | D137: 148.37 | E137: 158.47 | F137: 172.74 | G137: 179.87 | H137: 186.64 | I137: 189.64 | J137: 189.64 | K137: 205.9 | M137: 131 | N137: 66.99 | O137: 94.41 | P137: 150.01 | Q137: 160.11 | R137: 174.39 | S137: 181.52 | T137: 188.29 | U137: 191.29 | V137: 191.29 | W137: 207.55
A138: 132 | B138: 65.84 | C138: 93.46 | D138: 149.49 | E138: 159.68 | F138: 174.06 | G138: 181.25 | H138: 188.06 | I138: 191.08 | J138: 191.08 | K138: 207.49 | M138: 132 | N138: 67.48 | O138: 95.11 | P138: 151.13 | Q138: 161.33 | R138: 175.7 | S138: 182.89 | T138: 189.71 | U138: 192.73 | V138: 192.73 | W138: 209.13
A139: 133 | B139: 66.33 | C139: 94.15 | D139: 150.63 | E139: 160.89 | F139: 175.37 | G139: 182.63 | H139: 189.49 | I139: 192.53 | J139: 192.53 | K139: 209.08 | M139: 133 | N139: 67.98 | O139: 95.8 | P139: 152.28 | Q139: 162.54 | R139: 177.02 | S139: 184.27 | T139: 191.13 | U139: 194.18 | V139: 194.18 | W139: 210.73
A140: 134 | B140: 66.85 | C140: 94.89 | D140: 151.75 | E140: 162.09 | F140: 176.71 | G140: 183.99 | H140: 190.91 | I140: 193.98 | J140: 193.98 | K140: 210.65 | M140: 134 | N140: 68.5 | O140: 96.53 | P140: 153.4 | Q140: 163.74 | R140: 178.35 | S140: 185.64 | T140: 192.55 | U140: 195.63 | V140: 195.63 | W140: 212.3
A141: 135 | B141: 67.35 | C141: 95.59 | D141: 152.89 | E141: 163.3 | F141: 178.01 | G141: 185.37 | H141: 192.33 | I141: 195.43 | J141: 195.43 | K141: 212.24 | M141: 135 | N141: 68.99 | O141: 97.24 | P141: 154.54 | Q141: 164.95 | R141: 179.66 | S141: 187.01 | T141: 193.98 | U141: 197.07 | V141: 197.07 | W141: 213.88
A142: 136 | B142: 67.84 | C142: 96.3 | D142: 154.01 | E142: 164.52 | F142: 179.33 | G142: 186.73 | H142: 193.76 | I142: 196.88 | J142: 196.88 | K142: 213.83 | M142: 136 | N142: 69.49 | O142: 97.94 | P142: 155.65 | Q142: 166.17 | R142: 180.98 | S142: 188.38 | T142: 195.41 | U142: 198.52 | V142: 198.52 | W142: 215.48
A143: 137 | B143: 68.34 | C143: 97 | D143: 155.15 | E143: 165.73 | F143: 180.64 | G143: 188.11 | H143: 195.18 | I143: 198.33 | J143: 198.33 | K143: 215.41 | M143: 137 | N143: 69.99 | O143: 98.65 | P143: 156.79 | Q143: 167.38 | R143: 182.28 | S143: 189.76 | T143: 196.83 | U143: 199.97 | V143: 199.97 | W143: 217.06
A144: 138 | B144: 68.84 | C144: 97.72 | D144: 156.29 | E144: 166.96 | F144: 181.98 | G144: 189.5 | H144: 196.61 | I144: 199.78 | J144: 199.78 | K144: 217.01 | M144: 138 | N144: 70.48 | O144: 99.37 | P144: 157.93 | Q144: 168.6 | R144: 183.63 | S144: 191.14 | T144: 198.25 | U144: 201.42 | V144: 201.42 | W144: 218.65
A145: 139 | B145: 69.32 | C145: 98.43 | D145: 157.42 | E145: 168.15 | F145: 183.29 | G145: 190.86 | H145: 198.04 | I145: 201.22 | J145: 201.22 | K145: 218.58 | M145: 139 | N145: 70.97 | O145: 100.07 | P145: 159.07 | Q145: 169.79 | R145: 184.93 | S145: 192.51 | T145: 199.68 | U145: 202.87 | V145: 202.87 | W145: 220.23
A146: 140 | B146: 69.83 | C146: 99.12 | D146: 158.54 | E146: 169.36 | F146: 184.61 | G146: 192.24 | H146: 199.44 | I146: 202.67 | J146: 202.67 | K146: 220.18 | M146: 140 | N146: 71.48 | O146: 100.77 | P146: 160.19 | Q146: 171 | R146: 186.26 | S146: 193.89 | T146: 201.09 | U146: 204.32 | V146: 204.32 | W146: 221.82
A147: 141 | B147: 70.33 | C147: 99.84 | D147: 159.68 | E147: 170.58 | F147: 185.94 | G147: 193.61 | H147: 200.89 | I147: 204.11 | J147: 204.11 | K147: 221.76 | M147: 141 | N147: 71.97 | O147: 101.48 | P147: 161.33 | Q147: 172.22 | R147: 187.58 | S147: 195.25 | T147: 202.54 | U147: 205.76 | V147: 205.76 | W147: 223.4
A148: 142 | B148: 70.84 | C148: 100.54 | D148: 160.83 | E148: 171.77 | F148: 187.25 | G148: 194.97 | H148: 202.3 | I148: 205.57 | J148: 205.57 | K148: 223.34 | M148: 142 | N148: 72.48 | O148: 102.19 | P148: 162.47 | Q148: 173.41 | R148: 188.9 | S148: 196.62 | T148: 203.95 | U148: 207.22 | V148: 207.22 | W148: 224.99
A149: 143 | B149: 71.33 | C149: 101.25 | D149: 161.96 | E149: 172.98 | F149: 188.57 | G149: 196.36 | H149: 203.74 | I149: 207.01 | J149: 207.01 | K149: 224.93 | M149: 143 | N149: 72.98 | O149: 102.9 | P149: 163.6 | Q149: 174.63 | R149: 190.21 | S149: 198.01 | T149: 205.39 | U149: 208.66 | V149: 208.66 | W149: 226.57
A150: 144 | B150: 71.83 | C150: 101.96 | D150: 163.08 | E150: 174.2 | F150: 189.9 | G150: 197.73 | H150: 205.16 | I150: 208.47 | J150: 208.47 | K150: 226.51 | M150: 144 | N150: 73.47 | O150: 103.6 | P150: 164.73 | Q150: 175.85 | R150: 191.55 | S150: 199.37 | T150: 206.8 | U150: 210.12 | V150: 210.12 | W150: 228.16
A151: 145 | B151: 72.35 | C151: 102.68 | D151: 164.21 | E151: 175.4 | F151: 191.21 | G151: 199.1 | H151: 206.6 | I151: 209.91 | J151: 209.91 | K151: 228.1 | M151: 145 | N151: 73.99 | O151: 104.33 | P151: 165.86 | Q151: 177.05 | R151: 192.85 | S151: 200.75 | T151: 208.24 | U151: 211.55 | V151: 211.55 | W151: 229.75
A152: 146 | B152: 72.81 | C152: 103.38 | D152: 165.36 | E152: 176.6 | F152: 192.51 | G152: 200.47 | H152: 208 | I152: 211.37 | J152: 211.37 | K152: 229.7 | M152: 146 | N152: 74.46 | O152: 105.02 | P152: 167.01 | Q152: 178.25 | R152: 194.16 | S152: 202.11 | T152: 209.65 | U152: 213.01 | V152: 213.01 | W152: 231.34
A153: 147 | B153: 73.33 | C153: 104.08 | D153: 166.49 | E153: 177.83 | F153: 193.83 | G153: 201.84 | H153: 209.42 | I153: 212.81 | J153: 212.81 | K153: 231.27 | M153: 147 | N153: 74.98 | O153: 105.73 | P153: 168.14 | Q153: 179.48 | R153: 195.48 | S153: 203.48 | T153: 211.07 | U153: 214.45 | V153: 214.45 | W153: 232.92
A154: 148 | B154: 73.83 | C154: 104.79 | D154: 167.62 | E154: 179.04 | F154: 195.16 | G154: 203.22 | H154: 210.86 | I154: 214.26 | J154: 214.26 | K154: 232.85 | M154: 148 | N154: 75.47 | O154: 106.44 | P154: 169.26 | Q154: 180.69 | R154: 196.81 | S154: 204.87 | T154: 212.51 | U154: 215.9 | V154: 215.9 | W154: 234.5
A155: 149 | B155: 74.32 | C155: 105.5 | D155: 168.75 | E155: 180.23 | F155: 196.47 | G155: 204.59 | H155: 212.27 | I155: 215.68 | J155: 215.68 | K155: 234.44 | M155: 149 | N155: 75.97 | O155: 107.14 | P155: 170.39 | Q155: 181.88 | R155: 198.12 | S155: 206.23 | T155: 213.91 | U155: 217.33 | V155: 217.33 | W155: 236.08
A156: 150 | B156: 74.82 | C156: 106.2 | D156: 169.9 | E156: 181.46 | F156: 197.79 | G156: 205.95 | H156: 213.71 | I156: 217.13 | J156: 217.13 | K156: 236.03 | M156: 150 | N156: 76.47 | O156: 107.85 | P156: 171.54 | Q156: 183.1 | R156: 199.43 | S156: 207.6 | T156: 215.35 | U156: 218.78 | V156: 218.78 | W156: 237.68
A157: 151+ | B157: 0.486 | C157: 0.693 | D157: 1.107 | E157: 1.19 | F157: 1.293 | G157: 1.345 | H157: 1.397 | I157: 1.418 | J157: 1.418 | K157: 1.542 | M157: 151+ | N157: 2.121 | O157: 2.328 | P157: 2.742 | Q157: 2.815 | R157: 2.929 | S157: 2.98 | T157: 3.032 | U157: 3.053 | V157: 3.053 | W157: 3.167

Sheet Sheet1 (hidden)
A1: UPS Next Day Air Service | M1: UPS Next Day Air Service | Q1: CURRENT | AA1: UPS Next Day Air Service | AM1: UPS Next Day Saver Service | AV1: UPS Next Day Saver Service | AZ1: Current | BE1: UPS Next Day Saver Service
A2: - Commercial | M2: - Commercial | AA2: -Residential | AM2: - Commercial | AV2: - Commercial | BE2: - Residential
A3: (Per Package Rates from 48 State Origin) | M3: (Per Package Rates from 48 State Origin) | AA3: (Per Package Rates from 48 State Origin) | AM3: (Per Package Rates from 48 State Origin) | AV3: (Per Package Rates from 48 State Origin) | BE3: (Per Package Rates from 48 State Origin)
A4: Rates below do not include Residential Surcharge | M4: Rates below do not include Residential Surcharge | AM4: Rates below do not include Residential Surcharge | AV4: Rates below do not include Residential Surcharge
AT5: 0.05 | BL5: 0.05
AO6: 5.614 | AP6: 6.454 | AQ6: 6.944 | AR6: 7 | AS6: 7.7 | AT6: 7.826 | BH6: 0.376 | BI6: 0.256 | BJ6: 0.24 | BK6: 0 | BL6: 0.244
A7: Lbs. | B7: Zone 102 | C7: Zone 103 | D7: Zone 104 | E7: Zone 105 | F7: Zone 106 | G7: Zone 107 | H7: Zone 108 | I7: Zone 124 | J7: Zone 125 | K7: Zone 126 | M7: Lbs. | N7: Zone 102 | O7: Zone 103 | P7: Zone 104 | Q7: Zone 105 | R7: Zone 106 | S7: Zone 107 | T7: Zone 108 | U7: Zone 124 | V7: Zone 125 | W7: Zone 126 | AA7: Lbs. | AB7: Zone 102 | AC7: Zone 103 | AD7: Zone 104 | AE7: Zone 105 | AF7: Zone 106 | AG7: Zone 107 | AH7: Zone 108 | AI7: Zone 124 | AJ7: Zone 125 | AK7: Zone 126 | AM7: Lbs. | AN7: Zone 132 | AO7: Zone 133 | AP7: Zone 134 | AQ7: Zone 135 | AR7: Zone 136 | AS7: Zone 137 | AT7: Zone 138 | AV7: Lbs. | AW7: Zone 132 | AX7: Zone 133 | AY7: Zone 134 | AZ7: Zone 135 | BA7: Zone 136 | BB7: Zone 137 | BC7: Zone 138 | BE7: Lbs. | BF7: Zone 132 | BG7: Zone 133 | BH7: Zone 134 | BI7: Zone 135 | BJ7: Zone 136 | BK7: Zone 137 | BL7: Zone 138
A8: Letter | B8: 5.6 | C8: 5.6 | D8: 6.454 | E8: 6.944 | F8: 7 | G8: 7.7 | H8: 7.826 | I8: 8.344 | J8: 8.344 | K8: 8.764 | M8: Letter | N8: 5.6 | O8: 5.6 | P8: 6.454 | Q8: 6.944 | R8: 7 | S8: 7.7 | T8: 7.826 | U8: 8.344 | V8: 8.344 | W8: 8.764 | AA8: Letter | AB8: =B8+1.5 -> 7.1 | AC8: 7.1 | AD8: 7.954 | AE8: 8.444 | AF8: 8.5 | AG8: 9.2 | AH8: 9.326 | AI8: 9.844 | AJ8: 9.844 | AK8: 10.264 | AM8: Letter | AN8: 5.59 | AO8: 5.59 | AP8: =AP6-$AT$5 -> 6.404 | AQ8: =AQ6-$AT$5 -> 6.894 | AR8: =AR6-$AT$5 -> 6.95 | AS8: =AS6-$AT$5 -> 7.65 | AT8: =AT6-$AT$5 -> 7.776 | AV8: Letter | AW8: 5.45 | AX8: 5.45 | AY8: 6.66 | AZ8: 7.02 | BA8: 7.065 | BB8: 7.515 | BC8: 7.875 | BE8: Letter | BF8: =AN8+1.5 -> 7.09 | BG8: 7.09 | BH8: 7.904 | BI8: 8.394 | BJ8: 8.45 | BK8: 9.15 | BL8: 9.276
A9: 1 | B9: 5.614 | C9: 7.532 | D9: 9.618 | E9: 10.682 | F9: 11.592 | G9: 12.39 | H9: 12.726 | I9: 13.104 | J9: 13.104 | K9: 13.118 | M9: 1 | N9: 5.614 | O9: 7.532 | P9: 9.618 | Q9: 10.682 | R9: 11.592 | S9: 12.39 | T9: 12.726 | U9: 13.104 | V9: 13.104 | W9: 13.118 | AA9: 1 | AB9: 7.114 | AC9: 9.032 | AD9: 11.118 | AE9: 12.182 | AF9: 13.092 | AG9: 13.89 | AH9: 14.226 | AI9: 14.604 | AJ9: 14.604 | AK9: 14.618 | AM9: 1 | AN9: =AO6-AT5 -> 5.564 | AO9: 5.64 | AP9: 6.87 | AQ9: 7.28 | AR9: 7.33 | AS9: 7.79 | AT9: 8.2 | AV9: 1 | AW9: 5.5 | AX9: 5.5 | AY9: 6.7 | AZ9: 7.1 | BA9: 7.15 | BB9: 7.6 | BC9: 8 | BE9: 1 | BF9: 7.064 | BG9: 7.14 | BH9: 8.37 | BI9: 8.78 | BJ9: 8.83 | BK9: 9.29 | BL9: 9.7
A10: 2 | B10: 5.726 | C10: 8.134 | D10: 10.836 | E10: 11.816 | F10: 13.104 | G10: 13.65 | H10: 14.21 | I10: 14.308 | J10: 14.308 | K10: 14.322 | M10: 2 | N10: 5.726 | O10: 8.134 | P10: 10.836 | Q10: 11.816 | R10: 13.104 | S10: 13.65 | T10: 14.21 | U10: 14.308 | V10: 14.308 | W10: 14.322 | AA10: 2 | AB10: 7.226 | AC10: 9.634 | AD10: 12.336 | AE10: 13.316 | AF10: 14.604 | AG10: 15.15 | AH10: 15.71 | AI10: 15.808 | AJ10: 15.808 | AK10: 15.822 | AM10: 2 | AN10: 5.64 | AO10: 6.41 | AP10: 8.03 | AQ10: 8.9 | AR10: 9.67 | AS10: 10.31 | AT10: 10.6 | AV10: 2 | AW10: 5.5 | AX10: 6.2505 | AY10: 7.8375 | AZ10: 8.6875 | BA10: 9.4375 | BB10: 10.0625 | BC10: 10.3375 | BE10: 2 | BF10: 7.14 | BG10: 7.91 | BH10: 9.53 | BI10: 10.4 | BJ10: 11.17 | BK10: 11.81 | BL10: 12.1
A11: 3 | B11: 6.454 | C11: 8.708 | D11: 11.998 | E11: 13.09 | F11: 14.518 | G11: 15.008 | H11: 15.54 | I11: 15.974 | J11: 15.974 | K11: 17.92 | M11: 3 | N11: 6.454 | O11: 8.708 | P11: 11.998 | Q11: 13.09 | R11: 14.518 | S11: 15.008 | T11: 15.54 | U11: 15.974 | V11: 15.974 | W11: 17.92 | AA11: 3 | AB11: 7.954 | AC11: 10.208 | AD11: 13.498 | AE11: 14.59 | AF11: 16.018 | AG11: 16.508 | AH11: 17.04 | AI11: 17.474 | AJ11: 17.474 | AK11: 19.42 | AM11: 3 | AN11: 5.64 | AO11: 6.78 | AP11: 9.06 | AQ11: 9.85 | AR11: 10.92 | AS11: 11.35 | AT11: 11.83 | AV11: 3 | AW11: 5.5 | AX11: 6.615 | AY11: 8.8375 | AZ11: 9.6125 | BA11: 10.65 | BB11: 11.075 | BC11: 11.5375 | BE11: 3 | BF11: 7.14 | BG11: 8.28 | BH11: 10.56 | BI11: 11.35 | BJ11: 12.42 | BK11: 12.85 | BL11: 13.33
A12: 4 | B12: 6.958 | C12: 9.128 | D12: 13.006 | E12: 14.322 | F12: 15.848 | G12: 16.338 | H12: 16.982 | I12: 17.444 | J12: 17.444 | K12: 19.544 | M12: 4 | N12: 6.958 | O12: 9.128 | P12: 13.006 | Q12: 14.322 | R12: 15.848 | S12: 16.338 | T12: 16.982 | U12: 17.444 | V12: 17.444 | W12: 19.544 | AA12: 4 | AB12: 8.458 | AC12: 10.628 | AD12: 14.506 | AE12: 15.822 | AF12: 17.348 | AG12: 17.838 | AH12: 18.482 | AI12: 18.944 | AJ12: 18.944 | AK12: 21.044 | AM12: 4 | AN12: 5.64 | AO12: 7.18 | AP12: 10.03 | AQ12: 10.92 | AR12: 12.11 | AS12: 12.49 | AT12: 12.92 | AV12: 4 | AW12: 5.5 | AX12: 7.0065 | AY12: 9.7875 | AZ12: 10.65 | BA12: 11.8125 | BB12: 12.1875 | BC12: 12.6 | BE12: 4 | BF12: 7.14 | BG12: 8.68 | BH12: 11.53 | BI12: 12.42 | BJ12: 13.61 | BK12: 13.99 | BL12: 14.42
A13: 5 | B13: 7.028 | C13: 9.506 | D13: 14.224 | E13: 15.666 | F13: 17.192 | G13: 17.696 | H13: 18.326 | I13: 18.872 | J13: 18.872 | K13: 21.042 | M13: 5 | N13: 7.028 | O13: 9.506 | P13: 14.224 | Q13: 15.666 | R13: 17.192 | S13: 17.696 | T13: 18.326 | U13: 18.872 | V13: 18.872 | W13: 21.042 | AA13: 5 | AB13: 8.528 | AC13: 11.006 | AD13: 15.724 | AE13: 17.166 | AF13: 18.692 | AG13: 19.196 | AH13: 19.826 | AI13: 20.372 | AJ13: 20.372 | AK13: 22.542 | AM13: 5 | AN13: 5.84 | AO13: 7.65 | AP13: 10.88 | AQ13: 11.97 | AR13: 13.21 | AS13: 13.59 | AT13: 14.13 | AV13: 5 | AW13: 5.697 | AX13: 7.4655 | AY13: 10.6125 | AZ13: 11.675 | BA13: 12.8875 | BB13: 13.2625 | BC13: 13.7875 | BE13: 5 | BF13: 7.34 | BG13: 9.15 | BH13: 12.38 | BI13: 13.47 | BJ13: 14.71 | BK13: 15.09 | BL13: 15.63
A14: 6 | B14: 7.784 | C14: 10.038 | D14: 15.386 | E14: 16.884 | F14: 18.62 | G14: 18.942 | H14: 19.754 | I14: 20.216 | J14: 20.216 | K14: 22.652 | M14: 6 | N14: 7.784 | O14: 10.038 | P14: 15.386 | Q14: 16.884 | R14: 18.62 | S14: 18.942 | T14: 19.754 | U14: 20.216 | V14: 20.216 | W14: 22.652 | AA14: 6 | AB14: 9.284 | AC14: 11.538 | AD14: 16.886 | AE14: 18.384 | AF14: 20.12 | AG14: 20.442 | AH14: 21.254 | AI14: 21.716 | AJ14: 21.716 | AK14: 24.152 | AM14: 6 | AN14: 6.01 | AO14: 7.76 | AP14: 11.89 | AQ14: 13 | AR14: 14.11 | AS14: 14.49 | AT14: 15 | AV14: 6 | AW14: 5.859 | AX14: 7.5735 | AY14: 11.6 | AZ14: 12.6875 | BA14: 13.7625 | BB14: 14.1375 | BC14: 14.6375 | BE14: 6 | BF14: 7.51 | BG14: 9.26 | BH14: 13.39 | BI14: 14.5 | BJ14: 15.61 | BK14: 15.99 | BL14: 16.5
A15: 7 | B15: 8.148 | C15: 10.542 | D15: 16.45 | E15: 18.144 | F15: 19.936 | G15: 20.398 | H15: 21.098 | I15: 21.56 | J15: 21.56 | K15: 24.248 | M15: 7 | N15: 8.148 | O15: 10.542 | P15: 16.45 | Q15: 18.144 | R15: 19.936 | S15: 20.398 | T15: 21.098 | U15: 21.56 | V15: 21.56 | W15: 24.248 | AA15: 7 | AB15: 9.648 | AC15: 12.042 | AD15: 17.95 | AE15: 19.644 | AF15: 21.436 | AG15: 21.898 | AH15: 22.598 | AI15: 23.06 | AJ15: 23.06 | AK15: 25.748 | AM15: 7 | AN15: 6.35 | AO15: 8.73 | AP15: 12.86 | AQ15: 13.86 | AR15: 15.29 | AS15: 15.52 | AT15: 16.18 | AV15: 7 | AW15: 6.1965 | AX15: 8.5185 | AY15: 12.55 | AZ15: 13.525 | BA15: 14.9125 | BB15: 15.1375 | BC15: 15.7875 | BE15: 7 | BF15: 7.85 | BG15: 10.23 | BH15: 14.36 | BI15: 15.36 | BJ15: 16.79 | BK15: 17.02 | BL15: 17.68
A16: 8 | B16: 8.218 | C16: 11.06 | D16: 17.514 | E16: 19.306 | F16: 21.266 | G16: 21.826 | H16: 22.456 | I16: 22.876 | J16: 22.876 | K16: 25.452 | M16: 8 | N16: 8.218 | O16: 11.06 | P16: 17.514 | Q16: 19.306 | R16: 21.266 | S16: 21.826 | T16: 22.456 | U16: 22.876 | V16: 22.876 | W16: 25.452 | AA16: 8 | AB16: 9.718 | AC16: 12.56 | AD16: 19.014 | AE16: 20.806 | AF16: 22.766 | AG16: 23.326 | AH16: 23.956 | AI16: 24.376 | AJ16: 24.376 | AK16: 26.952 | AM16: 8 | AN16: 6.48 | AO16: 9.11 | AP16: 13.76 | AQ16: 15.05 | AR16: 16.35 | AS16: 16.69 | AT16: 17.28 | AV16: 8 | AW16: 6.318 | AX16: 8.883 | AY16: 13.425 | AZ16: 14.6875 | BA16: 15.95 | BB16: 16.2875 | BC16: 16.8625 | BE16: 8 | BF16: 7.98 | BG16: 10.61 | BH16: 15.26 | BI16: 16.55 | BJ16: 17.85 | BK16: 18.19 | BL16: 18.78
A17: 9 | B17: 8.316 | C17: 11.466 | D17: 18.508 | E17: 20.552 | F17: 22.596 | G17: 23.254 | H17: 23.898 | I17: 24.332 | J17: 24.332 | K17: 27.118 | M17: 9 | N17: 8.316 | O17: 11.466 | P17: 18.508 | Q17: 20.552 | R17: 22.596 | S17: 23.254 | T17: 23.898 | U17: 24.332 | V17: 24.332 | W17: 27.118 | AA17: 9 | AB17: 9.816 | AC17: 12.966 | AD17: 20.008 | AE17: 22.052 | AF17: 24.096 | AG17: 24.754 | AH17: 25.398 | AI17: 25.832 | AJ17: 25.832 | AK17: 28.618 | AM17: 9 | AN17: 6.81 | AO17: 9.37 | AP17: 14.66 | AQ17: 16.03 | AR17: 17.46 | AS17: 17.87 | AT17: 18.39 | AV17: 9 | AW17: 6.642 | AX17: 9.1395 | AY17: 14.3 | AZ17: 15.6375 | BA17: 17.0375 | BB17: 17.4375 | BC17: 17.9375 | BE17: 9 | BF17: 8.31 | BG17: 10.87 | BH17: 16.16 | BI17: 17.53 | BJ17: 18.96 | BK17: 19.37 | BL17: 19.89
A18: 10 | B18: 8.33 | C18: 11.48 | D18: 19.362 | E18: 21.63 | F18: 22.61 | G18: 23.268 | H18: 24.528 | I18: 25.76 | J18: 25.76 | K18: 27.132 | M18: 10 | N18: 8.33 | O18: 11.48 | P18: 19.362 | Q18: 21.63 | R18: 22.61 | S18: 23.268 | T18: 24.528 | U18: 25.76 | V18: 25.76 | W18: 27.132 | AA18: 10 | AB18: 9.83 | AC18: 12.98 | AD18: 20.862 | AE18: 23.13 | AF18: 24.11 | AG18: 24.768 | AH18: 26.028 | AI18: 27.26 | AJ18: 27.26 | AK18: 28.632 | AM18: 10 | AN18: 7.17 | AO18: 9.78 | AP18: 15.48 | AQ18: 17.07 | AR18: 18.54 | AS18: 19.04 | AT18: 19.56 | AV18: 10 | AW18: 6.993 | AX18: 9.5445 | AY18: 15.1 | AZ18: 16.65 | BA18: 18.0875 | BB18: 18.575 | BC18: 19.0875 | BE18: 10 | BF18: 8.67 | BG18: 11.28 | BH18: 16.98 | BI18: 18.57 | BJ18: 20.04 | BK18: 20.54 | BL18: 21.06
A19: 11 | B19: 9.198 | C19: 12.586 | D19: 20.384 | E19: 22.792 | F19: 25.256 | G19: 26.068 | H19: 26.684 | I19: 27.202 | J19: 27.202 | K19: 29.988 | M19: 11 | N19: 9.198 | O19: 12.586 | P19: 20.384 | Q19: 22.792 | R19: 25.256 | S19: 26.068 | T19: 26.684 | U19: 27.202 | V19: 27.202 | W19: 29.988 | AA19: 11 | AB19: 10.698 | AC19: 14.086 | AD19: 21.884 | AE19: 24.292 | AF19: 26.756 | AG19: 27.568 | AH19: 28.184 | AI19: 28.702 | AJ19: 28.702 | AK19: 31.488 | AM19: 11 | AN19: 7.32 | AO19: 10.17 | AP19: 16.2 | AQ19: 17.96 | AR19: 19.64 | AS19: 20.15 | AT19: 20.73 | AV19: 11 | AW19: 7.1415 | AX19: 9.9225 | AY19: 15.8 | AZ19: 17.525 | BA19: 19.1625 | BB19: 19.6625 | BC19: 20.225 | BE19: 11 | BF19: 8.82 | BG19: 11.67 | BH19: 17.7 | BI19: 19.46 | BJ19: 21.14 | BK19: 21.65 | BL19: 22.23
A20: 12 | B20: 9.576 | C20: 13.104 | D20: 21.476 | E20: 23.856 | F20: 26.502 | G20: 27.482 | H20: 28.112 | I20: 28.532 | J20: 28.532 | K20: 30.688 | M20: 12 | N20: 9.576 | O20: 13.104 | P20: 21.476 | Q20: 23.856 | R20: 26.502 | S20: 27.482 | T20: 28.112 | U20: 28.532 | V20: 28.532 | W20: 30.688 | AA20: 12 | AB20: 11.076 | AC20: 14.604 | AD20: 22.976 | AE20: 25.356 | AF20: 28.002 | AG20: 28.982 | AH20: 29.612 | AI20: 30.032 | AJ20: 30.032 | AK20: 32.188 | AM20: 12 | AN20: 7.58 | AO20: 10.61 | AP20: 17.04 | AQ20: 18.95 | AR20: 20.73 | AS20: 21.33 | AT20: 21.85 | AV20: 12 | AW20: 7.398 | AX20: 10.3545 | AY20: 16.625 | AZ20: 18.4875 | BA20: 20.225 | BB20: 20.8125 | BC20: 21.3125 | BE20: 12 | BF20: 9.08 | BG20: 12.11 | BH20: 18.54 | BI20: 20.45 | BJ20: 22.23 | BK20: 22.83 | BL20: 23.35
A21: 13 | B21: 9.716 | C21: 13.594 | D21: 22.498 | E21: 24.948 | F21: 27.566 | G21: 28.938 | H21: 29.47 | I21: 29.96 | J21: 29.96 | K21: 31.57 | M21: 13 | N21: 9.716 | O21: 13.594 | P21: 22.498 | Q21: 24.948 | R21: 27.566 | S21: 28.938 | T21: 29.47 | U21: 29.96 | V21: 29.96 | W21: 31.57 | AA21: 13 | AB21: 11.216 | AC21: 15.094 | AD21: 23.998 | AE21: 26.448 | AF21: 29.066 | AG21: 30.438 | AH21: 30.97 | AI21: 31.46 | AJ21: 31.46 | AK21: 33.07 | AM21: 13 | AN21: 7.83 | AO21: 11.14 | AP21: 17.96 | AQ21: 19.82 | AR21: 21.74 | AS21: 22.5 | AT21: 23.02 | AV21: 13 | AW21: 7.641 | AX21: 10.8675 | AY21: 17.525 | AZ21: 19.3375 | BA21: 21.2125 | BB21: 21.95 | BC21: 22.4625 | BE21: 13 | BF21: 9.33 | BG21: 12.64 | BH21: 19.46 | BI21: 21.32 | BJ21: 23.24 | BK21: 24 | BL21: 24.52
A22: 14 | B22: 10.108 | C22: 14.112 | D22: 23.66 | E22: 25.998 | F22: 28.644 | G22: 30.198 | H22: 30.912 | I22: 31.304 | J22: 31.304 | K22: 32.466 | M22: 14 | N22: 10.108 | O22: 14.112 | P22: 23.66 | Q22: 25.998 | R22: 28.644 | S22: 30.198 | T22: 30.912 | U22: 31.304 | V22: 31.304 | W22: 32.466 | AA22: 14 | AB22: 11.608 | AC22: 15.612 | AD22: 25.16 | AE22: 27.498 | AF22: 30.144 | AG22: 31.698 | AH22: 32.412 | AI22: 32.804 | AJ22: 32.804 | AK22: 33.966 | AM22: 14 | AN22: 7.94 | AO22: 11.71 | AP22: 18.81 | AQ22: 20.72 | AR22: 22.63 | AS22: 23.68 | AT22: 24.14 | AV22: 14 | AW22: 7.749 | AX22: 11.421 | AY22: 18.35 | AZ22: 20.2125 | BA22: 22.075 | BB22: 23.1 | BC22: 23.55 | BE22: 14 | BF22: 9.44 | BG22: 13.21 | BH22: 20.31 | BI22: 22.22 | BJ22: 24.13 | BK22: 25.18 | BL22: 25.64
A23: 15 | B23: 10.234 | C23: 14.49 | D23: 24.458 | E23: 27.048 | F23: 28.658 | G23: 31.178 | H23: 32.088 | I23: 32.256 | J23: 32.256 | K23: 33.292 | M23: 15 | N23: 10.234 | O23: 14.49 | P23: 24.458 | Q23: 27.048 | R23: 28.658 | S23: 31.178 | T23: 32.088 | U23: 32.256 | V23: 32.256 | W23: 33.292 | AA23: 15 | AB23: 11.734 | AC23: 15.99 | AD23: 25.958 | AE23: 28.548 | AF23: 30.158 | AG23: 32.678 | AH23: 33.588 | AI23: 33.756 | AJ23: 33.756 | AK23: 34.792 | AM23: 15 | AN23: 8.22 | AO23: 12.15 | AP23: 19.78 | AQ23: 21.6 | AR23: 23.5 | AS23: 24.72 | AT23: 25.32 | AV23: 15 | AW23: 8.019 | AX23: 11.853 | AY23: 19.3 | AZ23: 21.075 | BA23: 22.925 | BB23: 24.1125 | BC23: 24.7 | BE23: 15 | BF23: 9.72 | BG23: 13.65 | BH23: 21.28 | BI23: 23.1 | BJ23: 25 | BK23: 26.22 | BL23: 26.82
A24: 16 | B24: 10.64 | C24: 15.12 | D24: 25.634 | E24: 28.056 | F24: 30.674 | G24: 31.99 | H24: 32.886 | I24: 33.544 | J24: 33.544 | K24: 34.776 | M24: 16 | N24: 10.64 | O24: 15.12 | P24: 25.634 | Q24: 28.056 | R24: 30.674 | S24: 31.99 | T24: 32.886 | U24: 33.544 | V24: 33.544 | W24: 34.776 | AA24: 16 | AB24: 12.14 | AC24: 16.62 | AD24: 27.134 | AE24: 29.556 | AF24: 32.174 | AG24: 33.49 | AH24: 34.386 | AI24: 35.044 | AJ24: 35.044 | AK24: 36.276 | AM24: 16 | AN24: 8.55 | AO24: 12.58 | AP24: 20.46 | AQ24: 22.47 | AR24: 24.37 | AS24: 25.52 | AT24: 26.28 | AV24: 16 | AW24: 8.343 | AX24: 12.2715 | AY24: 19.9625 | AZ24: 21.925 | BA24: 23.775 | BB24: 24.9 | BC24: 25.6375 | BE24: 16 | BF24: 10.05 | BG24: 14.08 | BH24: 21.96 | BI24: 23.97 | BJ24: 25.87 | BK24: 27.02 | BL24: 27.78
A25: 17 | B25: 11.074 | C25: 15.624 | D25: 26.362 | E25: 28.938 | F25: 31.374 | G25: 32.704 | H25: 33.614 | I25: 34.286 | J25: 34.286 | K25: 35.77 | M25: 17 | N25: 11.074 | O25: 15.624 | P25: 26.362 | Q25: 28.938 | R25: 31.374 | S25: 32.704 | T25: 33.614 | U25: 34.286 | V25: 34.286 | W25: 35.77 | AA25: 17 | AB25: 12.574 | AC25: 17.124 | AD25: 27.862 | AE25: 30.438 | AF25: 32.874 | AG25: 34.204 | AH25: 35.114 | AI25: 35.786 | AJ25: 35.786 | AK25: 37.27 | AM25: 17 | AN25: 8.72 | AO25: 12.87 | AP25: 21.45 | AQ25: 23.31 | AR25: 25.18 | AS25: 26.19 | AT25: 26.94 | AV25: 17 | AW25: 8.505 | AX25: 12.555 | AY25: 20.925 | AZ25: 22.7375 | BA25: 24.5625 | BB25: 25.55 | BC25: 26.2875 | BE25: 17 | BF25: 10.22 | BG25: 14.37 | BH25: 22.95 | BI25: 24.81 | BJ25: 26.68 | BK25: 27.69 | BL25: 28.44
A26: 18 | B26: 11.452 | C26: 16.128 | D26: 27.16 | E26: 29.554 | F26: 32.074 | G26: 33.432 | H26: 34.496 | I26: 35.14 | J26: 35.14 | K26: 37.226 | M26: 18 | N26: 11.452 | O26: 16.128 | P26: 27.16 | Q26: 29.554 | R26: 32.074 | S26: 33.432 | T26: 34.496 | U26: 35.14 | V26: 35.14 | W26: 37.226 | AA26: 18 | AB26: 12.952 | AC26: 17.628 | AD26: 28.66 | AE26: 31.054 | AF26: 33.574 | AG26: 34.932 | AH26: 35.996 | AI26: 36.64 | AJ26: 36.64 | AK26: 38.726 | AM26: 18 | AN26: 9.17 | AO26: 13.1 | AP26: 22.05 | AQ26: 24.04 | AR26: 25.77 | AS26: 26.78 | AT26: 27.52 | AV26: 18 | AW26: 8.9505 | AX26: 12.7845 | AY26: 21.5125 | AZ26: 23.45 | BA26: 25.1375 | BB26: 26.125 | BC26: 26.85 | BE26: 18 | BF26: 10.67 | BG26: 14.6 | BH26: 23.55 | BI26: 25.54 | BJ26: 27.27 | BK26: 28.28 | BL26: 29.02
A27: 19 | B27: 11.676 | C27: 16.562 | D27: 27.79 | E27: 30.184 | F27: 32.802 | G27: 34.174 | H27: 35.406 | I27: 36.302 | J27: 36.302 | K27: 38.234 | M27: 19 | N27: 11.676 | O27: 16.562 | P27: 27.79 | Q27: 30.184 | R27: 32.802 | S27: 34.174 | T27: 35.406 | U27: 36.302 | V27: 36.302 | W27: 38.234 | AA27: 19 | AB27: 13.176 | AC27: 18.062 | AD27: 29.29 | AE27: 31.684 | AF27: 34.302 | AG27: 35.674 | AH27: 36.906 | AI27: 37.802 | AJ27: 37.802 | AK27: 39.734 | AM27: 19 | AN27: 9.44 | AO27: 13.45 | AP27: 22.72 | AQ27: 24.55 | AR27: 26.33 | AS27: 27.37 | AT27: 28.26 | AV27: 19 | AW27: 9.207 | AX27: 13.122 | AY27: 22.1625 | AZ27: 23.95 | BA27: 25.6875 | BB27: 26.7 | BC27: 27.575 | BE27: 19 | BF27: 10.94 | BG27: 14.95 | BH27: 24.22 | BI27: 26.05 | BJ27: 27.83 | BK27: 28.87 | BL27: 29.76
A28: 20 | B28: 11.69 | C28: 16.772 | D28: 28.504 | E28: 30.912 | F28: 33.516 | G28: 34.972 | H28: 36.218 | I28: 37.016 | J28: 37.016 | K28: 40.768 | M28: 20 | N28: 11.69 | O28: 16.772 | P28: 28.504 | Q28: 30.912 | R28: 33.516 | S28: 34.972 | T28: 36.218 | U28: 37.016 | V28: 37.016 | W28: 40.768 | AA28: 20 | AB28: 13.19 | AC28: 18.272 | AD28: 30.004 | AE28: 32.412 | AF28: 35.016 | AG28: 36.472 | AH28: 37.718 | AI28: 38.516 | AJ28: 38.516 | AK28: 42.268 | AM28: 20 | AN28: 9.69 | AO28: 13.82 | AP28: 23.25 | AQ28: 25.06 | AR28: 26.93 | AS28: 27.97 | AT28: 28.99 | AV28: 20 | AW28: 9.45 | AX28: 13.4865 | AY28: 22.6875 | AZ28: 24.45 | BA28: 26.275 | BB28: 27.2875 | BC28: 28.2875 | BE28: 20 | BF28: 11.19 | BG28: 15.32 | BH28: 24.75 | BI28: 26.56 | BJ28: 28.43 | BK28: 29.47 | BL28: 30.49
A29: 21 | B29: 12.306 | C29: 17.43 | D29: 29.12 | E29: 31.696 | F29: 34.202 | G29: 35.672 | H29: 37.212 | I29: 37.87 | J29: 37.87 | K29: 41.902 | M29: 21 | N29: 12.306 | O29: 17.43 | P29: 29.12 | Q29: 31.696 | R29: 34.202 | S29: 35.672 | T29: 37.212 | U29: 37.87 | V29: 37.87 | W29: 41.902 | AA29: 21 | AB29: 13.806 | AC29: 18.93 | AD29: 30.62 | AE29: 33.196 | AF29: 35.702 | AG29: 37.172 | AH29: 38.712 | AI29: 39.37 | AJ29: 39.37 | AK29: 43.402 | AM29: 21 | AN29: 9.87 | AO29: 14.22 | AP29: 25.06 | AQ29: 27.24 | AR29: 29.15 | AS29: 30.37 | AT29: 31.47 | AV29: 21 | AW29: 9.6255 | AX29: 13.878 | AY29: 24.45 | AZ29: 26.575 | BA29: 28.4375 | BB29: 29.625 | BC29: 30.7 | BE29: 21 | BF29: 11.37 | BG29: 15.72 | BH29: 26.56 | BI29: 28.74 | BJ29: 30.65 | BK29: 31.87 | BL29: 32.97
A30: 22 | B30: 12.67 | C30: 17.822 | D30: 29.82 | E30: 32.41 | F30: 34.916 | G30: 36.498 | H30: 38.01 | I30: 38.71 | J30: 38.71 | K30: 42.868 | M30: 22 | N30: 12.67 | O30: 17.822 | P30: 29.82 | Q30: 32.41 | R30: 34.916 | S30: 36.498 | T30: 38.01 | U30: 38.71 | V30: 38.71 | W30: 42.868 | AA30: 22 | AB30: 14.17 | AC30: 19.322 | AD30: 31.32 | AE30: 33.91 | AF30: 36.416 | AG30: 37.998 | AH30: 39.51 | AI30: 40.21 | AJ30: 40.21 | AK30: 44.368 | AM30: 22 | AN30: 10.13 | AO30: 14.5 | AP30: 25.73 | AQ30: 27.91 | AR30: 30.01 | AS30: 31.24 | AT30: 32.33 | AV30: 22 | AW30: 9.882 | AX30: 14.148 | AY30: 25.1 | AZ30: 27.225 | BA30: 29.275 | BB30: 30.475 | BC30: 31.5375 | BE30: 22 | BF30: 11.63 | BG30: 16 | BH30: 27.23 | BI30: 29.41 | BJ30: 31.51 | BK30: 32.74 | BL30: 33.83
A31: 23 | B31: 12.922 | C31: 18.186 | D31: 30.534 | E31: 33.208 | F31: 35.728 | G31: 37.282 | H31: 38.906 | I31: 39.76 | J31: 39.76 | K31: 43.568 | M31: 23 | N31: 12.922 | O31: 18.186 | P31: 30.534 | Q31: 33.208 | R31: 35.728 | S31: 37.282 | T31: 38.906 | U31: 39.76 | V31: 39.76 | W31: 43.568 | AA31: 23 | AB31: 14.422 | AC31: 19.686 | AD31: 32.034 | AE31: 34.708 | AF31: 37.228 | AG31: 38.782 | AH31: 40.406 | AI31: 41.26 | AJ31: 41.26 | AK31: 45.068 | AM31: 23 | AN31: 10.49 | AO31: 14.82 | AP31: 26.38 | AQ31: 28.55 | AR31: 30.76 | AS31: 32.08 | AT31: 33.02 | AV31: 23 | AW31: 10.233 | AX31: 14.4585 | AY31: 25.7375 | AZ31: 27.85 | BA31: 30.0125 | BB31: 31.3 | BC31: 32.2125 | BE31: 23 | BF31: 11.99 | BG31: 16.32 | BH31: 27.88 | BI31: 30.05 | BJ31: 32.26 | BK31: 33.58 | BL31: 34.52
A32: 24 | B32: 13.202 | C32: 18.508 | D32: 31.346 | E32: 34.048 | F32: 36.68 | G32: 38.094 | H32: 39.704 | I32: 40.516 | J32: 40.516 | K32: 44.422 | M32: 24 | N32: 13.202 | O32: 18.508 | P32: 31.346 | Q32: 34.048 | R32: 36.68 | S32: 38.094 | T32: 39.704 | U32: 40.516 | V32: 40.516 | W32: 44.422 | AA32: 24 | AB32: 14.702 | AC32: 20.008 | AD32: 32.846 | AE32: 35.548 | AF32: 38.18 | AG32: 39.594 | AH32: 41.204 | AI32: 42.016 | AJ32: 42.016 | AK32: 45.922 | AM32: 24 | AN32: 10.65 | AO32: 15.08 | AP32: 27.11 | AQ32: 29.25 | AR32: 31.47 | AS32: 32.77 | AT32: 33.8 | AV32: 24 | AW32: 10.395 | AX32: 14.715 | AY32: 26.45 | AZ32: 28.5375 | BA32: 30.7 | BB32: 31.975 | BC32: 32.975 | BE32: 24 | BF32: 12.15 | BG32: 16.58 | BH32: 28.61 | BI32: 30.75 | BJ32: 32.97 | BK32: 34.27 | BL32: 35.3
A33: 25 | B33: 13.314 | C33: 18.606 | D33: 32.144 | E33: 34.748 | F33: 37.058 | G33: 39.018 | H33: 40.516 | I33: 41.776 | J33: 41.776 | K33: 44.688 | M33: 25 | N33: 13.314 | O33: 18.606 | P33: 32.144 | Q33: 34.748 | R33: 37.058 | S33: 39.018 | T33: 40.516 | U33: 41.776 | V33: 41.776 | W33: 44.688 | AA33: 25 | AB33: 14.814 | AC33: 20.106 | AD33: 33.644 | AE33: 36.248 | AF33: 38.558 | AG33: =G33+1.5 -> 40.518 | AH33: 42.016 | AI33: 43.276 | AJ33: 43.276 | AK33: 46.188 | AM33: 25 | AN33: 10.93 | AO33: 15.33 | AP33: 27.83 | AQ33: 29.99 | AR33: 32.31 | AS33: 33.49 | AT33: 34.49 | AV33: 25 | AW33: 10.665 | AX33: 14.958 | AY33: 27.15 | AZ33: 29.2625 | BA33: 31.525 | BB33: 32.675 | BC33: 33.65 | BE33: 25 | BF33: 12.43 | BG33: 16.83 | BH33: 29.33 | BI33: 31.49 | BJ33: 33.81 | BK33: 34.99 | BL33: 35.99
A34: 26 | B34: 13.832 | C34: 19.32 | D34: 33.026 | E34: 35.602 | F34: 38.654 | G34: 40.012 | H34: 41.37 | I34: 42.42 | J34: 42.42 | K34: 46.116 | M34: 26 | N34: 13.832 | O34: 19.32 | P34: 33.026 | Q34: 35.602 | R34: 38.654 | S34: 40.012 | T34: 41.37 | U34: 42.42 | V34: 42.42 | W34: 46.116 | AA34: 26 | AB34: =B34+1.5 -> 15.332 | AC34: 20.82 | AD34: 34.526 | AE34: 37.102 | AF34: 40.154 | AG34: 41.512 | AH34: 42.87 | AI34: 43.92 | AJ34: 43.92 | AK34: 47.616 | AM34: 26 | AN34: 11.19 | AO34: 15.66 | AP34: 28.57 | AQ34: 30.96 | AR34: 33.16 | AS34: 34.67 | AT34: 35.34 | AV34: 26 | AW34: 10.9215 | AX34: 15.282 | AY34: 27.875 | AZ34: 30.2 | BA34: 32.35 | BB34: 33.825 | BC34: 34.475 | BE34: 26 | BF34: 12.69 | BG34: 17.16 | BH34: 30.07 | BI34: 32.46 | BJ34: 34.66 | BK34: 36.17 | BL34: 36.84
A35: 27 | B35: 14.084 | C35: 19.684 | D35: 33.838 | E35: 36.624 | F35: 39.718 | G35: 40.88 | H35: 42.154 | I35: 43.302 | J35: 43.302 | K35: 46.9 | M35: 27 | N35: 14.084 | O35: 19.684 | P35: 33.838 | Q35: 36.624 | R35: 39.718 | S35: 40.88 | T35: 42.154 | U35: 43.302 | V35: 43.302 | W35: 46.9 | AA35: 27 | AB35: 15.584 | AC35: 21.184 | AD35: 35.338 | AE35: 38.124 | AF35: 41.218 | AG35: 42.38 | AH35: 43.654 | AI35: 44.802 | AJ35: 44.802 | AK35: 48.4 | AM35: 27 | AN35: 11.43 | AO35: 16.11 | AP35: 29.39 | AQ35: 31.69 | AR35: 33.93 | AS35: 35.39 | AT35: 36.11 | AV35: 27 | AW35: 11.151 | AX35: 15.714 | AY35: 28.675 | AZ35: 30.9125 | BA35: 33.1 | BB35: 34.525 | BC35: 35.225 | BE35: 27 | BF35: 12.93 | BG35: 17.61 | BH35: 30.89 | BI35: 33.19 | BJ35: 35.43 | BK35: 36.89 | BL35: 37.61
A36: 28 | B36: 14.448 | C36: 20.118 | D36: 34.734 | E36: 37.674 | F36: 40.53 | G36: 41.692 | H36: 43.05 | I36: 44.1 | J36: 44.1 | K36: 47.894 | M36: 28 | N36: 14.448 | O36: 20.118 | P36: 34.734 | Q36: 37.674 | R36: 40.53 | S36: 41.692 | T36: 43.05 | U36: 44.1 | V36: 44.1 | W36: 47.894 | AA36: 28 | AB36: 15.948 | AC36: 21.618 | AD36: 36.234 | AE36: 39.174 | AF36: 42.03 | AG36: 43.192 | AH36: 44.55 | AI36: 45.6 | AJ36: 45.6 | AK36: 49.394 | AM36: 28 | AN36: 11.61 | AO36: 16.55 | AP36: 30.15 | AQ36: 32.39 | AR36: 34.58 | AS36: 36.27 | AT36: 37.04 | AV36: 28 | AW36: 11.3265 | AX36: 16.146 | AY36: 29.4125 | AZ36: 31.6 | BA36: 33.7375 | BB36: 35.3875 | BC36: 36.1375 | BE36: 28 | BF36: 13.11 | BG36: 18.05 | BH36: 31.65 | BI36: 33.89 | BJ36: 36.08 | BK36: 37.77 | BL36: 38.54
A37: 29 | B37: 14.588 | C37: 20.454 | D37: 35.616 | E37: 38.472 | F37: 41.398 | G37: 42.602 | H37: 43.96 | I37: 44.814 | J37: 44.814 | K37: 48.986 | M37: 29 | N37: 14.588 | O37: 20.454 | P37: 35.616 | Q37: 38.472 | R37: 41.398 | S37: 42.602 | T37: 43.96 | U37: 44.814 | V37: 44.814 | W37: 48.986 | AA37: 29 | AB37: 16.088 | AC37: 21.954 | AD37: 37.116 | AE37: 39.972 | AF37: 42.898 | AG37: 44.102 | AH37: 45.46 | AI37: 46.314 | AJ37: 46.314 | AK37: 50.486 | AM37: 29 | AN37: 11.96 | AO37: 16.98 | AP37: 30.96 | AQ37: 33.06 | AR37: 35.44 | AS37: 37.11 | AT37: 38.1 | AV37: 29 | AW37: 11.664 | AX37: 16.5645 | AY37: 30.2 | AZ37: 32.25 | BA37: 34.575 | BB37: 36.2 | BC37: 37.175 | BE37: 29 | BF37: 13.46 | BG37: 18.48 | BH37: 32.46 | BI37: 34.56 | BJ37: 36.94 | BK37: 38.61 | BL37: 39.6
A38: 30 | B38: 14.602 | C38: 20.468 | D38: 36.33 | E38: 39.354 | F38: 41.412 | G38: 43.414 | H38: 44.254 | I38: 45.626 | J38: 45.626 | K38: 49.168 | M38: 30 | N38: 14.602 | O38: 20.468 | P38: 36.33 | Q38: 39.354 | R38: 41.412 | S38: 43.414 | T38: 44.254 | U38: 45.626 | V38: 45.626 | W38: 49.168 | AA38: 30 | AB38: 16.102 | AC38: 21.968 | AD38: 37.83 | AE38: 40.854 | AF38: 42.912 | AG38: 44.914 | AH38: 45.754 | AI38: 47.126 | AJ38: 47.126 | AK38: 50.668 | AM38: 30 | AN38: 12.23 | AO38: 17.28 | AP38: 31.65 | AQ38: 33.72 | AR38: 36.11 | AS38: 37.78 | AT38: 39.13 | AV38: 30 | AW38: 11.934 | AX38: 16.8615 | AY38: 30.875 | AZ38: 32.9 | BA38: 35.225 | BB38: 36.8625 | BC38: 38.175 | BE38: 30 | BF38: 13.73 | BG38: 18.78 | BH38: 33.15 | BI38: 35.22 | BJ38: 37.61 | BK38: 39.28 | BL38: 40.63
A39: 31 | B39: 15.26 | C39: 21.224 | D39: 37.114 | E39: 40.25 | F39: 43.078 | G39: 44.296 | H39: 45.752 | I39: 46.452 | J39: 46.452 | K39: 50.778 | M39: 31 | N39: 15.26 | O39: 21.224 | P39: 37.114 | Q39: 40.25 | R39: 43.078 | S39: 44.296 | T39: 45.752 | U39: 46.452 | V39: 46.452 | W39: 50.778 | AA39: 31 | AB39: 16.76 | AC39: 22.724 | AD39: 38.614 | AE39: 41.75 | AF39: 44.578 | AG39: 45.796 | AH39: 47.252 | AI39: 47.952 | AJ39: 47.952 | AK39: 52.278 | AM39: 31 | AN39: 12.41 | AO39: 17.49 | AP39: 32.48 | AQ39: 34.47 | AR39: 36.96 | AS39: 38.46 | AT39: 39.89 | AV39: 31 | AW39: 12.1095 | AX39: 17.064 | AY39: 31.6875 | AZ39: 33.625 | BA39: 36.0625 | BB39: 37.525 | BC39: 38.9125 | BE39: 31 | BF39: 13.91 | BG39: 18.99 | BH39: 33.98 | BI39: 35.97 | BJ39: 38.46 | BK39: 39.96 | BL39: 41.39
A40: 32 | B40: 15.694 | C40: 21.714 | D40: 37.926 | E40: 41.146 | F40: 43.96 | G40: 45.192 | H40: 46.62 | I40: 47.32 | J40: 47.32 | K40: 51.87 | M40: 32 | N40: 15.694 | O40: 21.714 | P40: 37.926 | Q40: 41.146 | R40: 43.96 | S40: 45.192 | T40: 46.62 | U40: 47.32 | V40: 47.32 | W40: 51.87 | AA40: 32 | AB40: 17.194 | AC40: 23.214 | AD40: 39.426 | AE40: 42.646 | AF40: 45.46 | AG40: 46.692 | AH40: 48.12 | AI40: 48.82 | AJ40: 48.82 | AK40: 53.37 | AM40: 32 | AN40: 12.66 | AO40: 17.68 | AP40: 33.16 | AQ40: 35.34 | AR40: 37.78 | AS40: 39.13 | AT40: 40.69 | AV40: 32 | AW40: 12.3525 | AX40: 17.253 | AY40: 32.35 | AZ40: 34.475 | BA40: 36.8625 | BB40: 38.175 | BC40: 39.7 | BE40: 32 | BF40: =AN40+1.5 -> 14.16 | BG40: 19.18 | BH40: 34.66 | BI40: 36.84 | BJ40: 39.28 | BK40: 40.63 | BL40: 42.19
A41: 33 | B41: 16.058 | C41: 22.26 | D41: 38.654 | E41: 42.028 | F41: 44.856 | G41: 46.2 | H41: 47.684 | I41: 48.398 | J41: 48.398 | K41: 52.99 | M41: 33 | N41: 16.058 | O41: 22.26 | P41: 38.654 | Q41: 42.028 | R41: 44.856 | S41: 46.2 | T41: 47.684 | U41: 48.398 | V41: 48.398 | W41: 52.99 | AA41: 33 | AB41: 17.558 | AC41: 23.76 | AD41: 40.154 | AE41: 43.528 | AF41: 46.356 | AG41: 47.7 | AH41: 49.184 | AI41: 49.898 | AJ41: 49.898 | AK41: 54.49 | AM41: 33 | AN41: 12.92 | AO41: 17.97 | AP41: 33.72 | AQ41: 36.11 | AR41: 38.64 | AS41: 39.91 | AT41: 41.47 | AV41: 33 | AW41: 12.609 | AX41: 17.5365 | AY41: 32.9 | AZ41: 35.225 | BA41: 37.7 | BB41: 38.9375 | BC41: 40.4625 | BE41: 33 | BF41: 14.42 | BG41: 19.47 | BH41: 35.22 | BI41: 37.61 | BJ41: 40.14 | BK41: 41.41 | BL41: 42.97
A42: 34 | B42: 16.408 | C42: 22.596 | D42: 39.536 | E42: 42.924 | F42: 45.822 | G42: 47.194 | H42: 48.678 | I42: 49.378 | J42: 49.378 | K42: 53.998 | M42: 34 | N42: 16.408 | O42: 22.596 | P42: 39.536 | Q42: 42.924 | R42: 45.822 | S42: 47.194 | T42: 48.678 | U42: 49.378 | V42: 49.378 | W42: 53.998 | AA42: 34 | AB42: 17.908 | AC42: 24.096 | AD42: 41.036 | AE42: 44.424 | AF42: 47.322 | AG42: 48.694 | AH42: 50.178 | AI42: 50.878 | AJ42: 50.878 | AK42: 55.498 | AM42: 34 | AN42: 13.21 | AO42: 18.35 | AP42: 34.41 | AQ42: 36.85 | AR42: 39.62 | AS42: 40.64 | AT42: 42.4 | AV42: 34 | AW42: 12.8925 | AX42: 17.901 | AY42: 33.575 | AZ42: 35.95 | BA42: 38.65 | BB42: 39.65 | BC42: 41.3625 | BE42: 34 | BF42: 14.71 | BG42: 19.85 | BH42: 35.91 | BI42: 38.35 | BJ42: 41.12 | BK42: 42.14 | BL42: 43.9
A43: 35 | B43: 16.758 | C43: 23.016 | D43: 40.418 | E43: 43.82 | F43: 46.704 | G43: 48.188 | H43: 49.63 | I43: 50.386 | J43: 50.386 | K43: 55.076 | M43: 35 | N43: 16.758 | O43: 23.016 | P43: 40.418 | Q43: 43.82 | R43: 46.704 | S43: 48.188 | T43: 49.63 | U43: 50.386 | V43: 50.386 | W43: 55.076 | AA43: 35 | AB43: 18.258 | AC43: 24.516 | AD43: 41.918 | AE43: 45.32 | AF43: 48.204 | AG43: 49.688 | AH43: 51.13 | AI43: 51.886 | AJ43: 51.886 | AK43: 56.576 | AM43: 35 | AN43: 13.44 | AO43: 18.76 | AP43: 35.25 | AQ43: 37.5 | AR43: 40.47 | AS43: 41.53 | AT43: 43.24 | AV43: 35 | AW43: 13.1085 | AX43: 18.306 | AY43: 34.3875 | AZ43: 36.5875 | BA43: 39.4875 | BB43: 40.5125 | BC43: 42.1875 | BE43: 35 | BF43: 14.94 | BG43: 20.26 | BH43: 36.75 | BI43: 39 | BJ43: 41.97 | BK43: 43.03 | BL43: 44.74
A44: 36 | B44: 17.318 | C44: 23.38 | D44: 41.286 | E44: 44.702 | F44: 47.614 | G44: 49.252 | H44: 50.596 | I44: 51.352 | J44: 51.352 | K44: 56.294 | M44: 36 | N44: 17.318 | O44: 23.38 | P44: 41.286 | Q44: 44.702 | R44: 47.614 | S44: 49.252 | T44: 50.596 | U44: 51.352 | V44: 51.352 | W44: 56.294 | AA44: 36 | AB44: 18.818 | AC44: 24.88 | AD44: 42.786 | AE44: 46.202 | AF44: 49.114 | AG44: 50.752 | AH44: 52.096 | AI44: 52.852 | AJ44: 52.852 | AK44: 57.794 | AM44: 36 | AN44: 13.82 | AO44: 19.12 | AP44: 35.98 | AQ44: 38.27 | AR44: 41.24 | AS44: 42.44 | AT44: 44.06 | AV44: 36 | AW44: 13.4865 | AX44: 18.657 | AY44: 35.1 | AZ44: 37.3375 | BA44: 40.2375 | BB44: 41.4 | BC44: 42.9875 | BE44: 36 | BF44: 15.32 | BG44: 20.62 | BH44: 37.48 | BI44: 39.77 | BJ44: 42.74 | BK44: 43.94 | BL44: 45.56
A45: 37 | B45: 17.332 | C45: 24.052 | D45: 42.098 | E45: 45.612 | F45: 48.566 | G45: 50.344 | H45: 51.66 | I45: 52.444 | J45: 52.444 | K45: 57.204 | M45: 37 | N45: 17.332 | O45: 24.052 | P45: 42.098 | Q45: 45.612 | R45: 48.566 | S45: 50.344 | T45: 51.66 | U45: 52.444 | V45: 52.444 | W45: 57.204 | AA45: 37 | AB45: 18.832 | AC45: 25.552 | AD45: 43.598 | AE45: 47.112 | AF45: 50.066 | AG45: 51.844 | AH45: 53.16 | AI45: 53.944 | AJ45: 53.944 | AK45: 58.704 | AM45: 37 | AN45: 14.07 | AO45: 19.54 | AP45: 36.75 | AQ45: 39.04 | AR45: 42.08 | AS45: 43.23 | AT45: 45.02 | AV45: 37 | AW45: 13.7295 | AX45: 19.062 | AY45: 35.85 | AZ45: 38.0875 | BA45: 41.05 | BB45: 42.175 | BC45: 43.925 | BE45: 37 | BF45: 15.57 | BG45: 21.04 | BH45: 38.25 | BI45: 40.54 | BJ45: 43.58 | BK45: 44.73 | BL45: 46.52
A46: 38 | B46: 17.612 | C46: 24.43 | D46: 42.84 | E46: 46.41 | F46: 49.49 | G46: 51.52 | H46: 52.64 | I46: 53.424 | J46: 53.424 | K46: 58.324 | M46: 38 | N46: 17.612 | O46: 24.43 | P46: 42.84 | Q46: 46.41 | R46: 49.49 | S46: 51.52 | T46: 52.64 | U46: 53.424 | V46: 53.424 | W46: 58.324 | AA46: 38 | AB46: 19.112 | AC46: 25.93 | AD46: 44.34 | AE46: 47.91 | AF46: 50.99 | AG46: 53.02 | AH46: 54.14 | AI46: 54.924 | AJ46: 54.924 | AK46: 59.824 | AM46: 38 | AN46: 14.34 | AO46: 19.8 | AP46: 37.73 | AQ46: 39.99 | AR46: 42.93 | AS46: 43.97 | AT46: 45.6 | AV46: 38 | AW46: 13.986 | AX46: 19.3185 | AY46: 36.8125 | AZ46: 39.0125 | BA46: 41.8875 | BB46: 42.9 | BC46: 44.4875 | BE46: 38 | BF46: 15.84 | BG46: 21.3 | BH46: 39.23 | BI46: 41.49 | BJ46: 44.43 | BK46: 45.47 | BL46: 47.1
A47: 39 | B47: 18.186 | C47: 24.85 | D47: 43.638 | E47: 47.278 | F47: 50.428 | G47: 52.584 | H47: 53.69 | I47: 54.474 | J47: 54.474 | K47: 58.338 | M47: 39 | N47: 18.186 | O47: 24.85 | P47: 43.638 | Q47: 47.278 | R47: 50.428 | S47: 52.584 | T47: 53.69 | U47: 54.474 | V47: 54.474 | W47: 58.338 | AA47: 39 | AB47: 19.686 | AC47: 26.35 | AD47: 45.138 | AE47: 48.778 | AF47: 51.928 | AG47: 54.084 | AH47: 55.19 | AI47: 55.974 | AJ47: 55.974 | AK47: 59.838 | AM47: 39 | AN47: 14.58 | AO47: 20.2 | AP47: 38.57 | AQ47: 40.94 | AR47: 43.79 | AS47: 44.61 | AT47: 46.37 | AV47: 39 | AW47: 14.229 | AX47: 19.71 | AY47: 37.625 | AZ47: 39.9375 | BA47: 42.725 | BB47: 43.525 | BC47: 45.2375 | BE47: 39 | BF47: 16.08 | BG47: 21.7 | BH47: 40.07 | BI47: 42.44 | BJ47: 45.29 | BK47: 46.11 | BL47: 47.87
A48: 40 | B48: 18.2 | C48: 25.27 | D48: 44.436 | E48: 48.174 | F48: 51.324 | G48: 53.592 | H48: 54.768 | I48: 55.566 | J48: 55.566 | K48: 58.352 | M48: 40 | N48: 18.2 | O48: 25.27 | P48: 44.436 | Q48: 48.174 | R48: 51.324 | S48: 53.592 | T48: 54.768 | U48: 55.566 | V48: 55.566 | W48: 58.352 | AA48: 40 | AB48: 19.7 | AC48: 26.77 | AD48: 45.936 | AE48: 49.674 | AF48: 52.824 | AG48: 55.092 | AH48: 56.268 | AI48: 57.066 | AJ48: 57.066 | AK48: 59.852 | AM48: 40 | AN48: 14.96 | AO48: 20.67 | AP48: 39.32 | AQ48: 41.79 | AR48: 44.86 | AS48: 45.39 | AT48: 47.23 | AV48: 40 | AW48: 14.5935 | AX48: 20.169 | AY48: 38.3625 | AZ48: 40.775 | BA48: 43.7625 | BB48: 44.2875 | BC48: 46.075 | BE48: 40 | BF48: 16.46 | BG48: 22.17 | BH48: 40.82 | BI48: 43.29 | BJ48: 46.36 | BK48: 46.89 | BL48: 48.73
A49: 41 | B49: 18.788 | C49: 25.788 | D49: 45.234 | E49: 49.084 | F49: 52.304 | G49: 54.46 | H49: 55.804 | I49: 56.644 | J49: 56.644 | K49: 61.992 | M49: 41 | N49: 18.788 | O49: 25.788 | P49: 45.234 | Q49: 49.084 | R49: 52.304 | S49: 54.46 | T49: 55.804 | U49: 56.644 | V49: 56.644 | W49: 61.992 | AA49: 41 | AB49: 20.288 | AC49: 27.288 | AD49: 46.734 | AE49: 50.584 | AF49: 53.804 | AG49: 55.96 | AH49: 57.304 | AI49: 58.144 | AJ49: 58.144 | AK49: 63.492 | AM49: 41 | AN49: 15.21 | AO49: 21.16 | AP49: 40.05 | AQ49: 42.76 | AR49: 45.8 | AS49: 46.37 | AT49: 48.25 | AV49: 41 | AW49: 14.8365 | AX49: 20.6415 | AY49: 39.075 | AZ49: 41.7125 | BA49: 44.6875 | BB49: 45.2375 | BC49: 47.075 | BE49: 41 | BF49: 16.71 | BG49: 22.66 | BH49: 41.55 | BI49: 44.26 | BJ49: 47.3 | BK49: 47.87 | BL49: 49.75
A50: 42 | B50: 19.068 | C50: 26.306 | D50: 46.116 | E50: 49.966 | F50: 53.368 | G50: 55.734 | H50: 56.938 | I50: 57.806 | J50: 57.806 | K50: 62.972 | M50: 42 | N50: 19.068 | O50: 26.306 | P50: 46.116 | Q50: 49.966 | R50: 53.368 | S50: 55.734 | T50: 56.938 | U50: 57.806 | V50: 57.806 | W50: 62.972 | AA50: 42 | AB50: 20.568 | AC50: 27.806 | AD50: 47.616 | AE50: 51.466 | AF50: 54.868 | AG50: 57.234 | AH50: 58.438 | AI50: 59.306 | AJ50: 59.306 | AK50: 64.472 | AM50: 42 | AN50: 15.47 | AO50: 21.45 | AP50: 40.81 | AQ50: 43.6 | AR50: 46.73 | AS50: 47.23 | AT50: 49.29 | AV50: 42 | AW50: 15.093 | AX50: 20.925 | AY50: 39.8125 | AZ50: 42.5375 | BA50: 45.5875 | BB50: 46.075 | BC50: 48.0875 | BE50: 42 | BF50: 16.97 | BG50: 22.95 | BH50: 42.31 | BI50: 45.1 | BJ50: 48.23 | BK50: 48.73 | BL50: 50.79
A51: 43 | B51: 19.572 | C51: 26.796 | D51: 47.026 | E51: 50.848 | F51: 54.362 | G51: 56.63 | H51: 58.114 | I51: 58.968 | J51: 58.968 | K51: 63.994 | M51: 43 | N51: 19.572 | O51: 26.796 | P51: 47.026 | Q51: 50.848 | R51: 54.362 | S51: 56.63 | T51: 58.114 | U51: 58.968 | V51: 58.968 | W51: 63.994 | AA51: 43 | AB51: 21.072 | AC51: 28.296 | AD51: 48.526 | AE51: 52.348 | AF51: 55.862 | AG51: 58.13 | AH51: 59.614 | AI51: 60.468 | AJ51: 60.468 | AK51: 65.494 | AM51: 43 | AN51: 15.73 | AO51: 21.74 | AP51: 41.53 | AQ51: 44.56 | AR51: 47.68 | AS51: 48.16 | AT51: 50.44 | AV51: 43 | AW51: 15.3495 | AX51: 21.2085 | AY51: 40.5125 | AZ51: 43.475 | BA51: 46.5125 | BB51: 46.9875 | BC51: 49.2125 | BE51: 43 | BF51: 17.23 | BG51: 23.24 | BH51: 43.03 | BI51: 46.06 | BJ51: 49.18 | BK51: 49.66 | BL51: 51.94
A52: 44 | B52: 20.006 | C52: 27.328 | D52: 47.824 | E52: 51.744 | F52: 55.314 | G52: 57.624 | H52: 59.346 | I52: 60.242 | J52: 60.242 | K52: 65.198 | M52: 44 | N52: 20.006 | O52: 27.328 | P52: 47.824 | Q52: 51.744 | R52: 55.314 | S52: 57.624 | T52: 59.346 | U52: 60.242 | V52: 60.242 | W52: 65.198 | AA52: 44 | AB52: 21.506 | AC52: 28.828 | AD52: 49.324 | AE52: 53.244 | AF52: 56.814 | AG52: 59.124 | AH52: 60.846 | AI52: 61.742 | AJ52: 61.742 | AK52: 66.698 | AM52: 44 | AN52: 16 | AO52: 22.22 | AP52: 42.27 | AQ52: 45.5 | AR52: 48.55 | AS52: 49.14 | AT52: 51.57 | AV52: 44 | AW52: 15.606 | AX52: 21.681 | AY52: 41.2375 | AZ52: 44.3875 | BA52: 47.3625 | BB52: 47.9375 | BC52: 50.3125 | BE52: 44 | BF52: 17.5 | BG52: 23.72 | BH52: 43.77 | BI52: 47 | BJ52: 50.05 | BK52: 50.64 | BL52: 53.07
A53: 45 | B53: 20.426 | C53: 27.902 | D53: 48.678 | E53: 52.626 | F53: 56.392 | G53: 58.618 | H53: 60.298 | I53: 61.194 | J53: 61.194 | K53: 66.416 | M53: 45 | N53: 20.426 | O53: 27.902 | P53: 48.678 | Q53: 52.626 | R53: 56.392 | S53: 58.618 | T53: 60.298 | U53: 61.194 | V53: 61.194 | W53: 66.416 | AA53: 45 | AB53: 21.926 | AC53: 29.402 | AD53: 50.178 | AE53: 54.126 | AF53: 57.892 | AG53: 60.118 | AH53: 61.798 | AI53: 62.694 | AJ53: 62.694 | AK53: 67.916 | AM53: 45 | AN53: 16.27 | AO53: 22.6 | AP53: 43.05 | AQ53: 46.37 | AR53: 49.61 | AS53: 49.96 | AT53: 52.72 | AV53: 45 | AW53: 15.876 | AX53: 22.0455 | AY53: 42 | AZ53: 45.2375 | BA53: 48.4 | BB53: 48.7375 | BC53: 51.4375 | BE53: 45 | BF53: 17.77 | BG53: 24.1 | BH53: 44.55 | BI53: 47.87 | BJ53: 51.11 | BK53: 51.46 | BL53: 54.22
A54: 46 | B54: 20.832 | C54: 28.504 | D54: 49.532 | E54: 53.522 | F54: 57.456 | G54: 59.626 | H54: 61.362 | I54: 62.272 | J54: 62.272 | K54: 67.284 | M54: 46 | N54: 20.832 | O54: 28.504 | P54: 49.532 | Q54: 53.522 | R54: 57.456 | S54: 59.626 | T54: 61.362 | U54: 62.272 | V54: 62.272 | W54: 67.284 | AA54: 46 | AB54: 22.332 | AC54: 30.004 | AD54: 51.032 | AE54: 55.022 | AF54: 58.956 | AG54: 61.126 | AH54: 62.862 | AI54: 63.772 | AJ54: 63.772 | AK54: 68.784 | AM54: 46 | AN54: 16.55 | AO54: 23.09 | AP54: 43.79 | AQ54: 47.23 | AR54: 50.53 | AS54: 50.9 | AT54: 53.68 | AV54: 46 | AW54: 16.146 | AX54: 22.5315 | AY54: 42.725 | AZ54: 46.075 | BA54: 49.3 | BB54: 49.6625 | BC54: 52.375 | BE54: 46 | BF54: 18.05 | BG54: 24.59 | BH54: 45.29 | BI54: 48.73 | BJ54: 52.03 | BK54: 52.4 | BL54: 55.18
A55: 47 | B55: 21.182 | C55: 29.106 | D55: 50.4 | E55: 54.334 | F55: 58.52 | G55: 60.494 | H55: 62.328 | I55: 63.266 | J55: 63.266 | K55: 67.298 | M55: 47 | N55: 21.182 | O55: 29.106 | P55: 50.4 | Q55: 54.334 | R55: 58.52 | S55: 60.494 | T55: 62.328 | U55: 63.266 | V55: 63.266 | W55: 67.298 | AA55: 47 | AB55: 22.682 | AC55: 30.606 | AD55: 51.9 | AE55: 55.834 | AF55: 60.02 | AG55: 61.994 | AH55: 63.828 | AI55: 64.766 | AJ55: 64.766 | AK55: 68.798 | AM55: 47 | AN55: 16.8 | AO55: 23.48 | AP55: 44.61 | AQ55: 47.97 | AR55: 51.39 | AS55: 51.89 | AT55: 54.54 | AV55: 47 | AW55: 16.389 | AX55: 22.9095 | AY55: 43.525 | AZ55: 46.8 | BA55: 50.1375 | BB55: 50.625 | BC55: 53.2125 | BE55: 47 | BF55: 18.3 | BG55: 24.98 | BH55: 46.11 | BI55: 49.47 | BJ55: 52.89 | BK55: 53.39 | BL55: 56.04
A56: 48 | B56: 21.322 | C56: 29.68 | D56: 51.114 | E56: 55.23 | F56: 59.584 | G56: 61.586 | H56: 63.49 | I56: 64.442 | J56: 64.442 | K56: 68.782 | M56: 48 | N56: 21.322 | O56: 29.68 | P56: 51.114 | Q56: 55.23 | R56: 59.584 | S56: 61.586 | T56: 63.49 | U56: 64.442 | V56: 64.442 | W56: 68.782 | AA56: 48 | AB56: 22.822 | AC56: 31.18 | AD56: 52.614 | AE56: 56.73 | AF56: 61.084 | AG56: 63.086 | AH56: 64.99 | AI56: 65.942 | AJ56: 65.942 | AK56: 70.282 | AM56: 48 | AN56: 17.14 | AO56: 23.97 | AP56: 45.5 | AQ56: 48.74 | AR56: 52.17 | AS56: 52.93 | AT56: 55.36 | AV56: 48 | AW56: 16.7265 | AX56: 23.382 | AY56: 44.3875 | AZ56: 47.55 | BA56: 50.9 | BB56: 51.6375 | BC56: 54.0125 | BE56: 48 | BF56: 18.64 | BG56: 25.47 | BH56: 47 | BI56: 50.24 | BJ56: 53.67 | BK56: 54.43 | BL56: 56.86
A57: 49 | B57: 21.476 | C57: 30.366 | D57: 51.842 | E57: 55.384 | F57: 59.598 | G57: 62.566 | H57: 64.624 | I57: 65.576 | J57: 65.576 | K57: 68.796 | M57: 49 | N57: 21.476 | O57: 30.366 | P57: 51.842 | Q57: 55.384 | R57: 59.598 | S57: 62.566 | T57: 64.624 | U57: 65.576 | V57: 65.576 | W57: 68.796 | AA57: 49 | AB57: 22.976 | AC57: 31.866 | AD57: 53.342 | AE57: 56.884 | AF57: 61.098 | AG57: 64.066 | AH57: 66.124 | AI57: 67.076 | AJ57: 67.076 | AK57: 70.296 | AM57: 49 | AN57: 17.41 | AO57: 24.45 | AP57: 46.3 | AQ57: 49.61 | AR57: 52.99 | AS57: 53.76 | AT57: 56.16 | AV57: 49 | AW57: 16.983 | AX57: 23.8545 | AY57: 45.175 | AZ57: 48.4 | BA57: 51.7 | BB57: 52.45 | BC57: 54.7875 | BE57: 49 | BF57: 18.91 | BG57: 25.95 | BH57: 47.8 | BI57: 51.11 | BJ57: 54.49 | BK57: 55.26 | BL57: 57.66
A58: 50 | B58: 21.49 | C58: 30.408 | D58: 51.856 | E58: 55.398 | F58: 59.612 | G58: 62.58 | H58: 64.638 | I58: 65.59 | J58: 65.59 | K58: 68.81 | M58: 50 | N58: 21.49 | O58: 30.408 | P58: 51.856 | Q58: 55.398 | R58: 59.612 | S58: 62.58 | T58: 64.638 | U58: 65.59 | V58: 65.59 | W58: 68.81 | AA58: 50 | AB58: 22.99 | AC58: 31.908 | AD58: 53.356 | AE58: 56.898 | AF58: 61.112 | AG58: 64.08 | AH58: 66.138 | AI58: 67.09 | AJ58: 67.09 | AK58: 70.31 | AM58: 50 | AN58: 17.67 | AO58: 24.92 | AP58: 46.97 | AQ58: 50.17 | AR58: 53.8 | AS58: 54.65 | AT58: 56.68 | AV58: 50 | AW58: 17.2395 | AX58: 24.3135 | AY58: 45.825 | AZ58: 48.95 | BA58: 52.4875 | BB58: 53.3125 | BC58: 55.3 | BE58: 50 | BF58: 19.17 | BG58: 26.42 | BH58: 48.47 | BI58: 51.67 | BJ58: 55.3 | BK58: 56.15 | BL58: 58.18
A59: 51 | B59: 22.652 | C59: 31.626 | D59: 53.494 | E59: 57.89 | F59: 62.86 | G59: 64.736 | H59: 67.102 | I59: 68.082 | J59: 68.082 | K59: 71.106 | M59: 51 | N59: 22.652 | O59: 31.626 | P59: 53.494 | Q59: 57.89 | R59: 62.86 | S59: 64.736 | T59: 67.102 | U59: 68.082 | V59: 68.082 | W59: 71.106 | AA59: 51 | AB59: 24.152 | AC59: 33.126 | AD59: 54.994 | AE59: 59.39 | AF59: 64.36 | AG59: 66.236 | AH59: 68.602 | AI59: 69.582 | AJ59: 69.582 | AK59: 72.606 | AM59: 51 | AN59: 18 | AO59: 25.29 | AP59: 46.98 | AQ59: 50.19 | AR59: 53.81 | AS59: 54.66 | AT59: 56.7 | AV59: 51 | AW59: 17.5635 | AX59: 24.678 | AY59: 45.8375 | AZ59: 48.9625 | BA59: 52.5 | BB59: 53.325 | BC59: 55.3125 | BE59: 51 | BF59: 19.5 | BG59: 26.79 | BH59: 48.48 | BI59: 51.69 | BJ59: 55.31 | BK59: 56.16 | BL59: 58.2
A60: 52 | B60: 23.002 | C60: 32.298 | D60: 54.32 | E60: 58.772 | F60: 63.924 | G60: 65.8 | H60: 68.418 | I60: 69.44 | J60: 69.44 | K60: 73.472 | M60: 52 | N60: 23.002 | O60: 32.298 | P60: 54.32 | Q60: 58.772 | R60: 63.924 | S60: 65.8 | T60: 68.418 | U60: 69.44 | V60: 69.44 | W60: 73.472 | AA60: 52 | AB60: 24.502 | AC60: 33.798 | AD60: 55.82 | AE60: 60.272 | AF60: 65.424 | AG60: 67.3 | AH60: 69.918 | AI60: 70.94 | AJ60: 70.94 | AK60: 74.972 | AM60: 52 | AN60: 18.27 | AO60: 25.78 | AP60: 48.47 | AQ60: 51.94 | AR60: 55.36 | AS60: 56.61 | AT60: 58.91 | AV60: 52 | AW60: 17.82 | AX60: 25.1505 | AY60: 47.2875 | AZ60: 50.675 | BA60: 54.0125 | BB60: 55.225 | BC60: 57.475 | BE60: 52 | BF60: 19.77 | BG60: 27.28 | BH60: 49.97 | BI60: 53.44 | BJ60: 56.86 | BK60: 58.11 | BL60: 60.41
A61: 53 | B61: 23.45 | C61: 32.83 | D61: 55.146 | E61: 59.752 | F61: 65.072 | G61: 66.878 | H61: 69.566 | I61: 70.616 | J61: 70.616 | K61: 73.486 | M61: 53 | N61: 23.45 | O61: 32.83 | P61: 55.146 | Q61: 59.752 | R61: 65.072 | S61: 66.878 | T61: 69.566 | U61: 70.616 | V61: 70.616 | W61: 73.486 | AA61: 53 | AB61: 24.95 | AC61: 34.33 | AD61: 56.646 | AE61: 61.252 | AF61: 66.572 | AG61: 68.378 | AH61: 71.066 | AI61: 72.116 | AJ61: 72.116 | AK61: 74.986 | AM61: 53 | AN61: 18.63 | AO61: 26.18 | AP61: 49.21 | AQ61: 52.93 | AR61: 56.16 | AS61: 57.77 | AT61: 60.04 | AV61: 53 | AW61: 18.171 | AX61: 25.542 | AY61: 48.0125 | AZ61: 51.6375 | BA61: 54.7875 | BB61: 56.3625 | BC61: 58.575 | BE61: 53 | BF61: 20.13 | BG61: 27.68 | BH61: 50.71 | BI61: 54.43 | BJ61: 57.66 | BK61: 59.27 | BL61: 61.54
A62: 54 | B62: 23.828 | C62: 33.488 | D62: 56.056 | E62: 60.634 | F62: 66.052 | G62: 68.166 | H62: 70.882 | I62: 71.932 | J62: 71.932 | K62: 75.502 | M62: 54 | N62: 23.828 | O62: 33.488 | P62: 56.056 | Q62: 60.634 | R62: 66.052 | S62: 68.166 | T62: 70.882 | U62: 71.932 | V62: 71.932 | W62: 75.502 | AA62: 54 | AB62: 25.328 | AC62: 34.988 | AD62: 57.556 | AE62: 62.134 | AF62: 67.552 | AG62: 69.666 | AH62: 72.382 | AI62: 73.432 | AJ62: 73.432 | AK62: 77.002 | AM62: 54 | AN62: 18.99 | AO62: 26.73 | AP62: 49.97 | AQ62: 53.85 | AR62: 56.8 | AS62: 59.01 | AT62: 61.28 | AV62: 54 | AW62: 18.522 | AX62: 26.082 | AY62: 48.75 | AZ62: 52.5375 | BA62: 55.4125 | BB62: 57.575 | BC62: 59.7875 | BE62: 54 | BF62: 20.49 | BG62: 28.23 | BH62: 51.47 | BI62: 55.35 | BJ62: 58.3 | BK62: 60.51 | BL62: 62.78
A63: 55 | B63: 24.178 | C63: 34.104 | D63: 57.05 | E63: 61.46 | F63: 67.046 | G63: 69.3 | H63: 71.932 | I63: 73.024 | J63: 73.024 | K63: 77.952 | M63: 55 | N63: 24.178 | O63: 34.104 | P63: 57.05 | Q63: 61.46 | R63: 67.046 | S63: 69.3 | T63: 71.932 | U63: 73.024 | V63: 73.024 | W63: 77.952 | AA63: 55 | AB63: 25.678 | AC63: 35.604 | AD63: 58.55 | AE63: 62.96 | AF63: 68.546 | AG63: 70.8 | AH63: 73.432 | AI63: 74.524 | AJ63: 74.524 | AK63: 79.452 | AM63: 55 | AN63: 19.23 | AO63: 27.23 | AP63: 50.79 | AQ63: 54.94 | AR63: 57.57 | AS63: 60.32 | AT63: 62.4 | AV63: 55 | AW63: 18.765 | AX63: 26.568 | AY63: 49.55 | AZ63: 53.6 | BA63: 56.1625 | BB63: 58.85 | BC63: 60.875 | BE63: 55 | BF63: 20.73 | BG63: 28.73 | BH63: 52.29 | BI63: 56.44 | BJ63: 59.07 | BK63: 61.82 | BL63: 63.9
A64: 56 | B64: 24.626 | C64: 34.748 | D64: 58.086 | E64: 62.174 | F64: 68.096 | G64: 70.588 | H64: 73.094 | I64: 74.186 | J64: 74.186 | K64: 77.966 | M64: 56 | N64: 24.626 | O64: 34.748 | P64: 58.086 | Q64: 62.174 | R64: 68.096 | S64: 70.588 | T64: 73.094 | U64: 74.186 | V64: 74.186 | W64: 77.966 | AA64: 56 | AB64: 26.126 | AC64: 36.248 | AD64: 59.586 | AE64: 63.674 | AF64: 69.596 | AG64: 72.088 | AH64: 74.594 | AI64: 75.686 | AJ64: 75.686 | AK64: 79.466 | AM64: 56 | AN64: 19.59 | AO64: 27.81 | AP64: 51.69 | AQ64: 55.68 | AR64: 58.41 | AS64: 61.18 | AT64: 63.51 | AV64: 56 | AW64: 19.116 | AX64: 27.135 | AY64: 50.425 | AZ64: 54.325 | BA64: 56.9875 | BB64: 59.6875 | BC64: 61.9625 | BE64: 56 | BF64: 21.09 | BG64: 29.31 | BH64: 53.19 | BI64: 57.18 | BJ64: 59.91 | BK64: 62.68 | BL64: 65.01
A65: 57 | B65: 25.102 | C65: 35.35 | D65: 59.136 | E65: 63.28 | F65: 69.076 | G65: 71.736 | H65: 74.34 | I65: 75.432 | J65: 75.432 | K65: 80.234 | M65: 57 | N65: 25.102 | O65: 35.35 | P65: 59.136 | Q65: 63.28 | R65: 69.076 | S65: 71.736 | T65: 74.34 | U65: 75.432 | V65: 75.432 | W65: 80.234 | AA65: 57 | AB65: 26.602 | AC65: 36.85 | AD65: 60.636 | AE65: 64.78 | AF65: 70.576 | AG65: 73.236 | AH65: 75.84 | AI65: 76.932 | AJ65: 76.932 | AK65: 81.734 | AM65: 57 | AN65: 19.94 | AO65: 28.28 | AP65: 52.56 | AQ65: 56.27 | AR65: 59.3 | AS65: 62.47 | AT65: 64.61 | AV65: 57 | AW65: 19.4535 | AX65: 27.594 | AY65: 51.275 | AZ65: 54.9 | BA65: 57.85 | BB65: 60.95 | BC65: 63.0375 | BE65: 57 | BF65: 21.44 | BG65: 29.78 | BH65: 54.06 | BI65: 57.77 | BJ65: 60.8 | BK65: 63.97 | BL65: 66.11
A66: 58 | B66: 25.648 | C66: 35.938 | D66: 60.214 | E66: 64.148 | F66: 70.14 | G66: 73.024 | H66: 75.656 | I66: 76.776 | J66: 76.776 | K66: 80.248 | M66: 58 | N66: 25.648 | O66: 35.938 | P66: 60.214 | Q66: 64.148 | R66: 70.14 | S66: 73.024 | T66: 75.656 | U66: 76.776 | V66: 76.776 | W66: 80.248 | AA66: 58 | AB66: =B66+1.5 -> 27.148 | AC66: 37.438 | AD66: 61.714 | AE66: 65.648 | AF66: 71.64 | AG66: 74.524 | AH66: 77.156 | AI66: 78.276 | AJ66: 78.276 | AK66: 81.748 | AM66: 58 | AN66: 20.38 | AO66: 28.88 | AP66: 53.2 | AQ66: 57.34 | AR66: 60.41 | AS66: 63.59 | AT66: 65.47 | AV66: 58 | AW66: 19.8855 | AX66: 28.1745 | AY66: 51.9 | AZ66: 55.9375 | BA66: 58.9375 | BB66: 62.0375 | BC66: 63.875 | BE66: 58 | BF66: 21.88 | BG66: 30.38 | BH66: 54.7 | BI66: 58.84 | BJ66: 61.91 | BK66: 65.09 | BL66: 66.97
A67: 59 | B67: 26.012 | C67: 36.54 | D67: 61.264 | E67: 64.932 | F67: 71.204 | G67: 74.172 | H67: 76.986 | I67: 78.134 | J67: 78.134 | K67: 81.452 | M67: 59 | N67: 26.012 | O67: 36.54 | P67: 61.264 | Q67: 64.932 | R67: 71.204 | S67: 74.172 | T67: 76.986 | U67: 78.134 | V67: 78.134 | W67: 81.452 | AA67: 59 | AB67: 27.512 | AC67: 38.04 | AD67: 62.764 | AE67: 66.432 | AF67: 72.704 | AG67: 75.672 | AH67: 78.486 | AI67: 79.634 | AJ67: 79.634 | AK67: 82.952 | AM67: 59 | AN67: 20.83 | AO67: 29.54 | AP67: 53.76 | AQ67: 58.12 | AR67: 61.69 | AS67: 64.79 | AT67: 66.68 | AV67: 59 | AW67: 20.3175 | AX67: 28.8225 | AY67: 52.45 | AZ67: 56.7 | BA67: 60.1875 | BB67: 63.2125 | BC67: 65.05 | BE67: 59 | BF67: 22.33 | BG67: 31.04 | BH67: 55.26 | BI67: 59.62 | BJ67: 63.19 | BK67: 66.29 | BL67: 68.18
A68: 60 | B68: 26.278 | C68: 36.792 | D68: 62.258 | E68: 66.038 | F68: 72.352 | G68: 75.432 | H68: 77.924 | I68: 79.072 | J68: 79.072 | K68: 82.488 | M68: 60 | N68: 26.278 | O68: 36.792 | P68: 62.258 | Q68: 66.038 | R68: 72.352 | S68: 75.432 | T68: 77.924 | U68: 79.072 | V68: 79.072 | W68: 82.488 | AA68: 60 | AB68: 27.778 | AC68: 38.292 | AD68: 63.758 | AE68: 67.538 | AF68: 73.852 | AG68: 76.932 | AH68: 79.424 | AI68: 80.572 | AJ68: 80.572 | AK68: 83.988 | AM68: 60 | AN68: 21.19 | AO68: 30.3 | AP68: 54.62 | AQ68: 58.84 | AR68: 62.88 | AS68: 65.86 | AT68: 67.8 | AV68: 60 | AW68: 20.6685 | AX68: 29.565 | AY68: 53.2875 | AZ68: 57.4 | BA68: 61.35 | BB68: 64.25 | BC68: 66.15 | BE68: 60 | BF68: 22.69 | BG68: 31.8 | BH68: 56.12 | BI68: 60.34 | BJ68: 64.38 | BK68: 67.36 | BL68: 69.3
A69: 61 | B69: 26.992 | C69: 37.814 | D69: 63.322 | E69: 66.878 | F69: 73.5 | G69: 76.594 | H69: 77.938 | I69: 80.808 | J69: 80.808 | K69: 85.708 | M69: 61 | N69: 26.992 | O69: 37.814 | P69: 63.322 | Q69: 66.878 | R69: 73.5 | S69: 76.594 | T69: 77.938 | U69: 80.808 | V69: 80.808 | W69: 85.708 | AA69: 61 | AB69: 28.492 | AC69: 39.314 | AD69: 64.822 | AE69: 68.378 | AF69: 75 | AG69: 78.094 | AH69: 79.438 | AI69: 82.308 | AJ69: 82.308 | AK69: 87.208 | AM69: 61 | AN69: 21.52 | AO69: 30.98 | AP69: 55.49 | AQ69: 59.83 | AR69: 63.95 | AS69: 67.06 | AT69: 68.89 | AV69: 61 | AW69: 20.9925 | AX69: 30.2265 | AY69: 54.1375 | AZ69: 58.375 | BA69: 62.3875 | BB69: 65.425 | BC69: 67.2125 | BE69: 61 | BF69: 23.02 | BG69: 32.48 | BH69: 56.99 | BI69: 61.33 | BJ69: 65.45 | BK69: 68.56 | BL69: 70.39
A70: 62 | B70: 27.636 | C70: 38.486 | D70: 64.288 | E70: 68.152 | F70: 74.648 | G70: 77.854 | H70: 80.85 | I70: 82.054 | J70: 82.054 | K70: 86.716 | M70: 62 | N70: 27.636 | O70: 38.486 | P70: 64.288 | Q70: 68.152 | R70: 74.648 | S70: 77.854 | T70: 80.85 | U70: 82.054 | V70: 82.054 | W70: 86.716 | AA70: 62 | AB70: 29.136 | AC70: 39.986 | AD70: 65.788 | AE70: 69.652 | AF70: 76.148 | AG70: 79.354 | AH70: 82.35 | AI70: 83.554 | AJ70: 83.554 | AK70: 88.216 | AM70: 62 | AN70: 21.89 | AO70: 31.55 | AP70: 56.35 | AQ70: 60.54 | AR70: 65.07 | AS70: 68.19 | AT70: 70.08 | AV70: 62 | AW70: 21.357 | AX70: 30.78 | AY70: 54.975 | AZ70: 59.0625 | BA70: 63.4875 | BB70: 66.525 | BC70: 68.375 | BE70: 62 | BF70: 23.39 | BG70: 33.05 | BH70: 57.85 | BI70: 62.04 | BJ70: 66.57 | BK70: 69.69 | BL70: 71.58
A71: 63 | B71: 28.098 | C71: 39.242 | D71: 65.38 | E71: 69.132 | F71: 75.88 | G71: 79.198 | H71: 82.194 | I71: 83.412 | J71: 83.412 | K71: 87.794 | M71: 63 | N71: 28.098 | O71: 39.242 | P71: 65.38 | Q71: 69.132 | R71: 75.88 | S71: 79.198 | T71: 82.194 | U71: 83.412 | V71: 83.412 | W71: 87.794 | AA71: 63 | AB71: 29.598 | AC71: 40.742 | AD71: 66.88 | AE71: 70.632 | AF71: 77.38 | AG71: 80.698 | AH71: 83.694 | AI71: 84.912 | AJ71: 84.912 | AK71: 89.294 | AM71: 63 | AN71: 22.5 | AO71: 32.02 | AP71: 57.22 | AQ71: 61.28 | AR71: 66.23 | AS71: 69.19 | AT71: 71.38 | AV71: 63 | AW71: 21.951 | AX71: 31.239 | AY71: 55.825 | AZ71: 59.7875 | BA71: 64.6125 | BB71: 67.5 | BC71: 69.6375 | BE71: 63 | BF71: 24 | BG71: 33.52 | BH71: 58.72 | BI71: 62.78 | BJ71: 67.73 | BK71: 70.69 | BL71: 72.88
A72: 64 | B72: 28.63 | C72: 40.012 | D72: 66.444 | E72: 70.294 | F72: 77.14 | G72: 80.57 | H72: 83.51 | I72: 84.742 | J72: 84.742 | K72: 89.782 | M72: 64 | N72: 28.63 | O72: 40.012 | P72: 66.444 | Q72: 70.294 | R72: 77.14 | S72: 80.57 | T72: 83.51 | U72: 84.742 | V72: 84.742 | W72: 89.782 | AA72: 64 | AB72: 30.13 | AC72: 41.512 | AD72: 67.944 | AE72: 71.794 | AF72: 78.64 | AG72: 82.07 | AH72: 85.01 | AI72: 86.242 | AJ72: 86.242 | AK72: 91.282 | AM72: 64 | AN72: 22.82 | AO72: 32.64 | AP72: 58.14 | AQ72: 62.23 | AR72: 67.37 | AS72: 70.2 | AT72: 72.67 | AV72: 64 | AW72: 22.2615 | AX72: 31.8465 | AY72: 56.725 | AZ72: 60.7125 | BA72: 65.725 | BB72: 68.4875 | BC72: 70.9 | BE72: 64 | BF72: =AN72+1.5 -> 24.32 | BG72: 34.14 | BH72: 59.64 | BI72: 63.73 | BJ72: 68.87 | BK72: 71.7 | BL72: 74.17
A73: 65 | B73: 28.812 | C73: 40.782 | D73: 67.424 | E73: 71.428 | F73: 78.372 | G73: 81.998 | H73: 84.644 | I73: 84.756 | J73: 84.756 | K73: 89.796 | M73: 65 | N73: 28.812 | O73: 40.782 | P73: 67.424 | Q73: 71.428 | R73: 78.372 | S73: 81.998 | T73: 84.644 | U73: 84.756 | V73: 84.756 | W73: 89.796 | AA73: 65 | AB73: 30.312 | AC73: 42.282 | AD73: 68.924 | AE73: 72.928 | AF73: 79.872 | AG73: 83.498 | AH73: 86.144 | AI73: 86.256 | AJ73: 86.256 | AK73: 91.296 | AM73: 65 | AN73: 23.27 | AO73: 33.28 | AP73: 59.01 | AQ73: 63.19 | AR73: 68.52 | AS73: 71.52 | AT73: 73.95 | AV73: 65 | AW73: 22.707 | AX73: 32.4675 | AY73: 57.575 | AZ73: 61.65 | BA73: 66.85 | BB73: 69.775 | BC73: 72.15 | BE73: 65 | BF73: 24.77 | BG73: 34.78 | BH73: 60.51 | BI73: 64.69 | BJ73: 70.02 | BK73: 73.02 | BL73: 75.45
A74: 66 | B74: 29.652 | C74: 41.524 | D74: 68.502 | E74: 72.59 | F74: 79.604 | G74: 83.342 | H74: 86.156 | I74: 87.444 | J74: 87.444 | K74: 91.518 | M74: 66 | N74: 29.652 | O74: 41.524 | P74: 68.502 | Q74: 72.59 | R74: 79.604 | S74: 83.342 | T74: 86.156 | U74: 87.444 | V74: 87.444 | W74: 91.518 | AA74: 66 | AB74: 31.152 | AC74: 43.024 | AD74: 70.002 | AE74: 74.09 | AF74: 81.104 | AG74: 84.842 | AH74: 87.656 | AI74: 88.944 | AJ74: 88.944 | AK74: 93.018 | AM74: 66 | AN74: 23.63 | AO74: 33.87 | AP74: 59.83 | AQ74: 64.05 | AR74: 69.53 | AS74: 72.65 | AT74: 75.03 | AV74: 66 | AW74: 23.058 | AX74: 33.048 | AY74: 58.375 | AZ74: 62.4875 | BA74: 67.8375 | BB74: 70.875 | BC74: 73.2 | BE74: 66 | BF74: 25.13 | BG74: 35.37 | BH74: 61.33 | BI74: 65.55 | BJ74: 71.03 | BK74: 74.15 | BL74: 76.53
A75: 67 | B75: 29.792 | C75: 42.308 | D75: 69.482 | E75: 73.85 | F75: 80.948 | G75: 84.784 | H75: 87.654 | I75: 88.956 | J75: 88.956 | K75: 93.044 | M75: 67 | N75: 29.792 | O75: 42.308 | P75: 69.482 | Q75: 73.85 | R75: 80.948 | S75: 84.784 | T75: 87.654 | U75: 88.956 | V75: 88.956 | W75: 93.044 | AA75: 67 | AB75: 31.292 | AC75: 43.808 | AD75: 70.982 | AE75: 75.35 | AF75: 82.448 | AG75: 86.284 | AH75: 89.154 | AI75: 90.456 | AJ75: 90.456 | AK75: 94.544 | AM75: 67 | AN75: 24.06 | AO75: 33.89 | AP75: 59.85 | AQ75: 64.06 | AR75: 70.7 | AS75: 73.95 | AT75: 76 | AV75: 67 | AW75: 23.4765 | AX75: 33.0615 | AY75: 58.3875 | AZ75: 62.5 | BA75: 68.975 | BB75: 72.15 | BC75: 74.15 | BE75: 67 | BF75: 25.56 | BG75: 35.39 | BH75: 61.35 | BI75: 65.56 | BJ75: 72.2 | BK75: 75.45 | BL75: 77.5
A76: 68 | B76: 30.716 | C76: 43.05 | D76: 70.546 | E76: 75.082 | F76: 82.194 | G76: 84.798 | H76: 89.068 | I76: 90.384 | J76: 90.384 | K76: 94.99 | M76: 68 | N76: 30.716 | O76: 43.05 | P76: 70.546 | Q76: 75.082 | R76: 82.194 | S76: 84.798 | T76: 89.068 | U76: 90.384 | V76: 90.384 | W76: 94.99 | AA76: 68 | AB76: 32.216 | AC76: 44.55 | AD76: 72.046 | AE76: 76.582 | AF76: 83.694 | AG76: 86.298 | AH76: 90.568 | AI76: 91.884 | AJ76: 91.884 | AK76: 96.49 | AM76: 68 | AN76: 24.42 | AO76: 35.23 | AP76: 61.69 | AQ76: 65.95 | AR76: 71.74 | AS76: 75.03 | AT76: 77.16 | AV76: 68 | AW76: 23.8275 | AX76: 34.371 | AY76: 60.1875 | AZ76: 64.3375 | BA76: 69.9875 | BB76: 73.2 | BC76: 75.275 | BE76: 68 | BF76: 25.92 | BG76: 36.73 | BH76: 63.19 | BI76: 67.45 | BJ76: 73.24 | BK76: 76.53 | BL76: 78.66
A77: 69 | B77: 31.178 | C77: 43.82 | D77: 71.596 | E77: 76.328 | F77: 82.208 | G77: 85.218 | H77: 90.566 | I77: 91.91 | J77: 91.91 | K77: 96.544 | M77: 69 | N77: 31.178 | O77: 43.82 | P77: 71.596 | Q77: 76.328 | R77: 82.208 | S77: 85.218 | T77: 90.566 | U77: 91.91 | V77: 91.91 | W77: 96.544 | AA77: 69 | AB77: 32.678 | AC77: 45.32 | AD77: 73.096 | AE77: 77.828 | AF77: 83.708 | AG77: 86.718 | AH77: 92.066 | AI77: 93.41 | AJ77: 93.41 | AK77: 98.044 | AM77: 69 | AN77: 24.87 | AO77: 35.88 | AP77: 62.61 | AQ77: 66.89 | AR77: 72.85 | AS77: 76.12 | AT77: 78.4 | AV77: 69 | AW77: 24.2595 | AX77: 35.0055 | AY77: 61.0875 | AZ77: 65.2625 | BA77: 71.075 | BB77: 74.2625 | BC77: 76.4875 | BE77: 69 | BF77: 26.37 | BG77: 37.38 | BH77: 64.11 | BI77: 68.39 | BJ77: 74.35 | BK77: 77.62 | BL77: 79.9
A78: 70 | B78: 31.192 | C78: 44.156 | D78: 71.61 | E78: 77.504 | F78: 83.44 | G78: 86.282 | H78: 91.798 | I78: 93.156 | J78: 93.156 | K78: 97.944 | M78: 70 | N78: 31.192 | O78: 44.156 | P78: 71.61 | Q78: 77.504 | R78: 83.44 | S78: 86.282 | T78: 91.798 | U78: 93.156 | V78: 93.156 | W78: 97.944 | AA78: 70 | AB78: 32.692 | AC78: 45.656 | AD78: 73.11 | AE78: 79.004 | AF78: 84.94 | AG78: 87.782 | AH78: 93.298 | AI78: 94.656 | AJ78: 94.656 | AK78: 99.444 | AM78: 70 | AN78: 25.31 | AO78: 36.49 | AP78: 63.36 | AQ78: 67.86 | AR78: 74.12 | AS78: 77.16 | AT78: 79.6 | AV78: 70 | AW78: 24.6915 | AX78: 35.5995 | AY78: 61.8125 | AZ78: 66.2 | BA78: 72.3125 | BB78: 75.275 | BC78: 77.6625 | BE78: 70 | BF78: 26.81 | BG78: 37.99 | BH78: 64.86 | BI78: 69.36 | BJ78: 75.62 | BK78: 78.66 | BL78: 81.1
A79: 71 | B79: 32.256 | C79: 45.402 | D79: 73.668 | E79: 78.736 | F79: 83.832 | G79: 87.472 | H79: 93.464 | I79: 94.85 | J79: 94.85 | K79: 99.386 | M79: 71 | N79: 32.256 | O79: 45.402 | P79: 73.668 | Q79: 78.736 | R79: 83.832 | S79: 87.472 | T79: 93.464 | U79: 94.85 | V79: 94.85 | W79: 99.386 | AA79: 71 | AB79: 33.756 | AC79: 46.902 | AD79: 75.168 | AE79: 80.236 | AF79: 85.332 | AG79: 88.972 | AH79: 94.964 | AI79: 96.35 | AJ79: 96.35 | AK79: 100.886 | AM79: 71 | AN79: 25.82 | AO79: 37.22 | AP79: 64.33 | AQ79: 68.88 | AR79: 75.35 | AS79: 78.18 | AT79: 80.95 | AV79: 71 | AW79: 25.191 | AX79: 36.315 | AY79: 62.7625 | AZ79: 67.2 | BA79: 73.5125 | BB79: 76.275 | BC79: 78.975 | BE79: 71 | BF79: 27.32 | BG79: 38.72 | BH79: 65.83 | BI79: 70.38 | BJ79: 76.85 | BK79: 79.68 | BL79: 82.45
A80: 72 | B80: 32.536 | C80: 45.766 | D80: 73.682 | E80: 79.996 | F80: 84.854 | G80: 88.606 | H80: 93.478 | I80: 94.864 | J80: 94.864 | K80: 101.29 | M80: 72 | N80: 32.536 | O80: 45.766 | P80: 73.682 | Q80: 79.996 | R80: 84.854 | S80: 88.606 | T80: 93.478 | U80: 94.864 | V80: 94.864 | W80: 101.29 | AA80: 72 | AB80: 34.036 | AC80: 47.266 | AD80: 75.182 | AE80: 81.496 | AF80: 86.354 | AG80: 90.106 | AH80: 94.978 | AI80: 96.364 | AJ80: 96.364 | AK80: 102.79 | AM80: 72 | AN80: 26.32 | AO80: 37.83 | AP80: 64.87 | AQ80: 69.75 | AR80: 75.8 | AS80: 78.96 | AT80: 82.09 | AV80: 72 | AW80: 25.677 | AX80: 36.909 | AY80: 63.2875 | AZ80: 68.05 | BA80: 73.95 | BB80: 77.0375 | BC80: 80.0875 | BE80: 72 | BF80: 27.82 | BG80: 39.33 | BH80: 66.37 | BI80: 71.25 | BJ80: 77.3 | BK80: 80.46 | BL80: 83.59
A81: 73 | B81: 32.55 | C81: 47.026 | D81: 73.71 | E81: 80.01 | F81: 86.002 | G81: 90.006 | H81: 95.116 | I81: 96.502 | J81: 96.502 | K81: 104.09 | M81: 73 | N81: 32.55 | O81: 47.026 | P81: 73.71 | Q81: 80.01 | R81: 86.002 | S81: 90.006 | T81: 95.116 | U81: 96.502 | V81: 96.502 | W81: 104.09 | AA81: 73 | AB81: 34.05 | AC81: 48.526 | AD81: 75.21 | AE81: 81.51 | AF81: 87.502 | AG81: 91.506 | AH81: 96.616 | AI81: 98.002 | AJ81: 98.002 | AK81: 105.59 | AM81: 73 | AN81: 26.86 | AO81: 38.41 | AP81: 65.74 | AQ81: 70.7 | AR81: 76.89 | AS81: 80.28 | AT81: 83.51 | AV81: 73 | AW81: 26.2035 | AX81: 37.476 | AY81: 64.1375 | AZ81: 68.975 | BA81: 75.0125 | BB81: 78.325 | BC81: 81.475 | BE81: 73 | BF81: 28.36 | BG81: 39.91 | BH81: 67.24 | BI81: 72.2 | BJ81: 78.39 | BK81: 81.78 | BL81: 85.01
A82: 74 | B82: 32.564 | C82: 47.796 | D82: 74.662 | E82: 82.474 | F82: 87.36 | G82: 93.674 | H82: 95.536 | I82: 96.516 | J82: 96.516 | K82: 104.104 | M82: 74 | N82: 32.564 | O82: 47.796 | P82: 74.662 | Q82: 82.474 | R82: 87.36 | S82: 93.674 | T82: 95.536 | U82: 96.516 | V82: 96.516 | W82: 104.104 | AA82: 74 | AB82: 34.064 | AC82: 49.296 | AD82: 76.162 | AE82: 83.974 | AF82: 88.86 | AG82: 95.174 | AH82: 97.036 | AI82: 98.016 | AJ82: 98.016 | AK82: 105.604 | AM82: 74 | AN82: 27.23 | AO82: 39.27 | AP82: 66.78 | AQ82: 71.74 | AR82: 77.93 | AS82: 81.55 | AT82: 85.05 | AV82: 74 | AW82: 26.568 | AX82: 38.313 | AY82: 65.15 | AZ82: 69.9875 | BA82: 76.025 | BB82: 79.5625 | BC82: 82.975 | BE82: 74 | BF82: 28.73 | BG82: 40.77 | BH82: 68.28 | BI82: 73.24 | BJ82: 79.43 | BK82: 83.05 | BL82: 86.55
A83: 75 | B83: 32.578 | C83: 48.202 | D83: 76.776 | E83: 82.488 | F83: 88.032 | G83: 94.962 | H83: 96.516 | I83: 96.53 | J83: 96.53 | K83: 104.118 | M83: 75 | N83: 32.578 | O83: 48.202 | P83: 76.776 | Q83: 82.488 | R83: 88.032 | S83: 94.962 | T83: 96.516 | U83: 96.53 | V83: 96.53 | W83: 104.118 | AA83: 75 | AB83: 34.078 | AC83: 49.702 | AD83: 78.276 | AE83: 83.988 | AF83: 89.532 | AG83: 96.462 | AH83: 98.016 | AI83: 98.03 | AJ83: 98.03 | AK83: 105.618 | AM83: 75 | AN83: 27.77 | AO83: 39.96 | AP83: 67.65 | AQ83: 72.85 | AR83: 79.16 | AS83: 82.64 | AT83: 86.56 | AV83: 75 | AW83: 27.0945 | AX83: 38.988 | AY83: 66 | AZ83: 71.075 | BA83: 77.225 | BB83: 80.625 | BC83: 84.45 | BE83: 75 | BF83: 29.27 | BG83: 41.46 | BH83: 69.15 | BI83: 74.35 | BJ83: 80.66 | BK83: 84.14 | BL83: 88.06
A84: 76 | B84: 34.622 | C84: 49.392 | D84: 78.82 | E84: 84.882 | F84: 89.754 | G84: 94.962 | H84: 100.002 | I84: 100.548 | J84: 100.548 | K84: 108.71 | M84: 76 | N84: 34.622 | O84: 49.392 | P84: 78.82 | Q84: 84.882 | R84: 89.754 | S84: 94.962 | T84: 100.002 | U84: 100.548 | V84: 100.548 | W84: 108.71 | AA84: 76 | AB84: 36.122 | AC84: 50.892 | AD84: 80.32 | AE84: 86.382 | AF84: 91.254 | AG84: 96.462 | AH84: 101.502 | AI84: 102.048 | AJ84: 102.048 | AK84: 110.21 | AM84: 76 | AN84: 28.19 | AO84: 40.5 | AP84: 68.42 | AQ84: 73.95 | AR84: 79.76 | AS84: 84 | AT84: 87.45 | AV84: 76 | AW84: 27.4995 | AX84: 39.5145 | AY84: 66.75 | AZ84: 72.15 | BA84: 77.8125 | BB84: 81.95 | BC84: 85.3125 | BE84: 76 | BF84: 29.69 | BG84: 42 | BH84: 69.92 | BI84: 75.45 | BJ84: 81.26 | BK84: 85.5 | BL84: 88.95
A85: 77 | B85: 34.636 | C85: 49.7 | D85: 79.17 | E85: 84.896 | F85: 90.93 | G85: 95.536 | H85: 100.212 | I85: 102.844 | J85: 102.844 | K85: 108.724 | M85: 77 | N85: 34.636 | O85: 49.7 | P85: 79.17 | Q85: 84.896 | R85: 90.93 | S85: 95.536 | T85: 100.212 | U85: 102.844 | V85: 102.844 | W85: 108.724 | AA85: 77 | AB85: 36.136 | AC85: 51.2 | AD85: 80.67 | AE85: 86.396 | AF85: 92.43 | AG85: 97.036 | AH85: 101.712 | AI85: 104.344 | AJ85: 104.344 | AK85: 110.224 | AM85: 77 | AN85: 28.62 | AO85: 40.52 | AP85: 69.37 | AQ85: 75.03 | AR85: 81.32 | AS85: 85.24 | AT85: 89.05 | AV85: 77 | AW85: 27.918 | AX85: 39.528 | AY85: 67.675 | AZ85: 73.2 | BA85: 79.3375 | BB85: 83.1625 | BC85: 86.875 | BE85: 77 | BF85: 30.12 | BG85: 42.02 | BH85: 70.87 | BI85: 76.53 | BJ85: 82.82 | BK85: 86.74 | BL85: 90.55
A86: 78 | B86: 34.636 | C86: 49.994 | D86: 79.184 | E86: 85.344 | F86: 92.064 | G86: 96.796 | H86: 101.752 | I86: 104.174 | J86: 104.174 | K86: 109.648 | M86: 78 | N86: 34.636 | O86: 49.994 | P86: 79.184 | Q86: 85.344 | R86: 92.064 | S86: 96.796 | T86: 101.752 | U86: 104.174 | V86: 104.174 | W86: 109.648 | AA86: 78 | AB86: 36.136 | AC86: 51.494 | AD86: 80.684 | AE86: 86.844 | AF86: 93.564 | AG86: 98.296 | AH86: 103.252 | AI86: 105.674 | AJ86: 105.674 | AK86: 111.148 | AM86: 78 | AN86: 29.16 | AO86: 41.8 | AP86: 70.2 | AQ86: 76.23 | AR86: 82.38 | AS86: 86.56 | AT86: 90.57 | AV86: 78 | AW86: 28.4445 | AX86: 40.7835 | AY86: 68.4875 | AZ86: 74.375 | BA86: 80.375 | BB86: 84.45 | BC86: 88.3625 | BE86: 78 | BF86: 30.66 | BG86: 43.3 | BH86: 71.7 | BI86: 77.73 | BJ86: 83.88 | BK86: 88.06 | BL86: 92.07
A87: 79 | B87: 34.65 | C87: 51.128 | D87: 79.464 | E87: 87.766 | F87: 93.254 | G87: 98.14 | H87: 103.236 | I87: 105.518 | J87: 105.518 | K87: 111.734 | M87: 79 | N87: 34.65 | O87: 51.128 | P87: 79.464 | Q87: 87.766 | R87: 93.254 | S87: 98.14 | T87: 103.236 | U87: 105.518 | V87: 105.518 | W87: 111.734 | AA87: 79 | AB87: 36.15 | AC87: 52.628 | AD87: 80.964 | AE87: 89.266 | AF87: 94.754 | AG87: 99.64 | AH87: 104.736 | AI87: 107.018 | AJ87: 107.018 | AK87: 113.234 | AM87: 79 | AN87: 29.58 | AO87: 42.47 | AP87: 71.17 | AQ87: 77.32 | AR87: 83.41 | AS87: 87.7 | AT87: 92.2 | AV87: 79 | AW87: 28.863 | AX87: 41.4315 | AY87: 69.4375 | AZ87: 75.4375 | BA87: 81.375 | BB87: 85.5625 | BC87: 89.95 | BE87: 79 | BF87: 31.08 | BG87: 43.97 | BH87: 72.67 | BI87: 78.82 | BJ87: 84.91 | BK87: 89.2 | BL87: 93.7
A88: 80 | B88: 34.664 | C88: 51.142 | D88: 80.08 | E88: 87.864 | F88: 93.73 | G88: 99.61 | H88: 104.16 | I88: 106.862 | J88: 106.862 | K88: 112.756 | M88: 80 | N88: 34.664 | O88: 51.142 | P88: 80.08 | Q88: 87.864 | R88: 93.73 | S88: 99.61 | T88: 104.16 | U88: 106.862 | V88: 106.862 | W88: 112.756 | AA88: 80 | AB88: 36.164 | AC88: 52.642 | AD88: 81.58 | AE88: 89.364 | AF88: 95.23 | AG88: 101.11 | AH88: 105.66 | AI88: 108.362 | AJ88: 108.362 | AK88: 114.256 | AM88: 80 | AN88: 29.94 | AO88: 43.24 | AP88: 71.99 | AQ88: 78.49 | AR88: 84.5 | AS88: 88.92 | AT88: 93.54 | AV88: 80 | AW88: 29.214 | AX88: 42.1875 | AY88: 70.2375 | AZ88: 76.575 | BA88: 82.4375 | BB88: 86.75 | BC88: 91.2625 | BE88: 80 | BF88: 31.44 | BG88: 44.74 | BH88: 73.49 | BI88: 79.99 | BJ88: 86 | BK88: 90.42 | BL88: 95.04
A89: 81 | B89: 37.002 | C89: 52.15 | D89: 81.046 | E89: 88.928 | F89: 95.228 | G89: 100.898 | H89: 105.812 | I89: 106.876 | J89: 106.876 | K89: 113.064 | M89: 81 | N89: 37.002 | O89: 52.15 | P89: 81.046 | Q89: 88.928 | R89: 95.228 | S89: 100.898 | T89: 105.812 | U89: 106.876 | V89: 106.876 | W89: 113.064 | AA89: 81 | AB89: 38.502 | AC89: 53.65 | AD89: 82.546 | AE89: 90.428 | AF89: 96.728 | AG89: 102.398 | AH89: 107.312 | AI89: 108.376 | AJ89: 108.376 | AK89: 114.564 | AM89: 81 | AN89: 30.01 | AO89: 43.93 | AP89: 72.56 | AQ89: 79.6 | AR89: 84.92 | AS89: 90.25 | AT89: 94.38 | AV89: 81 | AW89: 29.2815 | AX89: 42.8625 | AY89: 70.7875 | AZ89: 77.6625 | BA89: 82.85 | BB89: 88.05 | BC89: 92.075 | BE89: 81 | BF89: 31.51 | BG89: 45.43 | BH89: 74.06 | BI89: 81.1 | BJ89: 86.42 | BK89: 91.75 | BL89: 95.88
A90: 82 | B90: 37.59 | C90: 53.816 | D90: 83.762 | E90: 91.672 | F90: 95.928 | G90: 102.354 | H90: 107.842 | I90: 109.438 | J90: 109.438 | K90: 116.662 | M90: 82 | N90: 37.59 | O90: 53.816 | P90: 83.762 | Q90: 91.672 | R90: 95.928 | S90: 102.354 | T90: 107.842 | U90: 109.438 | V90: 109.438 | W90: 116.662 | AA90: 82 | AB90: 39.09 | AC90: 55.316 | AD90: 85.262 | AE90: 93.172 | AF90: 97.428 | AG90: 103.854 | AH90: 109.342 | AI90: 110.938 | AJ90: 110.938 | AK90: 118.162 | AM90: 82 | AN90: 30.9 | AO90: 44.71 | AP90: 73.43 | AQ90: 80.58 | AR90: 86.28 | AS90: 91.42 | AT90: 95.88 | AV90: 82 | AW90: 30.1455 | AX90: 43.6185 | AY90: 71.6375 | AZ90: 78.6125 | BA90: 84.175 | BB90: 89.1875 | BC90: 93.5375 | BE90: 82 | BF90: 32.4 | BG90: 46.21 | BH90: 74.93 | BI90: 82.08 | BJ90: 87.78 | BK90: 92.92 | BL90: 97.38
A91: 83 | B91: 38.024 | C91: 54.474 | D91: 83.888 | E91: 91.672 | F91: 97.734 | G91: 103.81 | H91: 108.556 | I91: 109.76 | J91: 109.76 | K91: 116.676 | M91: 83 | N91: 38.024 | O91: 54.474 | P91: 83.888 | Q91: 91.672 | R91: 97.734 | S91: 103.81 | T91: 108.556 | U91: 109.76 | V91: 109.76 | W91: 116.676 | AA91: 83 | AB91: 39.524 | AC91: 55.974 | AD91: 85.388 | AE91: 93.172 | AF91: 99.234 | AG91: =G91+1.5 -> 105.31 | AH91: 110.056 | AI91: 111.26 | AJ91: 111.26 | AK91: 118.176 | AM91: 83 | AN91: 31.6 | AO91: 45.4 | AP91: 74.99 | AQ91: 81.73 | AR91: 86.92 | AS91: 92.74 | AT91: 97.08 | AV91: 83 | AW91: 30.834 | AX91: 44.2935 | AY91: 73.1625 | AZ91: 79.7375 | BA91: 84.8 | BB91: 90.475 | BC91: 94.7125 | BE91: 83 | BF91: 33.1 | BG91: 46.9 | BH91: 76.49 | BI91: 83.23 | BJ91: 88.42 | BK91: 94.24 | BL91: 98.58
A92: 84 | B92: 38.038 | C92: 54.558 | D92: 84.798 | E92: 92.288 | F92: 97.748 | G92: 105.308 | H92: 109.76 | I92: 109.788 | J92: 109.788 | K92: 116.69 | M92: 84 | N92: 38.038 | O92: 54.558 | P92: 84.798 | Q92: 92.288 | R92: 97.748 | S92: 105.308 | T92: 109.76 | U92: 109.788 | V92: 109.788 | W92: 116.69 | AA92: 84 | AB92: =B92+1.5 -> 39.538 | AC92: 56.058 | AD92: 86.298 | AE92: 93.788 | AF92: 99.248 | AG92: 106.808 | AH92: 111.26 | AI92: 111.288 | AJ92: 111.288 | AK92: 118.19 | AM92: 84 | AN92: 32.05 | AO92: 46.15 | AP92: 76 | AQ92: 82.59 | AR92: 88.55 | AS92: 94.06 | AT92: 98.36 | AV92: 84 | AW92: 31.266 | AX92: 45.0225 | AY92: 74.15 | AZ92: 80.575 | BA92: 86.3875 | BB92: 91.7625 | BC92: 95.9625 | BE92: 84 | BF92: 33.55 | BG92: 47.65 | BH92: 77.5 | BI92: 84.09 | BJ92: 90.05 | BK92: 95.56 | BL92: 99.86
A93: 85 | B93: 38.052 | C93: 55.244 | D93: 86.156 | E93: 94.948 | F93: 100.072 | G93: 106.666 | H93: 111.104 | I93: 111.202 | J93: 111.202 | K93: 119.322 | M93: 85 | N93: 38.052 | O93: 55.244 | P93: 86.156 | Q93: 94.948 | R93: 100.072 | S93: 106.666 | T93: 111.104 | U93: 111.202 | V93: 111.202 | W93: 119.322 | AA93: 85 | AB93: 39.552 | AC93: 56.744 | AD93: 87.656 | AE93: 96.448 | AF93: 101.572 | AG93: 108.166 | AH93: 112.604 | AI93: 112.702 | AJ93: 112.702 | AK93: 120.822 | AM93: 85 | AN93: 32.39 | AO93: 46.85 | AP93: 76.84 | AQ93: 83.61 | AR93: 88.56 | AS93: 95.41 | AT93: 99.45 | AV93: 85 | AW93: 31.6035 | AX93: 45.711 | AY93: 74.9625 | AZ93: 81.575 | BA93: 86.4 | BB93: 93.0875 | BC93: 97.025 | BE93: 85 | BF93: 33.89 | BG93: 48.35 | BH93: 78.34 | BI93: 85.11 | BJ93: 90.06 | BK93: 96.91 | BL93: 100.95
A94: 86 | B94: 39.284 | C94: 55.916 | D94: 87.99 | E94: 94.962 | F94: 100.086 | G94: 107.996 | H94: 112.434 | I94: 113.568 | J94: 113.568 | K94: 119.336 | M94: 86 | N94: 39.284 | O94: 55.916 | P94: 87.99 | Q94: 94.962 | R94: 100.086 | S94: 107.996 | T94: 112.434 | U94: 113.568 | V94: 113.568 | W94: 119.336 | AA94: 86 | AB94: 40.784 | AC94: 57.416 | AD94: 89.49 | AE94: 96.462 | AF94: 101.586 | AG94: 109.496 | AH94: 113.934 | AI94: 115.068 | AJ94: 115.068 | AK94: 120.836 | AM94: 86 | AN94: 32.55 | AO94: 47.61 | AP94: 78.07 | AQ94: 84.58 | AR94: 90.67 | AS94: 96.64 | AT94: 100.67 | AV94: 86 | AW94: 31.752 | AX94: 46.4535 | AY94: 76.1625 | AZ94: 82.5125 | BA94: 88.4625 | BB94: 94.2875 | BC94: 98.2125 | BE94: 86 | BF94: 34.05 | BG94: 49.11 | BH94: 79.57 | BI94: 86.08 | BJ94: 92.17 | BK94: 98.14 | BL94: 102.17
A95: 87 | B95: 39.298 | C95: 57.106 | D95: 89.348 | E95: 95.872 | F95: 100.086 | G95: 109.508 | H95: 113.666 | I95: 114.842 | J95: 114.842 | K95: 123.172 | M95: 87 | N95: 39.298 | O95: 57.106 | P95: 89.348 | Q95: 95.872 | R95: 100.086 | S95: 109.508 | T95: 113.666 | U95: 114.842 | V95: 114.842 | W95: 123.172 | AA95: 87 | AB95: 40.798 | AC95: 58.606 | AD95: 90.848 | AE95: 97.372 | AF95: 101.586 | AG95: 111.008 | AH95: 115.166 | AI95: 116.342 | AJ95: 116.342 | AK95: 124.672 | AM95: 87 | AN95: 33.24 | AO95: 48.31 | AP95: 79.72 | AQ95: 85.7 | AR95: 90.69 | AS95: 97.85 | AT95: 101.87 | AV95: 87 | AW95: 32.427 | AX95: 47.1285 | AY95: 77.775 | AZ95: 83.6125 | BA95: 88.475 | BB95: 95.4625 | BC95: 99.3875 | BE95: 87 | BF95: 34.74 | BG95: 49.81 | BH95: 81.22 | BI95: 87.2 | BJ95: 92.19 | BK95: 99.35 | BL95: 103.37
A96: 88 | B96: 39.312 | C96: 57.246 | D96: 90.216 | E96: 96.908 | F96: 103.012 | G96: 110.726 | H96: 115.794 | I96: 116.438 | J96: 116.438 | K96: 123.186 | M96: 88 | N96: 39.312 | O96: 57.246 | P96: 90.216 | Q96: 96.908 | R96: 103.012 | S96: 110.726 | T96: 115.794 | U96: 116.438 | V96: 116.438 | W96: 123.186 | AA96: 88 | AB96: 40.812 | AC96: 58.746 | AD96: 91.716 | AE96: 98.408 | AF96: 104.512 | AG96: 112.226 | AH96: 117.294 | AI96: 117.938 | AJ96: 117.938 | AK96: 124.686 | AM96: 88 | AN96: 33.64 | AO96: 49.1 | AP96: 80.95 | AQ96: 86.87 | AR96: 90.69 | AS96: 99.22 | AT96: 102.99 | AV96: 88 | AW96: 32.8185 | AX96: 47.898 | AY96: 78.975 | AZ96: 84.75 | BA96: 88.475 | BB96: 96.8 | BC96: 100.475 | BE96: 88 | BF96: 35.14 | BG96: 50.6 | BH96: 82.45 | BI96: 88.37 | BJ96: 92.19 | BK96: 100.72 | BL96: 104.49
A97: 89 | B97: 39.326 | C97: 57.26 | D97: 92.064 | E97: 97.93 | F97: 108.178 | G97: 111.958 | H97: 116.396 | I97: 118.524 | J97: 118.524 | K97: 126.854 | M97: 89 | N97: 39.326 | O97: 57.26 | P97: 92.064 | Q97: 97.93 | R97: 108.178 | S97: 111.958 | T97: 116.396 | U97: 118.524 | V97: 118.524 | W97: 126.854 | AA97: 89 | AB97: 40.826 | AC97: 58.76 | AD97: 93.564 | AE97: 99.43 | AF97: 109.678 | AG97: 113.458 | AH97: 117.896 | AI97: 120.024 | AJ97: 120.024 | AK97: 128.354 | AM97: 89 | AN97: 33.97 | AO97: 49.86 | AP97: 81.74 | AQ97: 87.8 | AR97: 93.34 | AS97: 100.32 | AT97: 104.18 | AV97: 89 | AW97: 33.1425 | AX97: 48.6405 | AY97: 79.75 | AZ97: 85.6625 | BA97: 91.0625 | BB97: 97.875 | BC97: 101.6375 | BE97: 89 | BF97: 35.47 | BG97: 51.36 | BH97: 83.24 | BI97: 89.3 | BJ97: 94.84 | BK97: 101.82 | BL97: 105.68
A98: 90 | B98: 39.34 | C98: 57.274 | D98: 93.548 | E98: 99.008 | F98: 108.192 | G98: 113.176 | H98: 117.628 | I98: 118.538 | J98: 118.538 | K98: 128.506 | M98: 90 | N98: 39.34 | O98: 57.274 | P98: 93.548 | Q98: 99.008 | R98: 108.192 | S98: 113.176 | T98: 117.628 | U98: 118.538 | V98: 118.538 | W98: 128.506 | AA98: 90 | AB98: 40.84 | AC98: 58.774 | AD98: 95.048 | AE98: 100.508 | AF98: 109.692 | AG98: 114.676 | AH98: 119.128 | AI98: 120.038 | AJ98: 120.038 | AK98: 130.006 | AM98: 90 | AN98: 34.51 | AO98: 50.62 | AP98: 83.41 | AQ98: 88.73 | AR98: 95.02 | AS98: 101.44 | AT98: 105.46 | AV98: 90 | AW98: 33.669 | AX98: 49.383 | AY98: 81.375 | AZ98: 86.5625 | BA98: 92.7 | BB98: 98.9625 | BC98: 102.8875 | BE98: 90 | BF98: 36.01 | BG98: 52.12 | BH98: 84.91 | BI98: 90.23 | BJ98: 96.52 | BK98: 102.94 | BL98: 106.96
A99: 91 | B99: 41.608 | C99: 59.738 | D99: 94.808 | E99: 100.254 | F99: 110.558 | G99: 114.492 | H99: 118.93 | I99: 121.548 | J99: 121.548 | K99: 130.928 | M99: 91 | N99: 41.608 | O99: 59.738 | P99: 94.808 | Q99: 100.254 | R99: 110.558 | S99: 114.492 | T99: 118.93 | U99: 121.548 | V99: 121.548 | W99: 130.928 | AA99: 91 | AB99: 43.108 | AC99: 61.238 | AD99: 96.308 | AE99: 101.754 | AF99: 112.058 | AG99: 115.992 | AH99: 120.43 | AI99: 123.048 | AJ99: 123.048 | AK99: 132.428 | AM99: 91 | AN99: 34.51 | AO99: 51.31 | AP99: 84.75 | AQ99: 89.71 | AR99: 96.07 | AS99: 102.55 | AT99: 106.57 | AV99: 91 | AW99: 33.669 | AX99: 50.058 | AY99: 82.6875 | AZ99: 87.525 | BA99: 93.725 | BB99: 100.05 | BC99: 103.975 | BE99: 91 | BF99: 36.01 | BG99: 52.81 | BH99: 86.25 | BI99: 91.21 | BJ99: 97.57 | BK99: 104.05 | BL99: 108.07
A100: 92 | B100: 41.636 | C100: 59.752 | D100: 96.054 | E100: 101.626 | F100: 110.586 | G100: 116.438 | H100: 120.624 | I100: 122.892 | J100: 122.892 | K100: 132.104 | M100: 92 | N100: 41.636 | O100: 59.752 | P100: 96.054 | Q100: 101.626 | R100: 110.586 | S100: 116.438 | T100: 120.624 | U100: 122.892 | V100: 122.892 | W100: 132.104 | AA100: 92 | AB100: 43.136 | AC100: 61.252 | AD100: 97.554 | AE100: 103.126 | AF100: 112.086 | AG100: 117.938 | AH100: 122.124 | AI100: 124.392 | AJ100: 124.392 | AK100: 133.604 | AM100: 92 | AN100: 35.2 | AO100: 52.08 | AP100: 85.91 | AQ100: 90.84 | AR100: 97.11 | AS100: 103.74 | AT100: 107.75 | AV100: 92 | AW100: 34.344 | AX100: 50.814 | AY100: 83.8125 | AZ100: 88.625 | BA100: 94.7375 | BB100: 101.2125 | BC100: 105.125 | BE100: 92 | BF100: 36.7 | BG100: 53.58 | BH100: 87.41 | BI100: 92.34 | BJ100: 98.61 | BK100: 105.24 | BL100: 109.25
A101: 93 | B101: 41.65 | C101: 59.948 | D101: 97.202 | E101: 102.872 | F101: 110.6 | G101: 117.712 | H101: 121.59 | I101: 124.208 | J101: 124.208 | K101: 132.118 | M101: 93 | N101: 41.65 | O101: 59.948 | P101: 97.202 | Q101: 102.872 | R101: 110.6 | S101: 117.712 | T101: 121.59 | U101: 124.208 | V101: 124.208 | W101: 132.118 | AA101: 93 | AB101: 43.15 | AC101: 61.448 | AD101: 98.702 | AE101: 104.372 | AF101: 112.1 | AG101: 119.212 | AH101: 123.09 | AI101: 125.708 | AJ101: 125.708 | AK101: 133.618 | AM101: 93 | AN101: 35.73 | AO101: 52.68 | AP101: 87.04 | AQ101: 92.08 | AR101: 98.27 | AS101: 104.86 | AT101: 108.97 | AV101: 93 | AW101: 34.857 | AX101: 51.3945 | AY101: 84.9125 | AZ101: 89.8375 | BA101: 95.875 | BB101: 102.3 | BC101: 106.3125 | BE101: 93 | BF101: 37.23 | BG101: 54.18 | BH101: 88.54 | BI101: 93.58 | BJ101: 99.77 | BK101: 106.36 | BL101: 110.47
A102: 94 | B102: 41.664 | C102: 60.55 | D102: 98.392 | E102: 104.034 | F102: 110.866 | G102: 118.286 | H102: 122.822 | I102: 125.468 | J102: 125.468 | K102: 135.478 | M102: 94 | N102: 41.664 | O102: 60.55 | P102: 98.392 | Q102: 104.034 | R102: 110.866 | S102: 118.286 | T102: 122.822 | U102: 125.468 | V102: 125.468 | W102: 135.478 | AA102: 94 | AB102: 43.164 | AC102: 62.05 | AD102: 99.892 | AE102: 105.534 | AF102: 112.366 | AG102: 119.786 | AH102: 124.322 | AI102: 126.968 | AJ102: 126.968 | AK102: 136.978 | AM102: 94 | AN102: 36.17 | AO102: 53.3 | AP102: 88.07 | AQ102: 93.21 | AR102: 99.39 | AS102: 105.95 | AT102: 110.17 | AV102: 94 | AW102: 35.289 | AX102: 52.002 | AY102: 85.925 | AZ102: 90.9375 | BA102: 96.9625 | BB102: 103.3625 | BC102: 107.4875 | BE102: 94 | BF102: 37.67 | BG102: 54.8 | BH102: 89.57 | BI102: 94.71 | BJ102: 100.89 | BK102: 107.45 | BL102: 111.67
A103: 95 | B103: 41.664 | C103: 60.564 | D103: 99.302 | E103: 105.182 | F103: 112.126 | G103: 119.434 | H103: 124.208 | I103: 125.482 | J103: 125.482 | K103: 135.492 | M103: 95 | N103: 41.664 | O103: 60.564 | P103: 99.302 | Q103: 105.182 | R103: 112.126 | S103: 119.434 | T103: 124.208 | U103: 125.482 | V103: 125.482 | W103: 135.492 | AA103: 95 | AB103: 43.164 | AC103: 62.064 | AD103: 100.802 | AE103: 106.682 | AF103: 113.626 | AG103: 120.934 | AH103: 125.708 | AI103: 126.982 | AJ103: 126.982 | AK103: 136.992 | AM103: 95 | AN103: 36.17 | AO103: 53.87 | AP103: 89.15 | AQ103: 94.26 | AR103: 100.45 | AS103: 107.18 | AT103: 111.29 | AV103: 95 | AW103: 35.289 | AX103: 52.5555 | AY103: 86.975 | AZ103: 91.9625 | BA103: 98 | BB103: 104.5625 | BC103: 108.575 | BE103: 95 | BF103: 37.67 | BG103: 55.37 | BH103: 90.65 | BI103: 95.76 | BJ103: 101.95 | BK103: 108.68 | BL103: 112.79
A104: 96 | B104: 44.1 | C104: 62.944 | D104: 100.38 | E104: 106.33 | F104: 113.372 | G104: 120.75 | H104: 125.454 | I104: 125.496 | J104: 125.496 | K104: 135.506 | M104: 96 | N104: 44.1 | O104: 62.944 | P104: 100.38 | Q104: 106.33 | R104: 113.372 | S104: 120.75 | T104: 125.454 | U104: 125.496 | V104: 125.496 | W104: 135.506 | AA104: 96 | AB104: 45.6 | AC104: 64.444 | AD104: 101.88 | AE104: 107.83 | AF104: 114.872 | AG104: 122.25 | AH104: 126.954 | AI104: 126.996 | AJ104: 126.996 | AK104: 137.006 | AM104: 96 | AN104: 36.19 | AO104: 54.49 | AP104: 89.97 | AQ104: 95.3 | AR104: 101.59 | AS104: 108.21 | AT104: 112.55 | AV104: 96 | AW104: 35.3025 | AX104: 53.163 | AY104: 87.775 | AZ104: 92.975 | BA104: 99.1125 | BB104: 105.575 | BC104: 109.8 | BE104: 96 | BF104: =AN104+1.5 -> 37.69 | BG104: 55.99 | BH104: 91.47 | BI104: 96.8 | BJ104: 103.09 | BK104: 109.71 | BL104: 114.05
A105: 97 | B105: 44.492 | C105: 63.028 | D105: 101.402 | E105: 107.618 | F105: 116.704 | G105: 122.808 | H105: 127.624 | I105: 128.31 | J105: 128.31 | K105: 135.52 | M105: 97 | N105: 44.492 | O105: 63.028 | P105: 101.402 | Q105: 107.618 | R105: 116.704 | S105: 122.808 | T105: 127.624 | U105: 128.31 | V105: 128.31 | W105: 135.52 | AA105: 97 | AB105: 45.992 | AC105: 64.528 | AD105: 102.902 | AE105: 109.118 | AF105: 118.204 | AG105: 124.308 | AH105: 129.124 | AI105: 129.81 | AJ105: 129.81 | AK105: 137.02 | AM105: 97 | AN105: 37.67 | AO105: 55.09 | AP105: 90.96 | AQ105: 96.34 | AR105: 102.72 | AS105: 109.41 | AT105: 113.67 | AV105: 97 | AW105: 36.747 | AX105: 53.7435 | AY105: 88.7375 | AZ105: 93.9875 | BA105: 100.2125 | BB105: 106.7375 | BC105: 110.9 | BE105: 97 | BF105: 39.17 | BG105: 56.59 | BH105: 92.46 | BI105: 97.84 | BJ105: 104.22 | BK105: 110.91 | BL105: 115.17
A106: 98 | B106: 44.506 | C106: 63.714 | D106: 102.466 | E106: 107.632 | F106: 116.718 | G106: 123.284 | H106: 128.128 | I106: 128.436 | J106: 128.436 | K106: 141.092 | M106: 98 | N106: 44.506 | O106: 63.714 | P106: 102.466 | Q106: 107.632 | R106: 116.718 | S106: 123.284 | T106: 128.128 | U106: 128.436 | V106: 128.436 | W106: 141.092 | AA106: 98 | AB106: 46.006 | AC106: 65.214 | AD106: 103.966 | AE106: 109.132 | AF106: 118.218 | AG106: 124.784 | AH106: 129.628 | AI106: 129.936 | AJ106: 129.936 | AK106: 142.592 | AM106: 98 | AN106: 37.96 | AO106: 55.7 | AP106: 91.88 | AQ106: 97.5 | AR106: 103.76 | AS106: 110.6 | AT106: 114.86 | AV106: 98 | AW106: 37.0305 | AX106: 54.3375 | AY106: 89.6375 | AZ106: 95.125 | BA106: 101.225 | BB106: 107.9 | BC106: 112.0625 | BE106: 98 | BF106: 39.46 | BG106: 57.2 | BH106: 93.38 | BI106: 99 | BJ106: 105.26 | BK106: 112.1 | BL106: 116.36
A107: 99 | B107: 45.43 | C107: 63.77 | D107: 103.306 | E107: 109.914 | F107: 116.928 | G107: 124.6 | H107: 129.444 | I107: 129.85 | J107: 129.85 | K107: 143.906 | M107: 99 | N107: 45.43 | O107: 63.77 | P107: 103.306 | Q107: 109.914 | R107: 116.928 | S107: 124.6 | T107: 129.444 | U107: 129.85 | V107: 129.85 | W107: 143.906 | AA107: 99 | AB107: 46.93 | AC107: 65.27 | AD107: 104.806 | AE107: 111.414 | AF107: 118.428 | AG107: 126.1 | AH107: 130.944 | AI107: 131.35 | AJ107: 131.35 | AK107: 145.406 | AM107: 99 | AN107: 37.97 | AO107: 56.29 | AP107: 92.84 | AQ107: 97.52 | AR107: 104.91 | AS107: 111.7 | AT107: 116.09 | AV107: 99 | AW107: 37.044 | AX107: 54.918 | AY107: 90.575 | AZ107: 95.1375 | BA107: 102.35 | BB107: 108.975 | BC107: 113.2625 | BE107: 99 | BF107: 39.47 | BG107: 57.79 | BH107: 94.34 | BI107: 99.02 | BJ107: 106.41 | BK107: 113.2 | BL107: 117.59
A108: 100 | B108: 45.808 | C108: 65.016 | D108: 103.992 | E108: 111.076 | F108: 121.072 | G108: 126.084 | H108: 130.816 | I108: 132.916 | J108: 132.916 | K108: 143.92 | M108: 100 | N108: 45.808 | O108: 65.016 | P108: 103.992 | Q108: 111.076 | R108: 121.072 | S108: 126.084 | T108: 130.816 | U108: 132.916 | V108: 132.916 | W108: 143.92 | AA108: 100 | AB108: 47.308 | AC108: 66.516 | AD108: 105.492 | AE108: 112.576 | AF108: 122.572 | AG108: 127.584 | AH108: 132.316 | AI108: 134.416 | AJ108: 134.416 | AK108: 145.42 | AM108: 100 | AN108: 37.98 | AO108: 56.8 | AP108: 93.61 | AQ108: 99.59 | AR108: 105.95 | AS108: 112.89 | AT108: 117.29 | AV108: 100 | AW108: 37.0575 | AX108: 55.4175 | AY108: 91.325 | AZ108: 97.1625 | BA108: 103.3625 | BB108: 110.1375 | BC108: 114.425 | BE108: 100 | BF108: 39.48 | BG108: 58.3 | BH108: 95.11 | BI108: 101.09 | BJ108: 107.45 | BK108: 114.39 | BL108: 118.79
A109: 101 | B109: 46.256 | C109: 65.66 | D109: 105.042 | E109: 112.182 | F109: 122.29 | G109: 127.344 | H109: 132.118 | I109: 134.246 | J109: 134.246 | K109: 145.376 | M109: 101 | N109: 46.256 | O109: 65.66 | P109: 105.042 | Q109: 112.182 | R109: 122.29 | S109: 127.344 | T109: 132.118 | U109: 134.246 | V109: 134.246 | W109: 145.376 | AA109: 101 | AB109: 47.756 | AC109: 67.16 | AD109: 106.542 | AE109: 113.682 | AF109: 123.79 | AG109: 128.844 | AH109: 133.618 | AI109: 135.746 | AJ109: 135.746 | AK109: 146.876 | AM109: 101 | AN109: 38 | AO109: 56.86 | AP109: 94.22 | AQ109: 100.37 | AR109: 106.28 | AS109: 113.42 | AT109: 117.59 | AV109: 101 | AW109: 37.071 | AX109: 55.4715 | AY109: 91.925 | AZ109: 97.925 | BA109: 103.6875 | BB109: 110.65 | BC109: 114.725 | BE109: 101 | BF109: 39.5 | BG109: 58.36 | BH109: 95.72 | BI109: 101.87 | BJ109: 107.78 | BK109: 114.92 | BL109: 119.09
A110: 102 | B110: 46.718 | C110: 66.318 | D110: 106.064 | E110: 113.302 | F110: 123.494 | G110: 128.604 | H110: 133.434 | I110: 135.576 | J110: 135.576 | K110: 146.832 | M110: 102 | N110: 46.718 | O110: 66.318 | P110: 106.064 | Q110: 113.302 | R110: 123.494 | S110: 128.604 | T110: 133.434 | U110: 135.576 | V110: 135.576 | W110: 146.832 | AA110: 102 | AB110: 48.218 | AC110: 67.818 | AD110: 107.564 | AE110: 114.802 | AF110: 124.994 | AG110: 130.104 | AH110: 134.934 | AI110: 137.076 | AJ110: 137.076 | AK110: 148.332 | AM110: 102 | AN110: 38.37 | AO110: 57.43 | AP110: 95.17 | AQ110: 101.37 | AR110: 107.34 | AS110: 114.54 | AT110: 118.77 | AV110: 102 | AW110: 37.4355 | AX110: 56.025 | AY110: 92.85 | AZ110: 98.9 | BA110: 104.725 | BB110: 111.75 | BC110: 115.875 | BE110: 102 | BF110: 39.87 | BG110: 58.93 | BH110: 96.67 | BI110: 102.87 | BJ110: 108.84 | BK110: 116.04 | BL110: 120.27
A111: 103 | B111: 47.18 | C111: 66.962 | D111: 107.114 | E111: 114.408 | F111: 124.712 | G111: 129.864 | H111: 134.736 | I111: 136.906 | J111: 136.906 | K111: 148.288 | M111: 103 | N111: 47.18 | O111: 66.962 | P111: 107.114 | Q111: 114.408 | R111: 124.712 | S111: 129.864 | T111: 134.736 | U111: 136.906 | V111: 136.906 | W111: 148.288 | AA111: 103 | AB111: 48.68 | AC111: 68.462 | AD111: 108.614 | AE111: 115.908 | AF111: 126.212 | AG111: 131.364 | AH111: 136.236 | AI111: 138.406 | AJ111: 138.406 | AK111: 149.788 | AM111: 103 | AN111: 38.76 | AO111: 57.99 | AP111: 96.11 | AQ111: 102.38 | AR111: 108.41 | AS111: 115.68 | AT111: 119.95 | AV111: 103 | AW111: 37.8135 | AX111: 56.5785 | AY111: 93.7625 | AZ111: 99.8875 | BA111: 105.7625 | BB111: 112.8625 | BC111: 117.025 | BE111: 103 | BF111: 40.26 | BG111: 59.49 | BH111: 97.61 | BI111: 103.88 | BJ111: 109.91 | BK111: 117.18 | BL111: 121.45
A112: 104 | B112: 47.628 | C112: 67.62 | D112: 108.15 | E112: 115.514 | F112: 125.916 | G112: 131.124 | H112: 136.052 | I112: 138.236 | J112: 138.236 | K112: 149.744 | M112: 104 | N112: 47.628 | O112: 67.62 | P112: 108.15 | Q112: 115.514 | R112: 125.916 | S112: 131.124 | T112: 136.052 | U112: 138.236 | V112: 138.236 | W112: 149.744 | AA112: 104 | AB112: 49.128 | AC112: 69.12 | AD112: 109.65 | AE112: 117.014 | AF112: 127.416 | AG112: 132.624 | AH112: 137.552 | AI112: 139.736 | AJ112: 139.736 | AK112: 151.244 | AM112: 104 | AN112: 39.13 | AO112: 58.56 | AP112: 97.05 | AQ112: 103.38 | AR112: 109.47 | AS112: 116.81 | AT112: 121.12 | AV112: 104 | AW112: 38.178 | AX112: 57.132 | AY112: 94.6875 | AZ112: 100.8625 | BA112: 106.8 | BB112: 113.9625 | BC112: 118.1625 | BE112: 104 | BF112: 40.63 | BG112: 60.06 | BH112: 98.55 | BI112: 104.88 | BJ112: 110.97 | BK112: 118.31 | BL112: 122.62
A113: 105 | B113: 48.09 | C113: 68.264 | D113: 109.2 | E113: 116.634 | F113: 127.134 | G113: 132.384 | H113: 137.354 | I113: 139.566 | J113: 139.566 | K113: 151.2 | M113: 105 | N113: 48.09 | O113: 68.264 | P113: 109.2 | Q113: 116.634 | R113: 127.134 | S113: 132.384 | T113: 137.354 | U113: 139.566 | V113: 139.566 | W113: 151.2 | AA113: 105 | AB113: 49.59 | AC113: 69.764 | AD113: 110.7 | AE113: 118.134 | AF113: 128.634 | AG113: 133.884 | AH113: 138.854 | AI113: 141.066 | AJ113: 141.066 | AK113: 152.7 | AM113: 105 | AN113: 39.52 | AO113: 59.14 | AP113: 97.99 | AQ113: 104.38 | AR113: 110.53 | AS113: 117.95 | AT113: 122.3 | AV113: 105 | AW113: 38.556 | AX113: 57.699 | AY113: 95.6 | AZ113: 101.8375 | BA113: 107.8375 | BB113: 115.075 | BC113: 119.3125 | BE113: 105 | BF113: 41.02 | BG113: 60.64 | BH113: 99.49 | BI113: 105.88 | BJ113: 112.03 | BK113: 119.45 | BL113: 123.8
A114: 106 | B114: 48.552 | C114: 68.922 | D114: 110.222 | E114: 117.74 | F114: 128.338 | G114: 133.644 | H114: 138.67 | I114: 140.896 | J114: 140.896 | K114: 152.656 | M114: 106 | N114: 48.552 | O114: 68.922 | P114: 110.222 | Q114: 117.74 | R114: 128.338 | S114: 133.644 | T114: 138.67 | U114: 140.896 | V114: 140.896 | W114: 152.656 | AA114: 106 | AB114: 50.052 | AC114: 70.422 | AD114: 111.722 | AE114: 119.24 | AF114: 129.838 | AG114: 135.144 | AH114: 140.17 | AI114: 142.396 | AJ114: 142.396 | AK114: 154.156 | AM114: 106 | AN114: 39.89 | AO114: 59.71 | AP114: 98.94 | AQ114: 105.4 | AR114: 111.6 | AS114: 119.08 | AT114: 123.47 | AV114: 106 | AW114: 38.9205 | AX114: 58.2525 | AY114: 96.525 | AZ114: 102.825 | BA114: 108.875 | BB114: 116.175 | BC114: 120.4625 | BE114: 106 | BF114: 41.39 | BG114: 61.21 | BH114: 100.44 | BI114: 106.9 | BJ114: 113.1 | BK114: 120.58 | BL114: 124.97
A115: 107 | B115: 49.014 | C115: 69.566 | D115: 111.272 | E115: 118.846 | F115: 129.556 | G115: 134.904 | H115: 139.972 | I115: 142.226 | J115: 142.226 | K115: 154.112 | M115: 107 | N115: 49.014 | O115: 69.566 | P115: 111.272 | Q115: 118.846 | R115: 129.556 | S115: 134.904 | T115: 139.972 | U115: 142.226 | V115: 142.226 | W115: 154.112 | AA115: 107 | AB115: 50.514 | AC115: 71.066 | AD115: 112.772 | AE115: 120.346 | AF115: 131.056 | AG115: 136.404 | AH115: 141.472 | AI115: 143.726 | AJ115: 143.726 | AK115: 155.612 | AM115: 107 | AN115: 40.28 | AO115: 60.28 | AP115: 99.87 | AQ115: 106.4 | AR115: 112.65 | AS115: 120.22 | AT115: 124.65 | AV115: 107 | AW115: 39.2985 | AX115: 58.806 | AY115: 97.4375 | AZ115: 103.8 | BA115: 109.9 | BB115: 117.2875 | BC115: 121.6125 | BE115: 107 | BF115: 41.78 | BG115: 61.78 | BH115: 101.37 | BI115: 107.9 | BJ115: 114.15 | BK115: 121.72 | BL115: 126.15
A116: 108 | B116: 49.462 | C116: 70.21 | D116: 112.308 | E116: 119.966 | F116: 130.76 | G116: 136.164 | H116: 141.274 | I116: 143.556 | J116: 143.556 | K116: 155.568 | M116: 108 | N116: 49.462 | O116: 70.21 | P116: 112.308 | Q116: 119.966 | R116: 130.76 | S116: 136.164 | T116: 141.274 | U116: 143.556 | V116: 143.556 | W116: 155.568 | AA116: 108 | AB116: 50.962 | AC116: 71.71 | AD116: 113.808 | AE116: 121.466 | AF116: 132.26 | AG116: 137.664 | AH116: 142.774 | AI116: 145.056 | AJ116: 145.056 | AK116: 157.068 | AM116: 108 | AN116: 40.65 | AO116: 60.84 | AP116: 100.82 | AQ116: 107.39 | AR116: 113.71 | AS116: 121.35 | AT116: 125.82 | AV116: 108 | AW116: 39.663 | AX116: 59.3595 | AY116: 98.3625 | AZ116: 104.775 | BA116: 110.9375 | BB116: 118.3875 | BC116: 122.75 | BE116: 108 | BF116: 42.15 | BG116: 62.34 | BH116: 102.32 | BI116: 108.89 | BJ116: 115.21 | BK116: 122.85 | BL116: 127.32
A117: 109 | B117: 49.924 | C117: 70.868 | D117: 113.358 | E117: 121.072 | F117: 131.978 | G117: 137.424 | H117: 142.59 | I117: 144.886 | J117: 144.886 | K117: 157.024 | M117: 109 | N117: 49.924 | O117: 70.868 | P117: 113.358 | Q117: 121.072 | R117: 131.978 | S117: 137.424 | T117: 142.59 | U117: 144.886 | V117: 144.886 | W117: 157.024 | AA117: 109 | AB117: 51.424 | AC117: 72.368 | AD117: 114.858 | AE117: 122.572 | AF117: 133.478 | AG117: 138.924 | AH117: 144.09 | AI117: 146.386 | AJ117: 146.386 | AK117: 158.524 | AM117: 109 | AN117: 41.04 | AO117: 61.41 | AP117: 101.76 | AQ117: 108.41 | AR117: 114.77 | AS117: 122.49 | AT117: 127 | AV117: 109 | AW117: 40.041 | AX117: 59.913 | AY117: 99.275 | AZ117: 105.7625 | BA117: 111.975 | BB117: 119.5 | BC117: 123.9 | BE117: 109 | BF117: 42.54 | BG117: 62.91 | BH117: 103.26 | BI117: 109.91 | BJ117: 116.27 | BK117: 123.99 | BL117: 128.5
A118: 110 | B118: 50.386 | C118: 71.512 | D118: 114.38 | E118: 122.178 | F118: 133.182 | G118: 138.684 | H118: 143.892 | I118: 146.216 | J118: 146.216 | K118: 158.48 | M118: 110 | N118: 50.386 | O118: 71.512 | P118: 114.38 | Q118: 122.178 | R118: 133.182 | S118: 138.684 | T118: 143.892 | U118: 146.216 | V118: 146.216 | W118: 158.48 | AA118: 110 | AB118: 51.886 | AC118: 73.012 | AD118: 115.88 | AE118: 123.678 | AF118: 134.682 | AG118: 140.184 | AH118: 145.392 | AI118: 147.716 | AJ118: 147.716 | AK118: 159.98 | AM118: 110 | AN118: 41.42 | AO118: 61.98 | AP118: 102.71 | AQ118: 109.41 | AR118: 115.84 | AS118: 123.62 | AT118: 128.18 | AV118: 110 | AW118: 40.4055 | AX118: 60.4665 | AY118: 100.2 | AZ118: 106.7375 | BA118: 113.0125 | BB118: 120.6 | BC118: 125.05 | BE118: 110 | BF118: 42.92 | BG118: 63.48 | BH118: 104.21 | BI118: 110.91 | BJ118: 117.34 | BK118: 125.12 | BL118: 129.68
A119: 111 | B119: 50.834 | C119: 72.17 | D119: 115.43 | E119: 123.298 | F119: 134.4 | G119: 139.944 | H119: 145.208 | I119: 147.546 | J119: 147.546 | K119: 159.936 | M119: 111 | N119: 50.834 | O119: 72.17 | P119: 115.43 | Q119: 123.298 | R119: 134.4 | S119: 139.944 | T119: 145.208 | U119: 147.546 | V119: 147.546 | W119: 159.936 | AA119: 111 | AB119: 52.334 | AC119: 73.67 | AD119: 116.93 | AE119: 124.798 | AF119: 135.9 | AG119: 141.444 | AH119: 146.708 | AI119: 149.046 | AJ119: 149.046 | AK119: 161.436 | AM119: 111 | AN119: 41.8 | AO119: 62.55 | AP119: 103.64 | AQ119: 110.41 | AR119: 116.9 | AS119: 124.76 | AT119: 129.36 | AV119: 111 | AW119: 40.7835 | AX119: 61.02 | AY119: 101.1125 | AZ119: 107.7125 | BA119: 114.05 | BB119: 121.7125 | BC119: 126.2 | BE119: 111 | BF119: 43.3 | BG119: 64.05 | BH119: 105.14 | BI119: 111.91 | BJ119: 118.4 | BK119: 126.26 | BL119: 130.86
A120: 112 | B120: 51.296 | C120: 72.814 | D120: 116.466 | E120: 124.404 | F120: 135.604 | G120: 141.204 | H120: 146.51 | I120: 148.876 | J120: 148.876 | K120: 161.392 | M120: 112 | N120: 51.296 | O120: 72.814 | P120: 116.466 | Q120: 124.404 | R120: 135.604 | S120: 141.204 | T120: 146.51 | U120: 148.876 | V120: 148.876 | W120: 161.392 | AA120: 112 | AB120: 52.796 | AC120: 74.314 | AD120: 117.966 | AE120: 125.904 | AF120: 137.104 | AG120: 142.704 | AH120: 148.01 | AI120: 150.376 | AJ120: 150.376 | AK120: 162.892 | AM120: 112 | AN120: 42.18 | AO120: 63.11 | AP120: 104.59 | AQ120: 111.42 | AR120: 117.96 | AS120: 125.88 | AT120: 130.53 | AV120: 112 | AW120: 41.148 | AX120: 61.5735 | AY120: 102.0375 | AZ120: 108.7 | BA120: 115.0875 | BB120: 122.8125 | BC120: 127.35 | BE120: 112 | BF120: 43.68 | BG120: 64.61 | BH120: 106.09 | BI120: 112.92 | BJ120: 119.46 | BK120: 127.38 | BL120: 132.03
A121: 113 | B121: 51.758 | C121: 73.472 | D121: 117.516 | E121: 125.51 | F121: 136.822 | G121: 142.464 | H121: 147.826 | I121: 150.206 | J121: 150.206 | K121: 162.848 | M121: 113 | N121: 51.758 | O121: 73.472 | P121: 117.516 | Q121: 125.51 | R121: 136.822 | S121: 142.464 | T121: 147.826 | U121: 150.206 | V121: 150.206 | W121: 162.848 | AA121: 113 | AB121: 53.258 | AC121: 74.972 | AD121: 119.016 | AE121: 127.01 | AF121: 138.322 | AG121: 143.964 | AH121: 149.326 | AI121: 151.706 | AJ121: 151.706 | AK121: 164.348 | AM121: 113 | AN121: 42.55 | AO121: 63.68 | AP121: 105.52 | AQ121: 112.42 | AR121: 119.03 | AS121: 127.02 | AT121: 131.7 | AV121: 113 | AW121: 41.5125 | AX121: 62.127 | AY121: 102.95 | AZ121: 109.675 | BA121: 116.125 | BB121: 123.925 | BC121: 128.4875 | BE121: 113 | BF121: 44.05 | BG121: 65.18 | BH121: 107.02 | BI121: 113.92 | BJ121: 120.53 | BK121: 128.52 | BL121: 133.2
A122: 114 | B122: 52.22 | C122: 74.116 | D122: 118.552 | E122: 126.63 | F122: 138.026 | G122: 143.724 | H122: 149.128 | I122: 151.536 | J122: 151.536 | K122: 164.304 | M122: 114 | N122: 52.22 | O122: 74.116 | P122: 118.552 | Q122: 126.63 | R122: 138.026 | S122: 143.724 | T122: 149.128 | U122: 151.536 | V122: 151.536 | W122: 164.304 | AA122: 114 | AB122: 53.72 | AC122: 75.616 | AD122: 120.052 | AE122: 128.13 | AF122: 139.526 | AG122: 145.224 | AH122: 150.628 | AI122: 153.036 | AJ122: 153.036 | AK122: 165.804 | AM122: 114 | AN122: 42.94 | AO122: 64.25 | AP122: 106.47 | AQ122: 113.42 | AR122: 120.09 | AS122: 128.15 | AT122: 132.88 | AV122: 114 | AW122: 41.8905 | AX122: 62.6805 | AY122: 103.875 | AZ122: 110.65 | BA122: 117.1625 | BB122: 125.025 | BC122: 129.6375 | BE122: 114 | BF122: 44.44 | BG122: 65.75 | BH122: 107.97 | BI122: 114.92 | BJ122: 121.59 | BK122: 129.65 | BL122: 134.38
A123: 115 | B123: 52.668 | C123: 74.774 | D123: 119.588 | E123: 127.736 | F123: 139.244 | G123: 144.984 | H123: 150.444 | I123: 152.866 | J123: 152.866 | K123: 165.76 | M123: 115 | N123: 52.668 | O123: 74.774 | P123: 119.588 | Q123: 127.736 | R123: 139.244 | S123: 144.984 | T123: 150.444 | U123: 152.866 | V123: 152.866 | W123: 165.76 | AA123: 115 | AB123: 54.168 | AC123: 76.274 | AD123: 121.088 | AE123: 129.236 | AF123: 140.744 | AG123: 146.484 | AH123: 151.944 | AI123: 154.366 | AJ123: 154.366 | AK123: 167.26 | AM123: 115 | AN123: 43.31 | AO123: 64.81 | AP123: 107.42 | AQ123: 114.43 | AR123: 121.16 | AS123: 129.29 | AT123: 134.06 | AV123: 115 | AW123: 42.255 | AX123: 63.234 | AY123: 104.8 | AZ123: 111.6375 | BA123: 118.2 | BB123: 126.1375 | BC123: 130.7875 | BE123: 115 | BF123: 44.81 | BG123: 66.31 | BH123: 108.92 | BI123: 115.93 | BJ123: 122.66 | BK123: 130.79 | BL123: 135.56
A124: 116 | B124: 53.13 | C124: 75.418 | D124: 120.638 | E124: 128.842 | F124: 140.448 | G124: 146.244 | H124: 151.746 | I124: 154.182 | J124: 154.182 | K124: 167.216 | M124: 116 | N124: 53.13 | O124: 75.418 | P124: 120.638 | Q124: 128.842 | R124: 140.448 | S124: 146.244 | T124: 151.746 | U124: 154.182 | V124: 154.182 | W124: 167.216 | AA124: 116 | AB124: =B124+1.5 -> 54.63 | AC124: 76.918 | AD124: 122.138 | AE124: 130.342 | AF124: 141.948 | AG124: 147.744 | AH124: 153.246 | AI124: 155.682 | AJ124: 155.682 | AK124: 168.716 | AM124: 116 | AN124: 43.7 | AO124: 65.4 | AP124: 108.36 | AQ124: 115.43 | AR124: 122.22 | AS124: 130.42 | AT124: 135.24 | AV124: 116 | AW124: 42.633 | AX124: 63.801 | AY124: 105.7125 | AZ124: 112.6125 | BA124: 119.2375 | BB124: 127.2375 | BC124: 131.9375 | BE124: 116 | BF124: 45.2 | BG124: 66.9 | BH124: 109.86 | BI124: 116.93 | BJ124: 123.72 | BK124: 131.92 | BL124: 136.74
A125: 117 | B125: 53.592 | C125: 76.062 | D125: 121.66 | E125: 129.962 | F125: 141.666 | G125: 147.504 | H125: 153.048 | I125: 155.512 | J125: 155.512 | K125: 168.672 | M125: 117 | N125: 53.592 | O125: 76.062 | P125: 121.66 | Q125: 129.962 | R125: 141.666 | S125: 147.504 | T125: 153.048 | U125: 155.512 | V125: 155.512 | W125: 168.672 | AA125: 117 | AB125: 55.092 | AC125: 77.562 | AD125: 123.16 | AE125: 131.462 | AF125: 143.166 | AG125: 149.004 | AH125: 154.548 | AI125: 157.012 | AJ125: 157.012 | AK125: 170.172 | AM125: 117 | AN125: 44.07 | AO125: 65.96 | AP125: 109.3 | AQ125: 116.43 | AR125: 123.28 | AS125: 131.56 | AT125: 136.4 | AV125: 117 | AW125: 42.9975 | AX125: 64.3545 | AY125: 106.6375 | AZ125: 113.5875 | BA125: 120.275 | BB125: 128.35 | BC125: 133.075 | BE125: 117 | BF125: 45.57 | BG125: 67.46 | BH125: 110.8 | BI125: 117.93 | BJ125: 124.78 | BK125: 133.06 | BL125: 137.9
A126: 118 | B126: 54.04 | C126: 76.72 | D126: 122.71 | E126: 131.068 | F126: 142.87 | G126: 148.778 | H126: 154.364 | I126: 156.842 | J126: 156.842 | K126: 170.128 | M126: 118 | N126: 54.04 | O126: 76.72 | P126: 122.71 | Q126: 131.068 | R126: 142.87 | S126: 148.778 | T126: 154.364 | U126: 156.842 | V126: 156.842 | W126: 170.128 | AA126: 118 | AB126: 55.54 | AC126: 78.22 | AD126: 124.21 | AE126: 132.568 | AF126: 144.37 | AG126: 150.278 | AH126: 155.864 | AI126: 158.342 | AJ126: 158.342 | AK126: 171.628 | AM126: 118 | AN126: 44.46 | AO126: 66.53 | AP126: 110.24 | AQ126: 117.44 | AR126: 124.35 | AS126: 132.69 | AT126: 137.58 | AV126: 118 | AW126: 43.3755 | AX126: 64.908 | AY126: 107.55 | AZ126: 114.575 | BA126: 121.3125 | BB126: 129.45 | BC126: 134.225 | BE126: 118 | BF126: 45.96 | BG126: 68.03 | BH126: 111.74 | BI126: 118.94 | BJ126: 125.85 | BK126: 134.19 | BL126: 139.08
A127: 119 | B127: 54.502 | C127: 77.364 | D127: 123.746 | E127: 132.174 | F127: 144.088 | G127: 150.038 | H127: 155.666 | I127: 158.172 | J127: 158.172 | K127: 171.584 | M127: 119 | N127: 54.502 | O127: 77.364 | P127: 123.746 | Q127: 132.174 | R127: 144.088 | S127: 150.038 | T127: 155.666 | U127: 158.172 | V127: 158.172 | W127: 171.584 | AA127: 119 | AB127: 56.002 | AC127: 78.864 | AD127: 125.246 | AE127: 133.674 | AF127: 145.588 | AG127: 151.538 | AH127: 157.166 | AI127: 159.672 | AJ127: 159.672 | AK127: 173.084 | AM127: 119 | AN127: 44.83 | AO127: 67.1 | AP127: 111.19 | AQ127: 118.44 | AR127: 125.41 | AS127: 133.83 | AT127: 138.76 | AV127: 119 | AW127: 43.74 | AX127: 65.4615 | AY127: 108.475 | AZ127: 115.55 | BA127: 122.35 | BB127: 130.5625 | BC127: 135.375 | BE127: 119 | BF127: 46.33 | BG127: 68.6 | BH127: 112.69 | BI127: 119.94 | BJ127: 126.91 | BK127: 135.33 | BL127: 140.26
A128: 120 | B128: 54.964 | C128: 78.022 | D128: 124.796 | E128: 133.294 | F128: 145.292 | G128: 151.298 | H128: 156.982 | I128: 159.502 | J128: 159.502 | K128: 173.04 | M128: 120 | N128: 54.964 | O128: 78.022 | P128: 124.796 | Q128: 133.294 | R128: 145.292 | S128: 151.298 | T128: 156.982 | U128: 159.502 | V128: 159.502 | W128: 173.04 | AA128: 120 | AB128: 56.464 | AC128: 79.522 | AD128: 126.296 | AE128: 134.794 | AF128: 146.792 | AG128: 152.798 | AH128: 158.482 | AI128: 161.002 | AJ128: 161.002 | AK128: 174.54 | AM128: 120 | AN128: 45.22 | AO128: 67.67 | AP128: 112.12 | AQ128: 119.44 | AR128: 126.47 | AS128: 134.95 | AT128: 139.94 | AV128: 120 | AW128: 44.118 | AX128: 66.015 | AY128: 109.3875 | AZ128: 116.525 | BA128: 123.3875 | BB128: 131.6625 | BC128: 136.525 | BE128: 120 | BF128: 46.72 | BG128: 69.17 | BH128: 113.62 | BI128: 120.94 | BJ128: 127.97 | BK128: 136.45 | BL128: 141.44
A129: 121 | B129: 55.426 | C129: 78.666 | D129: 125.818 | E129: 134.4 | F129: 146.496 | G129: 152.558 | H129: 158.284 | I129: 160.832 | J129: 160.832 | K129: 174.496 | M129: 121 | N129: 55.426 | O129: 78.666 | P129: 125.818 | Q129: 134.4 | R129: 146.496 | S129: 152.558 | T129: 158.284 | U129: 160.832 | V129: 160.832 | W129: 174.496 | AA129: 121 | AB129: 56.926 | AC129: 80.166 | AD129: 127.318 | AE129: 135.9 | AF129: 147.996 | AG129: 154.058 | AH129: 159.784 | AI129: 162.332 | AJ129: 162.332 | AK129: 175.996 | AM129: 121 | AN129: 45.59 | AO129: 68.23 | AP129: 113.07 | AQ129: 120.45 | AR129: 127.54 | AS129: 136.09 | AT129: 141.12 | AV129: 121 | AW129: 44.4825 | AX129: 66.5685 | AY129: 110.3125 | AZ129: 117.5125 | BA129: 124.425 | BB129: 132.775 | BC129: 137.675 | BE129: 121 | BF129: 47.09 | BG129: 69.73 | BH129: 114.57 | BI129: 121.95 | BJ129: 129.04 | BK129: 137.59 | BL129: 142.62
A130: 122 | B130: 55.874 | C130: 79.324 | D130: 126.868 | E130: 135.506 | F130: 147.714 | G130: 153.818 | H130: 159.6 | I130: 162.162 | J130: 162.162 | K130: 175.952 | M130: 122 | N130: 55.874 | O130: 79.324 | P130: 126.868 | Q130: 135.506 | R130: 147.714 | S130: 153.818 | T130: 159.6 | U130: 162.162 | V130: 162.162 | W130: 175.952 | AA130: 122 | AB130: 57.374 | AC130: 80.824 | AD130: 128.368 | AE130: 137.006 | AF130: 149.214 | AG130: 155.318 | AH130: 161.1 | AI130: 163.662 | AJ130: 163.662 | AK130: 177.452 | AM130: 122 | AN130: 45.98 | AO130: 68.8 | AP130: 114.01 | AQ130: 121.45 | AR130: 128.6 | AS130: 137.22 | AT130: 142.28 | AV130: 122 | AW130: 44.8605 | AX130: 67.122 | AY130: 111.225 | AZ130: 118.4875 | BA130: 125.4625 | BB130: 133.875 | BC130: 138.8125 | BE130: 122 | BF130: 47.48 | BG130: 70.3 | BH130: 115.51 | BI130: 122.95 | BJ130: 130.1 | BK130: 138.72 | BL130: 143.78
A131: 123 | B131: 56.336 | C131: 79.968 | D131: 127.904 | E131: 136.626 | F131: 148.918 | G131: 155.078 | H131: 160.902 | I131: 163.492 | J131: 163.492 | K131: 177.408 | M131: 123 | N131: 56.336 | O131: 79.968 | P131: 127.904 | Q131: 136.626 | R131: 148.918 | S131: 155.078 | T131: 160.902 | U131: 163.492 | V131: 163.492 | W131: 177.408 | AA131: 123 | AB131: 57.836 | AC131: 81.468 | AD131: 129.404 | AE131: 138.126 | AF131: 150.418 | AG131: 156.578 | AH131: 162.402 | AI131: 164.992 | AJ131: 164.992 | AK131: 178.908 | AM131: 123 | AN131: 46.36 | AO131: 69.37 | AP131: 114.95 | AQ131: 122.45 | AR131: 129.66 | AS131: 138.36 | AT131: 143.46 | AV131: 123 | AW131: 45.225 | AX131: 67.6755 | AY131: 112.15 | AZ131: 119.4625 | BA131: 126.5 | BB131: 134.9875 | BC131: 139.9625 | BE131: 123 | BF131: 47.86 | BG131: 70.87 | BH131: 116.45 | BI131: 123.95 | BJ131: 131.16 | BK131: 139.86 | BL131: 144.96
A132: 124 | B132: 56.798 | C132: 80.612 | D132: 128.954 | E132: 137.732 | F132: 150.136 | G132: 156.338 | H132: 162.204 | I132: 164.822 | J132: 164.822 | K132: 178.864 | M132: 124 | N132: 56.798 | O132: 80.612 | P132: 128.954 | Q132: 137.732 | R132: 150.136 | S132: 156.338 | T132: 162.204 | U132: 164.822 | V132: 164.822 | W132: 178.864 | AA132: 124 | AB132: 58.298 | AC132: 82.112 | AD132: 130.454 | AE132: 139.232 | AF132: 151.636 | AG132: 157.838 | AH132: 163.704 | AI132: 166.322 | AJ132: 166.322 | AK132: 180.364 | AM132: 124 | AN132: 46.73 | AO132: 69.93 | AP132: 115.89 | AQ132: 123.46 | AR132: 130.73 | AS132: 139.49 | AT132: 144.64 | AV132: 124 | AW132: 45.5895 | AX132: 68.229 | AY132: 113.0625 | AZ132: 120.45 | BA132: 127.5375 | BB132: 136.0875 | BC132: 141.1125 | BE132: 124 | BF132: 48.23 | BG132: 71.43 | BH132: 117.39 | BI132: 124.96 | BJ132: 132.23 | BK132: 140.99 | BL132: 146.14
A133: 125 | B133: 57.246 | C133: 81.27 | D133: 129.976 | E133: 138.838 | F133: 151.34 | G133: 157.598 | H133: 163.52 | I133: 166.152 | J133: 166.152 | K133: 180.32 | M133: 125 | N133: 57.246 | O133: 81.27 | P133: 129.976 | Q133: 138.838 | R133: 151.34 | S133: 157.598 | T133: 163.52 | U133: 166.152 | V133: 166.152 | W133: 180.32 | AA133: 125 | AB133: 58.746 | AC133: 82.77 | AD133: 131.476 | AE133: 140.338 | AF133: 152.84 | AG133: 159.098 | AH133: 165.02 | AI133: 167.652 | AJ133: 167.652 | AK133: 181.82 | AM133: 125 | AN133: 47.12 | AO133: 70.5 | AP133: 116.84 | AQ133: 124.46 | AR133: 131.78 | AS133: 140.63 | AT133: 145.82 | AV133: 125 | AW133: 45.9675 | AX133: 68.7825 | AY133: 113.9875 | AZ133: 121.425 | BA133: 128.5625 | BB133: 137.2 | BC133: 142.2625 | BE133: 125 | BF133: 48.62 | BG133: 72 | BH133: 118.34 | BI133: 125.96 | BJ133: 133.28 | BK133: 142.13 | BL133: 147.32
A134: 126 | B134: 57.708 | C134: 81.914 | D134: 131.026 | E134: 139.958 | F134: 152.558 | G134: 158.858 | H134: 164.822 | I134: 167.482 | J134: 167.482 | K134: 181.776 | M134: 126 | N134: 57.708 | O134: 81.914 | P134: 131.026 | Q134: 139.958 | R134: 152.558 | S134: 158.858 | T134: 164.822 | U134: 167.482 | V134: 167.482 | W134: 181.776 | AA134: 126 | AB134: 59.208 | AC134: 83.414 | AD134: 132.526 | AE134: 141.458 | AF134: 154.058 | AG134: 160.358 | AH134: 166.322 | AI134: 168.982 | AJ134: 168.982 | AK134: 183.276 | AM134: 126 | AN134: 47.49 | AO134: 71.07 | AP134: 117.77 | AQ134: 125.46 | AR134: 132.84 | AS134: 141.76 | AT134: 146.99 | AV134: 126 | AW134: 46.332 | AX134: 69.336 | AY134: 114.9 | AZ134: 122.4 | BA134: 129.6 | BB134: 138.3 | BC134: 143.4 | BE134: 126 | BF134: 48.99 | BG134: 72.57 | BH134: 119.27 | BI134: 126.96 | BJ134: 134.34 | BK134: 143.26 | BL134: 148.49
A135: 127 | B135: 58.17 | C135: 82.572 | D135: 132.062 | E135: 141.064 | F135: 153.762 | G135: 160.118 | H135: 166.138 | I135: 168.812 | J135: 168.812 | K135: 183.232 | M135: 127 | N135: 58.17 | O135: 82.572 | P135: 132.062 | Q135: 141.064 | R135: 153.762 | S135: 160.118 | T135: 166.138 | U135: 168.812 | V135: 168.812 | W135: 183.232 | AA135: 127 | AB135: 59.67 | AC135: 84.072 | AD135: 133.562 | AE135: 142.564 | AF135: 155.262 | AG135: 161.618 | AH135: 167.638 | AI135: 170.312 | AJ135: 170.312 | AK135: 184.732 | AM135: 127 | AN135: 47.88 | AO135: 71.64 | AP135: 118.72 | AQ135: 126.47 | AR135: 133.9 | AS135: 142.9 | AT135: 148.16 | AV135: 127 | AW135: 46.71 | AX135: 69.8895 | AY135: 115.825 | AZ135: 123.3875 | BA135: 130.6375 | BB135: 139.4125 | BC135: 144.55 | BE135: 127 | BF135: 49.38 | BG135: 73.14 | BH135: 120.22 | BI135: 127.97 | BJ135: 135.4 | BK135: 144.4 | BL135: 149.66
A136: 128 | B136: 58.632 | C136: 83.216 | D136: 133.112 | E136: 142.17 | F136: 154.98 | G136: 161.378 | H136: 167.44 | I136: 170.142 | J136: 170.142 | K136: 184.688 | M136: 128 | N136: 58.632 | O136: 83.216 | P136: 133.112 | Q136: 142.17 | R136: 154.98 | S136: 161.378 | T136: 167.44 | U136: 170.142 | V136: 170.142 | W136: 184.688 | AA136: 128 | AB136: 60.132 | AC136: 84.716 | AD136: 134.612 | AE136: 143.67 | AF136: 156.48 | AG136: 162.878 | AH136: 168.94 | AI136: 171.642 | AJ136: 171.642 | AK136: 186.188 | AM136: 128 | AN136: 48.25 | AO136: 72.22 | AP136: 119.66 | AQ136: 127.47 | AR136: 134.97 | AS136: 144.03 | AT136: 149.34 | AV136: 128 | AW136: 47.0745 | AX136: 70.4565 | AY136: 116.7375 | AZ136: 124.3625 | BA136: 131.675 | BB136: 140.5125 | BC136: 145.7 | BE136: 128 | BF136: =AN136+1.5 -> 49.75 | BG136: 73.72 | BH136: 121.16 | BI136: 128.97 | BJ136: 136.47 | BK136: 145.53 | BL136: 150.84
A137: 129 | B137: 59.08 | C137: 83.874 | D137: 134.148 | E137: 143.29 | F137: 156.184 | G137: 162.638 | H137: 168.756 | I137: 171.472 | J137: 171.472 | K137: 186.144 | M137: 129 | N137: 59.08 | O137: 83.874 | P137: 134.148 | Q137: 143.29 | R137: 156.184 | S137: 162.638 | T137: 168.756 | U137: 171.472 | V137: 171.472 | W137: 186.144 | AA137: 129 | AB137: 60.58 | AC137: 85.374 | AD137: 135.648 | AE137: 144.79 | AF137: 157.684 | AG137: 164.138 | AH137: 170.256 | AI137: 172.972 | AJ137: 172.972 | AK137: 187.644 | AM137: 129 | AN137: 48.64 | AO137: 72.79 | AP137: 120.6 | AQ137: 128.47 | AR137: 136.03 | AS137: 145.17 | AT137: 150.52 | AV137: 129 | AW137: 47.4525 | AX137: 71.01 | AY137: 117.6625 | AZ137: 125.3375 | BA137: 132.7125 | BB137: 141.625 | BC137: 146.85 | BE137: 129 | BF137: 50.14 | BG137: 74.29 | BH137: 122.1 | BI137: 129.97 | BJ137: 137.53 | BK137: 146.67 | BL137: 152.02
A138: 130 | B138: 59.542 | C138: 84.518 | D138: 135.184 | E138: 144.396 | F138: 157.402 | G138: 163.898 | H138: 170.058 | I138: 172.802 | J138: 172.802 | K138: 187.6 | M138: 130 | N138: 59.542 | O138: 84.518 | P138: 135.184 | Q138: 144.396 | R138: 157.402 | S138: 163.898 | T138: 170.058 | U138: 172.802 | V138: 172.802 | W138: 187.6 | AA138: 130 | AB138: 61.042 | AC138: 86.018 | AD138: 136.684 | AE138: 145.896 | AF138: 158.902 | AG138: 165.398 | AH138: 171.558 | AI138: 174.302 | AJ138: 174.302 | AK138: 189.1 | AM138: 130 | AN138: 49.01 | AO138: 73.35 | AP138: 121.55 | AQ138: 129.48 | AR138: 137.09 | AS138: 146.29 | AT138: 151.7 | AV138: 130 | AW138: 47.817 | AX138: 71.5635 | AY138: 118.5875 | AZ138: 126.325 | BA138: 133.75 | BB138: 142.725 | BC138: 148 | BE138: 130 | BF138: 50.51 | BG138: 74.85 | BH138: 123.05 | BI138: 130.98 | BJ138: 138.59 | BK138: 147.79 | BL138: 153.2
A139: 131 | B139: 60.004 | C139: 85.176 | D139: 136.234 | E139: 145.502 | F139: 158.606 | G139: 165.158 | H139: 171.374 | I139: 174.132 | J139: 174.132 | K139: 189.056 | M139: 131 | N139: 60.004 | O139: 85.176 | P139: 136.234 | Q139: 145.502 | R139: 158.606 | S139: 165.158 | T139: 171.374 | U139: 174.132 | V139: 174.132 | W139: 189.056 | AA139: 131 | AB139: 61.504 | AC139: 86.676 | AD139: 137.734 | AE139: 147.002 | AF139: 160.106 | AG139: 166.658 | AH139: 172.874 | AI139: 175.632 | AJ139: 175.632 | AK139: 190.556 | AM139: 131 | AN139: 49.4 | AO139: 73.92 | AP139: 122.49 | AQ139: 130.48 | AR139: 138.16 | AS139: 147.43 | AT139: 152.87 | AV139: 131 | AW139: 48.195 | AX139: 72.117 | AY139: 119.5 | AZ139: 127.3 | BA139: 134.7875 | BB139: 143.8375 | BC139: 149.1375 | BE139: 131 | BF139: 50.9 | BG139: 75.42 | BH139: 123.99 | BI139: 131.98 | BJ139: 139.66 | BK139: 148.93 | BL139: 154.37
A140: 132 | B140: 60.452 | C140: 85.82 | D140: 137.256 | E140: 146.622 | F140: 159.824 | G140: 166.418 | H140: 172.676 | I140: 175.448 | J140: 175.448 | K140: 190.512 | M140: 132 | N140: 60.452 | O140: 85.82 | P140: 137.256 | Q140: 146.622 | R140: 159.824 | S140: 166.418 | T140: 172.676 | U140: 175.448 | V140: 175.448 | W140: 190.512 | AA140: 132 | AB140: 61.952 | AC140: 87.32 | AD140: 138.756 | AE140: 148.122 | AF140: 161.324 | AG140: 167.918 | AH140: 174.176 | AI140: 176.948 | AJ140: 176.948 | AK140: 192.012 | AM140: 132 | AN140: 49.77 | AO140: 74.49 | AP140: 123.44 | AQ140: 131.48 | AR140: 139.22 | AS140: 148.56 | AT140: 154.04 | AV140: 132 | AW140: 48.5595 | AX140: 72.6705 | AY140: 120.425 | AZ140: 128.275 | BA140: 135.825 | BB140: 144.9375 | BC140: 150.2875 | BE140: 132 | BF140: 51.27 | BG140: 75.99 | BH140: 124.94 | BI140: 132.98 | BJ140: 140.72 | BK140: 150.06 | BL140: 155.54
A141: 133 | B141: 60.914 | C141: 86.464 | D141: 138.306 | E141: 147.728 | F141: 161.028 | G141: 167.678 | H141: 173.978 | I141: 176.778 | J141: 176.778 | K141: 191.968 | M141: 133 | N141: 60.914 | O141: 86.464 | P141: 138.306 | Q141: 147.728 | R141: 161.028 | S141: 167.678 | T141: 173.978 | U141: 176.778 | V141: 176.778 | W141: 191.968 | AA141: 133 | AB141: 62.414 | AC141: 87.964 | AD141: 139.806 | AE141: 149.228 | AF141: 162.528 | AG141: 169.178 | AH141: 175.478 | AI141: 178.278 | AJ141: 178.278 | AK141: 193.468 | AM141: 133 | AN141: 50.16 | AO141: 75.05 | AP141: 124.37 | AQ141: 132.49 | AR141: 140.28 | AS141: 149.7 | AT141: 155.22 | AV141: 133 | AW141: 48.9375 | AX141: 73.224 | AY141: 121.3375 | AZ141: 129.2625 | BA141: 136.8625 | BB141: 146.05 | BC141: 151.4375 | BE141: 133 | BF141: 51.66 | BG141: 76.55 | BH141: 125.87 | BI141: 133.99 | BJ141: 141.78 | BK141: 151.2 | BL141: 156.72
A142: 134 | B142: 61.376 | C142: 87.122 | D142: 139.342 | E142: 148.834 | F142: 162.246 | G142: 168.938 | H142: 175.294 | I142: 178.108 | J142: 178.108 | K142: 193.424 | M142: 134 | N142: 61.376 | O142: 87.122 | P142: 139.342 | Q142: 148.834 | R142: 162.246 | S142: 168.938 | T142: 175.294 | U142: 178.108 | V142: 178.108 | W142: 193.424 | AA142: 134 | AB142: 62.876 | AC142: 88.622 | AD142: 140.842 | AE142: 150.334 | AF142: 163.746 | AG142: 170.438 | AH142: 176.794 | AI142: 179.608 | AJ142: 179.608 | AK142: 194.924 | AM142: 134 | AN142: 50.53 | AO142: 75.62 | AP142: 125.32 | AQ142: 133.49 | AR142: 141.35 | AS142: 150.83 | AT142: 156.4 | AV142: 134 | AW142: 49.302 | AX142: 73.7775 | AY142: 122.2625 | AZ142: 130.2375 | BA142: 137.9 | BB142: 147.15 | BC142: 152.5875 | BE142: 134 | BF142: 52.03 | BG142: 77.12 | BH142: 126.82 | BI142: 134.99 | BJ142: 142.85 | BK142: 152.33 | BL142: 157.9
A143: 135 | B143: 61.838 | C143: 87.766 | D143: 140.392 | E143: 149.954 | F143: 163.45 | G143: 170.198 | H143: 176.596 | I143: 179.438 | J143: 179.438 | K143: 194.88 | M143: 135 | N143: 61.838 | O143: 87.766 | P143: 140.392 | Q143: 149.954 | R143: 163.45 | S143: 170.198 | T143: 176.596 | U143: 179.438 | V143: 179.438 | W143: 194.88 | AA143: 135 | AB143: 63.338 | AC143: 89.266 | AD143: 141.892 | AE143: 151.454 | AF143: 164.95 | AG143: 171.698 | AH143: 178.096 | AI143: 180.938 | AJ143: 180.938 | AK143: 196.38 | AM143: 135 | AN143: 50.92 | AO143: 76.19 | AP143: 126.25 | AQ143: 134.49 | AR143: 142.41 | AS143: 151.97 | AT143: 157.57 | AV143: 135 | AW143: 49.68 | AX143: 74.331 | AY143: 123.175 | AZ143: 131.2125 | BA143: 138.9375 | BB143: 148.2625 | BC143: 153.725 | BE143: 135 | BF143: 52.42 | BG143: 77.69 | BH143: 127.75 | BI143: 135.99 | BJ143: 143.91 | BK143: 153.47 | BL143: 159.07
A144: 136 | B144: 62.286 | C144: 88.424 | D144: 141.414 | E144: 151.06 | F144: 164.668 | G144: 171.458 | H144: 177.912 | I144: 180.768 | J144: 180.768 | K144: 196.336 | M144: 136 | N144: 62.286 | O144: 88.424 | P144: 141.414 | Q144: 151.06 | R144: 164.668 | S144: 171.458 | T144: 177.912 | U144: 180.768 | V144: 180.768 | W144: 196.336 | AA144: 136 | AB144: 63.786 | AC144: 89.924 | AD144: 142.914 | AE144: 152.56 | AF144: 166.168 | AG144: 172.958 | AH144: 179.412 | AI144: 182.268 | AJ144: 182.268 | AK144: 197.836 | AM144: 136 | AN144: 51.3 | AO144: 76.76 | AP144: 127.2 | AQ144: 135.51 | AR144: 143.47 | AS144: 153.11 | AT144: 158.75 | AV144: 136 | AW144: 50.0445 | AX144: 74.8845 | AY144: 124.1 | AZ144: 132.2 | BA144: 139.975 | BB144: 149.375 | BC144: 154.875 | BE144: 136 | BF144: 52.8 | BG144: 78.26 | BH144: 128.7 | BI144: 137.01 | BJ144: 144.97 | BK144: 154.61 | BL144: 160.25
A145: 137 | B145: 62.748 | C145: 89.068 | D145: 142.464 | E145: 152.166 | F145: 165.872 | G145: 172.732 | H145: 179.214 | I145: 182.098 | J145: 182.098 | K145: 197.792 | M145: 137 | N145: 62.748 | O145: 89.068 | P145: 142.464 | Q145: 152.166 | R145: 165.872 | S145: 172.732 | T145: 179.214 | U145: 182.098 | V145: 182.098 | W145: 197.792 | AA145: 137 | AB145: 64.248 | AC145: 90.568 | AD145: 143.964 | AE145: 153.666 | AF145: 167.372 | AG145: 174.232 | AH145: 180.714 | AI145: 183.598 | AJ145: 183.598 | AK145: 199.292 | AM145: 137 | AN145: 51.67 | AO145: 77.32 | AP145: 128.14 | AQ145: 136.5 | AR145: 144.54 | AS145: 154.24 | AT145: 159.93 | AV145: 137 | AW145: 50.409 | AX145: 75.438 | AY145: 125.0125 | AZ145: 133.175 | BA145: 141.0125 | BB145: 150.475 | BC145: 156.025 | BE145: 137 | BF145: 53.17 | BG145: 78.82 | BH145: 129.64 | BI145: 138 | BJ145: 146.04 | BK145: 155.74 | BL145: 161.43
A146: 138 | B146: 63.21 | C146: 89.726 | D146: 143.5 | E146: 153.286 | F146: 167.09 | G146: 173.992 | H146: 180.53 | I146: 183.428 | J146: 183.428 | K146: 199.248 | M146: 138 | N146: 63.21 | O146: 89.726 | P146: 143.5 | Q146: 153.286 | R146: 167.09 | S146: 173.992 | T146: 180.53 | U146: 183.428 | V146: 183.428 | W146: 199.248 | AA146: 138 | AB146: 64.71 | AC146: 91.226 | AD146: 145 | AE146: 154.786 | AF146: 168.59 | AG146: 175.492 | AH146: 182.03 | AI146: 184.928 | AJ146: 184.928 | AK146: 200.748 | AM146: 138 | AN146: 52.06 | AO146: 77.89 | AP146: 129.09 | AQ146: 137.5 | AR146: 145.6 | AS146: 155.38 | AT146: 161.1 | AV146: 138 | AW146: 50.787 | AX146: 75.9915 | AY146: 125.9375 | AZ146: 134.15 | BA146: 142.05 | BB146: 151.5875 | BC146: 157.175 | BE146: 138 | BF146: 53.56 | BG146: 79.39 | BH146: 130.59 | BI146: 139 | BJ146: 147.1 | BK146: 156.88 | BL146: 162.6
A147: 139 | B147: 63.658 | C147: 90.37 | D147: 144.55 | E147: 154.392 | F147: 168.294 | G147: 175.252 | H147: 181.832 | I147: 184.758 | J147: 184.758 | K147: 200.704 | M147: 139 | N147: 63.658 | O147: 90.37 | P147: 144.55 | Q147: 154.392 | R147: 168.294 | S147: 175.252 | T147: 181.832 | U147: 184.758 | V147: 184.758 | W147: 200.704 | AA147: 139 | AB147: 65.158 | AC147: 91.87 | AD147: 146.05 | AE147: 155.892 | AF147: 169.794 | AG147: 176.752 | AH147: 183.332 | AI147: 186.258 | AJ147: 186.258 | AK147: 202.204 | AM147: 139 | AN147: 52.43 | AO147: 78.47 | AP147: 130.02 | AQ147: 138.52 | AR147: 146.66 | AS147: 156.5 | AT147: 162.27 | AV147: 139 | AW147: 51.1515 | AX147: 76.5585 | AY147: 126.85 | AZ147: 135.1375 | BA147: 143.0875 | BB147: 152.6875 | BC147: 158.3125 | BE147: 139 | BF147: 53.93 | BG147: 79.97 | BH147: 131.52 | BI147: 140.02 | BJ147: 148.16 | BK147: 158 | BL147: 163.77
A148: 140 | B148: 64.12 | C148: 91.014 | D148: 145.572 | E148: 155.498 | F148: 169.512 | G148: 176.512 | H148: 183.134 | I148: 186.088 | J148: 186.088 | K148: 202.16 | M148: 140 | N148: 64.12 | O148: 91.014 | P148: 145.572 | Q148: 155.498 | R148: 169.512 | S148: 176.512 | T148: 183.134 | U148: 186.088 | V148: 186.088 | W148: 202.16 | AA148: 140 | AB148: 65.62 | AC148: 92.514 | AD148: 147.072 | AE148: 156.998 | AF148: 171.012 | AG148: 178.012 | AH148: 184.634 | AI148: 187.588 | AJ148: 187.588 | AK148: 203.66 | AM148: 140 | AN148: 52.82 | AO148: 79.04 | AP148: 130.97 | AQ148: 139.52 | AR148: 147.73 | AS148: 157.65 | AT148: 163.45 | AV148: 140 | AW148: 51.5295 | AX148: 77.112 | AY148: 127.775 | AZ148: 136.1125 | BA148: 144.125 | BB148: 153.8 | BC148: 159.4625 | BE148: 140 | BF148: 54.32 | BG148: 80.54 | BH148: 132.47 | BI148: 141.02 | BJ148: 149.23 | BK148: 159.15 | BL148: 164.95
A149: 141 | B149: 64.582 | C149: 91.672 | D149: 146.622 | E149: 156.618 | F149: 170.716 | G149: 177.772 | H149: 184.45 | I149: 187.418 | J149: 187.418 | K149: 203.616 | M149: 141 | N149: 64.582 | O149: 91.672 | P149: 146.622 | Q149: 156.618 | R149: 170.716 | S149: 177.772 | T149: 184.45 | U149: 187.418 | V149: 187.418 | W149: 203.616 | AA149: 141 | AB149: 66.082 | AC149: 93.172 | AD149: 148.122 | AE149: 158.118 | AF149: 172.216 | AG149: =G149+1.5 -> 179.272 | AH149: =H149+1.5 -> 185.95 | AI149: =I149+1.5 -> 188.918 | AJ149: =J149+1.5 -> 188.918 | AK149: =K149+1.5 -> 205.116 | AM149: 141 | AN149: 53.19 | AO149: 79.61 | AP149: 131.9 | AQ149: 140.51 | AR149: 148.79 | AS149: 158.77 | AT149: 164.63 | AV149: 141 | AW149: 51.894 | AX149: 77.6655 | AY149: 128.6875 | AZ149: 137.0875 | BA149: 145.1625 | BB149: 154.9 | BC149: 160.6125 | BE149: 141 | BF149: 54.69 | BG149: 81.11 | BH149: 133.4 | BI149: 142.01 | BJ149: 150.29 | BK149: 160.27 | BL149: 166.13
A150: 142 | B150: 65.044 | C150: 92.316 | D150: 147.672 | E150: 157.724 | F150: 171.934 | G150: 179.032 | H150: 185.752 | I150: 188.748 | J150: 188.748 | K150: 205.072 | M150: 142 | N150: 65.044 | O150: 92.316 | P150: 147.672 | Q150: 157.724 | R150: 171.934 | S150: 179.032 | T150: 185.752 | U150: 188.748 | V150: 188.748 | W150: 205.072 | AA150: 142 | AB150: =B150+1.5 -> 66.544 | AC150: =C150+1.5 -> 93.816 | AD150: =D150+1.5 -> 149.172 | AE150: =E150+1.5 -> 159.224 | AF150: =F150+1.5 -> 173.434 | AG150: 180.532 | AH150: 187.252 | AI150: 190.248 | AJ150: 190.248 | AK150: 206.572 | AM150: 142 | AN150: 53.58 | AO150: 80.17 | AP150: 132.85 | AQ150: 141.53 | AR150: 149.86 | AS150: 159.91 | AT150: 165.81 | AV150: 142 | AW150: 52.272 | AX150: 78.219 | AY150: 129.6125 | AZ150: 138.075 | BA150: 146.2 | BB150: 156.0125 | BC150: 161.7625 | BE150: 142 | BF150: 55.08 | BG150: 81.67 | BH150: 134.35 | BI150: 143.03 | BJ150: 151.36 | BK150: 161.41 | BL150: 167.31
A151: 143 | B151: 65.492 | C151: 92.974 | D151: 148.708 | E151: 158.83 | F151: 173.138 | G151: 180.292 | H151: 187.068 | I151: 190.078 | J151: 190.078 | K151: 206.528 | M151: 143 | N151: 65.492 | O151: 92.974 | P151: 148.708 | Q151: 158.83 | R151: 173.138 | S151: 180.292 | T151: 187.068 | U151: 190.078 | V151: 190.078 | W151: 206.528 | AA151: 143 | AB151: 66.992 | AC151: 94.474 | AD151: 150.208 | AE151: 160.33 | AF151: 174.638 | AG151: 181.792 | AH151: 188.568 | AI151: 191.578 | AJ151: 191.578 | AK151: 208.028 | AM151: 143 | AN151: 53.95 | AO151: 80.74 | AP151: 133.8 | AQ151: 142.53 | AR151: 150.91 | AS151: 161.04 | AT151: 166.99 | AV151: 143 | AW151: 52.6365 | AX151: 78.7725 | AY151: 130.5375 | AZ151: 139.05 | BA151: 147.225 | BB151: 157.1125 | BC151: 162.9125 | BE151: 143 | BF151: 55.45 | BG151: 82.24 | BH151: 135.3 | BI151: 144.03 | BJ151: 152.41 | BK151: 162.54 | BL151: 168.49
A152: 144 | B152: 65.954 | C152: 93.618 | D152: 149.744 | E152: 159.95 | F152: 174.356 | G152: 181.552 | H152: 188.37 | I152: 191.408 | J152: 191.408 | K152: 207.984 | M152: 144 | N152: 65.954 | O152: 93.618 | P152: 149.744 | Q152: 159.95 | R152: 174.356 | S152: 181.552 | T152: 188.37 | U152: 191.408 | V152: 191.408 | W152: 207.984 | AA152: 144 | AB152: 67.454 | AC152: 95.118 | AD152: 151.244 | AE152: 161.45 | AF152: 175.856 | AG152: 183.052 | AH152: 189.87 | AI152: 192.908 | AJ152: 192.908 | AK152: 209.484 | AM152: 144 | AN152: 54.34 | AO152: 81.31 | AP152: 134.74 | AQ152: 143.53 | AR152: 151.97 | AS152: 162.18 | AT152: 168.15 | AV152: 144 | AW152: 53.0145 | AX152: 79.326 | AY152: 131.45 | AZ152: 140.025 | BA152: 148.2625 | BB152: 158.225 | BC152: 164.05 | BE152: 144 | BF152: 55.84 | BG152: 82.81 | BH152: 136.24 | BI152: 145.03 | BJ152: 153.47 | BK152: 163.68 | BL152: 169.65
A153: 145 | B153: 66.416 | C153: 94.276 | D153: 150.78 | E153: 161.056 | F153: 175.56 | G153: 182.812 | H153: 189.686 | I153: 192.738 | J153: 192.738 | K153: 209.44 | M153: 145 | N153: 66.416 | O153: 94.276 | P153: 150.78 | Q153: 161.056 | R153: 175.56 | S153: 182.812 | T153: 189.686 | U153: 192.738 | V153: 192.738 | W153: 209.44 | AA153: 145 | AB153: 67.916 | AC153: 95.776 | AD153: 152.28 | AE153: 162.556 | AF153: 177.06 | AG153: 184.312 | AH153: 191.186 | AI153: 194.238 | AJ153: 194.238 | AK153: 210.94 | AM153: 145 | AN153: 54.71 | AO153: 81.88 | AP153: 135.68 | AQ153: 144.54 | AR153: 153.03 | AS153: 163.31 | AT153: 169.33 | AV153: 145 | AW153: 53.379 | AX153: 79.8795 | AY153: 132.375 | AZ153: 141.0125 | BA153: 149.3 | BB153: 159.325 | BC153: 165.2 | BE153: 145 | BF153: 56.21 | BG153: 83.38 | BH153: 137.18 | BI153: 146.04 | BJ153: 154.53 | BK153: 164.81 | BL153: 170.83
A154: 146 | B154: 66.864 | C154: 94.92 | D154: 151.83 | E154: 162.162 | F154: 176.764 | G154: 184.072 | H154: 190.988 | I154: 194.068 | J154: 194.068 | K154: 210.896 | M154: 146 | N154: 66.864 | O154: 94.92 | P154: 151.83 | Q154: 162.162 | R154: 176.764 | S154: 184.072 | T154: 190.988 | U154: 194.068 | V154: 194.068 | W154: 210.896 | AA154: 146 | AB154: 68.364 | AC154: 96.42 | AD154: 153.33 | AE154: 163.662 | AF154: 178.264 | AG154: 185.572 | AH154: 192.488 | AI154: 195.568 | AJ154: 195.568 | AK154: 212.396 | AM154: 146 | AN154: 55.1 | AO154: 82.44 | AP154: 136.62 | AQ154: 145.54 | AR154: 154.1 | AS154: 164.45 | AT154: 170.51 | AV154: 146 | AW154: 53.757 | AX154: 80.433 | AY154: 133.2875 | AZ154: 141.9875 | BA154: 150.3375 | BB154: 160.4375 | BC154: 166.35 | BE154: 146 | BF154: 56.6 | BG154: 83.94 | BH154: 138.12 | BI154: 147.04 | BJ154: 155.6 | BK154: 165.95 | BL154: 172.01
A155: 147 | B155: 67.326 | C155: 95.564 | D155: 152.866 | E155: 163.282 | F155: 177.982 | G155: 185.332 | H155: 192.29 | I155: 195.398 | J155: 195.398 | K155: 212.352 | M155: 147 | N155: 67.326 | O155: 95.564 | P155: 152.866 | Q155: 163.282 | R155: 177.982 | S155: 185.332 | T155: 192.29 | U155: 195.398 | V155: 195.398 | W155: 212.352 | AA155: 147 | AB155: 68.826 | AC155: 97.064 | AD155: 154.366 | AE155: 164.782 | AF155: 179.482 | AG155: 186.832 | AH155: 193.79 | AI155: 196.898 | AJ155: 196.898 | AK155: 213.852 | AM155: 147 | AN155: 55.47 | AO155: 83.01 | AP155: 137.57 | AQ155: 146.54 | AR155: 155.16 | AS155: 165.58 | AT155: 171.69 | AV155: 147 | AW155: 54.1215 | AX155: 80.9865 | AY155: 134.2125 | AZ155: 142.9625 | BA155: 151.375 | BB155: 161.5375 | BC155: 167.5 | BE155: 147 | BF155: 56.97 | BG155: 84.51 | BH155: 139.07 | BI155: 148.04 | BJ155: 156.66 | BK155: 167.08 | BL155: 173.19
A156: 148 | B156: 67.788 | C156: 96.222 | D156: 153.902 | E156: 164.388 | F156: 179.186 | G156: 186.592 | H156: 193.606 | I156: 196.728 | J156: 196.728 | K156: 213.808 | M156: 148 | N156: 67.788 | O156: 96.222 | P156: 153.902 | Q156: 164.388 | R156: 179.186 | S156: 186.592 | T156: 193.606 | U156: 196.728 | V156: 196.728 | W156: 213.808 | AA156: 148 | AB156: 69.288 | AC156: 97.722 | AD156: 155.402 | AE156: 165.888 | AF156: 180.686 | AG156: 188.092 | AH156: 195.106 | AI156: 198.228 | AJ156: 198.228 | AK156: 215.308 | AM156: 148 | AN156: 55.85 | AO156: 83.58 | AP156: 138.5 | AQ156: 147.55 | AR156: 156.22 | AS156: 166.72 | AT156: 172.85 | AV156: 148 | AW156: 54.486 | AX156: 81.54 | AY156: 135.125 | AZ156: 143.95 | BA156: 152.4125 | BB156: 162.65 | BC156: 168.6375 | BE156: 148 | BF156: 57.35 | BG156: 85.08 | BH156: 140 | BI156: 149.05 | BJ156: 157.72 | BK156: 168.22 | BL156: 174.35
A157: 149 | B157: 68.236 | C157: 96.866 | D157: 154.938 | E157: 165.494 | F157: 180.404 | G157: 187.852 | H157: 194.908 | I157: 198.044 | J157: 198.044 | K157: 215.264 | M157: 149 | N157: 68.236 | O157: 96.866 | P157: 154.938 | Q157: 165.494 | R157: 180.404 | S157: 187.852 | T157: 194.908 | U157: 198.044 | V157: 198.044 | W157: 215.264 | AA157: 149 | AB157: 69.736 | AC157: 98.366 | AD157: 156.438 | AE157: 166.994 | AF157: 181.904 | AG157: 189.352 | AH157: 196.408 | AI157: 199.544 | AJ157: 199.544 | AK157: 216.764 | AM157: 149 | AN157: 56.24 | AO157: 84.15 | AP157: 139.45 | AQ157: 148.55 | AR157: 157.29 | AS157: 167.84 | AT157: 174.03 | AV157: 149 | AW157: 54.864 | AX157: 82.0935 | AY157: 136.05 | AZ157: 144.925 | BA157: 153.45 | BB157: 163.75 | BC157: 169.7875 | BE157: 149 | BF157: 57.74 | BG157: 85.65 | BH157: 140.95 | BI157: 150.05 | BJ157: 158.79 | BK157: 169.34 | BL157: 175.53
A158: 150 | B158: 68.698 | C158: 97.524 | D158: 155.988 | E158: 166.614 | F158: 181.608 | G158: 189.112 | H158: 196.224 | I158: 199.374 | J158: 199.374 | K158: 216.72 | M158: 150 | N158: 68.698 | O158: 97.524 | P158: 155.988 | Q158: 166.614 | R158: 181.608 | S158: 189.112 | T158: 196.224 | U158: 199.374 | V158: 199.374 | W158: 216.72 | AA158: 150 | AB158: 70.198 | AC158: 99.024 | AD158: 157.488 | AE158: 168.114 | AF158: 183.108 | AG158: 190.612 | AH158: 197.724 | AI158: 200.874 | AJ158: 200.874 | AK158: 218.22 | AM158: 150 | AN158: 56.61 | AO158: 84.73 | AP158: 140.39 | AQ158: 149.55 | AR158: 158.35 | AS158: 168.98 | AT158: 175.21 | AV158: 150 | AW158: 55.2285 | AX158: 82.6605 | AY158: 136.9625 | AZ158: 145.9 | BA158: 154.4875 | BB158: 164.8625 | BC158: 170.9375 | BE158: 150 | BF158: 58.11 | BG158: 86.23 | BH158: 141.89 | BI158: 151.05 | BJ158: 159.85 | BK158: 170.48 | BL158: 176.71
A159: 151+ | B159: 0.4579866667 | C159: 0.65016 | D159: 1.03992 | E159: 1.11076 | F159: 1.21072 | G159: 1.260746667 | H159: 1.30816 | I159: 1.32916 | J159: 1.32916 | K159: 1.4448 | M159: 151+ | N159: =N158/150 -> 0.4579866667 | O159: 0.65016 | P159: 1.03992 | Q159: 1.11076 | R159: 1.21072 | S159: 1.260746667 | T159: 1.30816 | U159: 1.32916 | V159: 1.32916 | W159: 1.4448 | AA159: 151+ | AB159: =AB158/150 -> 0.4679866667 | AC159: 0.66016 | AD159: 1.04992 | AE159: 1.12076 | AF159: 1.22072 | AG159: 1.270746667 | AH159: 1.31816 | AI159: 1.33916 | AJ159: 1.33916 | AK159: 1.4548 | AM159: 151+ | AN159: 0.3774 | AO159: 0.5648666667 | AP159: 0.9359333333 | AQ159: 0.997 | AR159: 1.055666667 | AS159: 1.126533333 | AT159: 1.168066667 | AV159: 151+ | AW159: 0.36819 | AX159: 0.55107 | AY159: 0.9130833333 | AZ159: 0.9726666667 | BA159: 1.029916667 | BB159: 1.099083333 | BC159: 1.139583333 | BE159: 151+ | BF159: =BF158/$A$158 -> 0.3874 | BG159: 0.5748666667 | BH159: 0.9459333333 | BI159: 1.007 | BJ159: 1.065666667 | BK159: 1.136533333 | BL159: =BL158/$A158 -> 1.178066667
A162: Lbs. | B162: Zone 102 | C162: Zone 103 | D162: Zone 104 | E162: Zone 105 | F162: Zone 106 | G162: Zone 107 | H162: Zone 108 | I162: Zone 124 | J162: Zone 125 | K162: Zone 126 | M162: Lbs. | N162: Zone 102 | O162: Zone 103 | P162: Zone 104 | Q162: Zone 105 | R162: Zone 106 | S162: Zone 107 | T162: Zone 108 | U162: Zone 124 | V162: Zone 125 | W162: Zone 126 | AA162: Lbs. | AB162: Zone 102 | AC162: Zone 103 | AD162: Zone 104 | AE162: Zone 105 | AF162: Zone 106 | AG162: Zone 107 | AH162: Zone 108 | AI162: Zone 124 | AJ162: Zone 125 | AK162: Zone 126
A163: Letter | B163: =AN8-B8 -> -0.01 | C163: -0.01 | D163: -0.05 | E163: -0.05 | F163: -0.05 | G163: -0.05 | H163: -0.05 | I163: -8.344 | K163: -3.314 | M163: Letter | N163: 5.6 | O163: 5.6 | P163: 6.454 | Q163: 6.944 | R163: 7 | S163: 7.7 | T163: 7.826 | U163: 8.344 | V163: 8.344 | W163: 8.764 | AA163: Letter | AB163: =BF8-AB8 -> -0.01 | AC163: =BG8-AC8 -> -0.01 | AD163: -0.05 | AE163: -0.05 | AF163: -0.05 | AG163: -0.05 | AH163: -0.05 | AI163: =I163+1.5 -> -6.844 | AK163: -1.814
A164: 1 | B164: -0.05 | C164: -1.892 | D164: -2.748 | E164: -3.402 | F164: -4.262 | G164: -4.6 | H164: -4.526 | I164: 13.104 | J164: 13.104 | K164: 13.118 | M164: 1 | N164: 5.614 | O164: 7.532 | P164: 9.618 | Q164: 10.682 | R164: 11.592 | S164: 12.39 | T164: 12.726 | U164: 13.104 | V164: 13.104 | W164: 13.118 | AA164: 1 | AB164: -0.05 | AC164: -1.892 | AD164: -2.748 | AE164: -3.402 | AF164: -4.262 | AG164: -4.6 | AH164: -4.526 | AI164: 14.604 | AJ164: 14.604 | AK164: 14.618
A165: 2 | B165: -0.086 | C165: -1.724 | D165: -2.806 | E165: -2.916 | F165: -3.434 | G165: -3.34 | H165: -3.61 | I165: 14.308 | J165: 14.308 | K165: 14.322 | M165: 2 | N165: 5.726 | O165: 8.134 | P165: 10.836 | Q165: 11.816 | R165: 13.104 | S165: 13.65 | T165: 14.21 | U165: 14.308 | V165: 14.308 | W165: 14.322 | AA165: 2 | AB165: -0.086 | AC165: -1.724 | AD165: -2.806 | AE165: -2.916 | AF165: -3.434 | AG165: -3.34 | AH165: -3.61 | AI165: 15.808 | AJ165: 15.808 | AK165: 15.822
A166: 3 | B166: -0.814 | C166: -1.928 | D166: -2.938 | E166: -3.24 | F166: -3.598 | G166: -3.658 | H166: -3.71 | I166: 15.974 | J166: 15.974 | K166: 17.92 | M166: 3 | N166: 6.454 | O166: 8.708 | P166: 11.998 | Q166: 13.09 | R166: 14.518 | S166: 15.008 | T166: 15.54 | U166: 15.974 | V166: 15.974 | W166: 17.92 | AA166: 3 | AB166: -0.814 | AC166: -1.928 | AD166: -2.938 | AE166: -3.24 | AF166: -3.598 | AG166: -3.658 | AH166: -3.71 | AI166: 17.474 | AJ166: 17.474 | AK166: 19.42
A167: 4 | B167: -1.318 | C167: -1.948 | D167: -2.976 | E167: -3.402 | F167: -3.738 | G167: -3.848 | H167: -4.062 | I167: 17.444 | J167: 17.444 | K167: 19.544 | M167: 4 | N167: 6.958 | O167: 9.128 | P167: 13.006 | Q167: 14.322 | R167: 15.848 | S167: 16.338 | T167: 16.982 | U167: 17.444 | V167: 17.444 | W167: 19.544 | AA167: 4 | AB167: -1.318 | AC167: -1.948 | AD167: -2.976 | AE167: -3.402 | AF167: -3.738 | AG167: -3.848 | AH167: -4.062 | AI167: 18.944 | AJ167: 18.944 | AK167: 21.044
A168: 5 | B168: -1.188 | C168: -1.856 | D168: -3.344 | E168: -3.696 | F168: -3.982 | G168: -4.106 | H168: -4.196 | I168: 18.872 | J168: 18.872 | K168: 21.042 | M168: 5 | N168: 7.028 | O168: 9.506 | P168: 14.224 | Q168: 15.666 | R168: 17.192 | S168: 17.696 | T168: 18.326 | U168: 18.872 | V168: 18.872 | W168: 21.042 | AA168: 5 | AB168: -1.188 | AC168: -1.856 | AD168: -3.344 | AE168: -3.696 | AF168: -3.982 | AG168: -4.106 | AH168: -4.196 | AI168: 20.372 | AJ168: 20.372 | AK168: 22.542
A169: 6 | B169: -1.774 | C169: -2.278 | D169: -3.496 | E169: -3.884 | F169: -4.51 | G169: -4.452 | H169: -4.754 | I169: 20.216 | J169: 20.216 | K169: 22.652 | M169: 6 | N169: 7.784 | O169: 10.038 | P169: 15.386 | Q169: 16.884 | R169: 18.62 | S169: 18.942 | T169: 19.754 | U169: 20.216 | V169: 20.216 | W169: 22.652 | AA169: 6 | AB169: -1.774 | AC169: -2.278 | AD169: -3.496 | AE169: -3.884 | AF169: -4.51 | AG169: -4.452 | AH169: -4.754 | AI169: 21.716 | AJ169: 21.716 | AK169: 24.152
A170: 7 | B170: -1.798 | C170: -1.812 | D170: -3.59 | E170: -4.284 | F170: -4.646 | G170: -4.878 | H170: -4.918 | I170: 21.56 | J170: 21.56 | K170: 24.248 | M170: 7 | N170: 8.148 | O170: 10.542 | P170: 16.45 | Q170: 18.144 | R170: 19.936 | S170: 20.398 | T170: 21.098 | U170: 21.56 | V170: 21.56 | W170: 24.248 | AA170: 7 | AB170: -1.798 | AC170: -1.812 | AD170: -3.59 | AE170: -4.284 | AF170: -4.646 | AG170: -4.878 | AH170: -4.918 | AI170: 23.06 | AJ170: 23.06 | AK170: 25.748
A171: 8 | B171: -1.738 | C171: -1.95 | D171: -3.754 | E171: -4.256 | F171: -4.916 | G171: -5.136 | H171: -5.176 | I171: 22.876 | J171: 22.876 | K171: 25.452 | M171: 8 | N171: 8.218 | O171: 11.06 | P171: 17.514 | Q171: 19.306 | R171: 21.266 | S171: 21.826 | T171: 22.456 | U171: 22.876 | V171: 22.876 | W171: 25.452 | AA171: 8 | AB171: -1.738 | AC171: -1.95 | AD171: -3.754 | AE171: -4.256 | AF171: -4.916 | AG171: -5.136 | AH171: -5.176 | AI171: 24.376 | AJ171: 24.376 | AK171: 26.952
A172: 9 | B172: -1.506 | C172: -2.096 | D172: -3.848 | E172: -4.522 | F172: -5.136 | G172: -5.384 | H172: -5.508 | I172: 24.332 | J172: 24.332 | K172: 27.118 | M172: 9 | N172: 8.316 | O172: 11.466 | P172: 18.508 | Q172: 20.552 | R172: 22.596 | S172: 23.254 | T172: 23.898 | U172: 24.332 | V172: 24.332 | W172: 27.118 | AA172: 9 | AB172: -1.506 | AC172: -2.096 | AD172: -3.848 | AE172: -4.522 | AF172: -5.136 | AG172: -5.384 | AH172: -5.508 | AI172: 25.832 | AJ172: 25.832 | AK172: 28.618
A173: 10 | B173: -1.16 | C173: -1.7 | D173: -3.882 | E173: -4.56 | F173: -4.07 | G173: -4.228 | H173: -4.968 | I173: 25.76 | J173: 25.76 | K173: 27.132 | M173: 10 | N173: 8.33 | O173: 11.48 | P173: 19.362 | Q173: 21.63 | R173: 22.61 | S173: 23.268 | T173: 24.528 | U173: 25.76 | V173: 25.76 | W173: 27.132 | AA173: 10 | AB173: -1.16 | AC173: -1.7 | AD173: -3.882 | AE173: -4.56 | AF173: -4.07 | AG173: -4.228 | AH173: -4.968 | AI173: 27.26 | AJ173: 27.26 | AK173: 28.632
A174: 11 | B174: -1.878 | C174: -2.416 | D174: -4.184 | E174: -4.832 | F174: -5.616 | G174: -5.918 | H174: -5.954 | I174: 27.202 | J174: 27.202 | K174: 29.988 | M174: 11 | N174: 9.198 | O174: 12.586 | P174: 20.384 | Q174: 22.792 | R174: 25.256 | S174: 26.068 | T174: 26.684 | U174: 27.202 | V174: 27.202 | W174: 29.988 | AA174: 11 | AB174: -1.878 | AC174: -2.416 | AD174: -4.184 | AE174: -4.832 | AF174: -5.616 | AG174: -5.918 | AH174: -5.954 | AI174: 28.702 | AJ174: 28.702 | AK174: 31.488
A175: 12 | B175: -1.996 | C175: -2.494 | D175: -4.436 | E175: -4.906 | F175: -5.772 | G175: -6.152 | H175: -6.262 | I175: 28.532 | J175: 28.532 | K175: 30.688 | M175: 12 | N175: 9.576 | O175: 13.104 | P175: 21.476 | Q175: 23.856 | R175: 26.502 | S175: 27.482 | T175: 28.112 | U175: 28.532 | V175: 28.532 | W175: 30.688 | AA175: 12 | AB175: -1.996 | AC175: -2.494 | AD175: -4.436 | AE175: -4.906 | AF175: -5.772 | AG175: -6.152 | AH175: -6.262 | AI175: 30.032 | AJ175: 30.032 | AK175: 32.188
A176: 13 | B176: -1.886 | C176: -2.454 | D176: -4.538 | E176: -5.128 | F176: -5.826 | G176: -6.438 | H176: -6.45 | I176: 29.96 | J176: 29.96 | K176: 31.57 | M176: 13 | N176: 9.716 | O176: 13.594 | P176: 22.498 | Q176: 24.948 | R176: 27.566 | S176: 28.938 | T176: 29.47 | U176: 29.96 | V176: 29.96 | W176: 31.57 | AA176: 13 | AB176: -1.886 | AC176: -2.454 | AD176: -4.538 | AE176: -5.128 | AF176: -5.826 | AG176: -6.438 | AH176: -6.45 | AI176: 31.46 | AJ176: 31.46 | AK176: 33.07
A177: 14 | B177: -2.168 | C177: -2.402 | D177: -4.85 | E177: -5.278 | F177: -6.014 | G177: -6.518 | H177: -6.772 | I177: 31.304 | J177: 31.304 | K177: 32.466 | M177: 14 | N177: 10.108 | O177: 14.112 | P177: 23.66 | Q177: 25.998 | R177: 28.644 | S177: 30.198 | T177: 30.912 | U177: 31.304 | V177: 31.304 | W177: 32.466 | AA177: 14 | AB177: -2.168 | AC177: -2.402 | AD177: -4.85 | AE177: -5.278 | AF177: -6.014 | AG177: -6.518 | AH177: -6.772 | AI177: 32.804 | AJ177: 32.804 | AK177: 33.966
A178: 15 | B178: -2.014 | C178: -2.34 | D178: -4.678 | E178: -5.448 | F178: -5.158 | G178: -6.458 | H178: -6.768 | I178: 32.256 | J178: 32.256 | K178: 33.292 | M178: 15 | N178: 10.234 | O178: 14.49 | P178: 24.458 | Q178: 27.048 | R178: 28.658 | S178: 31.178 | T178: 32.088 | U178: 32.256 | V178: 32.256 | W178: 33.292 | AA178: 15 | AB178: -2.014 | AC178: -2.34 | AD178: -4.678 | AE178: -5.448 | AF178: -5.158 | AG178: -6.458 | AH178: -6.768 | AI178: 33.756 | AJ178: 33.756 | AK178: 34.792
A179: 16 | B179: =AN24-B24 -> -2.09 | C179: -2.54 | D179: -5.174 | E179: -5.586 | F179: -6.304 | G179: -6.47 | H179: -6.606 | I179: 33.544 | J179: 33.544 | K179: 34.776 | M179: 16 | N179: 10.64 | O179: 15.12 | P179: 25.634 | Q179: 28.056 | R179: 30.674 | S179: 31.99 | T179: 32.886 | U179: 33.544 | V179: 33.544 | W179: 34.776 | AA179: 16 | AB179: -2.09 | AC179: =BG24-AC24 -> -2.54 | AD179: -5.174 | AE179: -5.586 | AF179: -6.304 | AG179: -6.47 | AH179: -6.606 | AI179: =I179+1.5 -> 35.044 | AJ179: 35.044 | AK179: 36.276
A180: 17 | B180: -2.354 | C180: -2.754 | D180: -4.912 | E180: -5.628 | F180: -6.194 | G180: -6.514 | H180: -6.674 | I180: 34.286 | J180: 34.286 | K180: 35.77 | M180: 17 | N180: 11.074 | O180: 15.624 | P180: 26.362 | Q180: 28.938 | R180: 31.374 | S180: 32.704 | T180: 33.614 | U180: 34.286 | V180: 34.286 | W180: 35.77 | AA180: 17 | AB180: =BF25-AB25 -> -2.354 | AC180: -2.754 | AD180: -4.912 | AE180: -5.628 | AF180: -6.194 | AG180: -6.514 | AH180: -6.674 | AI180: 35.786 | AJ180: 35.786 | AK180: 37.27
A181: 18 | B181: -2.282 | C181: -3.028 | D181: -5.11 | E181: -5.514 | F181: -6.304 | G181: -6.652 | H181: -6.976 | I181: 35.14 | J181: 35.14 | K181: 37.226 | M181: 18 | N181: 11.452 | O181: 16.128 | P181: 27.16 | Q181: 29.554 | R181: 32.074 | S181: 33.432 | T181: 34.496 | U181: 35.14 | V181: 35.14 | W181: 37.226 | AA181: 18 | AB181: -2.282 | AC181: -3.028 | AD181: -5.11 | AE181: -5.514 | AF181: -6.304 | AG181: -6.652 | AH181: -6.976 | AI181: 36.64 | AJ181: 36.64 | AK181: 38.726
A182: 19 | B182: -2.236 | C182: -3.112 | D182: -5.07 | E182: -5.634 | F182: -6.472 | G182: -6.804 | H182: -7.146 | I182: 36.302 | J182: 36.302 | K182: 38.234 | M182: 19 | N182: 11.676 | O182: 16.562 | P182: 27.79 | Q182: 30.184 | R182: 32.802 | S182: 34.174 | T182: 35.406 | U182: 36.302 | V182: 36.302 | W182: 38.234 | AA182: 19 | AB182: -2.236 | AC182: -3.112 | AD182: -5.07 | AE182: -5.634 | AF182: -6.472 | AG182: -6.804 | AH182: -7.146 | AI182: 37.802 | AJ182: 37.802 | AK182: 39.734
A183: 20 | B183: -2 | C183: -2.952 | D183: -5.254 | E183: -5.852 | F183: -6.586 | G183: -7.002 | H183: -7.228 | I183: 37.016 | J183: 37.016 | K183: 40.768 | M183: 20 | N183: 11.69 | O183: 16.772 | P183: 28.504 | Q183: 30.912 | R183: 33.516 | S183: 34.972 | T183: 36.218 | U183: 37.016 | V183: 37.016 | W183: 40.768 | AA183: 20 | AB183: -2 | AC183: -2.952 | AD183: -5.254 | AE183: -5.852 | AF183: -6.586 | AG183: -7.002 | AH183: -7.228 | AI183: 38.516 | AJ183: 38.516 | AK183: 42.268
A184: 21 | B184: -2.436 | C184: -3.21 | D184: -4.06 | E184: -4.456 | F184: -5.052 | G184: -5.302 | H184: -5.742 | I184: 37.87 | J184: 37.87 | K184: 41.902 | M184: 21 | N184: 12.306 | O184: 17.43 | P184: 29.12 | Q184: 31.696 | R184: 34.202 | S184: 35.672 | T184: 37.212 | U184: 37.87 | V184: 37.87 | W184: 41.902 | AA184: 21 | AB184: -2.436 | AC184: -3.21 | AD184: -4.06 | AE184: -4.456 | AF184: -5.052 | AG184: -5.302 | AH184: -5.742 | AI184: 39.37 | AJ184: 39.37 | AK184: 43.402
A185: 22 | B185: -2.54 | C185: -3.322 | D185: -4.09 | E185: -4.5 | F185: -4.906 | G185: -5.258 | H185: -5.68 | I185: 38.71 | J185: 38.71 | K185: 42.868 | M185: 22 | N185: 12.67 | O185: 17.822 | P185: 29.82 | Q185: 32.41 | R185: 34.916 | S185: 36.498 | T185: 38.01 | U185: 38.71 | V185: 38.71 | W185: 42.868 | AA185: 22 | AB185: -2.54 | AC185: -3.322 | AD185: -4.09 | AE185: -4.5 | AF185: -4.906 | AG185: -5.258 | AH185: -5.68 | AI185: 40.21 | AJ185: 40.21 | AK185: 44.368
A186: 23 | B186: -2.432 | C186: -3.366 | D186: -4.154 | E186: -4.658 | F186: -4.968 | G186: -5.202 | H186: -5.886 | I186: 39.76 | J186: 39.76 | K186: 43.568 | M186: 23 | N186: 12.922 | O186: 18.186 | P186: 30.534 | Q186: 33.208 | R186: 35.728 | S186: 37.282 | T186: 38.906 | U186: 39.76 | V186: 39.76 | W186: 43.568 | AA186: 23 | AB186: -2.432 | AC186: -3.366 | AD186: -4.154 | AE186: -4.658 | AF186: -4.968 | AG186: -5.202 | AH186: -5.886 | AI186: 41.26 | AJ186: 41.26 | AK186: 45.068
A187: 24 | B187: -2.552 | C187: -3.428 | D187: -4.236 | E187: -4.798 | F187: -5.21 | G187: -5.324 | H187: -5.904 | I187: 40.516 | J187: 40.516 | K187: 44.422 | M187: 24 | N187: 13.202 | O187: 18.508 | P187: 31.346 | Q187: 34.048 | R187: 36.68 | S187: 38.094 | T187: 39.704 | U187: 40.516 | V187: 40.516 | W187: 44.422 | AA187: 24 | AB187: -2.552 | AC187: -3.428 | AD187: -4.236 | AE187: -4.798 | AF187: -5.21 | AG187: -5.324 | AH187: -5.904 | AI187: 42.016 | AJ187: 42.016 | AK187: 45.922
A188: 25 | B188: -2.384 | C188: -3.276 | D188: -4.314 | E188: -4.758 | F188: -4.748 | G188: -5.528 | H188: -6.026 | I188: 41.776 | J188: 41.776 | K188: 44.688 | M188: 25 | N188: 13.314 | O188: 18.606 | P188: 32.144 | Q188: 34.748 | R188: 37.058 | S188: 39.018 | T188: 40.516 | U188: 41.776 | V188: 41.776 | W188: 44.688 | AA188: 25 | AB188: -2.384 | AC188: -3.276 | AD188: -4.314 | AE188: -4.758 | AF188: -4.748 | AG188: -5.528 | AH188: -6.026 | AI188: 43.276 | AJ188: 43.276 | AK188: 46.188
A189: 26 | B189: -2.642 | C189: -3.66 | D189: -4.456 | E189: -4.642 | F189: -5.494 | G189: -5.342 | H189: -6.03 | I189: 42.42 | J189: 42.42 | K189: 46.116 | M189: 26 | N189: 13.832 | O189: 19.32 | P189: 33.026 | Q189: 35.602 | R189: 38.654 | S189: 40.012 | T189: 41.37 | U189: 42.42 | V189: 42.42 | W189: 46.116 | AA189: 26 | AB189: -2.642 | AC189: -3.66 | AD189: -4.456 | AE189: -4.642 | AF189: -5.494 | AG189: -5.342 | AH189: -6.03 | AI189: 43.92 | AJ189: 43.92 | AK189: 47.616
A190: 27 | B190: -2.654 | C190: -3.574 | D190: -4.448 | E190: -4.934 | F190: -5.788 | G190: -5.49 | H190: -6.044 | I190: 43.302 | J190: 43.302 | K190: 46.9 | M190: 27 | N190: 14.084 | O190: 19.684 | P190: 33.838 | Q190: 36.624 | R190: 39.718 | S190: 40.88 | T190: 42.154 | U190: 43.302 | V190: 43.302 | W190: 46.9 | AA190: 27 | AB190: -2.654 | AC190: -3.574 | AD190: -4.448 | AE190: -4.934 | AF190: -5.788 | AG190: -5.49 | AH190: -6.044 | AI190: 44.802 | AJ190: 44.802 | AK190: 48.4
A191: 28 | B191: -2.838 | C191: -3.568 | D191: -4.584 | E191: -5.284 | F191: -5.95 | G191: -5.422 | H191: -6.01 | I191: 44.1 | J191: 44.1 | K191: 47.894 | M191: 28 | N191: 14.448 | O191: 20.118 | P191: 34.734 | Q191: 37.674 | R191: 40.53 | S191: 41.692 | T191: 43.05 | U191: 44.1 | V191: 44.1 | W191: 47.894 | AA191: 28 | AB191: -2.838 | AC191: -3.568 | AD191: -4.584 | AE191: -5.284 | AF191: -5.95 | AG191: -5.422 | AH191: -6.01 | AI191: 45.6 | AJ191: 45.6 | AK191: 49.394
A192: 29 | B192: -2.628 | C192: -3.474 | D192: -4.656 | E192: -5.412 | F192: -5.958 | G192: -5.492 | H192: -5.86 | I192: 44.814 | J192: 44.814 | K192: 48.986 | M192: 29 | N192: 14.588 | O192: 20.454 | P192: 35.616 | Q192: 38.472 | R192: 41.398 | S192: 42.602 | T192: 43.96 | U192: 44.814 | V192: 44.814 | W192: 48.986 | AA192: 29 | AB192: -2.628 | AC192: -3.474 | AD192: -4.656 | AE192: -5.412 | AF192: -5.958 | AG192: -5.492 | AH192: -5.86 | AI192: 46.314 | AJ192: 46.314 | AK192: 50.486
A193: 30 | B193: -2.372 | C193: -3.188 | D193: -4.68 | E193: -5.634 | F193: -5.302 | G193: -5.634 | H193: -5.124 | I193: 45.626 | J193: 45.626 | K193: 49.168 | M193: 30 | N193: 14.602 | O193: 20.468 | P193: 36.33 | Q193: 39.354 | R193: 41.412 | S193: 43.414 | T193: 44.254 | U193: 45.626 | V193: 45.626 | W193: 49.168 | AA193: 30 | AB193: -2.372 | AC193: -3.188 | AD193: -4.68 | AE193: -5.634 | AF193: -5.302 | AG193: -5.634 | AH193: -5.124 | AI193: 47.126 | AJ193: 47.126 | AK193: 50.668
A194: 31 | B194: -2.85 | C194: -3.734 | D194: -4.634 | E194: -5.78 | F194: -6.118 | G194: -5.836 | H194: -5.862 | I194: 46.452 | J194: 46.452 | K194: 50.778 | M194: 31 | N194: 15.26 | O194: 21.224 | P194: 37.114 | Q194: 40.25 | R194: 43.078 | S194: 44.296 | T194: 45.752 | U194: 46.452 | V194: 46.452 | W194: 50.778 | AA194: 31 | AB194: -2.85 | AC194: -3.734 | AD194: -4.634 | AE194: -5.78 | AF194: -6.118 | AG194: -5.836 | AH194: -5.862 | AI194: 47.952 | AJ194: 47.952 | AK194: 52.278
A195: 32 | B195: =AN40-B40 -> -3.034 | C195: -4.034 | D195: -4.766 | E195: -5.806 | F195: -6.18 | G195: -6.062 | H195: -5.93 | I195: 47.32 | J195: 47.32 | K195: 51.87 | M195: 32 | N195: 15.694 | O195: 21.714 | P195: 37.926 | Q195: 41.146 | R195: 43.96 | S195: 45.192 | T195: 46.62 | U195: 47.32 | V195: 47.32 | W195: 51.87 | AA195: 32 | AB195: -3.034 | AC195: -4.034 | AD195: -4.766 | AE195: -5.806 | AF195: -6.18 | AG195: -6.062 | AH195: -5.93 | AI195: 48.82 | AJ195: 48.82 | AK195: 53.37
A196: 33 | B196: -3.138 | C196: -4.29 | D196: -4.934 | E196: -5.918 | F196: -6.216 | G196: -6.29 | H196: -6.214 | I196: 48.398 | J196: 48.398 | K196: 52.99 | M196: 33 | N196: 16.058 | O196: 22.26 | P196: 38.654 | Q196: 42.028 | R196: 44.856 | S196: 46.2 | T196: 47.684 | U196: 48.398 | V196: 48.398 | W196: 52.99 | AA196: 33 | AB196: =BF41-AB41 -> -3.138 | AC196: -4.29 | AD196: -4.934 | AE196: -5.918 | AF196: -6.216 | AG196: -6.29 | AH196: -6.214 | AI196: 49.898 | AJ196: 49.898 | AK196: 54.49
A197: 34 | B197: -3.198 | C197: -4.246 | D197: -5.126 | E197: -6.074 | F197: -6.202 | G197: -6.554 | H197: -6.278 | I197: 49.378 | J197: 49.378 | K197: 53.998 | M197: 34 | N197: 16.408 | O197: 22.596 | P197: 39.536 | Q197: 42.924 | R197: 45.822 | S197: 47.194 | T197: 48.678 | U197: 49.378 | V197: 49.378 | W197: 53.998 | AA197: 34 | AB197: -3.198 | AC197: -4.246 | AD197: -5.126 | AE197: -6.074 | AF197: -6.202 | AG197: -6.554 | AH197: -6.278 | AI197: 50.878 | AJ197: 50.878 | AK197: 55.498
A198: 35 | B198: -3.318 | C198: -4.256 | D198: -5.168 | E198: -6.32 | F198: -6.234 | G198: -6.658 | H198: -6.39 | I198: 50.386 | J198: 50.386 | K198: 55.076 | M198: 35 | N198: 16.758 | O198: 23.016 | P198: 40.418 | Q198: 43.82 | R198: 46.704 | S198: 48.188 | T198: 49.63 | U198: 50.386 | V198: 50.386 | W198: 55.076 | AA198: 35 | AB198: -3.318 | AC198: -4.256 | AD198: -5.168 | AE198: -6.32 | AF198: -6.234 | AG198: -6.658 | AH198: -6.39 | AI198: 51.886 | AJ198: 51.886 | AK198: 56.576
A199: 36 | B199: -3.498 | C199: -4.26 | D199: -5.306 | E199: -6.432 | F199: -6.374 | G199: -6.812 | H199: -6.536 | I199: 51.352 | J199: 51.352 | K199: 56.294 | M199: 36 | N199: 17.318 | O199: 23.38 | P199: 41.286 | Q199: 44.702 | R199: 47.614 | S199: 49.252 | T199: 50.596 | U199: 51.352 | V199: 51.352 | W199: 56.294 | AA199: 36 | AB199: -3.498 | AC199: -4.26 | AD199: -5.306 | AE199: -6.432 | AF199: -6.374 | AG199: -6.812 | AH199: -6.536 | AI199: 52.852 | AJ199: 52.852 | AK199: 57.794
A200: 37 | B200: -3.262 | C200: -4.512 | D200: -5.348 | E200: -6.572 | F200: -6.486 | G200: -7.114 | H200: -6.64 | I200: 52.444 | J200: 52.444 | K200: 57.204 | M200: 37 | N200: 17.332 | O200: 24.052 | P200: 42.098 | Q200: 45.612 | R200: 48.566 | S200: 50.344 | T200: 51.66 | U200: 52.444 | V200: 52.444 | W200: 57.204 | AA200: 37 | AB200: -3.262 | AC200: -4.512 | AD200: -5.348 | AE200: -6.572 | AF200: -6.486 | AG200: -7.114 | AH200: -6.64 | AI200: 53.944 | AJ200: 53.944 | AK200: 58.704
A201: 38 | B201: -3.272 | C201: -4.63 | D201: -5.11 | E201: -6.42 | F201: -6.56 | G201: -7.55 | H201: -7.04 | I201: 53.424 | J201: 53.424 | K201: 58.324 | M201: 38 | N201: 17.612 | O201: 24.43 | P201: 42.84 | Q201: 46.41 | R201: 49.49 | S201: 51.52 | T201: 52.64 | U201: 53.424 | V201: 53.424 | W201: 58.324 | AA201: 38 | AB201: -3.272 | AC201: -4.63 | AD201: -5.11 | AE201: -6.42 | AF201: -6.56 | AG201: -7.55 | AH201: -7.04 | AI201: 54.924 | AJ201: 54.924 | AK201: 59.824
A202: 39 | B202: -3.606 | C202: -4.65 | D202: -5.068 | E202: -6.338 | F202: -6.638 | G202: -7.974 | H202: -7.32 | I202: 54.474 | J202: 54.474 | K202: 58.338 | M202: 39 | N202: 18.186 | O202: 24.85 | P202: 43.638 | Q202: 47.278 | R202: 50.428 | S202: 52.584 | T202: 53.69 | U202: 54.474 | V202: 54.474 | W202: 58.338 | AA202: 39 | AB202: -3.606 | AC202: -4.65 | AD202: -5.068 | AE202: -6.338 | AF202: -6.638 | AG202: -7.974 | AH202: -7.32 | AI202: 55.974 | AJ202: 55.974 | AK202: 59.838
... 112 more rows

Sheet ND Svr Multi
A1: UPS Next Day Saver Service | J1: UPS Next Day Saver Service
A2: - Commercial | J2: - Residential
A3: (Per Package Rates from 48 State Origin) | J3: (Per Package Rates from 48 State Origin)
A4: Rates below do not include Residential Surcharge | J4: Rates Include Residential Surcharge
A5: Lbs. | B5: Zone 132 | C5: Zone 133 | D5: Zone 134 | E5: Zone 135 | F5: Zone 136 | G5: Zone 137 | H5: Zone 138 | J5: Lbs. | K5: Zone 132 | L5: Zone 133 | M5: Zone 134 | N5: Zone 135 | O5: Zone 136 | P5: Zone 137 | Q5: Zone 138
A6: Letter | B6: 6.1 | C6: 6.1 | D6: 7.12 | E6: 7.66 | F6: 7.73 | G6: 8.52 | H6: 8.66 | J6: Letter | K6: 7.74 | L6: 7.74 | M6: 8.77 | N6: 9.3 | O6: 9.38 | P6: 10.16 | Q6: 10.31
A7: 1 | B7: 6.07 | C7: 6.15 | D7: 7.64 | E7: 8.1 | F7: 8.16 | G7: 8.67 | H7: 9.13 | J7: 1 | K7: 7.71 | L7: 7.79 | M7: 9.28 | N7: 9.75 | O7: 9.8 | P7: 10.32 | Q7: 10.77
A8: 2 | B8: 6.15 | C8: 6.98 | D8: 8.94 | E8: 9.9 | F8: 10.76 | G8: 11.48 | H8: 11.79 | J8: 2 | K8: 7.79 | L8: 8.62 | M8: 10.59 | N8: 11.55 | O8: 12.41 | P8: 13.12 | Q8: 13.43
A9: 3 | B9: 6.15 | C9: 7.39 | D9: 10.09 | E9: 10.97 | F9: 12.15 | G9: 12.64 | H9: 13.17 | J9: 3 | K9: 7.79 | L9: 9.04 | M9: 11.74 | N9: 12.62 | O9: 13.8 | P9: 14.28 | Q9: 14.81
A10: 4 | B10: 6.15 | C10: 7.82 | D10: 11.16 | E10: 12.15 | F10: 13.48 | G10: 13.9 | H10: 14.38 | J10: 4 | K10: 7.79 | L10: 9.47 | M10: 12.8 | N10: 13.8 | O10: 15.12 | P10: 15.55 | Q10: 16.02
A11: 5 | B11: 6.35 | C11: 8.33 | D11: 12.11 | E11: 13.32 | F11: 14.71 | G11: 15.12 | H11: 15.72 | J11: 5 | K11: 8 | L11: 9.98 | M11: 13.76 | N11: 14.97 | O11: 16.35 | P11: 16.77 | Q11: 17.37
A12: 6 | B12: 6.54 | C12: 8.46 | D12: 13.24 | E12: 14.47 | F12: 15.7 | G12: 16.13 | H12: 16.69 | J12: 6 | K12: 8.19 | L12: 10.1 | M12: 14.88 | N12: 16.11 | O12: 17.35 | P12: 17.77 | Q12: 18.34
A13: 7 | B13: 6.91 | C13: 9.5 | D13: 14.31 | E13: 15.42 | F13: 17.03 | G13: 17.27 | H13: 18.01 | J13: 7 | K13: 8.56 | L13: 11.15 | M13: 15.96 | N13: 17.07 | O13: 18.67 | P13: 18.92 | Q13: 19.65
A14: 8 | B14: 7.06 | C14: 9.92 | D14: 15.32 | E14: 16.75 | F14: 18.21 | G14: 18.58 | H14: 19.23 | J14: 8 | K14: 8.7 | L14: 11.56 | M14: 16.96 | N14: 18.39 | O14: 19.85 | P14: 20.22 | Q14: 20.88
A15: 9 | B15: 7.42 | C15: 10.21 | D15: 16.31 | E15: 17.84 | F15: 19.44 | G15: 19.89 | H15: 20.47 | J15: 9 | K15: 9.07 | L15: 11.85 | M15: 17.96 | N15: 19.49 | O15: 21.08 | P15: 21.54 | Q15: 22.12
A16: 10 | B16: 7.81 | C16: 10.65 | D16: 17.23 | E16: 19 | F16: 20.64 | G16: 21.2 | H16: 21.78 | J16: 10 | K16: 9.46 | L16: 12.3 | M16: 18.88 | N16: 20.65 | O16: 22.28 | P16: 22.84 | Q16: 23.42
A17: 11 | B17: 7.97 | C17: 11.07 | D17: 18.03 | E17: 20 | F17: 21.86 | G17: 22.43 | H17: 23.08 | J17: 11 | K17: 9.62 | L17: 12.72 | M17: 19.68 | N17: 21.64 | O17: 23.5 | P17: 24.07 | Q17: 24.73
A18: 12 | B18: 8.25 | C18: 11.55 | D18: 18.96 | E18: 21.1 | F18: 23.08 | G18: 23.74 | H18: 24.32 | J18: 12 | K18: 9.89 | L18: 13.2 | M18: 20.61 | N18: 22.75 | O18: 24.73 | P18: 25.39 | Q18: 25.97
A19: 13 | B19: 8.53 | C19: 12.13 | D19: 20 | E19: 22.07 | F19: 24.2 | G19: 25.05 | H19: 25.63 | J19: 13 | K19: 10.17 | L19: 13.78 | M19: 21.64 | N19: 23.71 | O19: 25.84 | P19: 26.69 | Q19: 27.27
A20: 14 | B20: 8.64 | C20: 12.75 | D20: 20.93 | E20: 23.07 | F20: 25.19 | G20: 26.36 | H20: 26.87 | J20: 14 | K20: 10.29 | L20: 14.4 | M20: 22.57 | N20: 24.72 | O20: 26.84 | P20: 28.01 | Q20: 28.51
A21: 15 | B21: 8.95 | C21: 13.24 | D21: 22.01 | E21: 24.05 | F21: 26.15 | G21: 27.51 | H21: 28.18 | J21: 15 | K21: 10.6 | L21: 14.88 | M21: 23.66 | N21: 25.7 | O21: 27.8 | P21: 29.16 | Q21: 29.83
A22: 16 | B22: 9.32 | C22: 13.7 | D22: 22.78 | E22: 25.01 | F22: 27.13 | G22: 28.4 | H22: 29.26 | J22: 16 | K22: 10.96 | L22: 15.35 | M22: 24.43 | N22: 26.65 | O22: 28.77 | P22: 30.05 | Q22: 30.91
A23: 17 | B23: 9.49 | C23: 14.01 | D23: 23.87 | E23: 25.94 | F23: 28.03 | G23: 29.16 | H23: 29.98 | J23: 17 | K23: 11.14 | L23: 15.66 | M23: 25.51 | N23: 27.58 | O23: 29.67 | P23: 30.8 | Q23: 31.63
A24: 18 | B24: 9.99 | C24: 14.27 | D24: 24.55 | E24: 26.75 | F24: 28.69 | G24: 29.81 | H24: 30.64 | J24: 18 | K24: 11.63 | L24: 15.92 | M24: 26.2 | N24: 28.4 | O24: 30.34 | P24: 31.45 | Q24: 32.28
A25: 19 | B25: 10.29 | C25: 14.65 | D25: 25.29 | E25: 27.32 | F25: 29.31 | G25: 30.46 | H25: 31.45 | J25: 19 | K25: 11.93 | L25: 16.29 | M25: 26.93 | N25: 28.97 | O25: 30.96 | P25: 32.11 | Q25: 33.1
A26: 20 | B26: 10.55 | C26: 15.05 | D26: 25.88 | E26: 27.88 | F26: 29.97 | G26: 31.13 | H26: 32.27 | J26: 20 | K26: 12.19 | L26: 16.69 | M26: 27.52 | N26: 29.53 | O26: 31.62 | P26: 32.78 | Q26: 33.92
A27: 21 | B27: 10.75 | C27: 15.48 | D27: 27.88 | E27: 30.33 | F27: 32.44 | G27: 33.81 | H27: 35.02 | J27: 21 | K27: 12.4 | L27: 17.13 | M27: 29.53 | N27: 31.97 | O27: 34.08 | P27: 35.46 | Q27: 36.67
A28: 22 | B28: 11.03 | C28: 15.78 | D28: 28.65 | E28: 31.06 | F28: 33.4 | G28: 34.78 | H28: 35.98 | J28: 22 | K28: 12.68 | L28: 17.43 | M28: 30.29 | N28: 32.71 | O28: 35.05 | P28: 36.42 | Q28: 37.62
A29: 23 | B29: 11.43 | C29: 16.14 | D29: 29.36 | E29: 31.77 | F29: 34.24 | G29: 35.71 | H29: 36.76 | J29: 23 | K29: 13.07 | L29: 17.78 | M29: 31.01 | N29: 33.42 | O29: 35.88 | P29: 37.35 | Q29: 38.41
A30: 24 | B30: 11.6 | C30: 16.43 | D30: 30.17 | E30: 32.55 | F30: 35.02 | G30: 36.47 | H30: 37.61 | J30: 24 | K30: 13.25 | L30: 18.07 | M30: 31.82 | N30: 34.2 | O30: 36.67 | P30: 38.12 | Q30: 39.26
A31: 25 | B31: 11.9 | C31: 16.69 | D31: 30.98 | E31: 33.38 | F31: 35.96 | G31: 37.28 | H31: 38.4 | J31: 25 | K31: 13.55 | L31: 18.34 | M31: 32.62 | N31: 35.02 | O31: 37.6 | P31: 38.93 | Q31: 40.04
A32: 26 | B32: 12.18 | C32: 17.06 | D32: 31.8 | E32: 34.47 | F32: 36.91 | G32: 38.58 | H32: 39.34 | J32: 26 | K32: 13.83 | L32: 18.7 | M32: 33.44 | N32: 36.11 | O32: 38.55 | P32: 40.23 | Q32: 40.99
A33: 27 | B33: 12.45 | C33: 17.54 | D33: 32.72 | E33: 35.27 | F33: 37.78 | G33: 39.39 | H33: 40.19 | J33: 27 | K33: 14.1 | L33: 19.19 | M33: 34.36 | N33: 36.92 | O33: 39.42 | P33: 41.04 | Q33: 41.83
A34: 28 | B34: 12.65 | C34: 18.02 | D34: 33.55 | E34: 36.05 | F34: 38.49 | G34: 40.38 | H34: 41.22 | J34: 28 | K34: 14.29 | L34: 19.67 | M34: 35.2 | N34: 37.69 | O34: 40.14 | P34: 42.02 | Q34: 42.87
A35: 29 | B35: 13.03 | C35: 18.5 | D35: 34.47 | E35: 36.8 | F35: 39.44 | G35: 41.32 | H35: 42.41 | J35: 29 | K35: 14.68 | L35: 20.14 | M35: 36.11 | N35: 38.45 | O35: 41.09 | P35: 42.96 | Q35: 44.06
A36: 30 | B36: 13.32 | C36: 18.83 | D36: 35.23 | E36: 37.53 | F36: 40.19 | G36: 42.05 | H36: 43.55 | J36: 30 | K36: 14.97 | L36: 20.47 | M36: 36.88 | N36: 39.17 | O36: 41.83 | P36: 43.7 | Q36: 45.2
A37: 31 | B37: 13.51 | C37: 19.04 | D37: 36.15 | E37: 38.38 | F37: 41.13 | G37: 42.81 | H37: 44.4 | J37: 31 | K37: 15.15 | L37: 20.69 | M37: 37.8 | N37: 40.02 | O37: 42.78 | P37: 44.45 | Q37: 46.05
A38: 32 | B38: 13.79 | C38: 19.25 | D38: 36.91 | E38: 39.34 | F38: 42.05 | G38: 43.55 | H38: 45.3 | J38: 32 | K38: 15.43 | L38: 20.9 | M38: 38.55 | N38: 40.99 | O38: 43.7 | P38: 45.2 | Q38: 46.95
A39: 33 | B39: 14.07 | C39: 19.57 | D39: 37.53 | E39: 40.19 | F39: 43.01 | G39: 44.42 | H39: 46.15 | J39: 33 | K39: 15.71 | L39: 21.22 | M39: 39.17 | N39: 41.83 | O39: 44.66 | P39: 46.07 | Q39: 47.8
A40: 34 | B40: 14.39 | C40: 19.99 | D40: 38.3 | E40: 41.02 | F40: 44.1 | G40: 45.23 | H40: 47.2 | J40: 34 | K40: 16.03 | L40: 21.63 | M40: 39.94 | N40: 42.66 | O40: 45.75 | P40: 46.88 | Q40: 48.84
A41: 35 | B41: 14.63 | C41: 20.43 | D41: 39.24 | E41: 41.74 | F41: 45.04 | G41: 46.22 | H41: 48.13 | J41: 35 | K41: 16.28 | L41: 22.08 | M41: 40.88 | N41: 43.39 | O41: 46.69 | P41: 47.87 | Q41: 49.77
A42: 36 | B42: 15.05 | C42: 20.82 | D42: 40.04 | E42: 42.6 | F42: 45.91 | G42: 47.24 | H42: 49.04 | J42: 36 | K42: 16.69 | L42: 22.47 | M42: 41.69 | N42: 44.25 | O42: 47.56 | P42: 48.88 | Q42: 50.68
A43: 37 | B43: 15.33 | C43: 21.28 | D43: 40.9 | E43: 43.45 | F43: 46.84 | G43: 48.12 | H43: 50.11 | J43: 37 | K43: 16.97 | L43: 22.93 | M43: 42.55 | N43: 45.09 | O43: 48.49 | P43: 49.76 | Q43: 51.76
A44: 38 | B44: 15.62 | C44: 21.56 | D44: 42 | E44: 44.51 | F44: 47.78 | G44: 48.95 | H44: 50.75 | J44: 38 | K44: 17.26 | L44: 23.2 | M44: 43.65 | N44: 46.15 | O44: 49.42 | P44: 50.59 | Q44: 52.39
A45: 39 | B45: 15.89 | C45: 21.99 | D45: 42.94 | E45: 45.57 | F45: 48.74 | G45: 49.65 | H45: 51.62 | J45: 39 | K45: 17.53 | L45: 23.64 | M45: 44.59 | N45: 47.22 | O45: 50.38 | P45: 51.29 | Q45: 53.26
A46: 40 | B46: 16.29 | C46: 22.51 | D46: 43.77 | E46: 46.52 | F46: 49.94 | G46: 50.53 | H46: 52.57 | J46: 40 | K46: 17.94 | L46: 24.16 | M46: 45.42 | N46: 48.17 | O46: 51.58 | P46: 52.17 | Q46: 54.21
A47: 41 | B47: 16.57 | C47: 23.05 | D47: 44.58 | E47: 47.6 | F47: 50.97 | G47: 51.62 | H47: 53.71 | J47: 41 | K47: 18.22 | L47: 24.7 | M47: 46.22 | N47: 49.25 | O47: 52.62 | P47: 53.26 | Q47: 55.35
A48: 42 | B48: 16.85 | C48: 23.37 | D48: 45.43 | E48: 48.53 | F48: 52.01 | G48: 52.57 | H48: 54.86 | J48: 42 | K48: 18.5 | L48: 25.02 | M48: 47.07 | N48: 50.18 | O48: 53.65 | P48: 54.21 | Q48: 56.5
A49: 43 | B49: 17.13 | C49: 23.68 | D49: 46.22 | E49: 49.6 | F49: 53.07 | G49: 53.6 | H49: 56.14 | J49: 43 | K49: 18.77 | L49: 25.33 | M49: 47.87 | N49: 51.24 | O49: 54.72 | P49: 55.25 | Q49: 57.78
A50: 44 | B50: 17.42 | C50: 24.2 | D50: 47.05 | E50: 50.64 | F50: 54.05 | G50: 54.7 | H50: 57.4 | J50: 44 | K50: 19.06 | L50: 25.84 | M50: 48.7 | N50: 52.29 | O50: 55.69 | P50: 56.35 | Q50: 59.05
A51: 45 | B51: 17.72 | C51: 24.61 | D51: 47.92 | E51: 51.62 | F51: 55.22 | G51: 55.61 | H51: 58.68 | J51: 45 | K51: 19.36 | L51: 26.26 | M51: 49.57 | N51: 53.26 | O51: 56.86 | P51: 57.26 | Q51: 60.33
A52: 46 | B52: 18.02 | C52: 25.15 | D52: 48.74 | E52: 52.57 | F52: 56.24 | G52: 56.66 | H52: 59.75 | J52: 46 | K52: 19.67 | L52: 26.8 | M52: 50.38 | N52: 54.21 | O52: 57.89 | P52: 58.3 | Q52: 61.4
A53: 47 | B53: 18.3 | C53: 25.56 | D53: 49.65 | E53: 53.41 | F53: 57.19 | G53: 57.75 | H53: 60.7 | J53: 47 | K53: 19.94 | L53: 27.21 | M53: 51.29 | N53: 55.05 | O53: 58.84 | P53: 59.4 | Q53: 62.35
A54: 48 | B54: 18.66 | C54: 26.1 | D54: 50.64 | E54: 54.24 | F54: 58.07 | G54: 58.9 | H54: 61.62 | J54: 48 | K54: 20.31 | L54: 27.75 | M54: 52.29 | N54: 55.89 | O54: 59.72 | P54: 60.55 | Q54: 63.27
A55: 49 | B55: 18.96 | C55: 26.63 | D55: 51.53 | E55: 55.22 | F55: 58.98 | G55: 59.83 | H55: 62.51 | J55: 49 | K55: 20.61 | L55: 28.28 | M55: 53.18 | N55: 56.86 | O55: 60.63 | P55: 61.48 | Q55: 64.16
A56: 50 | B56: 19.24 | C56: 27.14 | D56: 52.28 | E56: 55.84 | F56: 59.87 | G56: 60.83 | H56: 63.08 | J56: 50 | K56: 20.89 | L56: 28.78 | M56: 53.92 | N56: 57.48 | O56: 61.52 | P56: 62.47 | Q56: 64.73
A57: 51 | B57: 19.6 | C57: 27.54 | D57: 52.29 | E57: 55.86 | F57: 59.89 | G57: 60.84 | H57: 63.11 | J57: 51 | K57: 21.25 | L57: 29.19 | M57: 53.93 | N57: 57.5 | O57: 61.53 | P57: 62.48 | Q57: 64.76
A58: 52 | B58: 19.9 | C58: 28.08 | D58: 53.95 | E58: 57.8 | F58: 61.62 | G58: 63.01 | H58: 65.58 | J58: 52 | K58: 21.55 | L58: 29.73 | M58: 55.6 | N58: 59.45 | O58: 63.27 | P58: 64.66 | Q58: 67.22
A59: 53 | B59: 20.29 | C59: 28.5 | D59: 54.77 | E59: 58.9 | F59: 62.51 | G59: 64.3 | H59: 66.83 | J59: 53 | K59: 21.93 | L59: 30.15 | M59: 56.42 | N59: 60.55 | O59: 64.16 | P59: 65.95 | Q59: 68.48
A60: 54 | B60: 20.68 | C60: 29.11 | D60: 55.62 | E60: 59.94 | F60: 63.23 | G60: 65.68 | H60: 68.21 | J60: 54 | K60: 22.32 | L60: 30.76 | M60: 57.27 | N60: 61.58 | O60: 64.87 | P60: 67.33 | Q60: 69.85
A61: 55 | B61: 20.94 | C61: 29.65 | D61: 56.53 | E61: 61.15 | F61: 64.08 | G61: 67.15 | H61: 69.46 | J61: 55 | K61: 22.58 | L61: 31.3 | M61: 58.18 | N61: 62.79 | O61: 65.72 | P61: 68.8 | Q61: 71.1
A62: 56 | B62: 21.33 | C62: 30.29 | D62: 57.54 | E62: 61.98 | F62: 65.02 | G62: 68.1 | H62: 70.7 | J62: 56 | K62: 22.98 | L62: 31.94 | M62: 59.18 | N62: 63.62 | O62: 66.66 | P62: 69.75 | Q62: 72.35
A63: 57 | B63: 21.72 | C63: 30.79 | D63: 58.51 | E63: 62.64 | F63: 66 | G63: 69.53 | H63: 71.91 | J63: 57 | K63: 23.37 | L63: 32.44 | M63: 60.15 | N63: 64.28 | O63: 67.65 | P63: 71.18 | Q63: 73.56
A64: 58 | B64: 22.2 | C64: 31.45 | D64: 59.21 | E64: 63.83 | F64: 67.24 | G64: 70.78 | H64: 72.86 | J64: 58 | K64: 23.85 | L64: 33.1 | M64: 60.86 | N64: 65.47 | O64: 68.89 | P64: 72.43 | Q64: 74.51
A65: 59 | B65: 22.68 | C65: 32.18 | D65: 59.83 | E65: 64.69 | F65: 68.66 | G65: 72.12 | H65: 74.22 | J65: 59 | K65: 24.32 | L65: 33.82 | M65: 61.48 | N65: 66.33 | O65: 70.31 | P65: 73.76 | Q65: 75.87
A66: 60 | B66: 23.08 | C66: 33 | D66: 60.79 | E66: 65.49 | F66: 69.98 | G66: 73.31 | H66: 75.46 | J66: 60 | K66: 24.73 | L66: 34.64 | M66: 62.43 | N66: 67.14 | O66: 71.62 | P66: 74.95 | Q66: 77.11
A67: 61 | B67: 23.44 | C67: 33.74 | D67: 61.76 | E67: 66.6 | F67: 71.19 | G67: 74.65 | H67: 76.68 | J67: 61 | K67: 25.09 | L67: 35.39 | M67: 63.4 | N67: 68.25 | O67: 72.83 | P67: 76.3 | Q67: 78.33
A68: 62 | B68: 23.84 | C68: 34.36 | D68: 62.72 | E68: 67.38 | F68: 72.43 | G68: 75.91 | H68: 78 | J68: 62 | K68: 25.48 | L68: 36.01 | M68: 64.37 | N68: 69.02 | O68: 74.07 | P68: 77.55 | Q68: 79.64
A69: 63 | B69: 24.51 | C69: 34.88 | D69: 63.69 | E69: 68.21 | F69: 73.72 | G69: 77.01 | H69: 79.45 | J69: 63 | K69: 26.15 | L69: 36.53 | M69: 65.34 | N69: 69.85 | O69: 75.37 | P69: 78.66 | Q69: 81.09
A70: 64 | B70: 24.85 | C70: 35.55 | D70: 64.71 | E70: 69.26 | F70: 74.99 | G70: 78.13 | H70: 80.89 | J70: 64 | K70: 26.5 | L70: 37.2 | M70: 66.35 | N70: 70.91 | O70: 76.63 | P70: 79.78 | Q70: 82.53
A71: 65 | B71: 25.35 | C71: 36.25 | D71: 65.68 | E71: 70.33 | F71: 76.27 | G71: 79.6 | H71: 82.31 | J71: 65 | K71: 26.99 | L71: 37.89 | M71: 67.33 | N71: 71.97 | O71: 77.91 | P71: 81.25 | Q71: 83.96
A72: 66 | B72: 25.74 | C72: 36.89 | D72: 66.6 | E72: 71.29 | F72: 77.39 | G72: 80.86 | H72: 83.51 | J72: 66 | K72: 27.39 | L72: 38.53 | M72: 68.25 | N72: 72.94 | O72: 79.03 | P72: 82.51 | Q72: 85.16
A73: 67 | B73: 26.2 | C73: 36.91 | D73: 66.62 | E73: 71.3 | F73: 78.7 | G73: 82.31 | H73: 84.59 | J73: 67 | K73: 27.84 | L73: 38.55 | M73: 68.27 | N73: 72.95 | O73: 80.35 | P73: 83.96 | Q73: 86.24
A74: 68 | B74: 26.59 | C74: 38.38 | D74: 68.66 | E74: 73.4 | F74: 79.86 | G74: 83.51 | H74: 85.88 | J74: 68 | K74: 28.23 | L74: 40.02 | M74: 70.31 | N74: 75.05 | O74: 81.51 | P74: 85.16 | Q74: 87.53
A75: 69 | B75: 27.09 | C75: 39.08 | D75: 69.7 | E75: 74.45 | F75: 81.08 | G75: 84.73 | H75: 87.25 | J75: 69 | K75: 28.73 | L75: 40.73 | M75: 71.34 | N75: 76.09 | O75: 82.73 | P75: 86.37 | Q75: 88.9
A76: 70 | B76: 27.56 | C76: 39.74 | D76: 70.51 | E76: 75.52 | F76: 82.5 | G76: 85.88 | H76: 88.6 | J76: 70 | K76: 29.21 | L76: 41.39 | M76: 72.16 | N76: 77.17 | O76: 84.15 | P76: 87.53 | Q76: 90.24
A77: 71 | B77: 28.12 | C77: 40.53 | D77: 71.6 | E77: 76.67 | F77: 83.88 | G77: 87.02 | H77: 90.1 | J77: 71 | K77: 29.77 | L77: 42.18 | M77: 73.25 | N77: 78.32 | O77: 85.52 | P77: 88.67 | Q77: 91.74
A78: 72 | B78: 28.67 | C78: 41.19 | D78: 72.2 | E78: 77.64 | F78: 84.36 | G78: 87.89 | H78: 91.38 | J78: 72 | K78: 30.32 | L78: 42.84 | M78: 73.85 | N78: 79.28 | O78: 86.01 | P78: 89.54 | Q78: 93.03
A79: 73 | B79: 29.26 | C79: 41.83 | D79: 73.17 | E79: 78.7 | F79: 85.58 | G79: 89.36 | H79: 92.95 | J79: 73 | K79: 30.91 | L79: 43.48 | M79: 74.82 | N79: 80.35 | O79: 87.23 | P79: 91.01 | Q79: 94.6
A80: 74 | B80: 29.65 | C80: 42.77 | D80: 74.33 | E80: 79.86 | F80: 86.74 | G80: 90.77 | H80: 94.66 | J80: 74 | K80: 31.3 | L80: 44.41 | M80: 75.98 | N80: 81.51 | O80: 88.39 | P80: 92.42 | Q80: 96.31
A81: 75 | B81: 30.24 | C81: 43.52 | D81: 75.31 | E81: 81.08 | F81: 88.11 | G81: 91.99 | H81: 96.34 | J81: 75 | K81: 31.89 | L81: 45.17 | M81: 76.95 | N81: 82.73 | O81: 89.76 | P81: 93.64 | Q81: 97.98
A82: 76 | B82: 30.7 | C82: 44.11 | D82: 76.16 | E82: 82.31 | F82: 88.77 | G82: 93.49 | H82: 97.33 | J82: 76 | K82: 32.34 | L82: 45.76 | M82: 77.8 | N82: 83.96 | O82: 90.42 | P82: 95.14 | Q82: 98.98
A83: 77 | B83: 31.16 | C83: 44.13 | D83: 77.22 | E83: 83.51 | F83: 90.51 | G83: 94.89 | H83: 99.12 | J83: 77 | K83: 32.81 | L83: 45.78 | M83: 78.87 | N83: 85.16 | O83: 92.16 | P83: 96.53 | Q83: 100.77
A84: 78 | B84: 31.75 | C84: 45.52 | D84: 78.13 | E84: 84.85 | F84: 91.69 | G84: 96.34 | H84: 100.81 | J84: 78 | K84: 33.4 | L84: 47.16 | M84: 79.78 | N84: 86.49 | O84: 93.34 | P84: 97.98 | Q84: 102.45
A85: 79 | B85: 32.22 | C85: 46.25 | D85: 79.22 | E85: 86.06 | F85: 92.84 | G85: 97.61 | H85: 102.62 | J85: 79 | K85: 33.87 | L85: 47.9 | M85: 80.86 | N85: 87.71 | O85: 94.49 | P85: 99.26 | Q85: 104.27
A86: 80 | B86: 32.61 | C86: 47.09 | D86: 80.12 | E86: 87.37 | F86: 94.05 | G86: 98.98 | H86: 104.12 | J86: 80 | K86: 34.26 | L86: 48.74 | M86: 81.77 | N86: 89.02 | O86: 95.7 | P86: 100.62 | Q86: 105.77
A87: 81 | B87: 32.69 | C87: 47.85 | D87: 80.76 | E87: 88.6 | F87: 94.53 | G87: 100.46 | H87: 105.05 | J87: 81 | K87: 34.33 | L87: 49.49 | M87: 82.41 | N87: 90.24 | O87: 96.17 | P87: 102.1 | Q87: 106.7
A88: 82 | B88: 33.65 | C88: 48.7 | D88: 81.73 | E88: 89.69 | F88: 96.04 | G88: 101.76 | H88: 106.72 | J88: 82 | K88: 35.29 | L88: 50.34 | M88: 83.38 | N88: 91.34 | O88: 97.68 | P88: 103.41 | Q88: 108.36
A89: 83 | B89: 34.41 | C89: 49.45 | D89: 83.47 | E89: 90.98 | F89: 96.74 | G89: 103.22 | H89: 108.06 | J89: 83 | K89: 36.06 | L89: 51.1 | M89: 85.12 | N89: 92.62 | O89: 98.39 | P89: 104.87 | Q89: 109.71
A90: 84 | B90: 34.91 | C90: 50.26 | D90: 84.59 | E90: 91.94 | F90: 98.56 | G90: 104.7 | H90: 109.47 | J90: 84 | K90: 36.56 | L90: 51.91 | M90: 86.24 | N90: 93.58 | O90: 100.21 | P90: 106.35 | Q90: 111.12
A91: 85 | B91: 35.27 | C91: 51.03 | D91: 85.52 | E91: 93.07 | F91: 98.57 | G91: 106.19 | H91: 110.69 | J91: 85 | K91: 36.92 | L91: 52.67 | M91: 87.17 | N91: 94.71 | O91: 100.22 | P91: 107.84 | Q91: 112.34
A92: 86 | B92: 35.46 | C92: 51.85 | D92: 86.9 | E92: 94.13 | F92: 100.91 | G92: 107.58 | H92: 112.04 | J92: 86 | K92: 37.1 | L92: 53.5 | M92: 88.54 | N92: 95.78 | O92: 102.56 | P92: 109.22 | Q92: 113.68
A93: 87 | B93: 36.2 | C93: 52.61 | D93: 88.73 | E93: 95.4 | F93: 100.94 | G93: 108.91 | H93: 113.38 | J93: 87 | K93: 37.85 | L93: 54.25 | M93: 90.38 | N93: 97.04 | O93: 102.59 | P93: 110.56 | Q93: 115.03
A94: 88 | B94: 36.64 | C94: 53.48 | D94: 90.1 | E94: 96.69 | F94: 100.94 | G94: 110.43 | H94: 114.64 | J94: 88 | K94: 38.28 | L94: 55.12 | M94: 91.74 | N94: 98.34 | O94: 102.59 | P94: 112.08 | Q94: 116.28
A95: 89 | B95: 36.99 | C95: 54.3 | D95: 90.99 | E95: 97.72 | F95: 103.88 | G95: 111.67 | H95: 115.95 | J95: 89 | K95: 38.64 | L95: 55.94 | M95: 92.63 | N95: 99.37 | O95: 105.53 | P95: 113.31 | Q95: 117.6
A96: 90 | B96: 37.58 | C96: 55.13 | D96: 92.84 | E96: 98.76 | F96: 105.77 | G96: 112.91 | H96: 117.39 | J96: 90 | K96: 39.23 | L96: 56.78 | M96: 94.49 | N96: 100.41 | O96: 107.41 | P96: 114.55 | Q96: 119.04
A97: 91 | B97: 37.58 | C97: 55.88 | D97: 94.33 | E97: 99.85 | F97: 106.94 | G97: 114.15 | H97: 118.61 | J97: 91 | K97: 39.23 | L97: 57.53 | M97: 95.98 | N97: 101.49 | O97: 108.58 | P97: 115.8 | Q97: 120.26
A98: 92 | B98: 38.34 | C98: 56.72 | D98: 95.62 | E98: 101.11 | F98: 108.1 | G98: 115.46 | H98: 119.93 | J98: 92 | K98: 39.98 | L98: 58.36 | M98: 97.27 | N98: 102.75 | O98: 109.74 | P98: 117.11 | Q98: 121.57
A99: 93 | B99: 38.92 | C99: 57.38 | D99: 96.88 | E99: 102.5 | F99: 109.38 | G99: 116.73 | H99: 121.29 | J99: 93 | K99: 40.56 | L99: 59.03 | M99: 98.52 | N99: 104.14 | O99: 111.02 | P99: 118.37 | Q99: 122.94
A100: 94 | B100: 39.39 | C100: 58.05 | D100: 98.02 | E100: 103.75 | F100: 110.63 | G100: 117.93 | H100: 122.63 | J100: 94 | K100: 41.04 | L100: 59.7 | M100: 99.67 | N100: 105.39 | O100: 112.28 | P100: 119.57 | Q100: 124.27
A101: 95 | B101: 39.39 | C101: 58.67 | D101: 99.23 | E101: 104.91 | F101: 111.81 | G101: 119.3 | H101: 123.88 | J101: 95 | K101: 41.04 | L101: 60.32 | M101: 100.87 | N101: 106.55 | O101: 113.46 | P101: 120.95 | Q101: 125.52
A102: 96 | B102: 39.41 | C102: 59.35 | D102: 100.15 | E102: 106.08 | F102: 113.06 | G102: 120.44 | H102: 125.28 | J102: 96 | K102: 41.06 | L102: 60.99 | M102: 101.79 | N102: 107.72 | O102: 114.71 | P102: 122.09 | Q102: 126.92
A103: 97 | B103: 41.03 | C103: 60 | D103: 101.24 | E103: 107.24 | F103: 114.33 | G103: 121.78 | H103: 126.53 | J103: 97 | K103: 42.67 | L103: 61.64 | M103: 102.89 | N103: 108.88 | O103: 115.97 | P103: 123.42 | Q103: 128.17
A104: 98 | B104: 41.35 | C104: 60.66 | D104: 102.26 | E104: 108.53 | F104: 115.49 | G104: 123.1 | H104: 127.85 | J104: 98 | K104: 42.99 | L104: 62.31 | M104: 103.9 | N104: 110.18 | O104: 117.13 | P104: 124.75 | Q104: 129.5
A105: 99 | B105: 41.36 | C105: 61.3 | D105: 103.33 | E105: 108.55 | F105: 116.78 | G105: 124.33 | H105: 129.21 | J105: 99 | K105: 43 | L105: 62.95 | M105: 104.98 | N105: 110.2 | O105: 118.42 | P105: 125.98 | Q105: 130.86
A106: 100 | B106: 41.37 | C106: 61.86 | D106: 104.19 | E106: 110.85 | F106: 117.93 | G106: 125.65 | H106: 130.55 | J106: 100 | K106: 43.01 | L106: 63.51 | M106: 105.84 | N106: 112.49 | O106: 119.57 | P106: 127.29 | Q106: 132.2
A107: 101 | B107: 41.39 | C107: 61.92 | D107: 104.87 | E107: 111.72 | F107: 118.29 | G107: 126.25 | H107: 130.89 | J107: 101 | K107: 43.04 | L107: 63.57 | M107: 106.51 | N107: 113.36 | O107: 119.94 | P107: 127.89 | Q107: 132.53
A108: 102 | B108: 41.79 | C108: 62.56 | D108: 105.93 | E108: 112.84 | F108: 119.47 | G108: 127.49 | H108: 132.19 | J108: 102 | K108: 43.44 | L108: 64.2 | M108: 107.58 | N108: 114.48 | O108: 121.12 | P108: 129.14 | Q108: 133.84
A109: 103 | B109: 42.21 | C109: 63.17 | D109: 106.98 | E109: 113.95 | F109: 120.67 | G109: 128.74 | H109: 133.52 | J109: 103 | K109: 43.85 | L109: 64.81 | M109: 108.62 | N109: 115.6 | O109: 122.32 | P109: 130.39 | Q109: 135.16
A110: 104 | B110: 42.62 | C110: 63.78 | D110: 108.02 | E110: 115.07 | F110: 121.84 | G110: 130.02 | H110: 134.81 | J110: 104 | K110: 44.27 | L110: 65.42 | M110: 109.67 | N110: 116.72 | O110: 123.49 | P110: 131.66 | Q110: 136.45
A111: 105 | B111: 43.05 | C111: 64.41 | D111: 109.07 | E111: 116.19 | F111: 123.02 | G111: 131.28 | H111: 136.12 | J111: 105 | K111: 44.69 | L111: 66.05 | M111: 110.71 | N111: 117.83 | O111: 124.67 | P111: 132.93 | Q111: 137.77
A112: 106 | B112: 43.44 | C112: 65.03 | D112: 110.12 | E112: 117.32 | F112: 124.23 | G112: 132.54 | H112: 137.43 | J112: 106 | K112: 45.08 | L112: 66.67 | M112: 111.77 | N112: 118.96 | O112: 125.88 | P112: 134.19 | Q112: 139.07
A113: 107 | B113: 43.86 | C113: 65.65 | D113: 111.17 | E113: 118.44 | F113: 125.39 | G113: 133.8 | H113: 138.74 | J113: 107 | K113: 45.51 | L113: 67.3 | M113: 112.82 | N113: 120.08 | O113: 127.04 | P113: 135.45 | Q113: 140.39
A114: 108 | B114: 44.28 | C114: 66.26 | D114: 112.23 | E114: 119.52 | F114: 126.57 | G114: 135.07 | H114: 140.05 | J114: 108 | K114: 45.92 | L114: 67.91 | M114: 113.87 | N114: 121.17 | O114: 128.22 | P114: 136.71 | Q114: 141.69
A115: 109 | B115: 44.7 | C115: 66.88 | D115: 113.27 | E115: 120.67 | F115: 127.74 | G115: 136.34 | H115: 141.35 | J115: 109 | K115: 46.35 | L115: 68.53 | M115: 114.92 | N115: 122.32 | O115: 129.39 | P115: 137.99 | Q115: 143
A116: 110 | B116: 45.11 | C116: 67.5 | D116: 114.32 | E116: 121.78 | F116: 128.94 | G116: 137.6 | H116: 142.67 | J116: 110 | K116: 46.75 | L116: 69.15 | M116: 115.96 | N116: 123.42 | O116: 130.59 | P116: 139.25 | Q116: 144.32
A117: 111 | B117: 45.52 | C117: 68.12 | D117: 115.35 | E117: 122.9 | F117: 130.12 | G117: 138.86 | H117: 143.99 | J117: 111 | K117: 47.16 | L117: 69.77 | M117: 117 | N117: 124.54 | O117: 131.77 | P117: 140.5 | Q117: 145.63
A118: 112 | B118: 45.94 | C118: 68.73 | D118: 116.42 | E118: 124.01 | F118: 131.3 | G118: 140.11 | H118: 145.28 | J118: 112 | K118: 47.59 | L118: 70.38 | M118: 118.06 | N118: 125.66 | O118: 132.95 | P118: 141.75 | Q118: 146.93
A119: 113 | B119: 46.34 | C119: 69.35 | D119: 117.45 | E119: 125.12 | F119: 132.49 | G119: 141.37 | H119: 146.59 | J119: 113 | K119: 47.98 | L119: 70.99 | M119: 119.1 | N119: 126.77 | O119: 134.14 | P119: 143.02 | Q119: 148.23
A120: 114 | B120: 46.76 | C120: 69.97 | D120: 118.51 | E120: 126.25 | F120: 133.67 | G120: 142.64 | H120: 147.9 | J120: 114 | K120: 48.41 | L120: 71.61 | M120: 120.15 | N120: 127.89 | O120: 135.32 | P120: 144.29 | Q120: 149.55
A121: 115 | B121: 47.18 | C121: 70.58 | D121: 119.55 | E121: 127.37 | F121: 134.86 | G121: 143.91 | H121: 149.22 | J121: 115 | K121: 48.82 | L121: 72.22 | M121: 121.2 | N121: 129.01 | O121: 136.51 | P121: 145.55 | Q121: 150.86
A122: 116 | B122: 47.6 | C122: 71.23 | D122: 120.61 | E122: 128.48 | F122: 136.04 | G122: 145.17 | H122: 150.53 | J122: 116 | K122: 49.25 | L122: 72.87 | M122: 122.25 | N122: 130.13 | O122: 137.69 | P122: 146.81 | Q122: 152.18
A123: 117 | B123: 47.99 | C123: 71.84 | D123: 121.65 | E123: 129.59 | F123: 137.21 | G123: 146.43 | H123: 151.81 | J123: 117 | K123: 49.64 | L123: 73.49 | M123: 123.3 | N123: 131.24 | O123: 138.86 | P123: 148.08 | Q123: 153.46
A124: 118 | B124: 48.42 | C124: 72.46 | D124: 122.71 | E124: 130.71 | F124: 138.41 | G124: 147.69 | H124: 153.14 | J124: 118 | K124: 50.06 | L124: 74.11 | M124: 124.36 | N124: 132.36 | O124: 140.06 | P124: 149.34 | Q124: 154.78
A125: 119 | B125: 48.83 | C125: 73.08 | D125: 123.77 | E125: 131.84 | F125: 139.59 | G125: 148.95 | H125: 154.44 | J125: 119 | K125: 50.48 | L125: 74.73 | M125: 125.41 | N125: 133.48 | O125: 141.24 | P125: 150.59 | Q125: 156.09
A126: 120 | B126: 49.25 | C126: 73.7 | D126: 124.8 | E126: 132.95 | F126: 140.76 | G126: 150.21 | H126: 155.76 | J126: 120 | K126: 50.89 | L126: 75.35 | M126: 126.45 | N126: 134.59 | O126: 142.41 | P126: 151.86 | Q126: 157.4
A127: 121 | B127: 49.65 | C127: 74.31 | D127: 125.86 | E127: 134.07 | F127: 141.96 | G127: 151.47 | H127: 157.07 | J127: 121 | K127: 51.29 | L127: 75.96 | M127: 127.5 | N127: 135.72 | O127: 143.61 | P127: 153.12 | Q127: 158.72
A128: 122 | B128: 50.07 | C128: 74.93 | D128: 126.9 | E128: 135.18 | F128: 143.14 | G128: 152.73 | H128: 158.37 | J128: 122 | K128: 51.72 | L128: 76.58 | M128: 128.55 | N128: 136.83 | O128: 144.79 | P128: 154.38 | Q128: 160.01
A129: 123 | B129: 50.5 | C129: 75.54 | D129: 127.95 | E129: 136.3 | F129: 144.31 | G129: 154 | H129: 159.68 | J129: 123 | K129: 52.14 | L129: 77.19 | M129: 129.59 | N129: 137.94 | O129: 145.96 | P129: 155.64 | Q129: 161.33
A130: 124 | B130: 50.89 | C130: 76.16 | D130: 128.99 | E130: 137.42 | F130: 145.52 | G130: 155.26 | H130: 160.98 | J130: 124 | K130: 52.54 | L130: 77.8 | M130: 130.64 | N130: 139.06 | O130: 147.17 | P130: 156.91 | Q130: 162.63
A131: 125 | B131: 51.32 | C131: 76.78 | D131: 130.05 | E131: 138.52 | F131: 146.68 | G131: 156.53 | H131: 162.31 | J131: 125 | K131: 52.96 | L131: 78.42 | M131: 131.69 | N131: 140.17 | O131: 148.33 | P131: 158.18 | Q131: 163.95
A132: 126 | B132: 51.72 | C132: 77.4 | D132: 131.08 | E132: 139.64 | F132: 147.86 | G132: 157.79 | H132: 163.6 | J132: 126 | K132: 53.36 | L132: 79.04 | M132: 132.73 | N132: 141.29 | O132: 149.51 | P132: 159.43 | Q132: 165.25
A133: 127 | B133: 52.14 | C133: 78.02 | D133: 132.14 | E133: 140.76 | F133: 149.05 | G133: 159.05 | H133: 164.91 | J133: 127 | K133: 53.79 | L133: 79.66 | M133: 133.78 | N133: 142.41 | O133: 150.7 | P133: 160.69 | Q133: 166.55
A134: 128 | B134: 52.55 | C134: 78.65 | D134: 133.18 | E134: 141.88 | F134: 150.23 | G134: 160.31 | H134: 166.22 | J134: 128 | K134: 54.19 | L134: 80.3 | M134: 134.83 | N134: 143.52 | O134: 151.88 | P134: 161.96 | Q134: 167.87
A135: 129 | B135: 52.97 | C135: 79.28 | D135: 134.23 | E135: 143 | F135: 151.41 | G135: 161.57 | H135: 167.54 | J135: 129 | K135: 54.62 | L135: 80.93 | M135: 135.87 | N135: 144.64 | O135: 153.06 | P135: 163.22 | Q135: 169.18
A136: 130 | B136: 53.39 | C136: 79.89 | D136: 135.3 | E136: 144.12 | F136: 152.6 | G136: 162.84 | H136: 168.85 | J136: 130 | K136: 55.03 | L136: 81.54 | M136: 136.94 | N136: 145.77 | O136: 154.25 | P136: 164.48 | Q136: 170.5
A137: 131 | B137: 53.8 | C137: 80.51 | D137: 136.34 | E137: 145.23 | F137: 153.78 | G137: 164.1 | H137: 170.14 | J137: 131 | K137: 55.44 | L137: 82.16 | M137: 137.99 | N137: 146.88 | O137: 155.43 | P137: 165.74 | Q137: 171.79
A138: 132 | B138: 54.2 | C138: 81.13 | D138: 137.4 | E138: 146.34 | F138: 154.96 | G138: 165.36 | H138: 171.46 | J138: 132 | K138: 55.85 | L138: 82.78 | M138: 139.04 | N138: 147.98 | O138: 156.61 | P138: 167.01 | Q138: 173.1
A139: 133 | B139: 54.63 | C139: 81.73 | D139: 138.43 | E139: 147.47 | F139: 156.14 | G139: 166.62 | H139: 172.76 | J139: 133 | K139: 56.27 | L139: 83.38 | M139: 140.08 | N139: 149.11 | O139: 157.79 | P139: 168.27 | Q139: 174.41
A140: 134 | B140: 55.04 | C140: 82.35 | D140: 139.49 | E140: 148.58 | F140: 157.33 | G140: 167.88 | H140: 174.08 | J140: 134 | K140: 56.69 | L140: 84 | M140: 141.13 | N140: 150.23 | O140: 158.98 | P140: 169.52 | Q140: 175.72
A141: 135 | B141: 55.46 | C141: 82.98 | D141: 140.53 | E141: 149.7 | F141: 158.51 | G141: 169.15 | H141: 175.38 | J141: 135 | K141: 57.1 | L141: 84.62 | M141: 142.18 | N141: 151.35 | O141: 160.16 | P141: 170.8 | Q141: 177.03
A142: 136 | B142: 55.87 | C142: 83.6 | D142: 141.59 | E142: 150.83 | F142: 159.69 | G142: 170.42 | H142: 176.7 | J142: 136 | K142: 57.51 | L142: 85.24 | M142: 143.23 | N142: 152.48 | O142: 161.34 | P142: 172.07 | Q142: 178.34
A143: 137 | B143: 56.27 | C143: 84.21 | D143: 142.63 | E143: 151.94 | F143: 160.88 | G143: 171.68 | H143: 178.01 | J143: 137 | K143: 57.92 | L143: 85.85 | M143: 144.28 | N143: 153.58 | O143: 162.53 | P143: 173.32 | Q143: 179.66
A144: 138 | B144: 56.7 | C144: 84.83 | D144: 143.68 | E144: 153.06 | F144: 162.06 | G144: 172.95 | H144: 179.3 | J144: 138 | K144: 58.34 | L144: 86.47 | M144: 145.32 | N144: 154.7 | O144: 163.71 | P144: 174.59 | Q144: 180.95
A145: 139 | B145: 57.1 | C145: 85.46 | D145: 144.71 | E145: 154.18 | F145: 163.24 | G145: 174.19 | H145: 180.61 | J145: 139 | K145: 58.75 | L145: 87.11 | M145: 146.36 | N145: 155.83 | O145: 164.89 | P145: 175.84 | Q145: 182.25
A146: 140 | B146: 57.53 | C146: 86.08 | D146: 145.78 | E146: 155.29 | F146: 164.43 | G146: 175.48 | H146: 181.93 | J146: 140 | K146: 59.17 | L146: 87.73 | M146: 147.43 | N146: 156.94 | O146: 166.08 | P146: 177.13 | Q146: 183.58
A147: 141 | B147: 57.94 | C147: 86.7 | D147: 146.81 | E147: 156.39 | F147: 165.6 | G147: 176.72 | H147: 183.24 | J147: 141 | K147: 59.58 | L147: 88.35 | M147: 148.46 | N147: 158.03 | O147: 167.25 | P147: 178.36 | Q147: 184.88
A148: 142 | B148: 58.35 | C148: 87.32 | D148: 147.87 | E148: 157.53 | F148: 166.8 | G148: 177.99 | H148: 184.55 | J148: 142 | K148: 60 | L148: 88.97 | M148: 149.52 | N148: 159.17 | O148: 168.45 | P148: 179.63 | Q148: 186.2
A149: 143 | B149: 58.76 | C149: 87.93 | D149: 148.92 | E149: 158.64 | F149: 167.97 | G149: 179.24 | H149: 185.87 | J149: 143 | K149: 60.4 | L149: 89.58 | M149: 150.56 | N149: 160.29 | O149: 169.62 | P149: 180.89 | Q149: 187.51
A150: 144 | B150: 59.18 | C150: 88.55 | D150: 149.96 | E150: 159.75 | F150: 169.15 | G150: 180.51 | H150: 187.16 | J150: 144 | K150: 60.83 | L150: 90.2 | M150: 151.61 | N150: 161.4 | O150: 170.8 | P150: 182.16 | Q150: 188.8
A151: 145 | B151: 59.58 | C151: 89.18 | D151: 151.02 | E151: 160.88 | F151: 170.34 | G151: 181.77 | H151: 188.47 | J151: 145 | K151: 61.23 | L151: 90.82 | M151: 152.66 | N151: 162.53 | O151: 171.99 | P151: 183.41 | Q151: 190.12
A152: 146 | B152: 60.01 | C152: 89.79 | D152: 152.07 | E152: 161.99 | F152: 171.53 | G152: 183.05 | H152: 189.78 | J152: 146 | K152: 61.65 | L152: 91.43 | M152: 153.72 | N152: 163.63 | O152: 173.18 | P152: 184.7 | Q152: 191.42
A153: 147 | B153: 60.41 | C153: 90.41 | D153: 153.13 | E153: 163.11 | F153: 172.7 | G153: 184.3 | H153: 191.11 | J153: 147 | K153: 62.06 | L153: 92.05 | M153: 154.77 | N153: 164.75 | O153: 174.35 | P153: 185.95 | Q153: 192.76
A154: 148 | B154: 60.83 | C154: 91.03 | D154: 154.16 | E154: 164.23 | F154: 173.89 | G154: 185.58 | H154: 192.39 | J154: 148 | K154: 62.47 | L154: 92.67 | M154: 155.81 | N154: 165.88 | O154: 175.54 | P154: 187.22 | Q154: 194.03
A155: 149 | B155: 61.25 | C155: 91.65 | D155: 155.22 | E155: 165.35 | F155: 175.07 | G155: 186.81 | H155: 193.7 | J155: 149 | K155: 62.9 | L155: 93.29 | M155: 156.86 | N155: 167 | O155: 176.72 | P155: 188.45 | Q155: 195.35
A156: 150 | B156: 61.65 | C156: 92.28 | D156: 156.26 | E156: 166.46 | F156: 176.25 | G156: 188.08 | H156: 195 | J156: 150 | K156: 63.3 | L156: 93.93 | M156: 157.91 | N156: 168.1 | O156: 177.9 | P156: 189.73 | Q156: 196.65
A157: 151+ | B157: 0.403 | C157: 0.6 | D157: 1.024 | E157: 1.086 | F157: 1.148 | G157: 1.231 | H157: 1.283 | J157: 151+ | K157: 0.414 | L157: 0.621 | M157: 1.035 | N157: 1.097 | O157: 1.159 | P157: 1.252 | Q157: 1.293

Sheet 2DA Multi
A1: UPS Second Day Air Service | M1: UPS Second Day Air Service
A2: - Commercial | M2: - Residential
A3: (Per Package Rates from 48 State Origin) | M3: (Per Package Rates from 48 State Origin)
A4: Rates below do not include Residential Surcharge | M4: Rates Include Residential Surcharge
A5: Lbs. | B5: Zone 202 | C5: Zone 203 | D5: Zone 204 | E5: Zone 205 | F5: Zone 206 | G5: Zone 207 | H5: Zone 208 | I5: Zone 224 | J5: Zone 225 | K5: Zone 226 | M5: Lbs. | N5: Zone 202 | O5: Zone 203 | P5: Zone 204 | Q5: Zone 205 | R5: Zone 206 | S5: Zone 207 | T5: Zone 208 | U5: Zone 224 | V5: Zone 225 | W5: Zone 226
A6: Letter | B6: 5.02 | C6: 5.02 | D6: 5.02 | E6: 5.02 | F6: 6.12 | G6: 6.38 | H6: 6.43 | I6: 10.34 | J6: 10.34 | K6: 11.5 | M6: Letter | N6: 6.67 | O6: 6.67 | P6: 6.67 | Q6: 6.67 | R6: 7.76 | S6: 8.02 | T6: 8.07 | U6: 11.99 | V6: 11.99 | W6: 13.14
A7: 1 | B7: 5.08 | C7: 5.08 | D7: 5.08 | E7: 5.08 | F7: 6.04 | G7: 6.31 | H7: 6.42 | I7: 9.89 | J7: 9.89 | K7: 10.57 | M7: 1 | N7: 6.73 | O7: 6.73 | P7: 6.73 | Q7: 6.73 | R7: 7.69 | S7: 7.96 | T7: 8.06 | U7: 11.54 | V7: 11.54 | W7: 12.21
A8: 2 | B8: 5.08 | C8: 5.08 | D8: 5.08 | E8: 5.35 | F8: 6.67 | G8: 7.26 | H8: 7.57 | I8: 11.05 | J8: 11.05 | K8: 13.08 | M8: 2 | N8: 6.73 | O8: 6.73 | P8: 6.73 | Q8: 7 | R8: 8.31 | S8: 8.9 | T8: 9.21 | U8: 12.7 | V8: 12.7 | W8: 14.73
A9: 3 | B9: 5.08 | C9: 5.08 | D9: 5.08 | E9: 5.87 | F9: 7.66 | G9: 8.42 | H9: 8.69 | I9: 12.62 | J9: 12.62 | K9: 13.67 | M9: 3 | N9: 6.73 | O9: 6.73 | P9: 6.73 | Q9: 7.51 | R9: 9.3 | S9: 10.07 | T9: 10.34 | U9: 14.26 | V9: 14.26 | W9: 15.32
A10: 4 | B10: 5.08 | C10: 5.08 | D10: 5.14 | E10: 6.84 | F10: 8.85 | G10: 9.59 | H10: 9.9 | I10: 13.46 | J10: 13.46 | K10: 14.37 | M10: 4 | N10: 6.73 | O10: 6.73 | P10: 6.79 | Q10: 8.49 | R10: 10.49 | S10: 11.24 | T10: 11.55 | U10: 15.1 | V10: 15.1 | W10: 16.01
A11: 5 | B11: 5.08 | C11: 5.08 | D11: 5.61 | E11: 7.59 | F11: 9.87 | G11: 10.67 | H11: 11.28 | I11: 14.61 | J11: 14.61 | K11: 14.96 | M11: 5 | N11: 6.73 | O11: 6.73 | P11: 7.26 | Q11: 9.23 | R11: 11.52 | S11: 12.32 | T11: 12.93 | U11: 16.26 | V11: 16.26 | W11: 16.6
A12: 6 | B12: 5.08 | C12: 5.08 | D12: 6.1 | E12: 8.27 | F12: 10.98 | G12: 11.86 | H12: 12.34 | I12: 15.49 | J12: 15.49 | K12: 15.89 | M12: 6 | N12: 6.73 | O12: 6.73 | P12: 7.74 | Q12: 9.92 | R12: 12.63 | S12: 13.51 | T12: 13.98 | U12: 17.14 | V12: 17.14 | W12: 17.53
A13: 7 | B13: 5.08 | C13: 5.43 | D13: 6.59 | E13: 9.06 | F13: 12.34 | G13: 13.15 | H13: 13.58 | I13: 16.72 | J13: 16.72 | K13: 16.68 | M13: 7 | N13: 6.73 | O13: 7.08 | P13: 8.24 | Q13: 10.7 | R13: 13.98 | S13: 14.8 | T13: 15.22 | U13: 18.36 | V13: 18.36 | W13: 18.33
A14: 8 | B14: 5.08 | C14: 5.93 | D14: 7.07 | E14: 9.85 | F14: 13.65 | G14: 14.49 | H14: 14.95 | I14: 17.56 | J14: 17.56 | K14: 17.6 | M14: 8 | N14: 6.73 | O14: 7.58 | P14: 8.71 | Q14: 11.5 | R14: 15.3 | S14: 16.14 | T14: 16.59 | U14: 19.21 | V14: 19.21 | W14: 19.24
A15: 9 | B15: 5.35 | C15: 6.19 | D15: 7.62 | E15: 10.58 | F15: 14.82 | G15: 15.89 | H15: 16.4 | I15: 18.82 | J15: 18.82 | K15: 18.64 | M15: 9 | N15: 7 | O15: 7.83 | P15: 9.26 | Q15: 12.22 | R15: 16.47 | S15: 17.53 | T15: 18.05 | U15: 20.46 | V15: 20.46 | W15: 20.29
A16: 10 | B16: 5.59 | C16: 6.56 | D16: 8.22 | E16: 11.31 | F16: 15.84 | G16: 17.27 | H16: 17.74 | I16: 20.38 | J16: 20.38 | K16: 19.53 | M16: 10 | N16: 7.23 | O16: 8.21 | P16: 9.86 | Q16: 12.96 | R16: 17.48 | S16: 18.92 | T16: 19.39 | U16: 22.02 | V16: 22.02 | W16: 21.18
A17: 11 | B17: 5.84 | C17: 6.91 | D17: 8.59 | E17: 12.09 | F17: 17.11 | G17: 18.53 | H17: 19.19 | I17: 21.6 | J17: 21.6 | K17: 21.19 | M17: 11 | N17: 7.48 | O17: 8.56 | P17: 10.24 | Q17: 13.73 | R17: 18.75 | S17: 20.17 | T17: 20.83 | U17: 23.25 | V17: 23.25 | W17: 22.83
A18: 12 | B18: 6.15 | C18: 7.32 | D18: 9.08 | E18: 12.76 | F18: 18.41 | G18: 19.85 | H18: 20.52 | I18: 22.39 | J18: 22.39 | K18: 22.11 | M18: 12 | N18: 7.79 | O18: 8.96 | P18: 10.72 | Q18: 14.41 | R18: 20.06 | S18: 21.5 | T18: 22.17 | U18: 24.03 | V18: 24.03 | W18: 23.75
A19: 13 | B19: 6.56 | C19: 7.7 | D19: 9.4 | E19: 13.53 | F19: 19.61 | G19: 20.81 | H19: 21.69 | I19: 23.18 | J19: 23.18 | K19: 22.75 | M19: 13 | N19: 8.21 | O19: 9.35 | P19: 11.04 | Q19: 15.17 | R19: 21.26 | S19: 22.46 | T19: 23.34 | U19: 24.83 | V19: 24.83 | W19: 24.39
A20: 14 | B20: 6.87 | C20: 8.1 | D20: 10.01 | E20: 14.31 | F20: 20.81 | G20: 21.9 | H20: 22.67 | I20: 24.09 | J20: 24.09 | K20: 23.69 | M20: 14 | N20: 8.52 | O20: 9.75 | P20: 11.65 | Q20: 15.96 | R20: 22.46 | S20: 23.55 | T20: 24.31 | U20: 25.74 | V20: 25.74 | W20: 25.34
A21: 15 | B21: 7.14 | C21: 8.29 | D21: 10.49 | E21: 14.87 | F21: 21.9 | G21: 22.88 | H21: 23.71 | I21: 25.19 | J21: 25.19 | K21: 25.03 | M21: 15 | N21: 8.79 | O21: 9.94 | P21: 12.14 | Q21: 16.52 | R21: 23.55 | S21: 24.53 | T21: 25.36 | U21: 26.84 | V21: 26.84 | W21: 26.67
A22: 16 | B22: 7.32 | C22: 8.57 | D22: 10.96 | E22: 15.35 | F22: 22.88 | G22: 24.04 | H22: 24.71 | I22: 26.23 | J22: 26.23 | K22: 25.4 | M22: 16 | N22: 8.96 | O22: 10.22 | P22: 12.61 | Q22: 16.99 | R22: 24.53 | S22: 25.69 | T22: 26.35 | U22: 27.87 | V22: 27.87 | W22: 27.04
A23: 17 | B23: 7.55 | C23: 8.84 | D23: 11.42 | E23: 16.06 | F23: 23.9 | G23: 25.33 | H23: 25.86 | I23: 27.48 | J23: 27.48 | K23: 26.54 | M23: 17 | N23: 9.19 | O23: 10.48 | P23: 13.06 | Q23: 17.71 | R23: 25.54 | S23: 26.97 | T23: 27.51 | U23: 29.12 | V23: 29.12 | W23: 28.18
A24: 18 | B24: 7.82 | C24: 9.13 | D24: 11.84 | E24: 16.64 | F24: 24.88 | G24: 26.45 | H24: 27.4 | I24: 29.11 | J24: 29.11 | K24: 28.78 | M24: 18 | N24: 9.47 | O24: 10.77 | P24: 13.49 | Q24: 18.29 | R24: 26.53 | S24: 28.1 | T24: 29.04 | U24: 30.76 | V24: 30.76 | W24: 30.43
A25: 19 | B25: 8.1 | C25: 9.38 | D25: 12.18 | E25: 17.32 | F25: 25.8 | G25: 27.69 | H25: 28.3 | I25: 30.08 | J25: 30.08 | K25: 29.24 | M25: 19 | N25: 9.75 | O25: 11.02 | P25: 13.83 | Q25: 18.96 | R25: 27.45 | S25: 29.33 | T25: 29.94 | U25: 31.72 | V25: 31.72 | W25: 30.88
A26: 20 | B26: 8.4 | C26: 9.78 | D26: 12.66 | E26: 18.12 | F26: 26.7 | G26: 28.62 | H26: 29.32 | I26: 31.13 | J26: 31.13 | K26: 30.36 | M26: 20 | N26: 10.05 | O26: 11.43 | P26: 14.3 | Q26: 19.77 | R26: 28.35 | S26: 30.26 | T26: 30.97 | U26: 32.78 | V26: 32.78 | W26: 32
A27: 21 | B27: 8.8 | C27: 10.17 | D27: 13.13 | E27: 18.71 | F27: 27.69 | G27: 29.58 | H27: 30.69 | I27: 32.59 | J27: 32.59 | K27: 31.85 | M27: 21 | N27: 10.44 | O27: 11.82 | P27: 14.78 | Q27: 20.36 | R27: 29.33 | S27: 31.23 | T27: 32.33 | U27: 34.24 | V27: 34.24 | W27: 33.49
A28: 22 | B28: 9.06 | C28: 10.65 | D28: 13.49 | E28: 19.23 | F28: 28.58 | G28: 30.7 | H28: 31.82 | I28: 33.8 | J28: 33.8 | K28: 33.2 | M28: 22 | N28: 10.7 | O28: 12.3 | P28: 15.13 | Q28: 20.88 | R28: 30.22 | S28: 32.34 | T28: 33.46 | U28: 35.45 | V28: 35.45 | W28: 34.85
A29: 23 | B29: 9.27 | C29: 10.88 | D29: 13.96 | E29: 19.8 | F29: 29.58 | G29: 31.71 | H29: 33.01 | I29: 35.07 | J29: 35.07 | K29: 34.37 | M29: 23 | N29: 10.92 | O29: 12.52 | P29: 15.61 | Q29: 21.45 | R29: 31.23 | S29: 33.36 | T29: 34.65 | U29: 36.71 | V29: 36.71 | W29: 36.02
A30: 24 | B30: 9.47 | C30: 11.31 | D30: 14.41 | E30: 20.56 | F30: 30.67 | G30: 32.95 | H30: 34.19 | I30: 36.3 | J30: 36.3 | K30: 35.68 | M30: 24 | N30: 11.12 | O30: 12.96 | P30: 16.05 | Q30: 22.2 | R30: 32.31 | S30: 34.6 | T30: 35.83 | U30: 37.94 | V30: 37.94 | W30: 37.32
A31: 25 | B31: 9.78 | C31: 11.63 | D31: 14.69 | E31: 21.28 | F31: 31.66 | G31: 34.13 | H31: 35.35 | I31: 37.58 | J31: 37.58 | K31: 36.98 | M31: 25 | N31: 11.43 | O31: 13.28 | P31: 16.33 | Q31: 22.93 | R31: 33.31 | S31: 35.78 | T31: 36.99 | U31: 39.23 | V31: 39.23 | W31: 38.63
A32: 26 | B32: 10.07 | C32: 11.94 | D32: 15.25 | E32: 21.95 | F32: 32.75 | G32: 35.27 | H32: 36.3 | I32: 38.57 | J32: 38.57 | K32: 38.2 | M32: 26 | N32: 11.72 | O32: 13.59 | P32: 16.89 | Q32: 23.6 | R32: 34.39 | S32: 36.92 | T32: 37.94 | U32: 40.22 | V32: 40.22 | W32: 39.85
A33: 27 | B33: 10.4 | C33: 12.29 | D33: 15.64 | E33: 22.74 | F33: 33.87 | G33: 36.47 | H33: 37.45 | I33: 39.81 | J33: 39.81 | K33: 39.41 | M33: 27 | N33: 12.05 | O33: 13.93 | P33: 17.28 | Q33: 24.38 | R33: 35.51 | S33: 38.12 | T33: 39.09 | U33: 41.45 | V33: 41.45 | W33: 41.06
A34: 28 | B34: 10.73 | C34: 12.71 | D34: 15.97 | E34: 23.28 | F34: 34.69 | G34: 37.39 | H34: 38.38 | I34: 41.09 | J34: 41.09 | K34: 40.89 | M34: 28 | N34: 12.38 | O34: 14.36 | P34: 17.62 | Q34: 24.92 | R34: 36.34 | S34: 39.04 | T34: 40.02 | U34: 42.74 | V34: 42.74 | W34: 42.54
A35: 29 | B35: 11.03 | C35: 12.92 | D35: 16.47 | E35: 23.82 | F35: 35.65 | G35: 38.38 | H35: 39.5 | I35: 42.15 | J35: 42.15 | K35: 42.09 | M35: 29 | N35: 12.68 | O35: 14.56 | P35: 18.11 | Q35: 25.46 | R35: 37.29 | S35: 40.02 | T35: 41.14 | U35: 43.79 | V35: 43.79 | W35: 43.74
A36: 30 | B36: 11.22 | C36: 13.27 | D36: 17.03 | E36: 24.59 | F36: 36.62 | G36: 39.38 | H36: 40.5 | I36: 43.44 | J36: 43.44 | K36: 43.22 | M36: 30 | N36: 12.87 | O36: 14.91 | P36: 18.67 | Q36: 26.24 | R36: 38.26 | S36: 41.03 | T36: 42.15 | U36: 45.08 | V36: 45.08 | W36: 44.87
A37: 31 | B37: 11.55 | C37: 13.71 | D37: 17.5 | E37: 25.15 | F37: 37.45 | G37: 40.24 | H37: 41.57 | I37: 44.52 | J37: 44.52 | K37: 44.6 | M37: 31 | N37: 13.2 | O37: 15.36 | P37: 19.15 | Q37: 26.8 | R37: 39.09 | S37: 41.89 | T37: 43.21 | U37: 46.16 | V37: 46.16 | W37: 46.24
A38: 32 | B38: 11.73 | C38: 14.01 | D38: 17.98 | E38: 25.77 | F38: 38.53 | G38: 41.36 | H38: 42.58 | I38: 45.93 | J38: 45.93 | K38: 45.85 | M38: 32 | N38: 13.37 | O38: 15.66 | P38: 19.62 | Q38: 27.42 | R38: 40.18 | S38: 43 | T38: 44.23 | U38: 47.58 | V38: 47.58 | W38: 47.5
A39: 33 | B39: 12.06 | C39: 14.37 | D39: 18.47 | E39: 26.31 | F39: 39.58 | G39: 42.31 | H39: 43.66 | I39: 47.19 | J39: 47.19 | K39: 47.04 | M39: 33 | N39: 13.7 | O39: 16.01 | P39: 20.12 | Q39: 27.96 | R39: 41.22 | S39: 43.96 | T39: 45.3 | U39: 48.83 | V39: 48.83 | W39: 48.69
A40: 34 | B40: 12.44 | C40: 14.66 | D40: 18.88 | E40: 27.22 | F40: 40.78 | G40: 43.35 | H40: 44.74 | I40: 48.41 | J40: 48.41 | K40: 48.33 | M40: 34 | N40: 14.09 | O40: 16.3 | P40: 20.52 | Q40: 28.87 | R40: 42.42 | S40: 44.99 | T40: 46.39 | U40: 50.05 | V40: 50.05 | W40: 49.98
A41: 35 | B41: 12.69 | C41: 15.07 | D41: 19.29 | E41: 27.77 | F41: 42 | G41: 44.44 | H41: 45.85 | I41: 49.73 | J41: 49.73 | K41: 49.71 | M41: 35 | N41: 14.33 | O41: 16.72 | P41: 20.94 | Q41: 29.41 | R41: 43.65 | S41: 46.09 | T41: 47.5 | U41: 51.38 | V41: 51.38 | W41: 51.36
A42: 36 | B42: 12.85 | C42: 15.42 | D42: 19.65 | E42: 28.33 | F42: 43.14 | G42: 45.85 | H42: 47.01 | I42: 50.87 | J42: 50.87 | K42: 50.84 | M42: 36 | N42: 14.5 | O42: 17.07 | P42: 21.3 | Q42: 29.97 | R42: 44.78 | S42: 47.5 | T42: 48.66 | U42: 52.52 | V42: 52.52 | W42: 52.48
A43: 37 | B43: 13.11 | C43: 15.65 | D43: 20.14 | E43: 29.05 | F43: 44.3 | G43: 47.06 | H43: 48.26 | I43: 52.21 | J43: 52.21 | K43: 52.33 | M43: 37 | N43: 14.76 | O43: 17.29 | P43: 21.79 | Q43: 30.7 | R43: 45.94 | S43: 48.71 | T43: 49.91 | U43: 53.85 | V43: 53.85 | W43: 53.98
A44: 38 | B44: 13.34 | C44: 15.91 | D44: 20.66 | E44: 29.65 | F44: 45.44 | G44: 48.29 | H44: 49.57 | I44: 53.41 | J44: 53.41 | K44: 53.48 | M44: 38 | N44: 14.99 | O44: 17.55 | P44: 22.3 | Q44: 31.3 | R44: 47.08 | S44: 49.94 | T44: 51.21 | U44: 55.05 | V44: 55.05 | W44: 55.12
A45: 39 | B45: 13.74 | C45: 16.31 | D45: 21 | E45: 30.23 | F45: 46.53 | G45: 49.57 | H45: 50.86 | I45: 54.68 | J45: 54.68 | K45: 54.79 | M45: 39 | N45: 15.39 | O45: 17.96 | P45: 22.65 | Q45: 31.88 | R45: 48.18 | S45: 51.21 | T45: 52.51 | U45: 56.32 | V45: 56.32 | W45: 56.44
A46: 40 | B46: 14.11 | C46: 16.74 | D46: 21.49 | E46: 30.94 | F46: 47.6 | G46: 50.79 | H46: 51.99 | I46: 55.76 | J46: 55.76 | K46: 56.14 | M46: 40 | N46: 15.75 | O46: 18.38 | P46: 23.13 | Q46: 32.58 | R46: 49.25 | S46: 52.43 | T46: 53.63 | U46: 57.4 | V46: 57.4 | W46: 57.78
A47: 41 | B47: 14.48 | C47: 17.15 | D47: 21.75 | E47: 31.52 | F47: 48.65 | G47: 52.09 | H47: 53.41 | I47: 56.97 | J47: 56.97 | K47: 56.68 | M47: 41 | N47: 16.13 | O47: 18.8 | P47: 23.39 | Q47: 33.16 | R47: 50.29 | S47: 53.74 | T47: 55.05 | U47: 58.61 | V47: 58.61 | W47: 58.32
A48: 42 | B48: 14.69 | C48: 17.54 | D48: 22.18 | E48: 32.14 | F48: 49.69 | G48: 53.41 | H48: 54.74 | I48: 58.27 | J48: 58.27 | K48: 57.96 | M48: 42 | N48: 16.33 | O48: 19.19 | P48: 23.83 | Q48: 33.78 | R48: 51.34 | S48: 55.05 | T48: 56.39 | U48: 59.92 | V48: 59.92 | W48: 59.61
A49: 43 | B49: 15.02 | C49: 17.91 | D49: 22.53 | E49: 32.69 | F49: 50.86 | G49: 54.39 | H49: 55.87 | I49: 59.35 | J49: 59.35 | K49: 59.42 | M49: 43 | N49: 16.66 | O49: 19.55 | P49: 24.18 | Q49: 34.33 | R49: 52.51 | S49: 56.03 | T49: 57.51 | U49: 60.99 | V49: 60.99 | W49: 61.07
A50: 44 | B50: 15.32 | C50: 18.16 | D50: 23.02 | E50: 33.28 | F50: 51.85 | G50: 55.31 | H50: 56.98 | I50: 60.52 | J50: 60.52 | K50: 60.45 | M50: 44 | N50: 16.96 | O50: 19.81 | P50: 24.66 | Q50: 34.92 | R50: 53.5 | S50: 56.96 | T50: 58.62 | U50: 62.16 | V50: 62.16 | W50: 62.1
A51: 45 | B51: 15.64 | C51: 18.58 | D51: 23.37 | E51: 33.74 | F51: 52.77 | G51: 56.34 | H51: 57.82 | I51: 61.42 | J51: 61.42 | K51: 61.65 | M51: 45 | N51: 17.28 | O51: 20.22 | P51: 25.02 | Q51: 35.39 | R51: 54.42 | S51: 57.98 | T51: 59.46 | U51: 63.06 | V51: 63.06 | W51: 63.3
A52: 46 | B52: 15.8 | C52: 18.81 | D52: 23.84 | E52: 34.25 | F52: 53.7 | G52: 57.23 | H52: 59.21 | I52: 62.91 | J52: 62.91 | K52: 62.94 | M52: 46 | N52: 17.45 | O52: 20.45 | P52: 25.48 | Q52: 35.89 | R52: 55.34 | S52: 58.87 | T52: 60.86 | U52: 64.55 | V52: 64.55 | W52: 64.58
A53: 47 | B53: 16.15 | C53: 19.16 | D53: 24.26 | E53: 34.73 | F53: 54.74 | G53: 58.14 | H53: 60.36 | I53: 64.1 | J53: 64.1 | K53: 64.43 | M53: 47 | N53: 17.79 | O53: 20.8 | P53: 25.91 | Q53: 36.38 | R53: 56.39 | S53: 59.78 | T53: 62.01 | U53: 65.74 | V53: 65.74 | W53: 66.07
A54: 48 | B54: 16.47 | C54: 19.6 | D54: 24.7 | E54: 35.24 | F54: 55.7 | G54: 59.13 | H54: 61.38 | I54: 65.18 | J54: 65.18 | K54: 65.54 | M54: 48 | N54: 18.11 | O54: 21.25 | P54: 26.34 | Q54: 36.89 | R54: 57.35 | S54: 60.78 | T54: 63.02 | U54: 66.83 | V54: 66.83 | W54: 67.18
A55: 49 | B55: 16.79 | C55: 20.06 | D55: 25.1 | E55: 35.85 | F55: 56.65 | G55: 59.98 | H55: 62.55 | I55: 66.41 | J55: 66.41 | K55: 65.92 | M55: 49 | N55: 18.43 | O55: 21.7 | P55: 26.74 | Q55: 37.5 | R55: 58.29 | S55: 61.62 | T55: 64.19 | U55: 68.05 | V55: 68.05 | W55: 67.56
A56: 50 | B56: 17.05 | C56: 20.33 | D56: 25.49 | E56: 36.47 | F56: 57.62 | G56: 60.9 | H56: 63.53 | I56: 67.48 | J56: 67.48 | K56: 65.94 | M56: 50 | N56: 18.69 | O56: 21.97 | P56: 27.14 | Q56: 38.12 | R56: 59.26 | S56: 62.55 | T56: 65.17 | U56: 69.13 | V56: 69.13 | W56: 67.59
A57: 51 | B57: 17.29 | C57: 20.56 | D57: 25.92 | E57: 36.99 | F57: 58.57 | G57: 62.02 | H57: 64.64 | I57: 68.64 | J57: 68.64 | K57: 67.56 | M57: 51 | N57: 18.94 | O57: 22.2 | P57: 27.56 | Q57: 38.64 | R57: 60.22 | S57: 63.66 | T57: 66.28 | U57: 70.29 | V57: 70.29 | W57: 69.21
A58: 52 | B58: 17.5 | C58: 20.88 | D58: 26.4 | E58: 37.88 | F58: 59.45 | G58: 63.15 | H58: 65.75 | I58: 69.84 | J58: 69.84 | K58: 70.19 | M58: 52 | N58: 19.15 | O58: 22.52 | P58: 28.05 | Q58: 39.53 | R58: 61.1 | S58: 64.79 | T58: 67.4 | U58: 71.49 | V58: 71.49 | W58: 71.84
A59: 53 | B59: 17.83 | C59: 21.28 | D59: 26.77 | E59: 38.44 | F59: 60.36 | G59: 64.27 | H59: 66.57 | I59: 69.86 | J59: 69.86 | K59: 70.21 | M59: 53 | N59: 19.48 | O59: 22.93 | P59: 28.41 | Q59: 40.09 | R59: 62.01 | S59: 65.92 | T59: 68.22 | U59: 71.51 | V59: 71.51 | W59: 71.86
A60: 54 | B60: 18.07 | C60: 21.63 | D60: 27.17 | E60: 39.04 | F60: 61.38 | G60: 65.53 | H60: 67.56 | I60: 71.78 | J60: 71.78 | K60: 70.24 | M60: 54 | N60: 19.72 | O60: 23.28 | P60: 28.81 | Q60: 40.69 | R60: 63.02 | S60: 67.17 | T60: 69.21 | U60: 73.42 | V60: 73.42 | W60: 71.88
A61: 55 | B61: 18.42 | C61: 21.98 | D61: 27.5 | E61: 39.74 | F61: 62.45 | G61: 66.78 | H61: 68.58 | I61: 72.82 | J61: 72.82 | K61: 73.83 | M61: 55 | N61: 20.07 | O61: 23.63 | P61: 29.15 | Q61: 41.39 | R61: 64.1 | S61: 68.42 | T61: 70.22 | U61: 74.47 | V61: 74.47 | W61: 75.47
A62: 56 | B62: 18.69 | C62: 22.28 | D62: 27.89 | E62: 40.39 | F62: 63.41 | G62: 67.82 | H62: 69.81 | I62: 74.16 | J62: 74.16 | K62: 74.42 | M62: 56 | N62: 20.34 | O62: 23.93 | P62: 29.54 | Q62: 42.03 | R62: 65.06 | S62: 69.47 | T62: 71.46 | U62: 75.8 | V62: 75.8 | W62: 76.06
A63: 57 | B63: 18.93 | C63: 22.64 | D63: 28.35 | E63: 40.93 | F63: 64.52 | G63: 68.94 | H63: 71.08 | I63: 75.5 | J63: 75.5 | K63: 74.43 | M63: 57 | N63: 20.58 | O63: 24.28 | P63: 29.99 | Q63: 42.58 | R63: 66.17 | S63: 70.59 | T63: 72.73 | U63: 77.15 | V63: 77.15 | W63: 76.07
A64: 58 | B64: 19.29 | C64: 23.02 | D64: 28.86 | E64: 41.61 | F64: 65.75 | G64: 70.13 | H64: 72.18 | I64: 76.64 | J64: 76.64 | K64: 75.6 | M64: 58 | N64: 20.94 | O64: 24.66 | P64: 30.5 | Q64: 43.25 | R64: 67.4 | S64: 71.78 | T64: 73.83 | U64: 78.29 | V64: 78.29 | W64: 77.24
A65: 59 | B65: 19.53 | C65: 23.28 | D65: 29.4 | E65: 42.37 | F65: 66.96 | G65: 71.26 | H65: 73.35 | I65: 77.91 | J65: 77.91 | K65: 76.53 | M65: 59 | N65: 21.18 | O65: 24.92 | P65: 31.05 | Q65: 44.02 | R65: 68.61 | S65: 72.91 | T65: 75 | U65: 79.56 | V65: 79.56 | W65: 78.17
A66: 60 | B66: 19.7 | C66: 23.52 | D66: 29.87 | E66: 42.97 | F66: 68.15 | G66: 72.48 | H66: 74.27 | I66: 78.86 | J66: 78.86 | K66: 77.4 | M66: 60 | N66: 21.34 | O66: 25.16 | P66: 31.52 | Q66: 44.62 | R66: 69.8 | S66: 74.13 | T66: 75.92 | U66: 80.5 | V66: 80.5 | W66: 79.04
A67: 61 | B67: 20.06 | C67: 23.84 | D67: 30.27 | E67: 43.52 | F67: 69.17 | G67: 73.31 | H67: 75.46 | I67: 79.02 | J67: 79.02 | K67: 81.22 | M67: 61 | N67: 21.7 | O67: 25.48 | P67: 31.92 | Q67: 45.17 | R67: 70.81 | S67: 74.95 | T67: 77.11 | U67: 80.67 | V67: 80.67 | W67: 82.86
A68: 62 | B68: 20.43 | C68: 24.29 | D68: 30.64 | E68: 44.24 | F68: 70.13 | G68: 74.55 | H68: 76.79 | I68: 81.56 | J68: 81.56 | K68: 83.11 | M68: 62 | N68: 22.08 | O68: 25.94 | P68: 32.28 | Q68: 45.88 | R68: 71.78 | S68: 76.2 | T68: 78.43 | U68: 83.2 | V68: 83.2 | W68: 84.76
A69: 63 | B69: 20.76 | C69: 24.7 | D69: 31.02 | E69: 44.81 | F69: 71.15 | G69: 75.78 | H69: 78.27 | I69: 83.01 | J69: 83.01 | K69: 83.13 | M69: 63 | N69: 22.41 | O69: 26.34 | P69: 32.66 | Q69: 46.45 | R69: 72.79 | S69: 77.43 | T69: 79.91 | U69: 84.65 | V69: 84.65 | W69: 84.78
A70: 64 | B70: 21.13 | C70: 25.05 | D70: 31.38 | E70: 45.43 | F70: 72.2 | G70: 77.01 | H70: 79.28 | I70: 83.03 | J70: 83.03 | K70: 83.14 | M70: 64 | N70: 22.78 | O70: 26.69 | P70: 33.03 | Q70: 47.07 | R70: 73.85 | S70: 78.66 | T70: 80.93 | U70: 84.67 | V70: 84.67 | W70: 84.79
A71: 65 | B71: 21.46 | C71: 25.42 | D71: 31.87 | E71: 46.1 | F71: 73.28 | G71: 78.29 | H71: 80.66 | I71: 85.66 | J71: 85.66 | K71: 84.18 | M71: 65 | N71: 23.1 | O71: 27.07 | P71: 33.51 | Q71: 47.74 | R71: 74.92 | S71: 79.93 | T71: 82.3 | U71: 87.3 | V71: 87.3 | W71: 85.82
A72: 66 | B72: 21.72 | C72: 25.68 | D72: 32.31 | E72: 46.85 | F72: 74.47 | G72: 79.28 | H72: 82.1 | I72: 85.96 | J72: 85.96 | K72: 85.83 | M72: 66 | N72: 23.37 | O72: 27.32 | P72: 33.96 | Q72: 48.5 | R72: 76.11 | S72: 80.93 | T72: 83.74 | U72: 87.6 | V72: 87.6 | W72: 87.48
A73: 67 | B73: 21.91 | C73: 26.16 | D73: 32.82 | E73: 47.61 | F73: 75.39 | G73: 80.44 | H73: 83.28 | I73: 88.44 | J73: 88.44 | K73: 87.16 | M73: 67 | N73: 23.56 | O73: 27.81 | P73: 34.47 | Q73: 49.26 | R73: 77.04 | S73: 82.09 | T73: 84.92 | U73: 90.09 | V73: 90.09 | W73: 88.8
A74: 68 | B74: 22.18 | C74: 26.4 | D74: 33.28 | E74: 48.43 | F74: 76.4 | G74: 81.52 | H74: 84.32 | I74: 89.56 | J74: 89.56 | K74: 88.22 | M74: 68 | N74: 23.83 | O74: 28.05 | P74: 34.92 | Q74: 50.07 | R74: 78.05 | S74: 83.16 | T74: 85.97 | U74: 91.2 | V74: 91.2 | W74: 89.87
A75: 69 | B75: 22.54 | C75: 26.78 | D75: 33.69 | E75: 49.32 | F75: 77.36 | G75: 82.62 | H75: 85.8 | I75: 89.87 | J75: 89.87 | K75: 88.73 | M75: 69 | N75: 24.19 | O75: 28.42 | P75: 35.33 | Q75: 50.96 | R75: 79 | S75: 84.27 | T75: 87.45 | U75: 91.51 | V75: 91.51 | W75: 90.38
A76: 70 | B76: 22.89 | C76: 27.19 | D76: 34.24 | E76: 50.17 | F76: 78.29 | G76: 83.66 | H76: 86.76 | I76: 90.85 | J76: 90.85 | K76: 89.8 | M76: 70 | N76: 24.54 | O76: 28.84 | P76: 35.88 | Q76: 51.81 | R76: 79.93 | S76: 85.3 | T76: 88.41 | U76: 92.5 | V76: 92.5 | W76: 91.44
A77: 71 | B77: 23.18 | C77: 27.55 | D77: 34.69 | E77: 50.86 | F77: 79.35 | G77: 84.62 | H77: 87.9 | I77: 92.05 | J77: 92.05 | K77: 92.02 | M77: 71 | N77: 24.83 | O77: 29.2 | P77: 36.34 | Q77: 52.51 | R77: 81 | S77: 86.27 | T77: 89.55 | U77: 93.7 | V77: 93.7 | W77: 93.67
A78: 72 | B78: 23.47 | C78: 28.06 | D78: 35.13 | E78: 51.63 | F78: 80.44 | G78: 85.83 | H78: 89.22 | I78: 93.43 | J78: 93.43 | K78: 92.38 | M78: 72 | N78: 25.12 | O78: 29.7 | P78: 36.77 | Q78: 53.27 | R78: 82.09 | S78: 87.48 | T78: 90.86 | U78: 95.08 | V78: 95.08 | W78: 94.03
A79: 73 | B79: 23.69 | C79: 28.29 | D79: 35.65 | E79: 52.5 | F79: 81.59 | G79: 87.01 | H79: 90.23 | I79: 94.5 | J79: 94.5 | K79: 93.42 | M79: 73 | N79: 25.34 | O79: 29.93 | P79: 37.29 | Q79: 54.14 | R79: 83.23 | S79: 88.66 | T79: 91.88 | U79: 96.14 | V79: 96.14 | W79: 95.06
A80: 74 | B80: 24.02 | C80: 28.64 | D80: 36.13 | E80: 53.17 | F80: 82.68 | G80: 88.34 | H80: 91.61 | I80: 97.29 | J80: 97.29 | K80: 96.06 | M80: 74 | N80: 25.67 | O80: 30.28 | P80: 37.78 | Q80: 54.81 | R80: 84.32 | S80: 89.98 | T80: 93.25 | U80: 98.94 | V80: 98.94 | W80: 97.7
A81: 75 | B81: 24.36 | C81: 29.1 | D81: 36.53 | E81: 53.9 | F81: 83.8 | G81: 89.51 | H81: 92.81 | I81: 98.53 | J81: 98.53 | K81: 97.27 | M81: 75 | N81: 26.01 | O81: 30.75 | P81: 38.17 | Q81: 55.55 | R81: 85.45 | S81: 91.15 | T81: 94.45 | U81: 100.18 | V81: 100.18 | W81: 98.91
A82: 76 | B82: 24.61 | C82: 29.43 | D82: 36.97 | E82: 54.52 | F82: 84.28 | G82: 90.81 | H82: 93.81 | I82: 99.43 | J82: 99.43 | K82: 98.59 | M82: 76 | N82: 26.26 | O82: 31.07 | P82: 38.62 | Q82: 56.17 | R82: 85.93 | S82: 92.46 | T82: 95.46 | U82: 101.08 | V82: 101.08 | W82: 100.24
A83: 77 | B83: 25.05 | C83: 29.81 | D83: 37.44 | E83: 55.21 | F83: 86.09 | G83: 91.85 | H83: 94.95 | I83: 99.45 | J83: 99.45 | K83: 98.64 | M83: 77 | N83: 26.69 | O83: 31.45 | P83: 39.08 | Q83: 56.85 | R83: 87.74 | S83: 93.49 | T83: 96.6 | U83: 101.1 | V83: 101.1 | W83: 100.28
A84: 78 | B84: 25.29 | C84: 30.06 | D84: 37.97 | E84: 56.01 | F84: 86.11 | G84: 93.04 | H84: 95.72 | I84: 100.25 | J84: 100.25 | K84: 99.2 | M84: 78 | N84: 26.93 | O84: 31.7 | P84: 39.62 | Q84: 57.66 | R84: 87.76 | S84: 94.68 | T84: 97.36 | U84: 101.9 | V84: 101.9 | W84: 100.85
A85: 79 | B85: 25.56 | C85: 30.43 | D85: 38.49 | E85: 56.83 | F85: 88.39 | G85: 94.1 | H85: 97.33 | I85: 101.93 | J85: 101.93 | K85: 100.85 | M85: 79 | N85: 27.21 | O85: 32.07 | P85: 40.14 | Q85: 58.48 | R85: 90.03 | S85: 95.75 | T85: 98.98 | U85: 103.57 | V85: 103.57 | W85: 102.5
A86: 80 | B86: 25.98 | C86: 30.78 | D86: 39.04 | E86: 57.56 | F86: 89.51 | G86: 95.26 | H86: 97.34 | I86: 103.18 | J86: 103.18 | K86: 102.11 | M86: 80 | N86: 27.62 | O86: 32.43 | P86: 40.69 | Q86: 59.2 | R86: 91.15 | S86: 96.91 | T86: 98.99 | U86: 104.82 | V86: 104.82 | W86: 103.76
A87: 81 | B87: 26.2 | C87: 31.13 | D87: 39.06 | E87: 57.58 | F87: 89.53 | G87: 95.28 | H87: 97.36 | I87: 103.93 | J87: 103.93 | K87: 102.43 | M87: 81 | N87: 27.84 | O87: 32.78 | P87: 40.71 | Q87: 59.22 | R87: 91.17 | S87: 96.93 | T87: 99.01 | U87: 105.58 | V87: 105.58 | W87: 104.08
A88: 82 | B88: 26.5 | C88: 31.53 | D88: 39.91 | E88: 59.04 | F88: 91.59 | G88: 97.65 | H88: 100.86 | I88: 105.62 | J88: 105.62 | K88: 104.65 | M88: 82 | N88: 28.14 | O88: 33.17 | P88: 41.56 | Q88: 60.68 | R88: 93.23 | S88: 99.3 | T88: 102.51 | U88: 107.27 | V88: 107.27 | W88: 106.29
A89: 83 | B89: 26.69 | C89: 31.89 | D89: 40.44 | E89: 59.06 | F89: 92.63 | G89: 98.02 | H89: 102.06 | I89: 106.84 | J89: 106.84 | K89: 106 | M89: 83 | N89: 28.34 | O89: 33.53 | P89: 42.08 | Q89: 60.7 | R89: 94.28 | S89: 99.67 | T89: 103.71 | U89: 108.49 | V89: 108.49 | W89: 107.65
A90: 84 | B90: 27.02 | C90: 32.31 | D90: 40.79 | E90: 60.08 | F90: 92.65 | G90: 100.29 | H90: 103.07 | I90: 107.92 | J90: 107.92 | K90: 107.14 | M90: 84 | N90: 28.67 | O90: 33.96 | P90: 42.44 | Q90: 61.73 | R90: 94.3 | S90: 101.94 | T90: 104.71 | U90: 109.57 | V90: 109.57 | W90: 108.79
A91: 85 | B91: 27.34 | C91: 32.74 | D91: 41.18 | E91: 61.04 | F91: 94.69 | G91: 101.63 | H91: 104.16 | I91: 109.08 | J91: 109.08 | K91: 108.37 | M91: 85 | N91: 28.99 | O91: 34.38 | P91: 42.83 | Q91: 62.69 | R91: 96.34 | S91: 103.27 | T91: 105.81 | U91: 110.72 | V91: 110.72 | W91: 110.02
A92: 86 | B92: 27.73 | C92: 32.76 | D92: 41.67 | E92: 61.75 | F92: 94.7 | G92: 102.94 | H92: 105.38 | I92: 110.33 | J92: 110.33 | K92: 109.58 | M92: 86 | N92: 29.37 | O92: 34.4 | P92: 43.31 | Q92: 63.39 | R92: 96.35 | S92: 104.59 | T92: 107.03 | U92: 111.98 | V92: 111.98 | W92: 111.22
A93: 87 | B93: 27.92 | C93: 33.41 | D93: 42.13 | E93: 62.44 | F93: 94.72 | G93: 102.96 | H93: 106.43 | I93: 111.43 | J93: 111.43 | K93: 110.75 | M93: 87 | N93: 29.57 | O93: 35.06 | P93: 43.78 | Q93: 64.09 | R93: 96.37 | S93: 104.61 | T93: 108.07 | U93: 113.07 | V93: 113.07 | W93: 112.39
A94: 88 | B94: 28.17 | C94: 33.82 | D94: 42.64 | E94: 63.02 | F94: 94.74 | G94: 102.99 | H94: 106.45 | I94: 112.67 | J94: 112.67 | K94: 112 | M94: 88 | N94: 29.82 | O94: 35.47 | P94: 44.29 | Q94: 64.67 | R94: 96.39 | S94: 104.64 | T94: 108.1 | U94: 114.32 | V94: 114.32 | W94: 113.64
A95: 89 | B95: 28.47 | C95: 34.02 | D95: 43.07 | E95: 63.62 | F95: 94.75 | G95: 103 | H95: 106.46 | I95: 114.1 | J95: 114.1 | K95: 113.25 | M95: 89 | N95: 30.12 | O95: 35.67 | P95: 44.71 | Q95: 65.27 | R95: 96.4 | S95: 104.65 | T95: 108.11 | U95: 115.74 | V95: 115.74 | W95: 114.9
A96: 90 | B96: 28.96 | C96: 34.37 | D96: 43.47 | E96: 64.28 | F96: 98.76 | G96: 107.86 | H96: 110.1 | I96: 115.31 | J96: 115.31 | K96: 114.57 | M96: 90 | N96: 30.6 | O96: 36.02 | P96: 45.12 | Q96: 65.93 | R96: 100.41 | S96: 109.5 | T96: 111.75 | U96: 116.96 | V96: 116.96 | W96: 116.22
A97: 91 | B97: 29.36 | C97: 34.82 | D97: 43.49 | E97: 65.1 | F97: 98.78 | G97: 109.21 | H97: 111.3 | I97: 116.54 | J97: 116.54 | K97: 115.88 | M97: 91 | N97: 31.01 | O97: 36.46 | P97: 45.14 | Q97: 66.75 | R97: 100.43 | S97: 110.86 | T97: 112.95 | U97: 118.19 | V97: 118.19 | W97: 117.52
A98: 92 | B98: 29.74 | C98: 35.17 | D98: 44.39 | E98: 65.13 | F98: 98.8 | G98: 109.23 | H98: 112.42 | I98: 117.73 | J98: 117.73 | K98: 117.09 | M98: 92 | N98: 31.38 | O98: 36.81 | P98: 46.04 | Q98: 66.78 | R98: 100.45 | S98: 110.88 | T98: 114.07 | U98: 119.38 | V98: 119.38 | W98: 118.74
A99: 93 | B99: 29.98 | C99: 35.68 | D99: 44.4 | E99: 65.15 | F99: 98.82 | G99: 109.25 | H99: 112.45 | I99: 118.88 | J99: 118.88 | K99: 118.33 | M99: 93 | N99: 31.63 | O99: 37.32 | P99: 46.05 | Q99: 66.8 | R99: 100.47 | S99: 110.9 | T99: 114.1 | U99: 120.53 | V99: 120.53 | W99: 119.98
A100: 94 | B100: 30.23 | C100: 35.7 | D100: 44.91 | E100: 65.16 | F100: 98.84 | G100: 112.6 | H100: 113.56 | I100: 118.9 | J100: 118.9 | K100: 118.34 | M100: 94 | N100: 31.88 | O100: 37.34 | P100: 46.55 | Q100: 66.81 | R100: 100.49 | S100: 114.24 | T100: 115.21 | U100: 120.55 | V100: 120.55 | W100: 119.99
A101: 95 | B101: 30.48 | C101: 35.72 | D101: 45.83 | E101: 65.18 | F101: 98.86 | G101: 112.61 | H101: 115.78 | I101: 121.2 | J101: 121.2 | K101: 120.52 | M101: 95 | N101: 32.13 | O101: 37.36 | P101: 47.48 | Q101: 66.83 | R101: 100.51 | S101: 114.25 | T101: 117.42 | U101: 122.84 | V101: 122.84 | W101: 122.16
A102: 96 | B102: 30.71 | C102: 36.13 | D102: 46.22 | E102: 65.57 | F102: 99.68 | G102: 112.63 | H102: 116.98 | I102: 122.51 | J102: 122.51 | K102: 121.72 | M102: 96 | N102: 32.35 | O102: 37.78 | P102: 47.87 | Q102: 67.21 | R102: 101.33 | S102: 114.27 | T102: 118.62 | U102: 124.16 | V102: 124.16 | W102: 123.36
A103: 97 | B103: 31.02 | C103: 36.15 | D103: 46.23 | E103: 68.66 | F103: 107.17 | G103: 112.66 | H103: 117.59 | I103: 123.69 | J103: 123.69 | K103: 122.85 | M103: 97 | N103: 32.66 | O103: 37.8 | P103: 47.88 | Q103: 70.31 | R103: 108.82 | S103: 114.31 | T103: 119.23 | U103: 125.34 | V103: 125.34 | W103: 124.5
A104: 98 | B104: 31.29 | C104: 36.17 | D104: 46.75 | E104: 68.68 | F104: 107.19 | G104: 117.11 | H104: 117.61 | I104: 123.72 | J104: 123.72 | K104: 122.95 | M104: 98 | N104: 32.93 | O104: 37.82 | P104: 48.4 | Q104: 70.33 | R104: 108.84 | S104: 118.76 | T104: 119.25 | U104: 125.37 | V104: 125.37 | W104: 124.59
A105: 99 | B105: 31.57 | C105: 36.55 | D105: 46.77 | E105: 68.71 | F105: 107.23 | G105: 117.13 | H105: 117.62 | I105: 123.77 | J105: 123.77 | K105: 123 | M105: 99 | N105: 33.21 | O105: 38.19 | P105: 48.42 | Q105: 70.36 | R105: 108.87 | S105: 118.78 | T105: 119.26 | U105: 125.41 | V105: 125.41 | W105: 124.65
A106: 100 | B106: 31.81 | C106: 36.57 | D106: 46.79 | E106: 68.72 | F106: 109.08 | G106: 117.48 | H106: 119.93 | I106: 127.93 | J106: 127.93 | K106: 127.83 | M106: 100 | N106: 33.45 | O106: 38.21 | P106: 48.44 | Q106: 70.37 | R106: 110.72 | S106: 119.13 | T106: 121.57 | U106: 129.57 | V106: 129.57 | W106: 129.48
A107: 101 | B107: 32.12 | C107: 36.93 | D107: 47.26 | E107: 69.4 | F107: 110.17 | G107: 118.63 | H107: 121.13 | I107: 129.21 | J107: 129.21 | K107: 129.14 | M107: 101 | N107: 33.76 | O107: 38.57 | P107: 48.9 | Q107: 71.04 | R107: 111.81 | S107: 120.28 | T107: 122.77 | U107: 130.86 | V107: 130.86 | W107: 130.78
A108: 102 | B108: 32.44 | C108: 36.95 | D108: 47.71 | E108: 70.1 | F108: 111.27 | G108: 119.82 | H108: 122.33 | I108: 130.48 | J108: 130.48 | K108: 130.44 | M108: 102 | N108: 34.08 | O108: 38.6 | P108: 49.36 | Q108: 71.75 | R108: 112.92 | S108: 121.47 | T108: 123.97 | U108: 132.13 | V108: 132.13 | W108: 132.09
A109: 103 | B109: 32.76 | C109: 37.28 | D109: 48.21 | E109: 70.79 | F109: 112.36 | G109: 121 | H109: 123.52 | I109: 131.78 | J109: 131.78 | K109: 131.75 | M109: 103 | N109: 34.4 | O109: 38.93 | P109: 49.86 | Q109: 72.44 | R109: 114.01 | S109: 122.65 | T109: 125.16 | U109: 133.42 | V109: 133.42 | W109: 133.39
A110: 104 | B110: 33.08 | C110: 37.64 | D110: 48.66 | E110: 71.47 | F110: 113.45 | G110: 122.17 | H110: 124.71 | I110: 133.05 | J110: 133.05 | K110: 133.05 | M110: 104 | N110: 34.72 | O110: 39.29 | P110: 50.3 | Q110: 73.11 | R110: 115.09 | S110: 123.82 | T110: 126.35 | U110: 134.69 | V110: 134.69 | W110: 134.69
A111: 105 | B111: 33.39 | C111: 37.99 | D111: 49.11 | E111: 72.15 | F111: 114.53 | G111: 123.35 | H111: 125.92 | I111: 134.33 | J111: 134.33 | K111: 134.33 | M111: 105 | N111: 35.03 | O111: 39.64 | P111: 50.76 | Q111: 73.8 | R111: 116.18 | S111: 125 | T111: 127.56 | U111: 135.98 | V111: 135.98 | W111: 135.98
A112: 106 | B112: 33.72 | C112: 38.37 | D112: 49.61 | E112: 72.84 | F112: 115.62 | G112: 124.52 | H112: 127.11 | I112: 135.6 | J112: 135.6 | K112: 135.64 | M112: 106 | N112: 35.37 | O112: 40.01 | P112: 51.25 | Q112: 74.49 | R112: 117.27 | S112: 126.17 | T112: 128.75 | U112: 137.24 | V112: 137.24 | W112: 137.28
A113: 107 | B113: 34.02 | C113: 38.73 | D113: 50.06 | E113: 73.53 | F113: 116.73 | G113: 125.69 | H113: 128.31 | I113: 136.88 | J113: 136.88 | K113: 136.95 | M113: 107 | N113: 35.67 | O113: 40.38 | P113: 51.71 | Q113: 75.17 | R113: 118.37 | S113: 127.34 | T113: 129.95 | U113: 138.52 | V113: 138.52 | W113: 138.6
A114: 108 | B114: 34.35 | C114: 39.09 | D114: 50.54 | E114: 74.21 | F114: 117.8 | G114: 126.87 | H114: 129.51 | I114: 138.16 | J114: 138.16 | K114: 138.24 | M114: 108 | N114: 36 | O114: 40.74 | P114: 52.18 | Q114: 75.86 | R114: 119.45 | S114: 128.52 | T114: 131.16 | U114: 139.81 | V114: 139.81 | W114: 139.89
A115: 109 | B115: 34.66 | C115: 39.45 | D115: 50.98 | E115: 74.91 | F115: 118.89 | G115: 128.05 | H115: 130.7 | I115: 139.44 | J115: 139.44 | K115: 139.55 | M115: 109 | N115: 36.31 | O115: 41.1 | P115: 52.63 | Q115: 76.56 | R115: 120.54 | S115: 129.7 | T115: 132.35 | U115: 141.08 | V115: 141.08 | W115: 141.19
A116: 110 | B116: 34.99 | C116: 39.81 | D116: 51.47 | E116: 75.59 | F116: 119.99 | G116: 129.21 | H116: 131.92 | I116: 140.72 | J116: 140.72 | K116: 140.82 | M116: 110 | N116: 36.64 | O116: 41.45 | P116: 53.12 | Q116: 77.23 | R116: 121.63 | S116: 130.86 | T116: 133.57 | U116: 142.36 | V116: 142.36 | W116: 142.47
A117: 111 | B117: 35.29 | C117: 40.17 | D117: 51.94 | E117: 76.28 | F117: 121.08 | G117: 130.38 | H117: 133.12 | I117: 141.99 | J117: 141.99 | K117: 142.15 | M117: 111 | N117: 36.94 | O117: 41.81 | P117: 53.58 | Q117: 77.93 | R117: 122.73 | S117: 132.02 | T117: 134.77 | U117: 143.64 | V117: 143.64 | W117: 143.79
A118: 112 | B118: 35.62 | C118: 40.53 | D118: 52.4 | E118: 76.97 | F118: 122.17 | G118: 131.57 | H118: 134.32 | I118: 143.3 | J118: 143.3 | K118: 143.45 | M118: 112 | N118: 37.27 | O118: 42.18 | P118: 54.05 | Q118: 78.62 | R118: 123.82 | S118: 133.21 | T118: 135.97 | U118: 144.94 | V118: 144.94 | W118: 145.1
A119: 113 | B119: 35.92 | C119: 40.89 | D119: 52.88 | E119: 77.67 | F119: 123.27 | G119: 132.75 | H119: 135.51 | I119: 144.56 | J119: 144.56 | K119: 144.73 | M119: 113 | N119: 37.57 | O119: 42.54 | P119: 54.52 | Q119: 79.31 | R119: 124.91 | S119: 134.39 | T119: 137.16 | U119: 146.2 | V119: 146.2 | W119: 146.38
A120: 114 | B120: 36.26 | C120: 41.24 | D120: 53.34 | E120: 78.34 | F120: 124.36 | G120: 133.9 | H120: 136.7 | I120: 145.83 | J120: 145.83 | K120: 146.04 | M120: 114 | N120: 37.9 | O120: 42.89 | P120: 54.99 | Q120: 79.98 | R120: 126 | S120: 135.54 | T120: 138.35 | U120: 147.48 | V120: 147.48 | W120: 147.68
A121: 115 | B121: 36.57 | C121: 41.61 | D121: 53.8 | E121: 79.02 | F121: 125.43 | G121: 135.09 | H121: 137.9 | I121: 147.11 | J121: 147.11 | K121: 147.33 | M121: 115 | N121: 38.21 | O121: 43.25 | P121: 55.44 | Q121: 80.67 | R121: 127.08 | S121: 136.73 | T121: 139.55 | U121: 148.76 | V121: 148.76 | W121: 148.98
A122: 116 | B122: 36.9 | C122: 41.99 | D122: 54.28 | E122: 79.72 | F122: 126.55 | G122: 136.26 | H122: 139.09 | I122: 148.4 | J122: 148.4 | K122: 148.64 | M122: 116 | N122: 38.54 | O122: 43.64 | P122: 55.92 | Q122: 81.36 | R122: 128.2 | S122: 137.9 | T122: 140.74 | U122: 150.04 | V122: 150.04 | W122: 150.28
A123: 117 | B123: 37.21 | C123: 42.34 | D123: 54.75 | E123: 80.4 | F123: 127.63 | G123: 137.45 | H123: 140.29 | I123: 149.69 | J123: 149.69 | K123: 149.94 | M123: 117 | N123: 38.85 | O123: 43.99 | P123: 56.4 | Q123: 82.04 | R123: 129.27 | S123: 139.09 | T123: 141.94 | U123: 151.34 | V123: 151.34 | W123: 151.59
A124: 118 | B124: 37.53 | C124: 42.71 | D124: 55.21 | E124: 81.09 | F124: 128.7 | G124: 138.63 | H124: 141.51 | I124: 150.94 | J124: 150.94 | K124: 151.23 | M124: 118 | N124: 39.17 | O124: 44.36 | P124: 56.85 | Q124: 82.74 | R124: 130.35 | S124: 140.27 | T124: 143.15 | U124: 152.59 | V124: 152.59 | W124: 152.88
A125: 119 | B125: 37.84 | C125: 43.07 | D125: 55.68 | E125: 81.79 | F125: 129.8 | G125: 139.79 | H125: 142.7 | I125: 152.24 | J125: 152.24 | K125: 152.55 | M125: 119 | N125: 39.49 | O125: 44.71 | P125: 57.33 | Q125: 83.43 | R125: 131.45 | S125: 141.43 | T125: 144.34 | U125: 153.88 | V125: 153.88 | W125: 154.19
A126: 120 | B126: 38.16 | C126: 43.42 | D126: 56.15 | E126: 82.46 | F126: 130.91 | G126: 140.97 | H126: 143.92 | I126: 153.5 | J126: 153.5 | K126: 153.83 | M126: 120 | N126: 39.81 | O126: 45.06 | P126: 57.79 | Q126: 84.1 | R126: 132.55 | S126: 142.61 | T126: 145.56 | U126: 155.15 | V126: 155.15 | W126: 155.48
A127: 121 | B127: 38.48 | C127: 43.79 | D127: 56.6 | E127: 83.15 | F127: 131.98 | G127: 142.15 | H127: 145.12 | I127: 154.78 | J127: 154.78 | K127: 155.14 | M127: 121 | N127: 40.13 | O127: 45.44 | P127: 58.25 | Q127: 84.8 | R127: 133.63 | S127: 143.79 | T127: 146.76 | U127: 156.43 | V127: 156.43 | W127: 156.78
A128: 122 | B128: 38.8 | C128: 44.15 | D128: 57.08 | E128: 83.84 | F128: 133.08 | G128: 143.33 | H128: 146.31 | I128: 156.08 | J128: 156.08 | K128: 156.44 | M128: 122 | N128: 40.45 | O128: 45.8 | P128: 58.73 | Q128: 85.48 | R128: 134.73 | S128: 144.97 | T128: 147.95 | U128: 157.72 | V128: 157.72 | W128: 158.09
A129: 123 | B129: 39.11 | C129: 44.52 | D129: 57.56 | E129: 84.52 | F129: 134.17 | G129: 144.49 | H129: 147.51 | I129: 157.34 | J129: 157.34 | K129: 157.74 | M129: 123 | N129: 40.76 | O129: 46.16 | P129: 59.2 | Q129: 86.16 | R129: 135.81 | S129: 146.13 | T129: 149.15 | U129: 158.99 | V129: 158.99 | W129: 159.39
A130: 124 | B130: 39.43 | C130: 44.87 | D130: 58.02 | E130: 85.21 | F130: 135.25 | G130: 145.66 | H130: 148.7 | I130: 158.63 | J130: 158.63 | K130: 159.05 | M130: 124 | N130: 41.08 | O130: 46.51 | P130: 59.67 | Q130: 86.86 | R130: 136.9 | S130: 147.3 | T130: 150.34 | U130: 160.28 | V130: 160.28 | W130: 160.69
A131: 125 | B131: 39.74 | C131: 45.23 | D131: 58.48 | E131: 85.91 | F131: 136.36 | G131: 146.85 | H131: 149.89 | I131: 159.92 | J131: 159.92 | K131: 160.33 | M131: 125 | N131: 41.39 | O131: 46.88 | P131: 60.12 | Q131: 87.55 | R131: 138.01 | S131: 148.49 | T131: 151.53 | U131: 161.56 | V131: 161.56 | W131: 161.98
A132: 126 | B132: 40.08 | C132: 45.6 | D132: 58.94 | E132: 86.57 | F132: 137.45 | G132: 148.03 | H132: 151.09 | I132: 161.2 | J132: 161.2 | K132: 161.65 | M132: 126 | N132: 41.72 | O132: 47.25 | P132: 60.59 | Q132: 88.21 | R132: 139.09 | S132: 149.67 | T132: 152.73 | U132: 162.85 | V132: 162.85 | W132: 163.29
A133: 127 | B133: 40.41 | C133: 45.97 | D133: 59.42 | E133: 87.26 | F133: 138.52 | G133: 149.2 | H133: 152.29 | I133: 162.47 | J133: 162.47 | K133: 162.95 | M133: 127 | N133: 42.05 | O133: 47.62 | P133: 61.07 | Q133: 88.91 | R133: 140.17 | S133: 150.84 | T133: 153.94 | U133: 164.12 | V133: 164.12 | W133: 164.6
A134: 128 | B134: 40.72 | C134: 46.33 | D134: 59.89 | E134: 87.98 | F134: 139.62 | G134: 150.36 | H134: 153.48 | I134: 163.74 | J134: 163.74 | K134: 164.24 | M134: 128 | N134: 42.36 | O134: 47.97 | P134: 61.53 | Q134: 89.62 | R134: 141.27 | S134: 152.01 | T134: 155.13 | U134: 165.38 | V134: 165.38 | W134: 165.89
A135: 129 | B135: 41.04 | C135: 46.68 | D135: 60.35 | E135: 88.65 | F135: 140.7 | G135: 151.53 | H135: 154.68 | I135: 165.03 | J135: 165.03 | K135: 165.55 | M135: 129 | N135: 42.68 | O135: 48.32 | P135: 62 | Q135: 90.29 | R135: 142.34 | S135: 153.18 | T135: 156.33 | U135: 166.68 | V135: 166.68 | W135: 167.19
A136: 130 | B136: 41.35 | C136: 47.05 | D136: 60.84 | E136: 89.33 | F136: 141.81 | G136: 152.71 | H136: 155.91 | I136: 166.31 | J136: 166.31 | K136: 166.84 | M136: 130 | N136: 42.99 | O136: 48.7 | P136: 62.48 | Q136: 90.98 | R136: 143.45 | S136: 154.36 | T136: 157.56 | U136: 167.96 | V136: 167.96 | W136: 168.49
A137: 131 | B137: 41.67 | C137: 47.4 | D137: 61.29 | E137: 90.02 | F137: 142.9 | G137: 153.89 | H137: 157.1 | I137: 167.59 | J137: 167.59 | K137: 168.15 | M137: 131 | N137: 43.31 | O137: 49.05 | P137: 62.94 | Q137: 91.67 | R137: 144.55 | S137: 155.54 | T137: 158.75 | U137: 169.23 | V137: 169.23 | W137: 169.79
A138: 132 | B138: 41.99 | C138: 47.78 | D138: 61.75 | E138: 90.7 | F138: 143.99 | G138: 155.05 | H138: 158.3 | I138: 168.86 | J138: 168.86 | K138: 169.46 | M138: 132 | N138: 43.64 | O138: 49.42 | P138: 63.39 | Q138: 92.34 | R138: 145.63 | S138: 156.7 | T138: 159.95 | U138: 170.51 | V138: 170.51 | W138: 171.11
A139: 133 | B139: 42.31 | C139: 48.13 | D139: 62.24 | E139: 91.4 | F139: 145.07 | G139: 156.23 | H139: 159.5 | I139: 170.14 | J139: 170.14 | K139: 170.74 | M139: 133 | N139: 43.96 | O139: 49.77 | P139: 63.89 | Q139: 93.05 | R139: 146.71 | S139: 157.88 | T139: 161.15 | U139: 171.79 | V139: 171.79 | W139: 172.39
A140: 134 | B140: 42.62 | C140: 48.49 | D140: 62.7 | E140: 92.08 | F140: 146.18 | G140: 157.4 | H140: 160.68 | I140: 171.42 | J140: 171.42 | K140: 172.06 | M140: 134 | N140: 44.27 | O140: 50.14 | P140: 64.35 | Q140: 93.73 | R140: 147.83 | S140: 159.05 | T140: 162.33 | U140: 173.06 | V140: 173.06 | W140: 173.7
A141: 135 | B141: 42.95 | C141: 48.86 | D141: 63.17 | E141: 92.78 | F141: 147.27 | G141: 158.59 | H141: 161.88 | I141: 172.7 | J141: 172.7 | K141: 173.34 | M141: 135 | N141: 44.6 | O141: 50.51 | P141: 64.81 | Q141: 94.42 | R141: 148.92 | S141: 160.24 | T141: 163.53 | U141: 174.35 | V141: 174.35 | W141: 174.99
A142: 136 | B142: 43.25 | C142: 49.21 | D142: 63.62 | E142: 93.45 | F142: 148.35 | G142: 159.77 | H142: 163.08 | I142: 173.98 | J142: 173.98 | K142: 174.65 | M142: 136 | N142: 44.9 | O142: 50.86 | P142: 65.27 | Q142: 95.1 | R142: 149.99 | S142: 161.42 | T142: 164.73 | U142: 175.63 | V142: 175.63 | W142: 176.29
A143: 137 | B143: 43.58 | C143: 49.59 | D143: 64.1 | E143: 94.13 | F143: 149.43 | G143: 160.92 | H143: 164.28 | I143: 175.26 | J143: 175.26 | K143: 175.96 | M143: 137 | N143: 45.23 | O143: 51.23 | P143: 65.74 | Q143: 95.78 | R143: 151.08 | S143: 162.57 | T143: 165.92 | U143: 176.9 | V143: 176.9 | W143: 177.61
A144: 138 | B144: 43.88 | C144: 49.94 | D144: 64.57 | E144: 94.85 | F144: 150.52 | G144: 162.11 | H144: 165.48 | I144: 176.54 | J144: 176.54 | K144: 177.25 | M144: 138 | N144: 45.53 | O144: 51.58 | P144: 66.22 | Q144: 96.49 | R144: 152.17 | S144: 163.76 | T144: 167.12 | U144: 178.19 | V144: 178.19 | W144: 178.9
A145: 139 | B145: 44.22 | C145: 50.29 | D145: 65.03 | E145: 95.52 | F145: 151.63 | G145: 163.28 | H145: 166.68 | I145: 177.82 | J145: 177.82 | K145: 178.56 | M145: 139 | N145: 45.86 | O145: 51.94 | P145: 66.67 | Q145: 97.17 | R145: 153.27 | S145: 164.93 | T145: 168.32 | U145: 179.47 | V145: 179.47 | W145: 180.2
A146: 140 | B146: 44.52 | C146: 50.66 | D146: 65.52 | E146: 96.21 | F146: 152.71 | G146: 164.46 | H146: 167.89 | I146: 179.11 | J146: 179.11 | K146: 179.84 | M146: 140 | N146: 46.16 | O146: 52.31 | P146: 67.16 | Q146: 97.86 | R146: 154.36 | S146: 166.11 | T146: 169.53 | U146: 180.75 | V146: 180.75 | W146: 181.49
A147: 141 | B147: 44.85 | C147: 51.04 | D147: 65.97 | E147: 96.9 | F147: 153.8 | G147: 165.62 | H147: 169.09 | I147: 180.38 | J147: 180.38 | K147: 181.15 | M147: 141 | N147: 46.49 | O147: 52.68 | P147: 67.62 | Q147: 98.54 | R147: 155.45 | S147: 167.27 | T147: 170.73 | U147: 182.03 | V147: 182.03 | W147: 182.79
A148: 142 | B148: 45.15 | C148: 51.39 | D148: 66.44 | E148: 97.57 | F148: 154.9 | G148: 166.8 | H148: 170.3 | I148: 181.65 | J148: 181.65 | K148: 182.47 | M148: 142 | N148: 46.79 | O148: 53.03 | P148: 68.08 | Q148: 99.22 | R148: 156.54 | S148: 168.45 | T148: 171.94 | U148: 183.3 | V148: 183.3 | W148: 184.12
A149: 143 | B149: 45.48 | C149: 51.75 | D149: 66.89 | E149: 98.27 | F149: 156 | G149: 167.99 | H149: 171.49 | I149: 182.93 | J149: 182.93 | K149: 183.75 | M149: 143 | N149: 47.12 | O149: 53.4 | P149: 68.54 | Q149: 99.92 | R149: 157.64 | S149: 169.64 | T149: 173.13 | U149: 184.57 | V149: 184.57 | W149: 185.4
A150: 144 | B150: 45.79 | C150: 52.11 | D150: 67.38 | E150: 98.96 | F150: 157.08 | G150: 169.16 | H150: 172.68 | I150: 184.21 | J150: 184.21 | K150: 185.06 | M150: 144 | N150: 47.43 | O150: 53.76 | P150: 69.02 | Q150: 100.6 | R150: 158.73 | S150: 170.81 | T150: 174.33 | U150: 185.85 | V150: 185.85 | W150: 186.7
A151: 145 | B151: 46.12 | C151: 52.47 | D151: 67.84 | E151: 99.63 | F151: 158.17 | G151: 170.33 | H151: 173.88 | I151: 185.49 | J151: 185.49 | K151: 186.34 | M151: 145 | N151: 47.77 | O151: 54.12 | P151: 69.49 | Q151: 101.27 | R151: 159.81 | S151: 171.98 | T151: 175.53 | U151: 187.14 | V151: 187.14 | W151: 187.99
A152: 146 | B152: 46.43 | C152: 52.85 | D152: 68.31 | E152: 100.32 | F152: 159.26 | G152: 171.5 | H152: 175.07 | I152: 186.77 | J152: 186.77 | K152: 187.66 | M152: 146 | N152: 48.08 | O152: 54.49 | P152: 69.96 | Q152: 101.97 | R152: 160.9 | S152: 173.15 | T152: 176.72 | U152: 188.41 | V152: 188.41 | W152: 189.3
